Workbook

Sheet 199P195
A1: #CHROM | B1: POS | C1: ID | D1: REF | E1: Nº reads | F1: BHI3734 reads support | G1: ALT | H1: Nº reads | I1: PER160 reas support | J1: Total reads | K1: QUAL | L1: FILTER | M1: INFO | N1: Impact | O1: Nucleotide change | P1: FORMAT | Q1: BHI3734_199P195.sorted.dupli.removed.bam
A2: KP164568_BHI3734_H804698_2014_08_26_Human_Brazil | B2: 1455 | C2: . | D2: T | E2: 446 | F2: =E2*100/J2 -> 51.56069364 | G2: C | H2: 419 | I2: =H2*100/J2 -> 48.43930636 | J2: =E2+H2 -> 865 | K2: 225.009 | L2: PASS | M2: DP=843;VDB=0.545864;SGB=-0.693147;RPB=0.831776;MQB=0.0797212;MQSB=0.976873;BQB=0.285262;MQ0F=0;AF1=0.5;AC1=1;DP4=241,75,261,12;MQ=42;FQ=225.007;PV4=6.63258e-12,1,0.000557207,1;ANN=C|synonymous_variant|LOW|NS1|GENE_NS1|transcript|TRANSCRIPT_NS1|protein_coding|1/1|c.1378T>C|p.Leu460Leu|1378/1605|1378/1605|460/534||WARNING_TRANSCRIPT_NO_STOP_CODON,C|upstream_gene_variant|MODIFIER|NS2|GENE_NS2|transcript|TRANSCRIPT_NS2|protein_coding||c.-228T>C|||||228|WARNING_TRANSCRIPT_NO_START_CODON,C|upstream_gene_variant|MODIFIER|NS3|GENE_NS3|transcript|TRANSCRIPT_NS3|protein_coding||c.-2622T>C|||||2622|WARNING_TRANSCRIPT_NO_START_CODON,C|upstream_gene_variant|MODIFIER|NS4|GENE_NS4|transcript|TRANSCRIPT_NS4|protein_coding||c.-4212T>C|||||4212|WARNING_TRANSCRIPT_NO_START_CODON,C|non_coding_transcript_variant|MODIFIER|EDEN.1|null|transcript|EDEN.1|protein_coding||||||||WARNING_TRANSCRIPT_NO_START_CODON | N2: LOW | O2: Synonymous | P2: GT:PL | Q2: 0/1:255,0,255
A3: KP164568_BHI3734_H804698_2014_08_26_Human_Brazil | B3: 3369 | C3: . | D3: G | E3: 384 | F3: =E3*100/J3 -> 60.56782334 | G3: T | H3: 250 | I3: =H3*100/J3 -> 39.43217666 | J3: =E3+H3 -> 634 | K3: 164.009 | L3: PASS | M3: DP=631;VDB=0.0482993;SGB=-0.693147;RPB=2.05894e-05;MQB=0.815139;MQSB=0.316494;BQB=0.993198;MQ0F=0;AF1=0.5;AC1=1;DP4=284,9,185,1;MQ=42;FQ=167.017;PV4=0.0969469,1,0.184622,0.00119074;ANN=T|stop_gained|HIGH|NS2|GENE_NS2|transcript|TRANSCRIPT_NS2|protein_coding|1/1|c.1687G>T|p.Glu563*|1687/2394|1687/2394|563/797||WARNING_TRANSCRIPT_NO_START_CODON,T|upstream_gene_variant|MODIFIER|NS3|GENE_NS3|transcript|TRANSCRIPT_NS3|protein_coding||c.-708G>T|||||708|WARNING_TRANSCRIPT_NO_START_CODON,T|upstream_gene_variant|MODIFIER|NS4|GENE_NS4|transcript|TRANSCRIPT_NS4|protein_coding||c.-2298G>T|||||2298|WARNING_TRANSCRIPT_NO_START_CODON,T|upstream_gene_variant|MODIFIER|capsid|GENE_capsid|transcript|TRANSCRIPT_capsid|protein_coding||c.-4199G>T|||||4199|WARNING_TRANSCRIPT_NO_STOP_CODON,T|upstream_gene_variant|MODIFIER|E3|GENE_E3|transcript|TRANSCRIPT_E3|protein_coding||c.-4991G>T|||||4991|WARNING_TRANSCRIPT_NO_START_CODON,T|downstream_gene_variant|MODIFIER|NS1|GENE_NS1|transcript|TRANSCRIPT_NS1|protein_coding||c.*1687G>T|||||1687|WARNING_TRANSCRIPT_NO_STOP_CODON,T|non_coding_transcript_variant|MODIFIER|EDEN.1|null|transcript|EDEN.1|protein_coding||||||||WARNING_TRANSCRIPT_NO_START_CODON | N3: - | O3: Stop codon | P3: GT:PL | Q3: 0/1:194,0,255
A4: KP164568_BHI3734_H804698_2014_08_26_Human_Brazil | B4: 3491 | C4: . | D4: G | E4: 1 | F4: =E4*100/J4 -> 0.1443001443 | G4: A | H4: 692 | I4: =H4*100/J4 -> 99.85569986 | J4: =E4+H4 -> 693 | K4: 221.999 | L4: PASS | M4: DP=692;VDB=0.103697;SGB=-0.693147;MQSB=0.0565693;MQ0F=0;AF1=1;AC1=2;DP4=0,0,224,265;MQ=42;FQ=-281.989;ANN=A|synonymous_variant|LOW|NS2|GENE_NS2|transcript|TRANSCRIPT_NS2|protein_coding|1/1|c.1809G>A|p.Pro603Pro|1809/2394|1809/2394|603/797||WARNING_TRANSCRIPT_NO_START_CODON,A|upstream_gene_variant|MODIFIER|NS3|GENE_NS3|transcript|TRANSCRIPT_NS3|protein_coding||c.-586G>A|||||586|WARNING_TRANSCRIPT_NO_START_CODON,A|upstream_gene_variant|MODIFIER|NS4|GENE_NS4|transcript|TRANSCRIPT_NS4|protein_coding||c.-2176G>A|||||2176|WARNING_TRANSCRIPT_NO_START_CODON,A|upstream_gene_variant|MODIFIER|capsid|GENE_capsid|transcript|TRANSCRIPT_capsid|protein_coding||c.-4077G>A|||||4077|WARNING_TRANSCRIPT_NO_STOP_CODON,A|upstream_gene_variant|MODIFIER|E3|GENE_E3|transcript|TRANSCRIPT_E3|protein_coding||c.-4869G>A|||||4869|WARNING_TRANSCRIPT_NO_START_CODON,A|downstream_gene_variant|MODIFIER|NS1|GENE_NS1|transcript|TRANSCRIPT_NS1|protein_coding||c.*1809G>A|||||1809|WARNING_TRANSCRIPT_NO_STOP_CODON,A|non_coding_transcript_variant|MODIFIER|EDEN.1|null|transcript|EDEN.1|protein_coding||||||||WARNING_TRANSCRIPT_NO_START_CODON | N4: LOW | O4: Synonymous | P4: GT:PL | Q4: 1/1:255,255,0
A5: KP164568_BHI3734_H804698_2014_08_26_Human_Brazil | B5: 4871 | C5: . | D5: T | E5: 17 | F5: =E5*100/J5 -> 3.5639413 | G5: C | H5: 460 | I5: =H5*100/J5 -> 96.4360587 | J5: =E5+H5 -> 477 | K5: 221.999 | L5: PASS | M5: DP=453;VDB=5.2722e-09;SGB=-0.693147;RPB=6.36561e-06;MQB=0.92533;MQSB=0.992045;BQB=0.880707;MQ0F=0;AF1=1;AC1=2;DP4=6,3,293,1;MQ=42;FQ=-281.989;PV4=7.20959e-05,0.262899,1,1;ANN=C|synonymous_variant|LOW|NS3|GENE_NS3|transcript|TRANSCRIPT_NS3|protein_coding|1/1|c.795T>C|p.Arg265Arg|795/1572|795/1572|265/523||WARNING_TRANSCRIPT_NO_START_CODON,C|upstream_gene_variant|MODIFIER|NS4|GENE_NS4|transcript|TRANSCRIPT_NS4|protein_coding||c.-796T>C|||||796|WARNING_TRANSCRIPT_NO_START_CODON,C|upstream_gene_variant|MODIFIER|capsid|GENE_capsid|transcript|TRANSCRIPT_capsid|protein_coding||c.-2697T>C|||||2697|WARNING_TRANSCRIPT_NO_STOP_CODON,C|upstream_gene_variant|MODIFIER|E3|GENE_E3|transcript|TRANSCRIPT_E3|protein_coding||c.-3489T>C|||||3489|WARNING_TRANSCRIPT_NO_START_CODON,C|upstream_gene_variant|MODIFIER|E2|GENE_E2|transcript|TRANSCRIPT_E2|protein_coding||c.-3672T>C|||||3672|WARNING_TRANSCRIPT_NO_START_CODON,C|upstream_gene_variant|MODIFIER|6K|GENE_6K|transcript|TRANSCRIPT_6K|protein_coding||c.-4941T>C|||||4941|WARNING_TRANSCRIPT_NO_START_CODON,C|downstream_gene_variant|MODIFIER|NS1|GENE_NS1|transcript|TRANSCRIPT_NS1|protein_coding||c.*3189T>C|||||3189|WARNING_TRANSCRIPT_NO_STOP_CODON,C|downstream_gene_variant|MODIFIER|NS2|GENE_NS2|transcript|TRANSCRIPT_NS2|protein_coding||c.*795T>C|||||795|WARNING_TRANSCRIPT_NO_START_CODON,C|non_coding_transcript_variant|MODIFIER|EDEN.1|null|transcript|EDEN.1|protein_coding||||||||WARNING_TRANSCRIPT_NO_START_CODON | N5: LOW | O5: Synonymous | P5: GT:PL | Q5: 1/1:255,255,0
A6: KP164568_BHI3734_H804698_2014_08_26_Human_Brazil | B6: 5858 | D6: C | E6: 1302 | F6: =E6*100/J6 -> 91.2403644 | G6: T | H6: 125 | I6: =H6*100/J6 -> 8.759635599 | J6: =E6+H6 -> 1427 | M6: Synonymous | N6: LOW | O6: Synonymous
A7: KP164568_BHI3734_H804698_2014_08_26_Human_Brazil | B7: 5861 | D7: G | E7: 1242 | F7: =E7*100/J7 -> 72.12543554 | G7: A | H7: 480 | I7: =H7*100/J7 -> 27.87456446 | J7: =E7+H7 -> 1722 | M7: Synonymous | N7: LOW | O7: Synonymous
A8: KP164568_BHI3734_H804698_2014_08_26_Human_Brazil | B8: 5864 | C8: . | D8: G | E8: 1185 | F8: =E8*100/J8 -> 73.374613 | G8: A | H8: 430 | I8: =H8*100/J8 -> 26.625387 | J8: =E8+H8 -> 1615 | K8: 39.0076 | L8: PASS | M8: DP=1612;VDB=0.878838;SGB=-0.693147;RPB=8.99487e-13;MQB=0;MQSB=5.26146e-41;BQB=2.15301e-07;MQ0F=0.115385;AF1=0.5;AC1=1;DP4=391,469,236,113;MQ=36;FQ=42.0155;PV4=2.16924e-12,9.63094e-07,0,7.19348e-36;ANN=A|synonymous_variant|LOW|NS4|GENE_NS4|transcript|TRANSCRIPT_NS4|protein_coding|1/1|c.198G>A|p.Ser66Ser|198/1833|198/1833|66/610||WARNING_TRANSCRIPT_NO_START_CODON,A|upstream_gene_variant|MODIFIER|capsid|GENE_capsid|transcript|TRANSCRIPT_capsid|protein_coding||c.-1704G>A|||||1704|WARNING_TRANSCRIPT_NO_STOP_CODON,A|upstream_gene_variant|MODIFIER|E3|GENE_E3|transcript|TRANSCRIPT_E3|protein_coding||c.-2496G>A|||||2496|WARNING_TRANSCRIPT_NO_START_CODON,A|upstream_gene_variant|MODIFIER|E2|GENE_E2|transcript|TRANSCRIPT_E2|protein_coding||c.-2679G>A|||||2679|WARNING_TRANSCRIPT_NO_START_CODON,A|upstream_gene_variant|MODIFIER|6K|GENE_6K|transcript|TRANSCRIPT_6K|protein_coding||c.-3948G>A|||||3948|WARNING_TRANSCRIPT_NO_START_CODON,A|upstream_gene_variant|MODIFIER|E1|GENE_E1|transcript|TRANSCRIPT_E1|protein_coding||c.-4131G>A|||||4131|WARNING_TRANSCRIPT_NO_START_CODON,A|downstream_gene_variant|MODIFIER|NS1|GENE_NS1|transcript|TRANSCRIPT_NS1|protein_coding||c.*4182G>A|||||4182|WARNING_TRANSCRIPT_NO_STOP_CODON,A|downstream_gene_variant|MODIFIER|NS2|GENE_NS2|transcript|TRANSCRIPT_NS2|protein_coding||c.*1788G>A|||||1788|WARNING_TRANSCRIPT_NO_START_CODON,A|downstream_gene_variant|MODIFIER|NS3|GENE_NS3|transcript|TRANSCRIPT_NS3|protein_coding||c.*216G>A|||||216|WARNING_TRANSCRIPT_NO_START_CODON,A|non_coding_transcript_variant|MODIFIER|EDEN.1|null|transcript|EDEN.1|protein_coding||||||||WARNING_TRANSCRIPT_NO_START_CODON | N8: LOW | O8: Synonymous | P8: GT:PL | Q8: 0/1:69,0,255
A9: KP164568_BHI3734_H804698_2014_08_26_Human_Brazil | B9: 5873 | C9: . | D9: A | E9: 992 | F9: =E9*100/J9 -> 66.44340255 | G9: G | H9: 501 | I9: =H9*100/J9 -> 33.55659745 | J9: =E9+H9 -> 1493 | K9: 135.008 | L9: PASS | M9: DP=1490;VDB=5.23372e-08;SGB=-0.693147;RPB=5.11079e-05;MQB=0;MQSB=0;BQB=0.00249184;MQ0F=0.127517;AF1=0.5;AC1=1;DP4=310,437,272,121;MQ=36;FQ=138.016;PV4=4.44059e-19,0.0198105,0,1.56359e-08;ANN=G|synonymous_variant|LOW|NS4|GENE_NS4|transcript|TRANSCRIPT_NS4|protein_coding|1/1|c.207A>G|p.Val69Val|207/1833|207/1833|69/610||WARNING_TRANSCRIPT_NO_START_CODON,G|upstream_gene_variant|MODIFIER|capsid|GENE_capsid|transcript|TRANSCRIPT_capsid|protein_coding||c.-1695A>G|||||1695|WARNING_TRANSCRIPT_NO_STOP_CODON,G|upstream_gene_variant|MODIFIER|E3|GENE_E3|transcript|TRANSCRIPT_E3|protein_coding||c.-2487A>G|||||2487|WARNING_TRANSCRIPT_NO_START_CODON,G|upstream_gene_variant|MODIFIER|E2|GENE_E2|transcript|TRANSCRIPT_E2|protein_coding||c.-2670A>G|||||2670|WARNING_TRANSCRIPT_NO_START_CODON,G|upstream_gene_variant|MODIFIER|6K|GENE_6K|transcript|TRANSCRIPT_6K|protein_coding||c.-3939A>G|||||3939|WARNING_TRANSCRIPT_NO_START_CODON,G|upstream_gene_variant|MODIFIER|E1|GENE_E1|transcript|TRANSCRIPT_E1|protein_coding||c.-4122A>G|||||4122|WARNING_TRANSCRIPT_NO_START_CODON,G|downstream_gene_variant|MODIFIER|NS1|GENE_NS1|transcript|TRANSCRIPT_NS1|protein_coding||c.*4191A>G|||||4191|WARNING_TRANSCRIPT_NO_STOP_CODON,G|downstream_gene_variant|MODIFIER|NS2|GENE_NS2|transcript|TRANSCRIPT_NS2|protein_coding||c.*1797A>G|||||1797|WARNING_TRANSCRIPT_NO_START_CODON,G|downstream_gene_variant|MODIFIER|NS3|GENE_NS3|transcript|TRANSCRIPT_NS3|protein_coding||c.*225A>G|||||225|WARNING_TRANSCRIPT_NO_START_CODON,G|non_coding_transcript_variant|MODIFIER|EDEN.1|null|transcript|EDEN.1|protein_coding||||||||WARNING_TRANSCRIPT_NO_START_CODON | N9: LOW | O9: Synonymous | P9: GT:PL | Q9: 0/1:165,0,255
A10: KP164568_BHI3734_H804698_2014_08_26_Human_Brazil | B10: 5879 | C10: . | D10: C | E10: 927 | F10: =E10*100/J10 -> 69.28251121 | G10: T | H10: 411 | I10: =H10*100/J10 -> 30.71748879 | J10: =E10+H10 -> 1338 | K10: 25.0205 | L10: PASS | M10: DP=1335;VDB=6.66238e-35;SGB=-0.693147;RPB=1.56799e-08;MQB=0;MQSB=0;BQB=0.789831;MQ0F=0.140075;AF1=0.499999;AC1=1;DP4=279,436,254,68;MQ=36;FQ=28.0219;PV4=7.32824e-34,0.269274,0,0.0162347;ANN=T|synonymous_variant|LOW|NS4|GENE_NS4|transcript|TRANSCRIPT_NS4|protein_coding|1/1|c.213C>T|p.Asn71Asn|213/1833|213/1833|71/610||WARNING_TRANSCRIPT_NO_START_CODON,T|upstream_gene_variant|MODIFIER|capsid|GENE_capsid|transcript|TRANSCRIPT_capsid|protein_coding||c.-1689C>T|||||1689|WARNING_TRANSCRIPT_NO_STOP_CODON,T|upstream_gene_variant|MODIFIER|E3|GENE_E3|transcript|TRANSCRIPT_E3|protein_coding||c.-2481C>T|||||2481|WARNING_TRANSCRIPT_NO_START_CODON,T|upstream_gene_variant|MODIFIER|E2|GENE_E2|transcript|TRANSCRIPT_E2|protein_coding||c.-2664C>T|||||2664|WARNING_TRANSCRIPT_NO_START_CODON,T|upstream_gene_variant|MODIFIER|6K|GENE_6K|transcript|TRANSCRIPT_6K|protein_coding||c.-3933C>T|||||3933|WARNING_TRANSCRIPT_NO_START_CODON,T|upstream_gene_variant|MODIFIER|E1|GENE_E1|transcript|TRANSCRIPT_E1|protein_coding||c.-4116C>T|||||4116|WARNING_TRANSCRIPT_NO_START_CODON,T|downstream_gene_variant|MODIFIER|NS1|GENE_NS1|transcript|TRANSCRIPT_NS1|protein_coding||c.*4197C>T|||||4197|WARNING_TRANSCRIPT_NO_STOP_CODON,T|downstream_gene_variant|MODIFIER|NS2|GENE_NS2|transcript|TRANSCRIPT_NS2|protein_coding||c.*1803C>T|||||1803|WARNING_TRANSCRIPT_NO_START_CODON,T|downstream_gene_variant|MODIFIER|NS3|GENE_NS3|transcript|TRANSCRIPT_NS3|protein_coding||c.*231C>T|||||231|WARNING_TRANSCRIPT_NO_START_CODON,T|non_coding_transcript_variant|MODIFIER|EDEN.1|null|transcript|EDEN.1|protein_coding||||||||WARNING_TRANSCRIPT_NO_START_CODON | N10: LOW | O10: Synonymous | P10: GT:PL | Q10: 0/1:55,0,255
A11: KP164568_BHI3734_H804698_2014_08_26_Human_Brazil | B11: 5934 | D11: T | E11: 8 | F11: =E11*100/J11 -> 2.867383513 | G11: G | H11: 271 | I11: =H11*100/J11 -> 97.13261649 | J11: =E11+H11 -> 279 | M11: Ser->Ala | N11: MODERATE | O11: Non-synonymous
A12: KP164568_BHI3734_H804698_2014_08_26_Human_Brazil | B12: 5943-5945 | D12: T,A | E12: 8 | F12: =E12*100/J12 -> 1.652892562 | G12: C,G | H12: 476 | I12: =H12*100/J12 -> 98.34710744 | J12: =E12+H12 -> 484 | M12: Ser > Pro | N12: MODERATE | O12: Non-synonymous
A13: KP164568_BHI3734_H804698_2014_08_26_Human_Brazil | B13: 5954 | D13: T | E13: 8 | F13: =E13*100/J13 -> 1.27388535 | G13: G | H13: 620 | I13: =H13*100/J13 -> 98.72611465 | J13: =E13+H13 -> 628 | N13: LOW | O13: Synonymous
A14: KP164568_BHI3734_H804698_2014_08_26_Human_Brazil | B14: 5960 | C14: . | D14: C | E14: 8 | F14: =E14*100/J14 -> 0.9324009324 | G14: T | H14: 850 | I14: =H14*100/J14 -> 99.06759907 | J14: =E14+H14 -> 858 | K14: 32.9988 | L14: PASS | M14: DP=856;VDB=4.2634e-26;SGB=-0.693147;RPB=0.000160571;MQB=0.000182522;MQSB=6.11396e-05;BQB=0.799674;MQ0F=0.622664;AF1=1;AC1=2;DP4=5,1,547,139;MQ=8;FQ=-281.989;PV4=1,1,9.58311e-30,0.0302048;ANN=T|synonymous_variant|LOW|NS4|GENE_NS4|transcript|TRANSCRIPT_NS4|protein_coding|1/1|c.294C>T|p.Tyr98Tyr|294/1833|294/1833|98/610||WARNING_TRANSCRIPT_NO_START_CODON,T|upstream_gene_variant|MODIFIER|capsid|GENE_capsid|transcript|TRANSCRIPT_capsid|protein_coding||c.-1608C>T|||||1608|WARNING_TRANSCRIPT_NO_STOP_CODON,T|upstream_gene_variant|MODIFIER|E3|GENE_E3|transcript|TRANSCRIPT_E3|protein_coding||c.-2400C>T|||||2400|WARNING_TRANSCRIPT_NO_START_CODON,T|upstream_gene_variant|MODIFIER|E2|GENE_E2|transcript|TRANSCRIPT_E2|protein_coding||c.-2583C>T|||||2583|WARNING_TRANSCRIPT_NO_START_CODON,T|upstream_gene_variant|MODIFIER|6K|GENE_6K|transcript|TRANSCRIPT_6K|protein_coding||c.-3852C>T|||||3852|WARNING_TRANSCRIPT_NO_START_CODON,T|upstream_gene_variant|MODIFIER|E1|GENE_E1|transcript|TRANSCRIPT_E1|protein_coding||c.-4035C>T|||||4035|WARNING_TRANSCRIPT_NO_START_CODON,T|downstream_gene_variant|MODIFIER|NS1|GENE_NS1|transcript|TRANSCRIPT_NS1|protein_coding||c.*4278C>T|||||4278|WARNING_TRANSCRIPT_NO_STOP_CODON,T|downstream_gene_variant|MODIFIER|NS2|GENE_NS2|transcript|TRANSCRIPT_NS2|protein_coding||c.*1884C>T|||||1884|WARNING_TRANSCRIPT_NO_START_CODON,T|downstream_gene_variant|MODIFIER|NS3|GENE_NS3|transcript|TRANSCRIPT_NS3|protein_coding||c.*312C>T|||||312|WARNING_TRANSCRIPT_NO_START_CODON,T|non_coding_transcript_variant|MODIFIER|EDEN.1|null|transcript|EDEN.1|protein_coding||||||||WARNING_TRANSCRIPT_NO_START_CODON | N14: LOW | O14: Synonymous | P14: GT:PL | Q14: 1/1:66,255,0
A15: KP164568_BHI3734_H804698_2014_08_26_Human_Brazil | B15: 5967 | C15: . | D15: A | E15: 7 | F15: =E15*100/J15 -> 0.5663430421 | G15: G | H15: 1229 | I15: =H15*100/J15 -> 99.43365696 | J15: =E15+H15 -> 1236 | K15: 72.9971 | L15: PASS | M15: DP=1235;VDB=3.79813e-13;SGB=-0.693147;RPB=0.00277641;MQB=0.00255828;MQSB=0.165048;BQB=0.98343;MQ0F=0.492308;AF1=1;AC1=2;DP4=4,0,788,157;MQ=9;FQ=-281.989;PV4=1,1,8.37473e-25,0.0982128;ANN=G|missense_variant|MODERATE|NS4|GENE_NS4|transcript|TRANSCRIPT_NS4|protein_coding|1/1|c.301A>G|p.Thr101Ala|301/1833|301/1833|101/610||WARNING_TRANSCRIPT_NO_START_CODON,G|upstream_gene_variant|MODIFIER|capsid|GENE_capsid|transcript|TRANSCRIPT_capsid|protein_coding||c.-1601A>G|||||1601|WARNING_TRANSCRIPT_NO_STOP_CODON,G|upstream_gene_variant|MODIFIER|E3|GENE_E3|transcript|TRANSCRIPT_E3|protein_coding||c.-2393A>G|||||2393|WARNING_TRANSCRIPT_NO_START_CODON,G|upstream_gene_variant|MODIFIER|E2|GENE_E2|transcript|TRANSCRIPT_E2|protein_coding||c.-2576A>G|||||2576|WARNING_TRANSCRIPT_NO_START_CODON,G|upstream_gene_variant|MODIFIER|6K|GENE_6K|transcript|TRANSCRIPT_6K|protein_coding||c.-3845A>G|||||3845|WARNING_TRANSCRIPT_NO_START_CODON,G|upstream_gene_variant|MODIFIER|E1|GENE_E1|transcript|TRANSCRIPT_E1|protein_coding||c.-4028A>G|||||4028|WARNING_TRANSCRIPT_NO_START_CODON,G|downstream_gene_variant|MODIFIER|NS1|GENE_NS1|transcript|TRANSCRIPT_NS1|protein_coding||c.*4285A>G|||||4285|WARNING_TRANSCRIPT_NO_STOP_CODON,G|downstream_gene_variant|MODIFIER|NS2|GENE_NS2|transcript|TRANSCRIPT_NS2|protein_coding||c.*1891A>G|||||1891|WARNING_TRANSCRIPT_NO_START_CODON,G|downstream_gene_variant|MODIFIER|NS3|GENE_NS3|transcript|TRANSCRIPT_NS3|protein_coding||c.*319A>G|||||319|WARNING_TRANSCRIPT_NO_START_CODON,G|non_coding_transcript_variant|MODIFIER|EDEN.1|null|transcript|EDEN.1|protein_coding||||||||WARNING_TRANSCRIPT_NO_START_CODON | N15: MODERATE | O15: Non-synonymous | P15: GT:PL | Q15: 1/1:106,255,0
A16: KP164568_BHI3734_H804698_2014_08_26_Human_Brazil | B16: 5968 | C16: . | D16: C | E16: 6 | F16: =E16*100/J16 -> 0.4777070064 | G16: T | H16: 1250 | I16: =H16*100/J16 -> 99.52229299 | J16: =E16+H16 -> 1256 | K16: 88.9974 | L16: PASS | M16: DP=1254;VDB=3.14381e-13;SGB=-0.693147;RPB=0.00270481;MQB=0.00255735;MQSB=0.21322;BQB=0.973604;MQ0F=0.485646;AF1=1;AC1=2;DP4=4,0,798,158;MQ=9;FQ=-281.989;PV4=1,1,1.61468e-24,0.140693;ANN=T|missense_variant|MODERATE|NS4|GENE_NS4|transcript|TRANSCRIPT_NS4|protein_coding|1/1|c.302C>T|p.Thr101Ile|302/1833|302/1833|101/610||WARNING_TRANSCRIPT_NO_START_CODON,T|upstream_gene_variant|MODIFIER|capsid|GENE_capsid|transcript|TRANSCRIPT_capsid|protein_coding||c.-1600C>T|||||1600|WARNING_TRANSCRIPT_NO_STOP_CODON,T|upstream_gene_variant|MODIFIER|E3|GENE_E3|transcript|TRANSCRIPT_E3|protein_coding||c.-2392C>T|||||2392|WARNING_TRANSCRIPT_NO_START_CODON,T|upstream_gene_variant|MODIFIER|E2|GENE_E2|transcript|TRANSCRIPT_E2|protein_coding||c.-2575C>T|||||2575|WARNING_TRANSCRIPT_NO_START_CODON,T|upstream_gene_variant|MODIFIER|6K|GENE_6K|transcript|TRANSCRIPT_6K|protein_coding||c.-3844C>T|||||3844|WARNING_TRANSCRIPT_NO_START_CODON,T|upstream_gene_variant|MODIFIER|E1|GENE_E1|transcript|TRANSCRIPT_E1|protein_coding||c.-4027C>T|||||4027|WARNING_TRANSCRIPT_NO_START_CODON,T|downstream_gene_variant|MODIFIER|NS1|GENE_NS1|transcript|TRANSCRIPT_NS1|protein_coding||c.*4286C>T|||||4286|WARNING_TRANSCRIPT_NO_STOP_CODON,T|downstream_gene_variant|MODIFIER|NS2|GENE_NS2|transcript|TRANSCRIPT_NS2|protein_coding||c.*1892C>T|||||1892|WARNING_TRANSCRIPT_NO_START_CODON,T|downstream_gene_variant|MODIFIER|NS3|GENE_NS3|transcript|TRANSCRIPT_NS3|protein_coding||c.*320C>T|||||320|WARNING_TRANSCRIPT_NO_START_CODON,T|non_coding_transcript_variant|MODIFIER|EDEN.1|null|transcript|EDEN.1|protein_coding||||||||WARNING_TRANSCRIPT_NO_START_CODON | N16: MODERATE | O16: Non-synonymous | P16: GT:PL | Q16: 1/1:122,255,0
A17: KP164568_BHI3734_H804698_2014_08_26_Human_Brazil | B17: 5972 | C17: . | D17: T | E17: 9 | F17: =E17*100/J17 -> 0.6245662734 | G17: C | H17: 1432 | I17: =H17*100/J17 -> 99.37543373 | J17: =E17+H17 -> 1441 | K17: 101.998 | L17: PASS | M17: DP=1437;VDB=6.73144e-11;SGB=-0.693147;RPB=0.00144631;MQB=0.0315939;MQSB=0.69973;BQB=0.906473;MQ0F=0.430063;AF1=1;AC1=2;DP4=5,0,866,178;MQ=10;FQ=-281.989;PV4=0.59567,1,5.82575e-14,0.44839;ANN=C|synonymous_variant|LOW|NS4|GENE_NS4|transcript|TRANSCRIPT_NS4|protein_coding|1/1|c.306T>C|p.Tyr102Tyr|306/1833|306/1833|102/610||WARNING_TRANSCRIPT_NO_START_CODON,C|upstream_gene_variant|MODIFIER|capsid|GENE_capsid|transcript|TRANSCRIPT_capsid|protein_coding||c.-1596T>C|||||1596|WARNING_TRANSCRIPT_NO_STOP_CODON,C|upstream_gene_variant|MODIFIER|E3|GENE_E3|transcript|TRANSCRIPT_E3|protein_coding||c.-2388T>C|||||2388|WARNING_TRANSCRIPT_NO_START_CODON,C|upstream_gene_variant|MODIFIER|E2|GENE_E2|transcript|TRANSCRIPT_E2|protein_coding||c.-2571T>C|||||2571|WARNING_TRANSCRIPT_NO_START_CODON,C|upstream_gene_variant|MODIFIER|6K|GENE_6K|transcript|TRANSCRIPT_6K|protein_coding||c.-3840T>C|||||3840|WARNING_TRANSCRIPT_NO_START_CODON,C|upstream_gene_variant|MODIFIER|E1|GENE_E1|transcript|TRANSCRIPT_E1|protein_coding||c.-4023T>C|||||4023|WARNING_TRANSCRIPT_NO_START_CODON,C|downstream_gene_variant|MODIFIER|NS1|GENE_NS1|transcript|TRANSCRIPT_NS1|protein_coding||c.*4290T>C|||||4290|WARNING_TRANSCRIPT_NO_STOP_CODON,C|downstream_gene_variant|MODIFIER|NS2|GENE_NS2|transcript|TRANSCRIPT_NS2|protein_coding||c.*1896T>C|||||1896|WARNING_TRANSCRIPT_NO_START_CODON,C|downstream_gene_variant|MODIFIER|NS3|GENE_NS3|transcript|TRANSCRIPT_NS3|protein_coding||c.*324T>C|||||324|WARNING_TRANSCRIPT_NO_START_CODON,C|non_coding_transcript_variant|MODIFIER|EDEN.1|null|transcript|EDEN.1|protein_coding||||||||WARNING_TRANSCRIPT_NO_START_CODON | N17: LOW | O17: Synonymous | P17: GT:PL | Q17: 1/1:135,255,0
A18: KP164568_BHI3734_H804698_2014_08_26_Human_Brazil | B18: 6009 | C18: . | D18: C | E18: 1 | F18: =E18*100/J18 -> 0.05321979776 | G18: T | H18: 1878 | I18: =H18*100/J18 -> 99.9467802 | J18: =E18+H18 -> 1879 | K18: 221.999 | L18: PASS | M18: DP=1876;VDB=7.97475e-06;SGB=-0.693147;RPB=1;MQB=1;MQSB=1.24059e-08;BQB=1;MQ0F=0.248401;AF1=1;AC1=2;DP4=1,0,920,311;MQ=15;FQ=-281.989;PV4=1,1,0.0938047,0.399286;ANN=T|synonymous_variant|LOW|NS4|GENE_NS4|transcript|TRANSCRIPT_NS4|protein_coding|1/1|c.343C>T|p.Leu115Leu|343/1833|343/1833|115/610||WARNING_TRANSCRIPT_NO_START_CODON,T|upstream_gene_variant|MODIFIER|capsid|GENE_capsid|transcript|TRANSCRIPT_capsid|protein_coding||c.-1559C>T|||||1559|WARNING_TRANSCRIPT_NO_STOP_CODON,T|upstream_gene_variant|MODIFIER|E3|GENE_E3|transcript|TRANSCRIPT_E3|protein_coding||c.-2351C>T|||||2351|WARNING_TRANSCRIPT_NO_START_CODON,T|upstream_gene_variant|MODIFIER|E2|GENE_E2|transcript|TRANSCRIPT_E2|protein_coding||c.-2534C>T|||||2534|WARNING_TRANSCRIPT_NO_START_CODON,T|upstream_gene_variant|MODIFIER|6K|GENE_6K|transcript|TRANSCRIPT_6K|protein_coding||c.-3803C>T|||||3803|WARNING_TRANSCRIPT_NO_START_CODON,T|upstream_gene_variant|MODIFIER|E1|GENE_E1|transcript|TRANSCRIPT_E1|protein_coding||c.-3986C>T|||||3986|WARNING_TRANSCRIPT_NO_START_CODON,T|downstream_gene_variant|MODIFIER|NS1|GENE_NS1|transcript|TRANSCRIPT_NS1|protein_coding||c.*4327C>T|||||4327|WARNING_TRANSCRIPT_NO_STOP_CODON,T|downstream_gene_variant|MODIFIER|NS2|GENE_NS2|transcript|TRANSCRIPT_NS2|protein_coding||c.*1933C>T|||||1933|WARNING_TRANSCRIPT_NO_START_CODON,T|downstream_gene_variant|MODIFIER|NS3|GENE_NS3|transcript|TRANSCRIPT_NS3|protein_coding||c.*361C>T|||||361|WARNING_TRANSCRIPT_NO_START_CODON,T|non_coding_transcript_variant|MODIFIER|EDEN.1|null|transcript|EDEN.1|protein_coding||||||||WARNING_TRANSCRIPT_NO_START_CODON | N18: LOW | O18: Synonymous | P18: GT:PL | Q18: 1/1:255,255,0
A19: KP164568_BHI3734_H804698_2014_08_26_Human_Brazil | B19: 6017 | C19: . | D19: C | E19: 2 | F19: =E19*100/J19 -> 0.1129943503 | G19: T | H19: 1768 | I19: =H19*100/J19 -> 99.88700565 | J19: =E19+H19 -> 1770 | K19: 211.999 | L19: PASS | M19: DP=1770;VDB=3.01259e-06;SGB=-0.693147;MQSB=1.29026e-25;MQ0F=0.19096;AF1=1;AC1=2;DP4=0,0,827,337;MQ=15;FQ=-281.989;ANN=T|synonymous_variant|LOW|NS4|GENE_NS4|transcript|TRANSCRIPT_NS4|protein_coding|1/1|c.351C>T|p.Asn117Asn|351/1833|351/1833|117/610||WARNING_TRANSCRIPT_NO_START_CODON,T|upstream_gene_variant|MODIFIER|capsid|GENE_capsid|transcript|TRANSCRIPT_capsid|protein_coding||c.-1551C>T|||||1551|WARNING_TRANSCRIPT_NO_STOP_CODON,T|upstream_gene_variant|MODIFIER|E3|GENE_E3|transcript|TRANSCRIPT_E3|protein_coding||c.-2343C>T|||||2343|WARNING_TRANSCRIPT_NO_START_CODON,T|upstream_gene_variant|MODIFIER|E2|GENE_E2|transcript|TRANSCRIPT_E2|protein_coding||c.-2526C>T|||||2526|WARNING_TRANSCRIPT_NO_START_CODON,T|upstream_gene_variant|MODIFIER|6K|GENE_6K|transcript|TRANSCRIPT_6K|protein_coding||c.-3795C>T|||||3795|WARNING_TRANSCRIPT_NO_START_CODON,T|upstream_gene_variant|MODIFIER|E1|GENE_E1|transcript|TRANSCRIPT_E1|protein_coding||c.-3978C>T|||||3978|WARNING_TRANSCRIPT_NO_START_CODON,T|downstream_gene_variant|MODIFIER|NS1|GENE_NS1|transcript|TRANSCRIPT_NS1|protein_coding||c.*4335C>T|||||4335|WARNING_TRANSCRIPT_NO_STOP_CODON,T|downstream_gene_variant|MODIFIER|NS2|GENE_NS2|transcript|TRANSCRIPT_NS2|protein_coding||c.*1941C>T|||||1941|WARNING_TRANSCRIPT_NO_START_CODON,T|downstream_gene_variant|MODIFIER|NS3|GENE_NS3|transcript|TRANSCRIPT_NS3|protein_coding||c.*369C>T|||||369|WARNING_TRANSCRIPT_NO_START_CODON,T|non_coding_transcript_variant|MODIFIER|EDEN.1|null|transcript|EDEN.1|protein_coding||||||||WARNING_TRANSCRIPT_NO_START_CODON | N19: LOW | O19: Synonymous | P19: GT:PL | Q19: 1/1:245,255,0
A20: KP164568_BHI3734_H804698_2014_08_26_Human_Brazil | B20: 6041 | C20: . | D20: C | E20: 0 | F20: =E20*100/J20 -> 0 | G20: T | H20: 1179 | I20: =H20*100/J20 -> 100 | J20: =E20+H20 -> 1179 | K20: 201.999 | L20: PASS | M20: DP=1175;VDB=0.00948412;SGB=-0.693147;MQSB=7.5387e-20;MQ0F=0.108085;AF1=1;AC1=2;DP4=0,0,463,438;MQ=15;FQ=-281.989;ANN=T|synonymous_variant|LOW|NS4|GENE_NS4|transcript|TRANSCRIPT_NS4|protein_coding|1/1|c.375C>T|p.Cys125Cys|375/1833|375/1833|125/610||WARNING_TRANSCRIPT_NO_START_CODON,T|upstream_gene_variant|MODIFIER|capsid|GENE_capsid|transcript|TRANSCRIPT_capsid|protein_coding||c.-1527C>T|||||1527|WARNING_TRANSCRIPT_NO_STOP_CODON,T|upstream_gene_variant|MODIFIER|E3|GENE_E3|transcript|TRANSCRIPT_E3|protein_coding||c.-2319C>T|||||2319|WARNING_TRANSCRIPT_NO_START_CODON,T|upstream_gene_variant|MODIFIER|E2|GENE_E2|transcript|TRANSCRIPT_E2|protein_coding||c.-2502C>T|||||2502|WARNING_TRANSCRIPT_NO_START_CODON,T|upstream_gene_variant|MODIFIER|6K|GENE_6K|transcript|TRANSCRIPT_6K|protein_coding||c.-3771C>T|||||3771|WARNING_TRANSCRIPT_NO_START_CODON,T|upstream_gene_variant|MODIFIER|E1|GENE_E1|transcript|TRANSCRIPT_E1|protein_coding||c.-3954C>T|||||3954|WARNING_TRANSCRIPT_NO_START_CODON,T|downstream_gene_variant|MODIFIER|NS1|GENE_NS1|transcript|TRANSCRIPT_NS1|protein_coding||c.*4359C>T|||||4359|WARNING_TRANSCRIPT_NO_STOP_CODON,T|downstream_gene_variant|MODIFIER|NS2|GENE_NS2|transcript|TRANSCRIPT_NS2|protein_coding||c.*1965C>T|||||1965|WARNING_TRANSCRIPT_NO_START_CODON,T|downstream_gene_variant|MODIFIER|NS3|GENE_NS3|transcript|TRANSCRIPT_NS3|protein_coding||c.*393C>T|||||393|WARNING_TRANSCRIPT_NO_START_CODON,T|non_coding_transcript_variant|MODIFIER|EDEN.1|null|transcript|EDEN.1|protein_coding||||||||WARNING_TRANSCRIPT_NO_START_CODON | N20: LOW | O20: Synonymous | P20: GT:PL | Q20: 1/1:235,255,0 | S20: 6K | T20: GENE_6K | U20: 9812-9994
A21: KP164568_BHI3734_H804698_2014_08_26_Human_Brazil | B21: 6051 | C21: . | D21: C | E21: 0 | F21: =E21*100/J21 -> 0 | G21: T | H21: 805 | I21: =H21*100/J21 -> 100 | J21: =E21+H21 -> 805 | K21: 217.999 | L21: PASS | M21: DP=803;VDB=1.62792e-09;SGB=-0.693147;MQSB=8.01278e-08;MQ0F=0.135741;AF1=1;AC1=2;DP4=0,0,288,385;MQ=14;FQ=-281.989;ANN=T|synonymous_variant|LOW|NS4|GENE_NS4|transcript|TRANSCRIPT_NS4|protein_coding|1/1|c.385C>T|p.Leu129Leu|385/1833|385/1833|129/610||WARNING_TRANSCRIPT_NO_START_CODON,T|upstream_gene_variant|MODIFIER|capsid|GENE_capsid|transcript|TRANSCRIPT_capsid|protein_coding||c.-1517C>T|||||1517|WARNING_TRANSCRIPT_NO_STOP_CODON,T|upstream_gene_variant|MODIFIER|E3|GENE_E3|transcript|TRANSCRIPT_E3|protein_coding||c.-2309C>T|||||2309|WARNING_TRANSCRIPT_NO_START_CODON,T|upstream_gene_variant|MODIFIER|E2|GENE_E2|transcript|TRANSCRIPT_E2|protein_coding||c.-2492C>T|||||2492|WARNING_TRANSCRIPT_NO_START_CODON,T|upstream_gene_variant|MODIFIER|6K|GENE_6K|transcript|TRANSCRIPT_6K|protein_coding||c.-3761C>T|||||3761|WARNING_TRANSCRIPT_NO_START_CODON,T|upstream_gene_variant|MODIFIER|E1|GENE_E1|transcript|TRANSCRIPT_E1|protein_coding||c.-3944C>T|||||3944|WARNING_TRANSCRIPT_NO_START_CODON,T|downstream_gene_variant|MODIFIER|NS1|GENE_NS1|transcript|TRANSCRIPT_NS1|protein_coding||c.*4369C>T|||||4369|WARNING_TRANSCRIPT_NO_STOP_CODON,T|downstream_gene_variant|MODIFIER|NS2|GENE_NS2|transcript|TRANSCRIPT_NS2|protein_coding||c.*1975C>T|||||1975|WARNING_TRANSCRIPT_NO_START_CODON,T|downstream_gene_variant|MODIFIER|NS3|GENE_NS3|transcript|TRANSCRIPT_NS3|protein_coding||c.*403C>T|||||403|WARNING_TRANSCRIPT_NO_START_CODON,T|non_coding_transcript_variant|MODIFIER|EDEN.1|null|transcript|EDEN.1|protein_coding||||||||WARNING_TRANSCRIPT_NO_START_CODON | N21: LOW | O21: Synonymous | P21: GT:PL | Q21: 1/1:251,255,0 | S21: E1 | T21: GENE_E1 | U21: 9995-11311
A22: KP164568_BHI3734_H804698_2014_08_26_Human_Brazil | B22: 6065 | C22: . | D22: T | E22: 0 | F22: =E22*100/J22 -> 0 | G22: C | H22: 528 | I22: =H22*100/J22 -> 100 | J22: =E22+H22 -> 528 | K22: 150.998 | L22: PASS | M22: DP=526;VDB=1.74326e-35;SGB=-0.693147;MQSB=0.987221;MQ0F=0.192015;AF1=1;AC1=2;DP4=0,0,151,344;MQ=12;FQ=-281.989;ANN=C|synonymous_variant|LOW|NS4|GENE_NS4|transcript|TRANSCRIPT_NS4|protein_coding|1/1|c.399T>C|p.Tyr133Tyr|399/1833|399/1833|133/610||WARNING_TRANSCRIPT_NO_START_CODON,C|upstream_gene_variant|MODIFIER|capsid|GENE_capsid|transcript|TRANSCRIPT_capsid|protein_coding||c.-1503T>C|||||1503|WARNING_TRANSCRIPT_NO_STOP_CODON,C|upstream_gene_variant|MODIFIER|E3|GENE_E3|transcript|TRANSCRIPT_E3|protein_coding||c.-2295T>C|||||2295|WARNING_TRANSCRIPT_NO_START_CODON,C|upstream_gene_variant|MODIFIER|E2|GENE_E2|transcript|TRANSCRIPT_E2|protein_coding||c.-2478T>C|||||2478|WARNING_TRANSCRIPT_NO_START_CODON,C|upstream_gene_variant|MODIFIER|6K|GENE_6K|transcript|TRANSCRIPT_6K|protein_coding||c.-3747T>C|||||3747|WARNING_TRANSCRIPT_NO_START_CODON,C|upstream_gene_variant|MODIFIER|E1|GENE_E1|transcript|TRANSCRIPT_E1|protein_coding||c.-3930T>C|||||3930|WARNING_TRANSCRIPT_NO_START_CODON,C|downstream_gene_variant|MODIFIER|NS1|GENE_NS1|transcript|TRANSCRIPT_NS1|protein_coding||c.*4383T>C|||||4383|WARNING_TRANSCRIPT_NO_STOP_CODON,C|downstream_gene_variant|MODIFIER|NS2|GENE_NS2|transcript|TRANSCRIPT_NS2|protein_coding||c.*1989T>C|||||1989|WARNING_TRANSCRIPT_NO_START_CODON,C|downstream_gene_variant|MODIFIER|NS3|GENE_NS3|transcript|TRANSCRIPT_NS3|protein_coding||c.*417T>C|||||417|WARNING_TRANSCRIPT_NO_START_CODON,C|non_coding_transcript_variant|MODIFIER|EDEN.1|null|transcript|EDEN.1|protein_coding||||||||WARNING_TRANSCRIPT_NO_START_CODON | N22: LOW | O22: Synonymous | P22: GT:PL | Q22: 1/1:184,255,0 | S22: E2 | T22: GENE_E2 | U22: 8543-9811
A23: KP164568_BHI3734_H804698_2014_08_26_Human_Brazil | B23: 6074 | C23: . | D23: C | E23: 1 | F23: =E23*100/J23 -> 0.2380952381 | G23: T | H23: 419 | I23: =H23*100/J23 -> 99.76190476 | J23: =E23+H23 -> 420 | K23: 74.9972 | L23: PASS | M23: DP=420;VDB=0;SGB=-0.693147;RPB=1;MQB=1;MQSB=0.42926;BQB=1;MQ0F=0.209524;AF1=1;AC1=2;DP4=0,1,127,266;MQ=10;FQ=-281.989;PV4=1,1,7.88885e-07,1;ANN=T|synonymous_variant|LOW|NS4|GENE_NS4|transcript|TRANSCRIPT_NS4|protein_coding|1/1|c.408C>T|p.Val136Val|408/1833|408/1833|136/610||WARNING_TRANSCRIPT_NO_START_CODON,T|upstream_gene_variant|MODIFIER|capsid|GENE_capsid|transcript|TRANSCRIPT_capsid|protein_coding||c.-1494C>T|||||1494|WARNING_TRANSCRIPT_NO_STOP_CODON,T|upstream_gene_variant|MODIFIER|E3|GENE_E3|transcript|TRANSCRIPT_E3|protein_coding||c.-2286C>T|||||2286|WARNING_TRANSCRIPT_NO_START_CODON,T|upstream_gene_variant|MODIFIER|E2|GENE_E2|transcript|TRANSCRIPT_E2|protein_coding||c.-2469C>T|||||2469|WARNING_TRANSCRIPT_NO_START_CODON,T|upstream_gene_variant|MODIFIER|6K|GENE_6K|transcript|TRANSCRIPT_6K|protein_coding||c.-3738C>T|||||3738|WARNING_TRANSCRIPT_NO_START_CODON,T|upstream_gene_variant|MODIFIER|E1|GENE_E1|transcript|TRANSCRIPT_E1|protein_coding||c.-3921C>T|||||3921|WARNING_TRANSCRIPT_NO_START_CODON,T|downstream_gene_variant|MODIFIER|NS1|GENE_NS1|transcript|TRANSCRIPT_NS1|protein_coding||c.*4392C>T|||||4392|WARNING_TRANSCRIPT_NO_STOP_CODON,T|downstream_gene_variant|MODIFIER|NS2|GENE_NS2|transcript|TRANSCRIPT_NS2|protein_coding||c.*1998C>T|||||1998|WARNING_TRANSCRIPT_NO_START_CODON,T|downstream_gene_variant|MODIFIER|NS3|GENE_NS3|transcript|TRANSCRIPT_NS3|protein_coding||c.*426C>T|||||426|WARNING_TRANSCRIPT_NO_START_CODON,T|non_coding_transcript_variant|MODIFIER|EDEN.1|null|transcript|EDEN.1|protein_coding||||||||WARNING_TRANSCRIPT_NO_START_CODON | N23: LOW | O23: Synonymous | P23: GT:PL | Q23: 1/1:108,255,0 | S23: E3 | T23: GENE_E3 | U23: 8360-8542
A24: KP164568_BHI3734_H804698_2014_08_26_Human_Brazil | B24: 6111 | C24: . | D24: T | E24: 3 | F24: =E24*100/J24 -> 0.4524886878 | G24: C | H24: 660 | I24: =H24*100/J24 -> 99.54751131 | J24: =E24+H24 -> 663 | K24: 221.999 | L24: PASS | M24: DP=665;VDB=0;SGB=-0.693147;RPB=0.132948;MQB=0.0192678;MQSB=6.19495e-17;BQB=0.847784;MQ0F=0.132331;AF1=1;AC1=2;DP4=1,1,143,376;MQ=17;FQ=-281.989;PV4=0.476775,1,0.000236589,0.014323;ANN=C|synonymous_variant|LOW|NS4|GENE_NS4|transcript|TRANSCRIPT_NS4|protein_coding|1/1|c.445T>C|p.Leu149Leu|445/1833|445/1833|149/610||WARNING_TRANSCRIPT_NO_START_CODON,C|upstream_gene_variant|MODIFIER|capsid|GENE_capsid|transcript|TRANSCRIPT_capsid|protein_coding||c.-1457T>C|||||1457|WARNING_TRANSCRIPT_NO_STOP_CODON,C|upstream_gene_variant|MODIFIER|E3|GENE_E3|transcript|TRANSCRIPT_E3|protein_coding||c.-2249T>C|||||2249|WARNING_TRANSCRIPT_NO_START_CODON,C|upstream_gene_variant|MODIFIER|E2|GENE_E2|transcript|TRANSCRIPT_E2|protein_coding||c.-2432T>C|||||2432|WARNING_TRANSCRIPT_NO_START_CODON,C|upstream_gene_variant|MODIFIER|6K|GENE_6K|transcript|TRANSCRIPT_6K|protein_coding||c.-3701T>C|||||3701|WARNING_TRANSCRIPT_NO_START_CODON,C|upstream_gene_variant|MODIFIER|E1|GENE_E1|transcript|TRANSCRIPT_E1|protein_coding||c.-3884T>C|||||3884|WARNING_TRANSCRIPT_NO_START_CODON,C|downstream_gene_variant|MODIFIER|NS1|GENE_NS1|transcript|TRANSCRIPT_NS1|protein_coding||c.*4429T>C|||||4429|WARNING_TRANSCRIPT_NO_STOP_CODON,C|downstream_gene_variant|MODIFIER|NS2|GENE_NS2|transcript|TRANSCRIPT_NS2|protein_coding||c.*2035T>C|||||2035|WARNING_TRANSCRIPT_NO_START_CODON,C|downstream_gene_variant|MODIFIER|NS3|GENE_NS3|transcript|TRANSCRIPT_NS3|protein_coding||c.*463T>C|||||463|WARNING_TRANSCRIPT_NO_START_CODON,C|non_coding_transcript_variant|MODIFIER|EDEN.1|null|transcript|EDEN.1|protein_coding||||||||WARNING_TRANSCRIPT_NO_START_CODON | N24: LOW | O24: Synonymous | P24: GT:PL | Q24: 1/1:255,255,0 | S24: NS1 | T24: GENE_NS1 | U24: 78-1682
A25: KP164568_BHI3734_H804698_2014_08_26_Human_Brazil | B25: 6141 | C25: . | D25: C | E25: 1 | F25: =E25*100/J25 -> 0.1557632399 | G25: T | H25: 641 | I25: =H25*100/J25 -> 99.84423676 | J25: =E25+H25 -> 642 | K25: 221.999 | L25: PASS | M25: DP=643;VDB=7.56701e-44;SGB=-0.693147;RPB=1;MQB=1;MQSB=9.04921e-14;BQB=1;MQ0F=0.133748;AF1=1;AC1=2;DP4=1,0,134,372;MQ=16;FQ=-281.989;PV4=0.266272,1,0.00294562,1;ANN=T|synonymous_variant|LOW|NS4|GENE_NS4|transcript|TRANSCRIPT_NS4|protein_coding|1/1|c.475C>T|p.Leu159Leu|475/1833|475/1833|159/610||WARNING_TRANSCRIPT_NO_START_CODON,T|upstream_gene_variant|MODIFIER|capsid|GENE_capsid|transcript|TRANSCRIPT_capsid|protein_coding||c.-1427C>T|||||1427|WARNING_TRANSCRIPT_NO_STOP_CODON,T|upstream_gene_variant|MODIFIER|E3|GENE_E3|transcript|TRANSCRIPT_E3|protein_coding||c.-2219C>T|||||2219|WARNING_TRANSCRIPT_NO_START_CODON,T|upstream_gene_variant|MODIFIER|E2|GENE_E2|transcript|TRANSCRIPT_E2|protein_coding||c.-2402C>T|||||2402|WARNING_TRANSCRIPT_NO_START_CODON,T|upstream_gene_variant|MODIFIER|6K|GENE_6K|transcript|TRANSCRIPT_6K|protein_coding||c.-3671C>T|||||3671|WARNING_TRANSCRIPT_NO_START_CODON,T|upstream_gene_variant|MODIFIER|E1|GENE_E1|transcript|TRANSCRIPT_E1|protein_coding||c.-3854C>T|||||3854|WARNING_TRANSCRIPT_NO_START_CODON,T|downstream_gene_variant|MODIFIER|NS1|GENE_NS1|transcript|TRANSCRIPT_NS1|protein_coding||c.*4459C>T|||||4459|WARNING_TRANSCRIPT_NO_STOP_CODON,T|downstream_gene_variant|MODIFIER|NS2|GENE_NS2|transcript|TRANSCRIPT_NS2|protein_coding||c.*2065C>T|||||2065|WARNING_TRANSCRIPT_NO_START_CODON,T|downstream_gene_variant|MODIFIER|NS3|GENE_NS3|transcript|TRANSCRIPT_NS3|protein_coding||c.*493C>T|||||493|WARNING_TRANSCRIPT_NO_START_CODON,T|non_coding_transcript_variant|MODIFIER|EDEN.1|null|transcript|EDEN.1|protein_coding||||||||WARNING_TRANSCRIPT_NO_START_CODON | N25: LOW | O25: Synonymous | P25: GT:PL | Q25: 1/1:255,255,0 | S25: NS2 | T25: GENE_NS2 | U25: 1683-4076
A26: KP164568_BHI3734_H804698_2014_08_26_Human_Brazil | B26: 6146 | C26: . | D26: T | E26: 1 | F26: =E26*100/J26 -> 0.1718213058 | G26: C | H26: 581 | I26: =H26*100/J26 -> 99.82817869 | J26: =E26+H26 -> 582 | K26: 221.999 | L26: PASS | M26: DP=582;VDB=0;SGB=-0.693147;RPB=1;MQB=1;MQSB=4.64884e-12;BQB=1;MQ0F=0.139175;AF1=1;AC1=2;DP4=1,0,122,334;MQ=16;FQ=-281.989;PV4=0.269147,1,0.00292966,1;ANN=C|synonymous_variant|LOW|NS4|GENE_NS4|transcript|TRANSCRIPT_NS4|protein_coding|1/1|c.480T>C|p.Asp160Asp|480/1833|480/1833|160/610||WARNING_TRANSCRIPT_NO_START_CODON,C|upstream_gene_variant|MODIFIER|capsid|GENE_capsid|transcript|TRANSCRIPT_capsid|protein_coding||c.-1422T>C|||||1422|WARNING_TRANSCRIPT_NO_STOP_CODON,C|upstream_gene_variant|MODIFIER|E3|GENE_E3|transcript|TRANSCRIPT_E3|protein_coding||c.-2214T>C|||||2214|WARNING_TRANSCRIPT_NO_START_CODON,C|upstream_gene_variant|MODIFIER|E2|GENE_E2|transcript|TRANSCRIPT_E2|protein_coding||c.-2397T>C|||||2397|WARNING_TRANSCRIPT_NO_START_CODON,C|upstream_gene_variant|MODIFIER|6K|GENE_6K|transcript|TRANSCRIPT_6K|protein_coding||c.-3666T>C|||||3666|WARNING_TRANSCRIPT_NO_START_CODON,C|upstream_gene_variant|MODIFIER|E1|GENE_E1|transcript|TRANSCRIPT_E1|protein_coding||c.-3849T>C|||||3849|WARNING_TRANSCRIPT_NO_START_CODON,C|downstream_gene_variant|MODIFIER|NS1|GENE_NS1|transcript|TRANSCRIPT_NS1|protein_coding||c.*4464T>C|||||4464|WARNING_TRANSCRIPT_NO_STOP_CODON,C|downstream_gene_variant|MODIFIER|NS2|GENE_NS2|transcript|TRANSCRIPT_NS2|protein_coding||c.*2070T>C|||||2070|WARNING_TRANSCRIPT_NO_START_CODON,C|downstream_gene_variant|MODIFIER|NS3|GENE_NS3|transcript|TRANSCRIPT_NS3|protein_coding||c.*498T>C|||||498|WARNING_TRANSCRIPT_NO_START_CODON,C|non_coding_transcript_variant|MODIFIER|EDEN.1|null|transcript|EDEN.1|protein_coding||||||||WARNING_TRANSCRIPT_NO_START_CODON | N26: LOW | O26: Synonymous | P26: GT:PL | Q26: 1/1:255,255,0 | S26: NS3 | T26: GENE_NS3 | U26: 4077-5648
A27: KP164568_BHI3734_H804698_2014_08_26_Human_Brazil | B27: 7012 | C27: . | D27: G | E27: 651 | F27: =E27*100/J27 -> 58.07314897 | G27: T | H27: 470 | I27: =H27*100/J27 -> 41.92685103 | J27: =E27+H27 -> 1121 | K27: 225.009 | L27: PASS | M27: DP=1118;VDB=0.971201;SGB=-0.693147;RPB=0.0587498;MQB=0.635612;MQSB=0.99863;BQB=0.971222;MQ0F=0;AF1=0.5;AC1=1;DP4=287,188,222,113;MQ=42;FQ=225.007;PV4=0.104275,1,0.4488,0.423642;ANN=T|missense_variant|MODERATE|NS4|GENE_NS4|transcript|TRANSCRIPT_NS4|protein_coding|1/1|c.1346G>T|p.Arg449Leu|1346/1833|1346/1833|449/610||WARNING_TRANSCRIPT_NO_START_CODON,T|upstream_gene_variant|MODIFIER|capsid|GENE_capsid|transcript|TRANSCRIPT_capsid|protein_coding||c.-556G>T|||||556|WARNING_TRANSCRIPT_NO_STOP_CODON,T|upstream_gene_variant|MODIFIER|E3|GENE_E3|transcript|TRANSCRIPT_E3|protein_coding||c.-1348G>T|||||1348|WARNING_TRANSCRIPT_NO_START_CODON,T|upstream_gene_variant|MODIFIER|E2|GENE_E2|transcript|TRANSCRIPT_E2|protein_coding||c.-1531G>T|||||1531|WARNING_TRANSCRIPT_NO_START_CODON,T|upstream_gene_variant|MODIFIER|6K|GENE_6K|transcript|TRANSCRIPT_6K|protein_coding||c.-2800G>T|||||2800|WARNING_TRANSCRIPT_NO_START_CODON,T|upstream_gene_variant|MODIFIER|E1|GENE_E1|transcript|TRANSCRIPT_E1|protein_coding||c.-2983G>T|||||2983|WARNING_TRANSCRIPT_NO_START_CODON,T|downstream_gene_variant|MODIFIER|NS2|GENE_NS2|transcript|TRANSCRIPT_NS2|protein_coding||c.*2936G>T|||||2936|WARNING_TRANSCRIPT_NO_START_CODON,T|downstream_gene_variant|MODIFIER|NS3|GENE_NS3|transcript|TRANSCRIPT_NS3|protein_coding||c.*1364G>T|||||1364|WARNING_TRANSCRIPT_NO_START_CODON,T|non_coding_transcript_variant|MODIFIER|EDEN.1|null|transcript|EDEN.1|protein_coding||||||||WARNING_TRANSCRIPT_NO_START_CODON | N27: MODERATE | O27: Non-synonymous | P27: GT:PL | Q27: 0/1:255,0,255 | S27: NS4 | T27: GENE_NS4 | U27: 5667-7499
A28: KP164568_BHI3734_H804698_2014_08_26_Human_Brazil | B28: 7151 | C28: . | D28: T | E28: 185 | F28: =E28*100/J28 -> 57.8125 | G28: A | H28: 135 | I28: =H28*100/J28 -> 42.1875 | J28: =E28+H28 -> 320 | K28: 225.009 | L28: PASS | M28: DP=318;VDB=1.54143e-44;SGB=-0.693147;RPB=0.0647922;MQB=0.590736;MQSB=0.0425252;BQB=0.224182;MQ0F=0;AF1=0.5;AC1=1;DP4=21,142,11,112;MQ=41;FQ=225.007;PV4=0.346239,0.0946619,0.039104,0.0143034;ANN=A|missense_variant|MODERATE|NS4|GENE_NS4|transcript|TRANSCRIPT_NS4|protein_coding|1/1|c.1485T>A|p.Asp495Glu|1485/1833|1485/1833|495/610||WARNING_TRANSCRIPT_NO_START_CODON,A|upstream_gene_variant|MODIFIER|capsid|GENE_capsid|transcript|TRANSCRIPT_capsid|protein_coding||c.-417T>A|||||417|WARNING_TRANSCRIPT_NO_STOP_CODON,A|upstream_gene_variant|MODIFIER|E3|GENE_E3|transcript|TRANSCRIPT_E3|protein_coding||c.-1209T>A|||||1209|WARNING_TRANSCRIPT_NO_START_CODON,A|upstream_gene_variant|MODIFIER|E2|GENE_E2|transcript|TRANSCRIPT_E2|protein_coding||c.-1392T>A|||||1392|WARNING_TRANSCRIPT_NO_START_CODON,A|upstream_gene_variant|MODIFIER|6K|GENE_6K|transcript|TRANSCRIPT_6K|protein_coding||c.-2661T>A|||||2661|WARNING_TRANSCRIPT_NO_START_CODON,A|upstream_gene_variant|MODIFIER|E1|GENE_E1|transcript|TRANSCRIPT_E1|protein_coding||c.-2844T>A|||||2844|WARNING_TRANSCRIPT_NO_START_CODON,A|downstream_gene_variant|MODIFIER|NS2|GENE_NS2|transcript|TRANSCRIPT_NS2|protein_coding||c.*3075T>A|||||3075|WARNING_TRANSCRIPT_NO_START_CODON,A|downstream_gene_variant|MODIFIER|NS3|GENE_NS3|transcript|TRANSCRIPT_NS3|protein_coding||c.*1503T>A|||||1503|WARNING_TRANSCRIPT_NO_START_CODON,A|non_coding_transcript_variant|MODIFIER|EDEN.1|null|transcript|EDEN.1|protein_coding||||||||WARNING_TRANSCRIPT_NO_START_CODON | N28: MODERATE | O28: Non-synonymous | P28: GT:PL | Q28: 0/1:255,0,255 | S28: capsid | T28: GENE_capsid | U28: 7568-8359
A29: KP164568_BHI3734_H804698_2014_08_26_Human_Brazil | B29: 7419 | D29: T | E29: 693 | F29: =E29*100/J29 -> 95.45454545 | G29: C | H29: 33 | I29: =H29*100/J29 -> 4.545454545 | J29: =E29+H29 -> 726 | M29: Ser -> Pro | N29: MODERATE | O29: Non-synonymous
A30: KP164568_BHI3734_H804698_2014_08_26_Human_Brazil | B30: 7553 | C30: . | D30: T | E30: 1621 | F30: =E30*100/J30 -> 52.23976797 | G30: C | H30: 1482 | I30: =H30*100/J30 -> 47.76023203 | J30: =E30+H30 -> 3103 | K30: 225.009 | L30: PASS | M30: DP=3092;VDB=0.0294099;SGB=-0.693147;RPB=4.86553e-05;MQB=0.00101892;MQSB=0.000458299;BQB=0.0342271;MQ0F=0;AF1=0.5;AC1=1;DP4=546,588,554,446;MQ=42;FQ=225.007;PV4=0.000836139,1,1.71999e-06,1;ANN=C|upstream_gene_variant|MODIFIER|capsid|GENE_capsid|transcript|TRANSCRIPT_capsid|protein_coding||c.-15T>C|||||15|WARNING_TRANSCRIPT_NO_STOP_CODON,C|upstream_gene_variant|MODIFIER|E3|GENE_E3|transcript|TRANSCRIPT_E3|protein_coding||c.-807T>C|||||807|WARNING_TRANSCRIPT_NO_START_CODON,C|upstream_gene_variant|MODIFIER|E2|GENE_E2|transcript|TRANSCRIPT_E2|protein_coding||c.-990T>C|||||990|WARNING_TRANSCRIPT_NO_START_CODON,C|upstream_gene_variant|MODIFIER|6K|GENE_6K|transcript|TRANSCRIPT_6K|protein_coding||c.-2259T>C|||||2259|WARNING_TRANSCRIPT_NO_START_CODON,C|upstream_gene_variant|MODIFIER|E1|GENE_E1|transcript|TRANSCRIPT_E1|protein_coding||c.-2442T>C|||||2442|WARNING_TRANSCRIPT_NO_START_CODON,C|downstream_gene_variant|MODIFIER|NS2|GENE_NS2|transcript|TRANSCRIPT_NS2|protein_coding||c.*3477T>C|||||3477|WARNING_TRANSCRIPT_NO_START_CODON,C|downstream_gene_variant|MODIFIER|NS3|GENE_NS3|transcript|TRANSCRIPT_NS3|protein_coding||c.*1905T>C|||||1905|WARNING_TRANSCRIPT_NO_START_CODON,C|downstream_gene_variant|MODIFIER|NS4|GENE_NS4|transcript|TRANSCRIPT_NS4|protein_coding||c.*54T>C|||||54|WARNING_TRANSCRIPT_NO_START_CODON,C|non_coding_transcript_variant|MODIFIER|EDEN.1|null|transcript|EDEN.1|protein_coding||||||||WARNING_TRANSCRIPT_NO_START_CODON | N30: - | O30: Non coding | P30: GT:PL | Q30: 0/1:255,0,255
A31: KP164568_BHI3734_H804698_2014_08_26_Human_Brazil | B31: 7648 | C31: . | D31: A | E31: 26 | F31: =E31*100/J31 -> 10.27667984 | G31: C | H31: 227 | I31: =H31*100/J31 -> 89.72332016 | J31: =E31+H31 -> 253 | K31: 221.999 | L31: PASS | M31: DP=301;VDB=0;SGB=-0.693147;RPB=3.78908e-10;MQB=0.00573656;MQSB=0.00270507;BQB=0.986564;MQ0F=0.00996678;AF1=1;AC1=2;DP4=18,4,45,184;MQ=39;FQ=-264.989;PV4=6.42058e-09,1,0.0110894,3.6287e-20;ANN=C|synonymous_variant|LOW|capsid|GENE_capsid|transcript|TRANSCRIPT_capsid|protein_coding|1/1|c.81A>C|p.Val27Val|81/792|81/792|27/263||WARNING_TRANSCRIPT_NO_STOP_CODON,C|upstream_gene_variant|MODIFIER|E3|GENE_E3|transcript|TRANSCRIPT_E3|protein_coding||c.-712A>C|||||712|WARNING_TRANSCRIPT_NO_START_CODON,C|upstream_gene_variant|MODIFIER|E2|GENE_E2|transcript|TRANSCRIPT_E2|protein_coding||c.-895A>C|||||895|WARNING_TRANSCRIPT_NO_START_CODON,C|upstream_gene_variant|MODIFIER|6K|GENE_6K|transcript|TRANSCRIPT_6K|protein_coding||c.-2164A>C|||||2164|WARNING_TRANSCRIPT_NO_START_CODON,C|upstream_gene_variant|MODIFIER|E1|GENE_E1|transcript|TRANSCRIPT_E1|protein_coding||c.-2347A>C|||||2347|WARNING_TRANSCRIPT_NO_START_CODON,C|downstream_gene_variant|MODIFIER|NS2|GENE_NS2|transcript|TRANSCRIPT_NS2|protein_coding||c.*3572A>C|||||3572|WARNING_TRANSCRIPT_NO_START_CODON,C|downstream_gene_variant|MODIFIER|NS3|GENE_NS3|transcript|TRANSCRIPT_NS3|protein_coding||c.*2000A>C|||||2000|WARNING_TRANSCRIPT_NO_START_CODON,C|downstream_gene_variant|MODIFIER|NS4|GENE_NS4|transcript|TRANSCRIPT_NS4|protein_coding||c.*149A>C|||||149|WARNING_TRANSCRIPT_NO_START_CODON,C|non_coding_transcript_variant|MODIFIER|EDEN.1|null|transcript|EDEN.1|protein_coding||||||||WARNING_TRANSCRIPT_NO_START_CODON | N31: LOW | O31: Synonymous | P31: GT:PL | Q31: 1/1:255,238,0
A32: KP164568_BHI3734_H804698_2014_08_26_Human_Brazil | B32: 8588 | C32: . | D32: T | E32: 17 | F32: =E32*100/J32 -> 5.723905724 | G32: C | H32: 280 | I32: =H32*100/J32 -> 94.27609428 | J32: =E32+H32 -> 297 | K32: 195.999 | L32: PASS | M32: DP=297;VDB=0;SGB=-0.693147;RPB=4.15254e-08;MQB=0.861263;MQSB=0.964081;BQB=0.958267;MQ0F=0;AF1=1;AC1=2;DP4=9,7,222,1;MQ=42;FQ=-281.989;PV4=1.09314e-08,1,1,2.22275e-09;ANN=C|synonymous_variant|LOW|E2|GENE_E2|transcript|TRANSCRIPT_E2|protein_coding|1/1|c.46T>C|p.Leu16Leu|46/1269|46/1269|16/422||WARNING_TRANSCRIPT_NO_START_CODON,C|upstream_gene_variant|MODIFIER|6K|GENE_6K|transcript|TRANSCRIPT_6K|protein_coding||c.-1224T>C|||||1224|WARNING_TRANSCRIPT_NO_START_CODON,C|upstream_gene_variant|MODIFIER|E1|GENE_E1|transcript|TRANSCRIPT_E1|protein_coding||c.-1407T>C|||||1407|WARNING_TRANSCRIPT_NO_START_CODON,C|downstream_gene_variant|MODIFIER|NS2|GENE_NS2|transcript|TRANSCRIPT_NS2|protein_coding||c.*4512T>C|||||4512|WARNING_TRANSCRIPT_NO_START_CODON,C|downstream_gene_variant|MODIFIER|NS3|GENE_NS3|transcript|TRANSCRIPT_NS3|protein_coding||c.*2940T>C|||||2940|WARNING_TRANSCRIPT_NO_START_CODON,C|downstream_gene_variant|MODIFIER|NS4|GENE_NS4|transcript|TRANSCRIPT_NS4|protein_coding||c.*1089T>C|||||1089|WARNING_TRANSCRIPT_NO_START_CODON,C|downstream_gene_variant|MODIFIER|capsid|GENE_capsid|transcript|TRANSCRIPT_capsid|protein_coding||c.*229T>C|||||229|WARNING_TRANSCRIPT_NO_STOP_CODON,C|downstream_gene_variant|MODIFIER|E3|GENE_E3|transcript|TRANSCRIPT_E3|protein_coding||c.*46T>C|||||46|WARNING_TRANSCRIPT_NO_START_CODON,C|non_coding_transcript_variant|MODIFIER|EDEN.1|null|transcript|EDEN.1|protein_coding||||||||WARNING_TRANSCRIPT_NO_START_CODON | N32: LOW | O32: Synonymous | P32: GT:PL | Q32: 1/1:229,255,0
A33: KP164568_BHI3734_H804698_2014_08_26_Human_Brazil | B33: 9075 | C33: . | D33: G | E33: 160 | F33: =E33*100/J33 -> 64 | G33: A | H33: 90 | I33: =H33*100/J33 -> 36 | J33: =E33+H33 -> 250 | K33: 225.009 | L33: PASS | M33: DP=248;VDB=1.10237e-17;SGB=-0.693147;RPB=0.731772;MQB=0.720683;MQSB=0.633301;BQB=0.739109;MQ0F=0;AF1=0.5;AC1=1;DP4=50,81,29,41;MQ=42;FQ=225.007;PV4=0.652969,1,0.35113,1;ANN=A|missense_variant|MODERATE|E2|GENE_E2|transcript|TRANSCRIPT_E2|protein_coding|1/1|c.533G>A|p.Arg178His|533/1269|533/1269|178/422||WARNING_TRANSCRIPT_NO_START_CODON,A|upstream_gene_variant|MODIFIER|6K|GENE_6K|transcript|TRANSCRIPT_6K|protein_coding||c.-737G>A|||||737|WARNING_TRANSCRIPT_NO_START_CODON,A|upstream_gene_variant|MODIFIER|E1|GENE_E1|transcript|TRANSCRIPT_E1|protein_coding||c.-920G>A|||||920|WARNING_TRANSCRIPT_NO_START_CODON,A|downstream_gene_variant|MODIFIER|NS2|GENE_NS2|transcript|TRANSCRIPT_NS2|protein_coding||c.*4999G>A|||||4999|WARNING_TRANSCRIPT_NO_START_CODON,A|downstream_gene_variant|MODIFIER|NS3|GENE_NS3|transcript|TRANSCRIPT_NS3|protein_coding||c.*3427G>A|||||3427|WARNING_TRANSCRIPT_NO_START_CODON,A|downstream_gene_variant|MODIFIER|NS4|GENE_NS4|transcript|TRANSCRIPT_NS4|protein_coding||c.*1576G>A|||||1576|WARNING_TRANSCRIPT_NO_START_CODON,A|downstream_gene_variant|MODIFIER|capsid|GENE_capsid|transcript|TRANSCRIPT_capsid|protein_coding||c.*716G>A|||||716|WARNING_TRANSCRIPT_NO_STOP_CODON,A|downstream_gene_variant|MODIFIER|E3|GENE_E3|transcript|TRANSCRIPT_E3|protein_coding||c.*533G>A|||||533|WARNING_TRANSCRIPT_NO_START_CODON,A|non_coding_transcript_variant|MODIFIER|EDEN.1|null|transcript|EDEN.1|protein_coding||||||||WARNING_TRANSCRIPT_NO_START_CODON | N33: MODERATE | O33: Non-synonymous | P33: GT:PL | Q33: 0/1:255,0,255
A34: KP164568_BHI3734_H804698_2014_08_26_Human_Brazil | B34: 10594 | C34: . | D34: T | E34: 205 | F34: =E34*100/J34 -> 60.29411765 | G34: C | H34: 135 | I34: =H34*100/J34 -> 39.70588235 | J34: =E34+H34 -> 340 | K34: 225.009 | L34: PASS | M34: DP=640;VDB=0.389386;SGB=-0.693147;RPB=0.0452144;MQB=1.05398e-11;MQSB=1.04641e-25;BQB=3.31822e-08;MQ0F=0;AF1=0.5;AC1=1;DP4=52,104,144,149;MQ=41;FQ=225.007;PV4=0.00138573,1,2.23961e-05,1;ANN=C|synonymous_variant|LOW|E1|GENE_E1|transcript|TRANSCRIPT_E1|protein_coding|1/1|c.600T>C|p.Phe200Phe|600/1317|600/1317|200/438||WARNING_TRANSCRIPT_NO_START_CODON,C|downstream_gene_variant|MODIFIER|NS3|GENE_NS3|transcript|TRANSCRIPT_NS3|protein_coding||c.*4946T>C|||||4946|WARNING_TRANSCRIPT_NO_START_CODON,C|downstream_gene_variant|MODIFIER|NS4|GENE_NS4|transcript|TRANSCRIPT_NS4|protein_coding||c.*3095T>C|||||3095|WARNING_TRANSCRIPT_NO_START_CODON,C|downstream_gene_variant|MODIFIER|capsid|GENE_capsid|transcript|TRANSCRIPT_capsid|protein_coding||c.*2235T>C|||||2235|WARNING_TRANSCRIPT_NO_STOP_CODON,C|downstream_gene_variant|MODIFIER|E3|GENE_E3|transcript|TRANSCRIPT_E3|protein_coding||c.*2052T>C|||||2052|WARNING_TRANSCRIPT_NO_START_CODON,C|downstream_gene_variant|MODIFIER|E2|GENE_E2|transcript|TRANSCRIPT_E2|protein_coding||c.*783T>C|||||783|WARNING_TRANSCRIPT_NO_START_CODON,C|downstream_gene_variant|MODIFIER|6K|GENE_6K|transcript|TRANSCRIPT_6K|protein_coding||c.*600T>C|||||600|WARNING_TRANSCRIPT_NO_START_CODON,C|non_coding_transcript_variant|MODIFIER|EDEN.1|null|transcript|EDEN.1|protein_coding||||||||WARNING_TRANSCRIPT_NO_START_CODON | N34: LOW | O34: Synonymous | P34: GT:PL | Q34: 0/1:255,0,255
A35: KP164568_BHI3734_H804698_2014_08_26_Human_Brazil | B35: 10600 | C35: . | D35: T | E35: 182 | F35: =E35*100/J35 -> 31.00511073 | G35: C | H35: 405 | I35: =H35*100/J35 -> 68.99488927 | J35: =E35+H35 -> 587 | K35: 225.009 | L35: PASS | M35: DP=586;VDB=0.331769;SGB=-0.693147;RPB=6.07966e-15;MQB=9.93075e-12;MQSB=5.02808e-25;BQB=0.0703605;MQ0F=0;AF1=0.5;AC1=1;DP4=51,78,140,125;MQ=41;FQ=225.007;PV4=0.0137967,1,6.1497e-05,1;ANN=C|synonymous_variant|LOW|E1|GENE_E1|transcript|TRANSCRIPT_E1|protein_coding|1/1|c.606T>C|p.Asp202Asp|606/1317|606/1317|202/438||WARNING_TRANSCRIPT_NO_START_CODON,C|downstream_gene_variant|MODIFIER|NS3|GENE_NS3|transcript|TRANSCRIPT_NS3|protein_coding||c.*4952T>C|||||4952|WARNING_TRANSCRIPT_NO_START_CODON,C|downstream_gene_variant|MODIFIER|NS4|GENE_NS4|transcript|TRANSCRIPT_NS4|protein_coding||c.*3101T>C|||||3101|WARNING_TRANSCRIPT_NO_START_CODON,C|downstream_gene_variant|MODIFIER|capsid|GENE_capsid|transcript|TRANSCRIPT_capsid|protein_coding||c.*2241T>C|||||2241|WARNING_TRANSCRIPT_NO_STOP_CODON,C|downstream_gene_variant|MODIFIER|E3|GENE_E3|transcript|TRANSCRIPT_E3|protein_coding||c.*2058T>C|||||2058|WARNING_TRANSCRIPT_NO_START_CODON,C|downstream_gene_variant|MODIFIER|E2|GENE_E2|transcript|TRANSCRIPT_E2|protein_coding||c.*789T>C|||||789|WARNING_TRANSCRIPT_NO_START_CODON,C|downstream_gene_variant|MODIFIER|6K|GENE_6K|transcript|TRANSCRIPT_6K|protein_coding||c.*606T>C|||||606|WARNING_TRANSCRIPT_NO_START_CODON,C|non_coding_transcript_variant|MODIFIER|EDEN.1|null|transcript|EDEN.1|protein_coding||||||||WARNING_TRANSCRIPT_NO_START_CODON | N35: LOW | O35: Synonymous | P35: GT:PL | Q35: 0/1:255,0,255
A36: KP164568_BHI3734_H804698_2014_08_26_Human_Brazil | B36: 10896 | C36: . | D36: G | E36: 88 | F36: =E36*100/J36 -> 27.07692308 | G36: A | H36: 237 | I36: =H36*100/J36 -> 72.92307692 | J36: =E36+H36 -> 325 | K36: 26.0177 | L36: PASS | M36: DP=323;VDB=3.10367e-39;SGB=-0.693147;RPB=3.95221e-29;MQB=1.96336e-07;BQB=0.0315134;MQ0F=0.00619195;AF1=0.499999;AC1=1;DP4=168,0,63,0;MQ=41;FQ=29.0205;PV4=1,0.36863,3.87249e-07,0;ANN=A|missense_variant|MODERATE|E1|GENE_E1|transcript|TRANSCRIPT_E1|protein_coding|1/1|c.902G>A|p.Cys301Tyr|902/1317|902/1317|301/438||WARNING_TRANSCRIPT_NO_START_CODON,A|downstream_gene_variant|MODIFIER|NS4|GENE_NS4|transcript|TRANSCRIPT_NS4|protein_coding||c.*3397G>A|||||3397|WARNING_TRANSCRIPT_NO_START_CODON,A|downstream_gene_variant|MODIFIER|capsid|GENE_capsid|transcript|TRANSCRIPT_capsid|protein_coding||c.*2537G>A|||||2537|WARNING_TRANSCRIPT_NO_STOP_CODON,A|downstream_gene_variant|MODIFIER|E3|GENE_E3|transcript|TRANSCRIPT_E3|protein_coding||c.*2354G>A|||||2354|WARNING_TRANSCRIPT_NO_START_CODON,A|downstream_gene_variant|MODIFIER|E2|GENE_E2|transcript|TRANSCRIPT_E2|protein_coding||c.*1085G>A|||||1085|WARNING_TRANSCRIPT_NO_START_CODON,A|downstream_gene_variant|MODIFIER|6K|GENE_6K|transcript|TRANSCRIPT_6K|protein_coding||c.*902G>A|||||902|WARNING_TRANSCRIPT_NO_START_CODON,A|non_coding_transcript_variant|MODIFIER|EDEN.1|null|transcript|EDEN.1|protein_coding||||||||WARNING_TRANSCRIPT_NO_START_CODON | N36: MODERATE | O36: Non-synonymous | P36: GT:PL | Q36: 0/1:56,0,195
A37: KP164568_BHI3734_H804698_2014_08_26_Human_Brazil | B37: 10897 | C37: . | D37: C | E37: 240 | F37: =E37*100/J37 -> 61.53846154 | G37: G | H37: 150 | I37: =H37*100/J37 -> 38.46153846 | J37: =E37+H37 -> 390 | K37: 155.008 | L37: PASS | M37: DP=388;VDB=0;SGB=-0.693147;RPB=1.98844e-42;MQB=3.00933e-05;BQB=0.000133156;MQ0F=0.00515464;AF1=0.5;AC1=1;DP4=167,0,108,0;MQ=41;FQ=158.017;PV4=1,0.115948,6.59329e-07,0;ANN=G|missense_variant|MODERATE|E1|GENE_E1|transcript|TRANSCRIPT_E1|protein_coding|1/1|c.903C>G|p.Cys301Trp|903/1317|903/1317|301/438||WARNING_TRANSCRIPT_NO_START_CODON,G|downstream_gene_variant|MODIFIER|NS4|GENE_NS4|transcript|TRANSCRIPT_NS4|protein_coding||c.*3398C>G|||||3398|WARNING_TRANSCRIPT_NO_START_CODON,G|downstream_gene_variant|MODIFIER|capsid|GENE_capsid|transcript|TRANSCRIPT_capsid|protein_coding||c.*2538C>G|||||2538|WARNING_TRANSCRIPT_NO_STOP_CODON,G|downstream_gene_variant|MODIFIER|E3|GENE_E3|transcript|TRANSCRIPT_E3|protein_coding||c.*2355C>G|||||2355|WARNING_TRANSCRIPT_NO_START_CODON,G|downstream_gene_variant|MODIFIER|E2|GENE_E2|transcript|TRANSCRIPT_E2|protein_coding||c.*1086C>G|||||1086|WARNING_TRANSCRIPT_NO_START_CODON,G|downstream_gene_variant|MODIFIER|6K|GENE_6K|transcript|TRANSCRIPT_6K|protein_coding||c.*903C>G|||||903|WARNING_TRANSCRIPT_NO_START_CODON,G|non_coding_transcript_variant|MODIFIER|EDEN.1|null|transcript|EDEN.1|protein_coding||||||||WARNING_TRANSCRIPT_NO_START_CODON | N37: MODERATE | O37: Non-synonymous | P37: GT:PL | Q37: 0/1:185,0,255
A38: KP164568_BHI3734_H804698_2014_08_26_Human_Brazil | B38: 11014 | C38: . | D38: G | E38: 225 | F38: =E38*100/J38 -> 38.00675676 | G38: A | H38: 367 | I38: =H38*100/J38 -> 61.99324324 | J38: =E38+H38 -> 592 | K38: 225.009 | L38: PASS | M38: DP=608;VDB=0;SGB=-0.693147;RPB=3.2053e-28;MQB=3.26635e-35;MQSB=0.622422;BQB=0.165503;MQ0F=0.115132;AF1=0.5;AC1=1;DP4=141,57,116,119;MQ=36;FQ=225.007;PV4=3.88333e-06,1,2.16641e-41,1.39694e-32;ANN=A|synonymous_variant|LOW|E1|GENE_E1|transcript|TRANSCRIPT_E1|protein_coding|1/1|c.1020G>A|p.Arg340Arg|1020/1317|1020/1317|340/438||WARNING_TRANSCRIPT_NO_START_CODON,A|downstream_gene_variant|MODIFIER|NS4|GENE_NS4|transcript|TRANSCRIPT_NS4|protein_coding||c.*3515G>A|||||3515|WARNING_TRANSCRIPT_NO_START_CODON,A|downstream_gene_variant|MODIFIER|capsid|GENE_capsid|transcript|TRANSCRIPT_capsid|protein_coding||c.*2655G>A|||||2655|WARNING_TRANSCRIPT_NO_STOP_CODON,A|downstream_gene_variant|MODIFIER|E3|GENE_E3|transcript|TRANSCRIPT_E3|protein_coding||c.*2472G>A|||||2472|WARNING_TRANSCRIPT_NO_START_CODON,A|downstream_gene_variant|MODIFIER|E2|GENE_E2|transcript|TRANSCRIPT_E2|protein_coding||c.*1203G>A|||||1203|WARNING_TRANSCRIPT_NO_START_CODON,A|downstream_gene_variant|MODIFIER|6K|GENE_6K|transcript|TRANSCRIPT_6K|protein_coding||c.*1020G>A|||||1020|WARNING_TRANSCRIPT_NO_START_CODON,A|non_coding_transcript_variant|MODIFIER|EDEN.1|null|transcript|EDEN.1|protein_coding||||||||WARNING_TRANSCRIPT_NO_START_CODON | N38: LOW | O38: Synonymous | P38: GT:PL | Q38: 0/1:255,0,255
A39: KP164568_BHI3734_H804698_2014_08_26_Human_Brazil | B39: 11017 | C39: . | D39: A | E39: 414 | F39: =E39*100/J39 -> 77.81954887 | G39: G | H39: 118 | I39: =H39*100/J39 -> 22.18045113 | J39: =E39+H39 -> 532 | K39: 21.0411 | L39: PASS | M39: DP=543;VDB=2.08438e-39;SGB=-0.693147;RPB=4.07023e-29;MQB=0.000344585;MQSB=0.93269;BQB=0.00388842;MQ0F=0.128913;AF1=0.499998;AC1=1;DP4=179,120,44,52;MQ=35;FQ=24.0321;PV4=0.0180527,0.395429,0.0253388,1.56868e-20;ANN=G|synonymous_variant|LOW|E1|GENE_E1|transcript|TRANSCRIPT_E1|protein_coding|1/1|c.1023A>G|p.Glu341Glu|1023/1317|1023/1317|341/438||WARNING_TRANSCRIPT_NO_START_CODON,G|downstream_gene_variant|MODIFIER|NS4|GENE_NS4|transcript|TRANSCRIPT_NS4|protein_coding||c.*3518A>G|||||3518|WARNING_TRANSCRIPT_NO_START_CODON,G|downstream_gene_variant|MODIFIER|capsid|GENE_capsid|transcript|TRANSCRIPT_capsid|protein_coding||c.*2658A>G|||||2658|WARNING_TRANSCRIPT_NO_STOP_CODON,G|downstream_gene_variant|MODIFIER|E3|GENE_E3|transcript|TRANSCRIPT_E3|protein_coding||c.*2475A>G|||||2475|WARNING_TRANSCRIPT_NO_START_CODON,G|downstream_gene_variant|MODIFIER|E2|GENE_E2|transcript|TRANSCRIPT_E2|protein_coding||c.*1206A>G|||||1206|WARNING_TRANSCRIPT_NO_START_CODON,G|downstream_gene_variant|MODIFIER|6K|GENE_6K|transcript|TRANSCRIPT_6K|protein_coding||c.*1023A>G|||||1023|WARNING_TRANSCRIPT_NO_START_CODON,G|non_coding_transcript_variant|MODIFIER|EDEN.1|null|transcript|EDEN.1|protein_coding||||||||WARNING_TRANSCRIPT_NO_START_CODON | N39: LOW | O39: Synonymous | P39: GT:PL | Q39: 0/1:51,0,255

Sheet 97P95
A1: #CHROM | B1: POS | C1: ID | D1: REF | E1: Nº reads | F1: BHI3734 reads support | G1: ALT | H1: Nº reads | I1: PER160 reas support | J1: Total reads | K1: QUAL | L1: FILTER | M1: INFO | N1: Impact | O1: Nucleotide change | P1: FORMAT | Q1: BHI3734_97P45.sorted.dupli.removed.bam
A2: KP164568_BHI3734_H804698_2014_08_26_Human_Brazil | B2: 980 | C2: . | D2: A | E2: 0 | F2: =E2*100/J2 -> 0 | G2: G | H2: 4665 | I2: =H2*100/J2 -> 100 | J2: =E2+H2 -> 4665 | K2: 221.999 | L2: PASS | M2: DP=3610;VDB=0.00480541;SGB=-0.693147;MQSB=0.808214;MQ0F=0;AF1=1;AC1=2;DP4=0,0,2697,629;MQ=42;FQ=-281.989;ANN=G|synonymous_variant|LOW|NS1|GENE_NS1|transcript|TRANSCRIPT_NS1|protein_coding|1/1|c.903A>G|p.Thr301Thr|903/1605|903/1605|301/534||WARNING_TRANSCRIPT_NO_STOP_CODON,G|upstream_gene_variant|MODIFIER|NS2|GENE_NS2|transcript|TRANSCRIPT_NS2|protein_coding||c.-703A>G|||||703|WARNING_TRANSCRIPT_NO_START_CODON,G|upstream_gene_variant|MODIFIER|NS3|GENE_NS3|transcript|TRANSCRIPT_NS3|protein_coding||c.-3097A>G|||||3097|WARNING_TRANSCRIPT_NO_START_CODON,G|upstream_gene_variant|MODIFIER|NS4|GENE_NS4|transcript|TRANSCRIPT_NS4|protein_coding||c.-4687A>G|||||4687|WARNING_TRANSCRIPT_NO_START_CODON,G|non_coding_transcript_variant|MODIFIER|EDEN.1|null|transcript|EDEN.1|protein_coding||||||||WARNING_TRANSCRIPT_NO_START_CODON | N2: LOW | O2: Synonymous | P2: GT:PL | Q2: 1/1:255,255,0
A3: KP164568_BHI3734_H804698_2014_08_26_Human_Brazil | B3: 1779 | C3: . | D3: C | E3: 438 | F3: =E3*100/J3 -> 66.56534954 | G3: T | H3: 220 | I3: =H3*100/J3 -> 33.43465046 | J3: =E3+H3 -> 658 | K3: 120.008 | L3: PASS | M3: DP=559;VDB=0;SGB=-0.693147;RPB=0.0137134;MQB=0.964404;MQSB=0.982922;BQB=0.488307;MQ0F=0;AF1=0.5;AC1=1;DP4=329,8,168,0;MQ=42;FQ=123.016;PV4=0.0568993,1,0.458141,4.87529e-05;ANN=T|synonymous_variant|LOW|NS2|GENE_NS2|transcript|TRANSCRIPT_NS2|protein_coding|1/1|c.97C>T|p.Leu33Leu|97/2394|97/2394|33/797||WARNING_TRANSCRIPT_NO_START_CODON,T|upstream_gene_variant|MODIFIER|NS3|GENE_NS3|transcript|TRANSCRIPT_NS3|protein_coding||c.-2298C>T|||||2298|WARNING_TRANSCRIPT_NO_START_CODON,T|upstream_gene_variant|MODIFIER|NS4|GENE_NS4|transcript|TRANSCRIPT_NS4|protein_coding||c.-3888C>T|||||3888|WARNING_TRANSCRIPT_NO_START_CODON,T|downstream_gene_variant|MODIFIER|NS1|GENE_NS1|transcript|TRANSCRIPT_NS1|protein_coding||c.*97C>T|||||97|WARNING_TRANSCRIPT_NO_STOP_CODON,T|non_coding_transcript_variant|MODIFIER|EDEN.1|null|transcript|EDEN.1|protein_coding||||||||WARNING_TRANSCRIPT_NO_START_CODON | N3: LOW | O3: Synonymous | P3: GT:PL | Q3: 0/1:150,0,255
A4: KP164568_BHI3734_H804698_2014_08_26_Human_Brazil | B4: 1852 | C4: . | D4: C | E4: 2 | F4: =E4*100/J4 -> 0.1386001386 | G4: T | H4: 1441 | I4: =H4*100/J4 -> 99.86139986 | J4: =E4+H4 -> 1443 | K4: 221.999 | L4: PASS | M4: DP=1375;VDB=0.98899;SGB=-0.693147;RPB=0.0346576;MQB=0.561707;MQSB=0.357025;BQB=0.25951;MQ0F=0;AF1=1;AC1=2;DP4=0,2,1074,109;MQ=42;FQ=-281.989;PV4=0.00870253,1,1,1;ANN=T|missense_variant|MODERATE|NS2|GENE_NS2|transcript|TRANSCRIPT_NS2|protein_coding|1/1|c.170C>T|p.Ala57Val|170/2394|170/2394|57/797||WARNING_TRANSCRIPT_NO_START_CODON,T|upstream_gene_variant|MODIFIER|NS3|GENE_NS3|transcript|TRANSCRIPT_NS3|protein_coding||c.-2225C>T|||||2225|WARNING_TRANSCRIPT_NO_START_CODON,T|upstream_gene_variant|MODIFIER|NS4|GENE_NS4|transcript|TRANSCRIPT_NS4|protein_coding||c.-3815C>T|||||3815|WARNING_TRANSCRIPT_NO_START_CODON,T|downstream_gene_variant|MODIFIER|NS1|GENE_NS1|transcript|TRANSCRIPT_NS1|protein_coding||c.*170C>T|||||170|WARNING_TRANSCRIPT_NO_STOP_CODON,T|non_coding_transcript_variant|MODIFIER|EDEN.1|null|transcript|EDEN.1|protein_coding||||||||WARNING_TRANSCRIPT_NO_START_CODON | N4: MODERATE | O4: Non-synonymous | P4: GT:PL | Q4: 1/1:255,255,0
A5: KP164568_BHI3734_H804698_2014_08_26_Human_Brazil | B5: 1913 | C5: . | D5: C | E5: 0 | F5: =E5*100/J5 -> 0 | G5: T | H5: 1441 | I5: =H5*100/J5 -> 100 | J5: =E5+H5 -> 1441 | K5: 221.999 | L5: PASS | M5: DP=1368;VDB=0.686061;SGB=-0.693147;MQSB=0.809574;MQ0F=0;AF1=1;AC1=2;DP4=0,0,860,287;MQ=42;FQ=-281.989;ANN=T|synonymous_variant|LOW|NS2|GENE_NS2|transcript|TRANSCRIPT_NS2|protein_coding|1/1|c.231C>T|p.Ile77Ile|231/2394|231/2394|77/797||WARNING_TRANSCRIPT_NO_START_CODON,T|upstream_gene_variant|MODIFIER|NS3|GENE_NS3|transcript|TRANSCRIPT_NS3|protein_coding||c.-2164C>T|||||2164|WARNING_TRANSCRIPT_NO_START_CODON,T|upstream_gene_variant|MODIFIER|NS4|GENE_NS4|transcript|TRANSCRIPT_NS4|protein_coding||c.-3754C>T|||||3754|WARNING_TRANSCRIPT_NO_START_CODON,T|downstream_gene_variant|MODIFIER|NS1|GENE_NS1|transcript|TRANSCRIPT_NS1|protein_coding||c.*231C>T|||||231|WARNING_TRANSCRIPT_NO_STOP_CODON,T|non_coding_transcript_variant|MODIFIER|EDEN.1|null|transcript|EDEN.1|protein_coding||||||||WARNING_TRANSCRIPT_NO_START_CODON | N5: LOW | O5: Synonymous | P5: GT:PL | Q5: 1/1:255,255,0
A6: KP164568_BHI3734_H804698_2014_08_26_Human_Brazil | B6: 2252 | C6: . | D6: T | E6: 1 | F6: =E6*100/J6 -> 0.04083299306 | G6: C | H6: 2448 | I6: =H6*100/J6 -> 99.95916701 | J6: =E6+H6 -> 2449 | K6: 221.999 | L6: PASS | M6: DP=1317;VDB=5.62567e-10;SGB=-0.693147;MQSB=0.074115;MQ0F=0;AF1=1;AC1=2;DP4=0,0,316,795;MQ=42;FQ=-281.989;ANN=C|synonymous_variant|LOW|NS2|GENE_NS2|transcript|TRANSCRIPT_NS2|protein_coding|1/1|c.570T>C|p.Ser190Ser|570/2394|570/2394|190/797||WARNING_TRANSCRIPT_NO_START_CODON,C|upstream_gene_variant|MODIFIER|NS3|GENE_NS3|transcript|TRANSCRIPT_NS3|protein_coding||c.-1825T>C|||||1825|WARNING_TRANSCRIPT_NO_START_CODON,C|upstream_gene_variant|MODIFIER|NS4|GENE_NS4|transcript|TRANSCRIPT_NS4|protein_coding||c.-3415T>C|||||3415|WARNING_TRANSCRIPT_NO_START_CODON,C|downstream_gene_variant|MODIFIER|NS1|GENE_NS1|transcript|TRANSCRIPT_NS1|protein_coding||c.*570T>C|||||570|WARNING_TRANSCRIPT_NO_STOP_CODON,C|non_coding_transcript_variant|MODIFIER|EDEN.1|null|transcript|EDEN.1|protein_coding||||||||WARNING_TRANSCRIPT_NO_START_CODON | N6: LOW | O6: Synonymous | P6: GT:PL | Q6: 1/1:255,255,0
A7: KP164568_BHI3734_H804698_2014_08_26_Human_Brazil | B7: 2636 | C7: . | D7: C | E7: 2403 | F7: =E7*100/J7 -> 82.01365188 | G7: T | H7: 527 | I7: =H7*100/J7 -> 17.98634812 | J7: =E7+H7 -> 2930 | K7: 70.0074 | L7: PASS | M7: DP=2740;VDB=1;SGB=-0.693147;RPB=0.148617;MQB=0.183107;MQSB=0.938443;BQB=1.68975e-33;MQ0F=0.000364963;AF1=0.5;AC1=1;DP4=1588,353,233,206;MQ=42;FQ=73.0156;PV4=9.20733e-34,3.44085e-16,0.00021551,0;ANN=T|synonymous_variant|LOW|NS2|GENE_NS2|transcript|TRANSCRIPT_NS2|protein_coding|1/1|c.954C>T|p.Thr318Thr|954/2394|954/2394|318/797||WARNING_TRANSCRIPT_NO_START_CODON,T|upstream_gene_variant|MODIFIER|NS3|GENE_NS3|transcript|TRANSCRIPT_NS3|protein_coding||c.-1441C>T|||||1441|WARNING_TRANSCRIPT_NO_START_CODON,T|upstream_gene_variant|MODIFIER|NS4|GENE_NS4|transcript|TRANSCRIPT_NS4|protein_coding||c.-3031C>T|||||3031|WARNING_TRANSCRIPT_NO_START_CODON,T|upstream_gene_variant|MODIFIER|capsid|GENE_capsid|transcript|TRANSCRIPT_capsid|protein_coding||c.-4932C>T|||||4932|WARNING_TRANSCRIPT_NO_STOP_CODON,T|downstream_gene_variant|MODIFIER|NS1|GENE_NS1|transcript|TRANSCRIPT_NS1|protein_coding||c.*954C>T|||||954|WARNING_TRANSCRIPT_NO_STOP_CODON,T|non_coding_transcript_variant|MODIFIER|EDEN.1|null|transcript|EDEN.1|protein_coding||||||||WARNING_TRANSCRIPT_NO_START_CODON | N7: LOW | O7: Synonymous | P7: GT:PL | Q7: 0/1:100,0,255
A8: KP164568_BHI3734_H804698_2014_08_26_Human_Brazil | B8: 2663 | C8: . | D8: A | E8: 5 | F8: =E8*100/J8 -> 0.1359064963 | G8: G | H8: 3674 | I8: =H8*100/J8 -> 99.8640935 | J8: =E8+H8 -> 3679 | K8: 221.999 | L8: PASS | M8: DP=3526;VDB=5.55867e-05;SGB=-0.693147;RPB=0.869473;MQB=0.998218;MQSB=0.958899;BQB=0.710426;MQ0F=0.000283607;AF1=1;AC1=2;DP4=1,2,2090,1022;MQ=42;FQ=-281.989;PV4=0.253073,1,0.445225,1;ANN=G|synonymous_variant|LOW|NS2|GENE_NS2|transcript|TRANSCRIPT_NS2|protein_coding|1/1|c.981A>G|p.Glu327Glu|981/2394|981/2394|327/797||WARNING_TRANSCRIPT_NO_START_CODON,G|upstream_gene_variant|MODIFIER|NS3|GENE_NS3|transcript|TRANSCRIPT_NS3|protein_coding||c.-1414A>G|||||1414|WARNING_TRANSCRIPT_NO_START_CODON,G|upstream_gene_variant|MODIFIER|NS4|GENE_NS4|transcript|TRANSCRIPT_NS4|protein_coding||c.-3004A>G|||||3004|WARNING_TRANSCRIPT_NO_START_CODON,G|upstream_gene_variant|MODIFIER|capsid|GENE_capsid|transcript|TRANSCRIPT_capsid|protein_coding||c.-4905A>G|||||4905|WARNING_TRANSCRIPT_NO_STOP_CODON,G|downstream_gene_variant|MODIFIER|NS1|GENE_NS1|transcript|TRANSCRIPT_NS1|protein_coding||c.*981A>G|||||981|WARNING_TRANSCRIPT_NO_STOP_CODON,G|non_coding_transcript_variant|MODIFIER|EDEN.1|null|transcript|EDEN.1|protein_coding||||||||WARNING_TRANSCRIPT_NO_START_CODON | N8: LOW | O8: Synonymous | P8: GT:PL | Q8: 1/1:255,255,0
A9: KP164568_BHI3734_H804698_2014_08_26_Human_Brazil | B9: 3602 | C9: . | D9: T | E9: 6 | F9: =E9*100/J9 -> 0.1054111033 | G9: C | H9: 5686 | I9: =H9*100/J9 -> 99.8945889 | J9: =E9+H9 -> 5692 | K9: 221.999 | L9: PASS | M9: DP=4643;VDB=0.167693;SGB=-0.693147;RPB=1;MQB=1;MQSB=0.979278;BQB=1;MQ0F=0;AF1=1;AC1=2;DP4=1,0,2237,2186;MQ=42;FQ=-281.989;PV4=1,1,0.459042,0.155466;ANN=C|synonymous_variant|LOW|NS2|GENE_NS2|transcript|TRANSCRIPT_NS2|protein_coding|1/1|c.1920T>C|p.Ser640Ser|1920/2394|1920/2394|640/797||WARNING_TRANSCRIPT_NO_START_CODON,C|upstream_gene_variant|MODIFIER|NS3|GENE_NS3|transcript|TRANSCRIPT_NS3|protein_coding||c.-475T>C|||||475|WARNING_TRANSCRIPT_NO_START_CODON,C|upstream_gene_variant|MODIFIER|NS4|GENE_NS4|transcript|TRANSCRIPT_NS4|protein_coding||c.-2065T>C|||||2065|WARNING_TRANSCRIPT_NO_START_CODON,C|upstream_gene_variant|MODIFIER|capsid|GENE_capsid|transcript|TRANSCRIPT_capsid|protein_coding||c.-3966T>C|||||3966|WARNING_TRANSCRIPT_NO_STOP_CODON,C|upstream_gene_variant|MODIFIER|E3|GENE_E3|transcript|TRANSCRIPT_E3|protein_coding||c.-4758T>C|||||4758|WARNING_TRANSCRIPT_NO_START_CODON,C|upstream_gene_variant|MODIFIER|E2|GENE_E2|transcript|TRANSCRIPT_E2|protein_coding||c.-4941T>C|||||4941|WARNING_TRANSCRIPT_NO_START_CODON,C|downstream_gene_variant|MODIFIER|NS1|GENE_NS1|transcript|TRANSCRIPT_NS1|protein_coding||c.*1920T>C|||||1920|WARNING_TRANSCRIPT_NO_STOP_CODON,C|non_coding_transcript_variant|MODIFIER|EDEN.1|null|transcript|EDEN.1|protein_coding||||||||WARNING_TRANSCRIPT_NO_START_CODON | N9: LOW | O9: Synonymous | P9: GT:PL | Q9: 1/1:255,255,0
A10: KP164568_BHI3734_H804698_2014_08_26_Human_Brazil | B10: 5522 | C10: . | D10: C | E10: 0 | F10: =E10*100/J10 -> 0 | G10: T | H10: 2224 | I10: =H10*100/J10 -> 100 | J10: =E10+H10 -> 2224 | K10: 221.999 | L10: PASS | M10: DP=1698;VDB=1.34957e-05;SGB=-0.693147;MQSB=0.867898;MQ0F=0.000588928;AF1=1;AC1=2;DP4=0,0,228,1383;MQ=42;FQ=-281.989;ANN=T|synonymous_variant|LOW|NS3|GENE_NS3|transcript|TRANSCRIPT_NS3|protein_coding|1/1|c.1446C>T|p.Phe482Phe|1446/1572|1446/1572|482/523||WARNING_TRANSCRIPT_NO_START_CODON,T|upstream_gene_variant|MODIFIER|NS4|GENE_NS4|transcript|TRANSCRIPT_NS4|protein_coding||c.-145C>T|||||145|WARNING_TRANSCRIPT_NO_START_CODON,T|upstream_gene_variant|MODIFIER|capsid|GENE_capsid|transcript|TRANSCRIPT_capsid|protein_coding||c.-2046C>T|||||2046|WARNING_TRANSCRIPT_NO_STOP_CODON,T|upstream_gene_variant|MODIFIER|E3|GENE_E3|transcript|TRANSCRIPT_E3|protein_coding||c.-2838C>T|||||2838|WARNING_TRANSCRIPT_NO_START_CODON,T|upstream_gene_variant|MODIFIER|E2|GENE_E2|transcript|TRANSCRIPT_E2|protein_coding||c.-3021C>T|||||3021|WARNING_TRANSCRIPT_NO_START_CODON,T|upstream_gene_variant|MODIFIER|6K|GENE_6K|transcript|TRANSCRIPT_6K|protein_coding||c.-4290C>T|||||4290|WARNING_TRANSCRIPT_NO_START_CODON,T|upstream_gene_variant|MODIFIER|E1|GENE_E1|transcript|TRANSCRIPT_E1|protein_coding||c.-4473C>T|||||4473|WARNING_TRANSCRIPT_NO_START_CODON,T|downstream_gene_variant|MODIFIER|NS1|GENE_NS1|transcript|TRANSCRIPT_NS1|protein_coding||c.*3840C>T|||||3840|WARNING_TRANSCRIPT_NO_STOP_CODON,T|downstream_gene_variant|MODIFIER|NS2|GENE_NS2|transcript|TRANSCRIPT_NS2|protein_coding||c.*1446C>T|||||1446|WARNING_TRANSCRIPT_NO_START_CODON,T|non_coding_transcript_variant|MODIFIER|EDEN.1|null|transcript|EDEN.1|protein_coding||||||||WARNING_TRANSCRIPT_NO_START_CODON | N10: LOW | O10: Synonymous | P10: GT:PL | Q10: 1/1:255,255,0
A11: KP164568_BHI3734_H804698_2014_08_26_Human_Brazil | B11: 5813 | C11: . | D11: T | E11: 2 | F11: =E11*100/J11 -> 0.1368925394 | G11: C | H11: 1459 | I11: =H11*100/J11 -> 99.86310746 | J11: =E11+H11 -> 1461 | K11: 221.999 | L11: PASS | M11: DP=1431;VDB=0.493234;SGB=-0.693147;MQSB=0.217452;MQ0F=0;AF1=1;AC1=2;DP4=0,0,419,751;MQ=42;FQ=-281.989;ANN=C|synonymous_variant|LOW|NS4|GENE_NS4|transcript|TRANSCRIPT_NS4|protein_coding|1/1|c.147T>C|p.Leu49Leu|147/1833|147/1833|49/610||WARNING_TRANSCRIPT_NO_START_CODON,C|upstream_gene_variant|MODIFIER|capsid|GENE_capsid|transcript|TRANSCRIPT_capsid|protein_coding||c.-1755T>C|||||1755|WARNING_TRANSCRIPT_NO_STOP_CODON,C|upstream_gene_variant|MODIFIER|E3|GENE_E3|transcript|TRANSCRIPT_E3|protein_coding||c.-2547T>C|||||2547|WARNING_TRANSCRIPT_NO_START_CODON,C|upstream_gene_variant|MODIFIER|E2|GENE_E2|transcript|TRANSCRIPT_E2|protein_coding||c.-2730T>C|||||2730|WARNING_TRANSCRIPT_NO_START_CODON,C|upstream_gene_variant|MODIFIER|6K|GENE_6K|transcript|TRANSCRIPT_6K|protein_coding||c.-3999T>C|||||3999|WARNING_TRANSCRIPT_NO_START_CODON,C|upstream_gene_variant|MODIFIER|E1|GENE_E1|transcript|TRANSCRIPT_E1|protein_coding||c.-4182T>C|||||4182|WARNING_TRANSCRIPT_NO_START_CODON,C|downstream_gene_variant|MODIFIER|NS1|GENE_NS1|transcript|TRANSCRIPT_NS1|protein_coding||c.*4131T>C|||||4131|WARNING_TRANSCRIPT_NO_STOP_CODON,C|downstream_gene_variant|MODIFIER|NS2|GENE_NS2|transcript|TRANSCRIPT_NS2|protein_coding||c.*1737T>C|||||1737|WARNING_TRANSCRIPT_NO_START_CODON,C|downstream_gene_variant|MODIFIER|NS3|GENE_NS3|transcript|TRANSCRIPT_NS3|protein_coding||c.*165T>C|||||165|WARNING_TRANSCRIPT_NO_START_CODON,C|non_coding_transcript_variant|MODIFIER|EDEN.1|null|transcript|EDEN.1|protein_coding||||||||WARNING_TRANSCRIPT_NO_START_CODON | N11: LOW | O11: Synonymous | P11: GT:PL | Q11: 1/1:255,255,0
A12: KP164568_BHI3734_H804698_2014_08_26_Human_Brazil | B12: 7047 | C12: . | D12: G | E12: 1 | F12: =E12*100/J12 -> 0.06199628022 | G12: T | H12: 1612 | I12: =H12*100/J12 -> 99.93800372 | J12: =E12+H12 -> 1613 | K12: 221.999 | L12: PASS | M12: DP=1539;VDB=2.20939e-08;SGB=-0.693147;RPB=1;MQB=1;MQSB=0.917771;BQB=1;MQ0F=0;AF1=1;AC1=2;DP4=0,1,228,1221;MQ=42;FQ=-281.989;PV4=1,1,1,1;ANN=T|missense_variant|MODERATE|NS4|GENE_NS4|transcript|TRANSCRIPT_NS4|protein_coding|1/1|c.1381G>T|p.Ala461Ser|1381/1833|1381/1833|461/610||WARNING_TRANSCRIPT_NO_START_CODON,T|upstream_gene_variant|MODIFIER|capsid|GENE_capsid|transcript|TRANSCRIPT_capsid|protein_coding||c.-521G>T|||||521|WARNING_TRANSCRIPT_NO_STOP_CODON,T|upstream_gene_variant|MODIFIER|E3|GENE_E3|transcript|TRANSCRIPT_E3|protein_coding||c.-1313G>T|||||1313|WARNING_TRANSCRIPT_NO_START_CODON,T|upstream_gene_variant|MODIFIER|E2|GENE_E2|transcript|TRANSCRIPT_E2|protein_coding||c.-1496G>T|||||1496|WARNING_TRANSCRIPT_NO_START_CODON,T|upstream_gene_variant|MODIFIER|6K|GENE_6K|transcript|TRANSCRIPT_6K|protein_coding||c.-2765G>T|||||2765|WARNING_TRANSCRIPT_NO_START_CODON,T|upstream_gene_variant|MODIFIER|E1|GENE_E1|transcript|TRANSCRIPT_E1|protein_coding||c.-2948G>T|||||2948|WARNING_TRANSCRIPT_NO_START_CODON,T|downstream_gene_variant|MODIFIER|NS2|GENE_NS2|transcript|TRANSCRIPT_NS2|protein_coding||c.*2971G>T|||||2971|WARNING_TRANSCRIPT_NO_START_CODON,T|downstream_gene_variant|MODIFIER|NS3|GENE_NS3|transcript|TRANSCRIPT_NS3|protein_coding||c.*1399G>T|||||1399|WARNING_TRANSCRIPT_NO_START_CODON,T|non_coding_transcript_variant|MODIFIER|EDEN.1|null|transcript|EDEN.1|protein_coding||||||||WARNING_TRANSCRIPT_NO_START_CODON | N12: MODERATE | O12: Non-synonymous | P12: GT:PL | Q12: 1/1:255,255,0
A13: KP164568_BHI3734_H804698_2014_08_26_Human_Brazil | B13: 8588 | C13: . | D13: T | E13: 3058 | F13: =E13*100/J13 -> 81.69917179 | G13: C | H13: 685 | I13: =H13*100/J13 -> 18.30082821 | J13: =E13+H13 -> 3743 | K13: 72.0074 | L13: PASS | M13: DP=3569;VDB=1;SGB=-0.693147;RPB=5.42656e-08;MQB=0.670574;MQSB=0.942382;BQB=3.64338e-44;MQ0F=0.000560381;AF1=0.5;AC1=1;DP4=1158,1576,222,382;MQ=42;FQ=75.0156;PV4=0.0120223,3.51694e-05,6.69488e-07,0;ANN=C|synonymous_variant|LOW|E2|GENE_E2|transcript|TRANSCRIPT_E2|protein_coding|1/1|c.46T>C|p.Leu16Leu|46/1269|46/1269|16/422||WARNING_TRANSCRIPT_NO_START_CODON,C|upstream_gene_variant|MODIFIER|6K|GENE_6K|transcript|TRANSCRIPT_6K|protein_coding||c.-1224T>C|||||1224|WARNING_TRANSCRIPT_NO_START_CODON,C|upstream_gene_variant|MODIFIER|E1|GENE_E1|transcript|TRANSCRIPT_E1|protein_coding||c.-1407T>C|||||1407|WARNING_TRANSCRIPT_NO_START_CODON,C|downstream_gene_variant|MODIFIER|NS2|GENE_NS2|transcript|TRANSCRIPT_NS2|protein_coding||c.*4512T>C|||||4512|WARNING_TRANSCRIPT_NO_START_CODON,C|downstream_gene_variant|MODIFIER|NS3|GENE_NS3|transcript|TRANSCRIPT_NS3|protein_coding||c.*2940T>C|||||2940|WARNING_TRANSCRIPT_NO_START_CODON,C|downstream_gene_variant|MODIFIER|NS4|GENE_NS4|transcript|TRANSCRIPT_NS4|protein_coding||c.*1089T>C|||||1089|WARNING_TRANSCRIPT_NO_START_CODON,C|downstream_gene_variant|MODIFIER|capsid|GENE_capsid|transcript|TRANSCRIPT_capsid|protein_coding||c.*229T>C|||||229|WARNING_TRANSCRIPT_NO_STOP_CODON,C|downstream_gene_variant|MODIFIER|E3|GENE_E3|transcript|TRANSCRIPT_E3|protein_coding||c.*46T>C|||||46|WARNING_TRANSCRIPT_NO_START_CODON,C|non_coding_transcript_variant|MODIFIER|EDEN.1|null|transcript|EDEN.1|protein_coding||||||||WARNING_TRANSCRIPT_NO_START_CODON | N13: LOW | O13: Synonymous | P13: GT:PL | Q13: 0/1:102,0,255
A14: KP164568_BHI3734_H804698_2014_08_26_Human_Brazil | B14: 9075 | C14: . | D14: G | E14: 2 | F14: =E14*100/J14 -> 0.3164556962 | G14: A | H14: 630 | I14: =H14*100/J14 -> 99.6835443 | J14: =E14+H14 -> 632 | K14: 221.999 | L14: PASS | M14: DP=527;VDB=0;SGB=-0.693147;RPB=0.791841;MQB=0.966527;MQSB=0.681659;BQB=0.604603;MQ0F=0;AF1=1;AC1=2;DP4=0,2,287,191;MQ=42;FQ=-281.989;PV4=0.161169,1,0.438412,1;ANN=A|missense_variant|MODERATE|E2|GENE_E2|transcript|TRANSCRIPT_E2|protein_coding|1/1|c.533G>A|p.Arg178His|533/1269|533/1269|178/422||WARNING_TRANSCRIPT_NO_START_CODON,A|upstream_gene_variant|MODIFIER|6K|GENE_6K|transcript|TRANSCRIPT_6K|protein_coding||c.-737G>A|||||737|WARNING_TRANSCRIPT_NO_START_CODON,A|upstream_gene_variant|MODIFIER|E1|GENE_E1|transcript|TRANSCRIPT_E1|protein_coding||c.-920G>A|||||920|WARNING_TRANSCRIPT_NO_START_CODON,A|downstream_gene_variant|MODIFIER|NS2|GENE_NS2|transcript|TRANSCRIPT_NS2|protein_coding||c.*4999G>A|||||4999|WARNING_TRANSCRIPT_NO_START_CODON,A|downstream_gene_variant|MODIFIER|NS3|GENE_NS3|transcript|TRANSCRIPT_NS3|protein_coding||c.*3427G>A|||||3427|WARNING_TRANSCRIPT_NO_START_CODON,A|downstream_gene_variant|MODIFIER|NS4|GENE_NS4|transcript|TRANSCRIPT_NS4|protein_coding||c.*1576G>A|||||1576|WARNING_TRANSCRIPT_NO_START_CODON,A|downstream_gene_variant|MODIFIER|capsid|GENE_capsid|transcript|TRANSCRIPT_capsid|protein_coding||c.*716G>A|||||716|WARNING_TRANSCRIPT_NO_STOP_CODON,A|downstream_gene_variant|MODIFIER|E3|GENE_E3|transcript|TRANSCRIPT_E3|protein_coding||c.*533G>A|||||533|WARNING_TRANSCRIPT_NO_START_CODON,A|non_coding_transcript_variant|MODIFIER|EDEN.1|null|transcript|EDEN.1|protein_coding||||||||WARNING_TRANSCRIPT_NO_START_CODON | N14: MODERATE | O14: Non-synonymous | P14: GT:PL | Q14: 1/1:255,255,0
A15: KP164568_BHI3734_H804698_2014_08_26_Human_Brazil | B15: 9645 | C15: . | D15: T | E15: 2 | F15: =E15*100/J15 -> 0.1082251082 | G15: C | H15: 1846 | I15: =H15*100/J15 -> 99.89177489 | J15: =E15+H15 -> 1848 | K15: 221.999 | L15: PASS | M15: DP=1679;VDB=2.1925e-34;SGB=-0.693147;MQSB=0.806265;MQ0F=0.00119119;AF1=1;AC1=2;DP4=0,0,1159,326;MQ=42;FQ=-281.989;ANN=C|missense_variant|MODERATE|E2|GENE_E2|transcript|TRANSCRIPT_E2|protein_coding|1/1|c.1103T>C|p.Val368Ala|1103/1269|1103/1269|368/422||WARNING_TRANSCRIPT_NO_START_CODON,C|upstream_gene_variant|MODIFIER|6K|GENE_6K|transcript|TRANSCRIPT_6K|protein_coding||c.-167T>C|||||167|WARNING_TRANSCRIPT_NO_START_CODON,C|upstream_gene_variant|MODIFIER|E1|GENE_E1|transcript|TRANSCRIPT_E1|protein_coding||c.-350T>C|||||350|WARNING_TRANSCRIPT_NO_START_CODON,C|downstream_gene_variant|MODIFIER|NS3|GENE_NS3|transcript|TRANSCRIPT_NS3|protein_coding||c.*3997T>C|||||3997|WARNING_TRANSCRIPT_NO_START_CODON,C|downstream_gene_variant|MODIFIER|NS4|GENE_NS4|transcript|TRANSCRIPT_NS4|protein_coding||c.*2146T>C|||||2146|WARNING_TRANSCRIPT_NO_START_CODON,C|downstream_gene_variant|MODIFIER|capsid|GENE_capsid|transcript|TRANSCRIPT_capsid|protein_coding||c.*1286T>C|||||1286|WARNING_TRANSCRIPT_NO_STOP_CODON,C|downstream_gene_variant|MODIFIER|E3|GENE_E3|transcript|TRANSCRIPT_E3|protein_coding||c.*1103T>C|||||1103|WARNING_TRANSCRIPT_NO_START_CODON,C|non_coding_transcript_variant|MODIFIER|EDEN.1|null|transcript|EDEN.1|protein_coding||||||||WARNING_TRANSCRIPT_NO_START_CODON | N15: MODERATE | O15: Non-synonymous | P15: GT:PL | Q15: 1/1:255,255,0
A16: KP164568_BHI3734_H804698_2014_08_26_Human_Brazil | B16: 10273 | C16: . | D16: C | E16: 4 | F16: =E16*100/J16 -> 0.08886914019 | G16: T | H16: 4497 | I16: =H16*100/J16 -> 99.91113086 | J16: =E16+H16 -> 4501 | K16: 221.999 | L16: PASS | M16: DP=3570;VDB=0.771316;SGB=-0.693147;RPB=0.867512;MQB=0.998205;MQSB=0.909082;BQB=0.190071;MQ0F=0;AF1=1;AC1=2;DP4=3,0,2989,312;MQ=42;FQ=-281.989;PV4=1,1,0.444461,1;ANN=T|synonymous_variant|LOW|E1|GENE_E1|transcript|TRANSCRIPT_E1|protein_coding|1/1|c.279C>T|p.Tyr93Tyr|279/1317|279/1317|93/438||WARNING_TRANSCRIPT_NO_START_CODON,T|downstream_gene_variant|MODIFIER|NS3|GENE_NS3|transcript|TRANSCRIPT_NS3|protein_coding||c.*4625C>T|||||4625|WARNING_TRANSCRIPT_NO_START_CODON,T|downstream_gene_variant|MODIFIER|NS4|GENE_NS4|transcript|TRANSCRIPT_NS4|protein_coding||c.*2774C>T|||||2774|WARNING_TRANSCRIPT_NO_START_CODON,T|downstream_gene_variant|MODIFIER|capsid|GENE_capsid|transcript|TRANSCRIPT_capsid|protein_coding||c.*1914C>T|||||1914|WARNING_TRANSCRIPT_NO_STOP_CODON,T|downstream_gene_variant|MODIFIER|E3|GENE_E3|transcript|TRANSCRIPT_E3|protein_coding||c.*1731C>T|||||1731|WARNING_TRANSCRIPT_NO_START_CODON,T|downstream_gene_variant|MODIFIER|E2|GENE_E2|transcript|TRANSCRIPT_E2|protein_coding||c.*462C>T|||||462|WARNING_TRANSCRIPT_NO_START_CODON,T|downstream_gene_variant|MODIFIER|6K|GENE_6K|transcript|TRANSCRIPT_6K|protein_coding||c.*279C>T|||||279|WARNING_TRANSCRIPT_NO_START_CODON,T|non_coding_transcript_variant|MODIFIER|EDEN.1|null|transcript|EDEN.1|protein_coding||||||||WARNING_TRANSCRIPT_NO_START_CODON | N16: LOW | O16: Synonymous | P16: GT:PL | Q16: 1/1:255,255,0
A17: KP164568_BHI3734_H804698_2014_08_26_Human_Brazil | B17: 10600 | C17: . | D17: T | E17: 401 | F17: =E17*100/J17 -> 47.56820878 | G17: C | H17: 442 | I17: =H17*100/J17 -> 52.43179122 | J17: =E17+H17 -> 843 | K17: 225.009 | L17: PASS | M17: DP=811;VDB=0.00383429;SGB=-0.693147;RPB=4.98749e-05;MQB=0.126277;MQSB=0.961901;BQB=0.0688063;MQ0F=0.00123305;AF1=0.5;AC1=1;DP4=101,241,252,135;MQ=42;FQ=225.007;PV4=4.01893e-22,0.430295,0.0495333,0.000494602;ANN=C|synonymous_variant|LOW|E1|GENE_E1|transcript|TRANSCRIPT_E1|protein_coding|1/1|c.606T>C|p.Asp202Asp|606/1317|606/1317|202/438||WARNING_TRANSCRIPT_NO_START_CODON,C|downstream_gene_variant|MODIFIER|NS3|GENE_NS3|transcript|TRANSCRIPT_NS3|protein_coding||c.*4952T>C|||||4952|WARNING_TRANSCRIPT_NO_START_CODON,C|downstream_gene_variant|MODIFIER|NS4|GENE_NS4|transcript|TRANSCRIPT_NS4|protein_coding||c.*3101T>C|||||3101|WARNING_TRANSCRIPT_NO_START_CODON,C|downstream_gene_variant|MODIFIER|capsid|GENE_capsid|transcript|TRANSCRIPT_capsid|protein_coding||c.*2241T>C|||||2241|WARNING_TRANSCRIPT_NO_STOP_CODON,C|downstream_gene_variant|MODIFIER|E3|GENE_E3|transcript|TRANSCRIPT_E3|protein_coding||c.*2058T>C|||||2058|WARNING_TRANSCRIPT_NO_START_CODON,C|downstream_gene_variant|MODIFIER|E2|GENE_E2|transcript|TRANSCRIPT_E2|protein_coding||c.*789T>C|||||789|WARNING_TRANSCRIPT_NO_START_CODON,C|downstream_gene_variant|MODIFIER|6K|GENE_6K|transcript|TRANSCRIPT_6K|protein_coding||c.*606T>C|||||606|WARNING_TRANSCRIPT_NO_START_CODON,C|non_coding_transcript_variant|MODIFIER|EDEN.1|null|transcript|EDEN.1|protein_coding||||||||WARNING_TRANSCRIPT_NO_START_CODON | N17: LOW | O17: Synonymous | P17: GT:PL | Q17: 0/1:255,0,255
A18: KP164568_BHI3734_H804698_2014_08_26_Human_Brazil | B18: 10813 | C18: . | D18: A | E18: 6 | F18: =E18*100/J18 -> 0.2449979584 | G18: G | H18: 2443 | I18: =H18*100/J18 -> 99.75500204 | J18: =E18+H18 -> 2449 | K18: 221.999 | L18: PASS | M18: DP=1888;VDB=1.16728e-35;SGB=-0.693147;RPB=1;MQB=1;MQSB=0.181012;BQB=1;MQ0F=0;AF1=1;AC1=2;DP4=0,1,250,1474;MQ=42;FQ=-281.989;PV4=1,1,0.451561,0.306732;ANN=G|synonymous_variant|LOW|E1|GENE_E1|transcript|TRANSCRIPT_E1|protein_coding|1/1|c.819A>G|p.Val273Val|819/1317|819/1317|273/438||WARNING_TRANSCRIPT_NO_START_CODON,G|downstream_gene_variant|MODIFIER|NS4|GENE_NS4|transcript|TRANSCRIPT_NS4|protein_coding||c.*3314A>G|||||3314|WARNING_TRANSCRIPT_NO_START_CODON,G|downstream_gene_variant|MODIFIER|capsid|GENE_capsid|transcript|TRANSCRIPT_capsid|protein_coding||c.*2454A>G|||||2454|WARNING_TRANSCRIPT_NO_STOP_CODON,G|downstream_gene_variant|MODIFIER|E3|GENE_E3|transcript|TRANSCRIPT_E3|protein_coding||c.*2271A>G|||||2271|WARNING_TRANSCRIPT_NO_START_CODON,G|downstream_gene_variant|MODIFIER|E2|GENE_E2|transcript|TRANSCRIPT_E2|protein_coding||c.*1002A>G|||||1002|WARNING_TRANSCRIPT_NO_START_CODON,G|downstream_gene_variant|MODIFIER|6K|GENE_6K|transcript|TRANSCRIPT_6K|protein_coding||c.*819A>G|||||819|WARNING_TRANSCRIPT_NO_START_CODON,G|non_coding_transcript_variant|MODIFIER|EDEN.1|null|transcript|EDEN.1|protein_coding||||||||WARNING_TRANSCRIPT_NO_START_CODON | N18: LOW | O18: Synonymous | P18: GT:PL | Q18: 1/1:255,255,0

Sheet 43P41
A1: #CHROM | B1: POS | C1: ID | D1: REF | E1: Nº reads | F1: BHI3734 reads support | G1: ALT | H1: Nº reads | I1: PER160 reas support | J1: Total reads | K1: QUAL | L1: FILTER | M1: INFO | N1: Impact | O1: Nucleotide change | P1: FORMAT | Q1: BHI3734_43P41.sorted.dupli.removed.bam
A2: KP164568_BHI3734_H804698_2014_08_26_Human_Brazil | B2: 1852 | C2: . | D2: C | E2: 0 | F2: =E2*100/J2 -> 0 | G2: T | H2: 683 | I2: =H2*100/J2 -> 100 | J2: =E2+H2 -> 683 | K2: 221.999 | L2: PASS | M2: DP=591;VDB=0.70158;SGB=-0.693147;MQSB=0.531887;MQ0F=0;AF1=1;AC1=2;DP4=0,0,463,81;MQ=42;FQ=-281.989;ANN=T|missense_variant|MODERATE|NS2|GENE_NS2|transcript|TRANSCRIPT_NS2|protein_coding|1/1|c.170C>T|p.Ala57Val|170/2394|170/2394|57/797||WARNING_TRANSCRIPT_NO_START_CODON,T|upstream_gene_variant|MODIFIER|NS3|GENE_NS3|transcript|TRANSCRIPT_NS3|protein_coding||c.-2225C>T|||||2225|WARNING_TRANSCRIPT_NO_START_CODON,T|upstream_gene_variant|MODIFIER|NS4|GENE_NS4|transcript|TRANSCRIPT_NS4|protein_coding||c.-3815C>T|||||3815|WARNING_TRANSCRIPT_NO_START_CODON,T|downstream_gene_variant|MODIFIER|NS1|GENE_NS1|transcript|TRANSCRIPT_NS1|protein_coding||c.*170C>T|||||170|WARNING_TRANSCRIPT_NO_STOP_CODON,T|non_coding_transcript_variant|MODIFIER|EDEN.1|null|transcript|EDEN.1|protein_coding||||||||WARNING_TRANSCRIPT_NO_START_CODON | N2: MODERATE | O2: Non-Synonymous | P2: GT:PL | Q2: 1/1:255,255,0
A3: KP164568_BHI3734_H804698_2014_08_26_Human_Brazil | B3: 1913 | C3: . | D3: C | E3: 0 | F3: =E3*100/J3 -> 0 | G3: T | H3: 691 | I3: =H3*100/J3 -> 100 | J3: =E3+H3 -> 691 | K3: 221.999 | L3: PASS | M3: DP=573;VDB=0.527568;SGB=-0.693147;MQSB=0.939089;MQ0F=0;AF1=1;AC1=2;DP4=0,0,403,103;MQ=42;FQ=-281.989;ANN=T|synonymous_variant|LOW|NS2|GENE_NS2|transcript|TRANSCRIPT_NS2|protein_coding|1/1|c.231C>T|p.Ile77Ile|231/2394|231/2394|77/797||WARNING_TRANSCRIPT_NO_START_CODON,T|upstream_gene_variant|MODIFIER|NS3|GENE_NS3|transcript|TRANSCRIPT_NS3|protein_coding||c.-2164C>T|||||2164|WARNING_TRANSCRIPT_NO_START_CODON,T|upstream_gene_variant|MODIFIER|NS4|GENE_NS4|transcript|TRANSCRIPT_NS4|protein_coding||c.-3754C>T|||||3754|WARNING_TRANSCRIPT_NO_START_CODON,T|downstream_gene_variant|MODIFIER|NS1|GENE_NS1|transcript|TRANSCRIPT_NS1|protein_coding||c.*231C>T|||||231|WARNING_TRANSCRIPT_NO_STOP_CODON,T|non_coding_transcript_variant|MODIFIER|EDEN.1|null|transcript|EDEN.1|protein_coding||||||||WARNING_TRANSCRIPT_NO_START_CODON | N3: LOW | O3: Synonymous | P3: GT:PL | Q3: 1/1:255,255,0
A4: KP164568_BHI3734_H804698_2014_08_26_Human_Brazil | B4: 2252 | C4: . | D4: T | E4: 0 | F4: =E4*100/J4 -> 0 | G4: C | H4: 1285 | I4: =H4*100/J4 -> 100 | J4: =E4+H4 -> 1285 | K4: 221.999 | L4: PASS | M4: DP=979;VDB=9.7347e-10;SGB=-0.693147;MQSB=0.725307;MQ0F=0;AF1=1;AC1=2;DP4=0,0,403,510;MQ=42;FQ=-281.989;ANN=C|synonymous_variant|LOW|NS2|GENE_NS2|transcript|TRANSCRIPT_NS2|protein_coding|1/1|c.570T>C|p.Ser190Ser|570/2394|570/2394|190/797||WARNING_TRANSCRIPT_NO_START_CODON,C|upstream_gene_variant|MODIFIER|NS3|GENE_NS3|transcript|TRANSCRIPT_NS3|protein_coding||c.-1825T>C|||||1825|WARNING_TRANSCRIPT_NO_START_CODON,C|upstream_gene_variant|MODIFIER|NS4|GENE_NS4|transcript|TRANSCRIPT_NS4|protein_coding||c.-3415T>C|||||3415|WARNING_TRANSCRIPT_NO_START_CODON,C|downstream_gene_variant|MODIFIER|NS1|GENE_NS1|transcript|TRANSCRIPT_NS1|protein_coding||c.*570T>C|||||570|WARNING_TRANSCRIPT_NO_STOP_CODON,C|non_coding_transcript_variant|MODIFIER|EDEN.1|null|transcript|EDEN.1|protein_coding||||||||WARNING_TRANSCRIPT_NO_START_CODON | N4: LOW | O4: Synonymous | P4: GT:PL | Q4: 1/1:255,255,0
A5: KP164568_BHI3734_H804698_2014_08_26_Human_Brazil | B5: 4874 | C5: . | D5: C | E5: 2342 | F5: =E5*100/J5 -> 77.24274406 | G5: T | H5: 690 | I5: =H5*100/J5 -> 22.75725594 | J5: =E5+H5 -> 3032 | K5: 153.008 | L5: PASS | M5: DP=2405;VDB=1;SGB=-0.693147;RPB=0.00474476;MQB=0.454147;MQSB=0.989369;BQB=0;MQ0F=0;AF1=0.5;AC1=1;DP4=1419,272,245,346;MQ=42;FQ=156.017;PV4=0,5.15326e-10,4.32943e-05,0;ANN=T|synonymous_variant|LOW|NS3|GENE_NS3|transcript|TRANSCRIPT_NS3|protein_coding|1/1|c.798C>T|p.Tyr266Tyr|798/1572|798/1572|266/523||WARNING_TRANSCRIPT_NO_START_CODON,T|upstream_gene_variant|MODIFIER|NS4|GENE_NS4|transcript|TRANSCRIPT_NS4|protein_coding||c.-793C>T|||||793|WARNING_TRANSCRIPT_NO_START_CODON,T|upstream_gene_variant|MODIFIER|capsid|GENE_capsid|transcript|TRANSCRIPT_capsid|protein_coding||c.-2694C>T|||||2694|WARNING_TRANSCRIPT_NO_STOP_CODON,T|upstream_gene_variant|MODIFIER|E3|GENE_E3|transcript|TRANSCRIPT_E3|protein_coding||c.-3486C>T|||||3486|WARNING_TRANSCRIPT_NO_START_CODON,T|upstream_gene_variant|MODIFIER|E2|GENE_E2|transcript|TRANSCRIPT_E2|protein_coding||c.-3669C>T|||||3669|WARNING_TRANSCRIPT_NO_START_CODON,T|upstream_gene_variant|MODIFIER|6K|GENE_6K|transcript|TRANSCRIPT_6K|protein_coding||c.-4938C>T|||||4938|WARNING_TRANSCRIPT_NO_START_CODON,T|downstream_gene_variant|MODIFIER|NS1|GENE_NS1|transcript|TRANSCRIPT_NS1|protein_coding||c.*3192C>T|||||3192|WARNING_TRANSCRIPT_NO_STOP_CODON,T|downstream_gene_variant|MODIFIER|NS2|GENE_NS2|transcript|TRANSCRIPT_NS2|protein_coding||c.*798C>T|||||798|WARNING_TRANSCRIPT_NO_START_CODON,T|non_coding_transcript_variant|MODIFIER|EDEN.1|null|transcript|EDEN.1|protein_coding||||||||WARNING_TRANSCRIPT_NO_START_CODON | N5: LOW | O5: Synonymous | P5: GT:PL | Q5: 0/1:183,0,255
A6: KP164568_BHI3734_H804698_2014_08_26_Human_Brazil | B6: 5522 | C6: . | D6: C | E6: 0 | F6: =E6*100/J6 -> 0 | G6: T | H6: 1164 | I6: =H6*100/J6 -> 100 | J6: =E6+H6 -> 1164 | K6: 221.999 | L6: PASS | M6: DP=835;VDB=1.68061e-06;SGB=-0.693147;MQSB=0.958785;MQ0F=0;AF1=1;AC1=2;DP4=0,0,127,673;MQ=42;FQ=-281.989;ANN=T|synonymous_variant|LOW|NS3|GENE_NS3|transcript|TRANSCRIPT_NS3|protein_coding|1/1|c.1446C>T|p.Phe482Phe|1446/1572|1446/1572|482/523||WARNING_TRANSCRIPT_NO_START_CODON,T|upstream_gene_variant|MODIFIER|NS4|GENE_NS4|transcript|TRANSCRIPT_NS4|protein_coding||c.-145C>T|||||145|WARNING_TRANSCRIPT_NO_START_CODON,T|upstream_gene_variant|MODIFIER|capsid|GENE_capsid|transcript|TRANSCRIPT_capsid|protein_coding||c.-2046C>T|||||2046|WARNING_TRANSCRIPT_NO_STOP_CODON,T|upstream_gene_variant|MODIFIER|E3|GENE_E3|transcript|TRANSCRIPT_E3|protein_coding||c.-2838C>T|||||2838|WARNING_TRANSCRIPT_NO_START_CODON,T|upstream_gene_variant|MODIFIER|E2|GENE_E2|transcript|TRANSCRIPT_E2|protein_coding||c.-3021C>T|||||3021|WARNING_TRANSCRIPT_NO_START_CODON,T|upstream_gene_variant|MODIFIER|6K|GENE_6K|transcript|TRANSCRIPT_6K|protein_coding||c.-4290C>T|||||4290|WARNING_TRANSCRIPT_NO_START_CODON,T|upstream_gene_variant|MODIFIER|E1|GENE_E1|transcript|TRANSCRIPT_E1|protein_coding||c.-4473C>T|||||4473|WARNING_TRANSCRIPT_NO_START_CODON,T|downstream_gene_variant|MODIFIER|NS1|GENE_NS1|transcript|TRANSCRIPT_NS1|protein_coding||c.*3840C>T|||||3840|WARNING_TRANSCRIPT_NO_STOP_CODON,T|downstream_gene_variant|MODIFIER|NS2|GENE_NS2|transcript|TRANSCRIPT_NS2|protein_coding||c.*1446C>T|||||1446|WARNING_TRANSCRIPT_NO_START_CODON,T|non_coding_transcript_variant|MODIFIER|EDEN.1|null|transcript|EDEN.1|protein_coding||||||||WARNING_TRANSCRIPT_NO_START_CODON | N6: LOW | O6: Synonymous | P6: GT:PL | Q6: 1/1:255,255,0
A7: KP164568_BHI3734_H804698_2014_08_26_Human_Brazil | B7: 8588 | C7: . | D7: T | E7: 2036 | F7: =E7*100/J7 -> 83.06813545 | G7: C | H7: 415 | I7: =H7*100/J7 -> 16.93186455 | J7: =E7+H7 -> 2451 | K7: 26.0177 | L7: PASS | M7: DP=2319;VDB=1;SGB=-0.693147;RPB=1.23246e-05;MQB=0.9765;MQSB=0.992232;BQB=3.24495e-31;MQ0F=0;AF1=0.499999;AC1=1;DP4=699,1130,167,194;MQ=42;FQ=29.0205;PV4=0.00468749,0.0473372,0.0374472,0;ANN=C|synonymous_variant|LOW|E2|GENE_E2|transcript|TRANSCRIPT_E2|protein_coding|1/1|c.46T>C|p.Leu16Leu|46/1269|46/1269|16/422||WARNING_TRANSCRIPT_NO_START_CODON,C|upstream_gene_variant|MODIFIER|6K|GENE_6K|transcript|TRANSCRIPT_6K|protein_coding||c.-1224T>C|||||1224|WARNING_TRANSCRIPT_NO_START_CODON,C|upstream_gene_variant|MODIFIER|E1|GENE_E1|transcript|TRANSCRIPT_E1|protein_coding||c.-1407T>C|||||1407|WARNING_TRANSCRIPT_NO_START_CODON,C|downstream_gene_variant|MODIFIER|NS2|GENE_NS2|transcript|TRANSCRIPT_NS2|protein_coding||c.*4512T>C|||||4512|WARNING_TRANSCRIPT_NO_START_CODON,C|downstream_gene_variant|MODIFIER|NS3|GENE_NS3|transcript|TRANSCRIPT_NS3|protein_coding||c.*2940T>C|||||2940|WARNING_TRANSCRIPT_NO_START_CODON,C|downstream_gene_variant|MODIFIER|NS4|GENE_NS4|transcript|TRANSCRIPT_NS4|protein_coding||c.*1089T>C|||||1089|WARNING_TRANSCRIPT_NO_START_CODON,C|downstream_gene_variant|MODIFIER|capsid|GENE_capsid|transcript|TRANSCRIPT_capsid|protein_coding||c.*229T>C|||||229|WARNING_TRANSCRIPT_NO_STOP_CODON,C|downstream_gene_variant|MODIFIER|E3|GENE_E3|transcript|TRANSCRIPT_E3|protein_coding||c.*46T>C|||||46|WARNING_TRANSCRIPT_NO_START_CODON,C|non_coding_transcript_variant|MODIFIER|EDEN.1|null|transcript|EDEN.1|protein_coding||||||||WARNING_TRANSCRIPT_NO_START_CODON | N7: LOW | O7: Synonymous | P7: GT:PL | Q7: 0/1:56,0,255
A8: KP164568_BHI3734_H804698_2014_08_26_Human_Brazil | B8: 9075 | C8: . | D8: G | E8: 5 | F8: =E8*100/J8 -> 0.4651162791 | G8: A | H8: 1070 | I8: =H8*100/J8 -> 99.53488372 | J8: =E8+H8 -> 1075 | K8: 221.999 | L8: PASS | M8: DP=831;VDB=0;SGB=-0.693147;RPB=0.702925;MQB=0.998387;MQSB=0.991993;BQB=0.883608;MQ0F=0;AF1=1;AC1=2;DP4=1,2,643,147;MQ=42;FQ=-281.989;PV4=0.0922843,0.463955,0.451086,1;ANN=A|missense_variant|MODERATE|E2|GENE_E2|transcript|TRANSCRIPT_E2|protein_coding|1/1|c.533G>A|p.Arg178His|533/1269|533/1269|178/422||WARNING_TRANSCRIPT_NO_START_CODON,A|upstream_gene_variant|MODIFIER|6K|GENE_6K|transcript|TRANSCRIPT_6K|protein_coding||c.-737G>A|||||737|WARNING_TRANSCRIPT_NO_START_CODON,A|upstream_gene_variant|MODIFIER|E1|GENE_E1|transcript|TRANSCRIPT_E1|protein_coding||c.-920G>A|||||920|WARNING_TRANSCRIPT_NO_START_CODON,A|downstream_gene_variant|MODIFIER|NS2|GENE_NS2|transcript|TRANSCRIPT_NS2|protein_coding||c.*4999G>A|||||4999|WARNING_TRANSCRIPT_NO_START_CODON,A|downstream_gene_variant|MODIFIER|NS3|GENE_NS3|transcript|TRANSCRIPT_NS3|protein_coding||c.*3427G>A|||||3427|WARNING_TRANSCRIPT_NO_START_CODON,A|downstream_gene_variant|MODIFIER|NS4|GENE_NS4|transcript|TRANSCRIPT_NS4|protein_coding||c.*1576G>A|||||1576|WARNING_TRANSCRIPT_NO_START_CODON,A|downstream_gene_variant|MODIFIER|capsid|GENE_capsid|transcript|TRANSCRIPT_capsid|protein_coding||c.*716G>A|||||716|WARNING_TRANSCRIPT_NO_STOP_CODON,A|downstream_gene_variant|MODIFIER|E3|GENE_E3|transcript|TRANSCRIPT_E3|protein_coding||c.*533G>A|||||533|WARNING_TRANSCRIPT_NO_START_CODON,A|non_coding_transcript_variant|MODIFIER|EDEN.1|null|transcript|EDEN.1|protein_coding||||||||WARNING_TRANSCRIPT_NO_START_CODON | N8: MODERATE | O8: Non-Synonymous | P8: GT:PL | Q8: 1/1:255,255,0
A9: KP164568_BHI3734_H804698_2014_08_26_Human_Brazil | B9: 9145 | C9: . | D9: T | E9: 1029 | F9: =E9*100/J9 -> 74.40347072 | G9: C | H9: 354 | I9: =H9*100/J9 -> 25.59652928 | J9: =E9+H9 -> 1383 | K9: 43.0073 | L9: PASS | M9: DP=1191;VDB=0;SGB=-0.693147;RPB=0;MQB=0.999956;MQSB=0.995682;BQB=2.78197e-22;MQ0F=0;AF1=0.5;AC1=1;DP4=684,175,275,19;MQ=42;FQ=46.0153;PV4=4.49105e-09,2.86399e-05,1,0;ANN=C|synonymous_variant|LOW|E2|GENE_E2|transcript|TRANSCRIPT_E2|protein_coding|1/1|c.603T>C|p.Cys201Cys|603/1269|603/1269|201/422||WARNING_TRANSCRIPT_NO_START_CODON,C|upstream_gene_variant|MODIFIER|6K|GENE_6K|transcript|TRANSCRIPT_6K|protein_coding||c.-667T>C|||||667|WARNING_TRANSCRIPT_NO_START_CODON,C|upstream_gene_variant|MODIFIER|E1|GENE_E1|transcript|TRANSCRIPT_E1|protein_coding||c.-850T>C|||||850|WARNING_TRANSCRIPT_NO_START_CODON,C|downstream_gene_variant|MODIFIER|NS3|GENE_NS3|transcript|TRANSCRIPT_NS3|protein_coding||c.*3497T>C|||||3497|WARNING_TRANSCRIPT_NO_START_CODON,C|downstream_gene_variant|MODIFIER|NS4|GENE_NS4|transcript|TRANSCRIPT_NS4|protein_coding||c.*1646T>C|||||1646|WARNING_TRANSCRIPT_NO_START_CODON,C|downstream_gene_variant|MODIFIER|capsid|GENE_capsid|transcript|TRANSCRIPT_capsid|protein_coding||c.*786T>C|||||786|WARNING_TRANSCRIPT_NO_STOP_CODON,C|downstream_gene_variant|MODIFIER|E3|GENE_E3|transcript|TRANSCRIPT_E3|protein_coding||c.*603T>C|||||603|WARNING_TRANSCRIPT_NO_START_CODON,C|non_coding_transcript_variant|MODIFIER|EDEN.1|null|transcript|EDEN.1|protein_coding||||||||WARNING_TRANSCRIPT_NO_START_CODON | N9: LOW | O9: Synonymous | P9: GT:PL | Q9: 0/1:73,0,255
A10: KP164568_BHI3734_H804698_2014_08_26_Human_Brazil | B10: 9334 | C10: . | D10: A | E10: 1156 | F10: =E10*100/J10 -> 81.52327221 | G10: G | H10: 262 | I10: =H10*100/J10 -> 18.47672779 | J10: =E10+H10 -> 1418 | K10: 34.0087 | L10: PASS | M10: DP=1268;VDB=1;SGB=-0.693147;RPB=0.0274847;MQB=0.948135;MQSB=0.993917;BQB=4.04512e-23;MQ0F=0.00157729;AF1=0.5;AC1=1;DP4=356,617,107,122;MQ=42;FQ=37.016;PV4=0.00520617,0.00475766,0.158205,1.56481e-39;ANN=G|synonymous_variant|LOW|E2|GENE_E2|transcript|TRANSCRIPT_E2|protein_coding|1/1|c.792A>G|p.Val264Val|792/1269|792/1269|264/422||WARNING_TRANSCRIPT_NO_START_CODON,G|upstream_gene_variant|MODIFIER|6K|GENE_6K|transcript|TRANSCRIPT_6K|protein_coding||c.-478A>G|||||478|WARNING_TRANSCRIPT_NO_START_CODON,G|upstream_gene_variant|MODIFIER|E1|GENE_E1|transcript|TRANSCRIPT_E1|protein_coding||c.-661A>G|||||661|WARNING_TRANSCRIPT_NO_START_CODON,G|downstream_gene_variant|MODIFIER|NS3|GENE_NS3|transcript|TRANSCRIPT_NS3|protein_coding||c.*3686A>G|||||3686|WARNING_TRANSCRIPT_NO_START_CODON,G|downstream_gene_variant|MODIFIER|NS4|GENE_NS4|transcript|TRANSCRIPT_NS4|protein_coding||c.*1835A>G|||||1835|WARNING_TRANSCRIPT_NO_START_CODON,G|downstream_gene_variant|MODIFIER|capsid|GENE_capsid|transcript|TRANSCRIPT_capsid|protein_coding||c.*975A>G|||||975|WARNING_TRANSCRIPT_NO_STOP_CODON,G|downstream_gene_variant|MODIFIER|E3|GENE_E3|transcript|TRANSCRIPT_E3|protein_coding||c.*792A>G|||||792|WARNING_TRANSCRIPT_NO_START_CODON,G|non_coding_transcript_variant|MODIFIER|EDEN.1|null|transcript|EDEN.1|protein_coding||||||||WARNING_TRANSCRIPT_NO_START_CODON | N10: LOW | O10: Synonymous | P10: GT:PL | Q10: 0/1:64,0,255
A11: KP164568_BHI3734_H804698_2014_08_26_Human_Brazil | B11: 10336 | C11: . | D11: C | E11: 0 | F11: =E11*100/J11 -> 0 | G11: T | H11: 1571 | I11: =H11*100/J11 -> 100 | J11: =E11+H11 -> 1571 | K11: 221.999 | L11: PASS | M11: DP=1291;VDB=2.40585e-31;SGB=-0.693147;MQSB=0.935107;MQ0F=0;AF1=1;AC1=2;DP4=0,0,1063,183;MQ=42;FQ=-281.989;ANN=T|synonymous_variant|LOW|E1|GENE_E1|transcript|TRANSCRIPT_E1|protein_coding|1/1|c.342C>T|p.Cys114Cys|342/1317|342/1317|114/438||WARNING_TRANSCRIPT_NO_START_CODON,T|downstream_gene_variant|MODIFIER|NS3|GENE_NS3|transcript|TRANSCRIPT_NS3|protein_coding||c.*4688C>T|||||4688|WARNING_TRANSCRIPT_NO_START_CODON,T|downstream_gene_variant|MODIFIER|NS4|GENE_NS4|transcript|TRANSCRIPT_NS4|protein_coding||c.*2837C>T|||||2837|WARNING_TRANSCRIPT_NO_START_CODON,T|downstream_gene_variant|MODIFIER|capsid|GENE_capsid|transcript|TRANSCRIPT_capsid|protein_coding||c.*1977C>T|||||1977|WARNING_TRANSCRIPT_NO_STOP_CODON,T|downstream_gene_variant|MODIFIER|E3|GENE_E3|transcript|TRANSCRIPT_E3|protein_coding||c.*1794C>T|||||1794|WARNING_TRANSCRIPT_NO_START_CODON,T|downstream_gene_variant|MODIFIER|E2|GENE_E2|transcript|TRANSCRIPT_E2|protein_coding||c.*525C>T|||||525|WARNING_TRANSCRIPT_NO_START_CODON,T|downstream_gene_variant|MODIFIER|6K|GENE_6K|transcript|TRANSCRIPT_6K|protein_coding||c.*342C>T|||||342|WARNING_TRANSCRIPT_NO_START_CODON,T|non_coding_transcript_variant|MODIFIER|EDEN.1|null|transcript|EDEN.1|protein_coding||||||||WARNING_TRANSCRIPT_NO_START_CODON | N11: LOW | O11: Synonymous | P11: GT:PL | Q11: 1/1:255,255,0
A12: KP164568_BHI3734_H804698_2014_08_26_Human_Brazil | B12: 10600 | C12: . | D12: T | E12: 253 | F12: =E12*100/J12 -> 55.11982571 | G12: C | H12: 206 | I12: =H12*100/J12 -> 44.88017429 | J12: =E12+H12 -> 459 | K12: 225.009 | L12: PASS | M12: DP=426;VDB=0.000114904;SGB=-0.693147;RPB=6.13457e-06;MQB=0.569039;MQSB=0.931669;BQB=0.00879022;MQ0F=0;AF1=0.5;AC1=1;DP4=46,165,131,48;MQ=42;FQ=225.007;PV4=5.25127e-25,1,0.0165532,8.43321e-08;ANN=C|synonymous_variant|LOW|E1|GENE_E1|transcript|TRANSCRIPT_E1|protein_coding|1/1|c.606T>C|p.Asp202Asp|606/1317|606/1317|202/438||WARNING_TRANSCRIPT_NO_START_CODON,C|downstream_gene_variant|MODIFIER|NS3|GENE_NS3|transcript|TRANSCRIPT_NS3|protein_coding||c.*4952T>C|||||4952|WARNING_TRANSCRIPT_NO_START_CODON,C|downstream_gene_variant|MODIFIER|NS4|GENE_NS4|transcript|TRANSCRIPT_NS4|protein_coding||c.*3101T>C|||||3101|WARNING_TRANSCRIPT_NO_START_CODON,C|downstream_gene_variant|MODIFIER|capsid|GENE_capsid|transcript|TRANSCRIPT_capsid|protein_coding||c.*2241T>C|||||2241|WARNING_TRANSCRIPT_NO_STOP_CODON,C|downstream_gene_variant|MODIFIER|E3|GENE_E3|transcript|TRANSCRIPT_E3|protein_coding||c.*2058T>C|||||2058|WARNING_TRANSCRIPT_NO_START_CODON,C|downstream_gene_variant|MODIFIER|E2|GENE_E2|transcript|TRANSCRIPT_E2|protein_coding||c.*789T>C|||||789|WARNING_TRANSCRIPT_NO_START_CODON,C|downstream_gene_variant|MODIFIER|6K|GENE_6K|transcript|TRANSCRIPT_6K|protein_coding||c.*606T>C|||||606|WARNING_TRANSCRIPT_NO_START_CODON,C|non_coding_transcript_variant|MODIFIER|EDEN.1|null|transcript|EDEN.1|protein_coding||||||||WARNING_TRANSCRIPT_NO_START_CODON | P12: GT:PL | Q12: 0/1:255,0,255

Sheet 89P87
A1: #CHROM | B1: POS | C1: ID | D1: REF | E1: Nº reads | F1: BHI3734 reads support | G1: ALT | H1: Nº reads | I1: PER160 reas support | J1: Total reads | K1: QUAL | L1: FILTER | M1: INFO | N1: Impact | O1: Nucleotide change | P1: FORMAT | Q1: BHI3734_89P87.sorted.dupli.removed.bam
A2: KP164568_BHI3734_H804698_2014_08_26_Human_Brazil | B2: 2736 | C2: . | D2: C | E2: 197 | F2: =E2*100/J2 -> 79.75708502 | G2: G | H2: 50 | I2: =H2*100/J2 -> 20.24291498 | J2: =H2+E2 -> 247 | K2: 195.009 | L2: PASS | M2: DP=247;VDB=0.4666;SGB=-0.693141;RPB=0.991033;MQB=0.625113;MQSB=0.819665;BQB=0.00118593;MQ0F=0.00809717;AF1=0.5;AC1=1;DP4=84,32,23,14;MQ=40;FQ=198.013;PV4=0.303088,6.86215e-05,1,0.0837928;ANN=G|missense_variant|MODERATE|NS2|GENE_NS2|transcript|TRANSCRIPT_NS2|protein_coding|1/1|c.1054C>G|p.Pro352Ala|1054/2394|1054/2394|352/797||WARNING_TRANSCRIPT_NO_START_CODON,G|upstream_gene_variant|MODIFIER|NS3|GENE_NS3|transcript|TRANSCRIPT_NS3|protein_coding||c.-1341C>G|||||1341|WARNING_TRANSCRIPT_NO_START_CODON,G|upstream_gene_variant|MODIFIER|NS4|GENE_NS4|transcript|TRANSCRIPT_NS4|protein_coding||c.-2931C>G|||||2931|WARNING_TRANSCRIPT_NO_START_CODON,G|upstream_gene_variant|MODIFIER|capsid|GENE_capsid|transcript|TRANSCRIPT_capsid|protein_coding||c.-4832C>G|||||4832|WARNING_TRANSCRIPT_NO_STOP_CODON,G|downstream_gene_variant|MODIFIER|NS1|GENE_NS1|transcript|TRANSCRIPT_NS1|protein_coding||c.*1054C>G|||||1054|WARNING_TRANSCRIPT_NO_STOP_CODON,G|non_coding_transcript_variant|MODIFIER|EDEN.1|null|transcript|EDEN.1|protein_coding||||||||WARNING_TRANSCRIPT_NO_START_CODON | N2: MODERATE | O2: Non-synonymous | P2: GT:PL | Q2: 0/1:225,0,255
A3: KP164568_BHI3734_H804698_2014_08_26_Human_Brazil | B3: 2802 | C3: . | D3: T | E3: 359 | F3: =E3*100/J3 -> 29.84206151 | G3: C | H3: 844 | I3: =H3*100/J3 -> 70.15793849 | J3: =H3+E3 -> 1203 | K3: 191.009 | L3: PASS | M3: DP=1202;VDB=3.84909e-29;SGB=-0.693147;RPB=0.481972;MQB=5.84651e-25;MQSB=0.000690645;BQB=0.455319;MQ0F=0;AF1=0.5;AC1=1;DP4=276,25,669,0;MQ=39;FQ=176.931;PV4=9.66572e-14,1,4.60218e-22,0.48529;ANN=C|missense_variant|MODERATE|NS2|GENE_NS2|transcript|TRANSCRIPT_NS2|protein_coding|1/1|c.1120T>C|p.Tyr374His|1120/2394|1120/2394|374/797||WARNING_TRANSCRIPT_NO_START_CODON,C|upstream_gene_variant|MODIFIER|NS3|GENE_NS3|transcript|TRANSCRIPT_NS3|protein_coding||c.-1275T>C|||||1275|WARNING_TRANSCRIPT_NO_START_CODON,C|upstream_gene_variant|MODIFIER|NS4|GENE_NS4|transcript|TRANSCRIPT_NS4|protein_coding||c.-2865T>C|||||2865|WARNING_TRANSCRIPT_NO_START_CODON,C|upstream_gene_variant|MODIFIER|capsid|GENE_capsid|transcript|TRANSCRIPT_capsid|protein_coding||c.-4766T>C|||||4766|WARNING_TRANSCRIPT_NO_STOP_CODON,C|downstream_gene_variant|MODIFIER|NS1|GENE_NS1|transcript|TRANSCRIPT_NS1|protein_coding||c.*1120T>C|||||1120|WARNING_TRANSCRIPT_NO_STOP_CODON,C|non_coding_transcript_variant|MODIFIER|EDEN.1|null|transcript|EDEN.1|protein_coding||||||||WARNING_TRANSCRIPT_NO_START_CODON | N3: MODERATE | O3: Non-synonymous | P3: GT:PL | Q3: 0/1:221,0,204
A4: KP164568_BHI3734_H804698_2014_08_26_Human_Brazil | B4: 2876 | C4: . | D4: T | E4: 747 | F4: =E4*100/J4 -> 61.53212521 | G4: C | H4: 467 | I4: =H4*100/J4 -> 38.46787479 | J4: =H4+E4 -> 1214 | K4: 225.009 | L4: PASS | M4: DP=1214;VDB=5.30609e-19;SGB=-0.693147;RPB=0;MQB=0;MQSB=0.999935;BQB=0.115465;MQ0F=0;AF1=0.5;AC1=1;DP4=413,157,224,167;MQ=38;FQ=225.007;PV4=1.52945e-06,5.12527e-05,0,5.31093e-17;ANN=C|synonymous_variant|LOW|NS2|GENE_NS2|transcript|TRANSCRIPT_NS2|protein_coding|1/1|c.1194T>C|p.Asn398Asn|1194/2394|1194/2394|398/797||WARNING_TRANSCRIPT_NO_START_CODON,C|upstream_gene_variant|MODIFIER|NS3|GENE_NS3|transcript|TRANSCRIPT_NS3|protein_coding||c.-1201T>C|||||1201|WARNING_TRANSCRIPT_NO_START_CODON,C|upstream_gene_variant|MODIFIER|NS4|GENE_NS4|transcript|TRANSCRIPT_NS4|protein_coding||c.-2791T>C|||||2791|WARNING_TRANSCRIPT_NO_START_CODON,C|upstream_gene_variant|MODIFIER|capsid|GENE_capsid|transcript|TRANSCRIPT_capsid|protein_coding||c.-4692T>C|||||4692|WARNING_TRANSCRIPT_NO_STOP_CODON,C|downstream_gene_variant|MODIFIER|NS1|GENE_NS1|transcript|TRANSCRIPT_NS1|protein_coding||c.*1194T>C|||||1194|WARNING_TRANSCRIPT_NO_STOP_CODON,C|non_coding_transcript_variant|MODIFIER|EDEN.1|null|transcript|EDEN.1|protein_coding||||||||WARNING_TRANSCRIPT_NO_START_CODON | N4: LOW | O4: Synonymous | P4: GT:PL | Q4: 0/1:255,0,255
A5: KP164568_BHI3734_H804698_2014_08_26_Human_Brazil | B5: 2885 | C5: . | D5: G | E5: 708 | F5: =E5*100/J5 -> 49.47589099 | G5: A | H5: 723 | I5: =H5*100/J5 -> 50.52410901 | J5: =H5+E5 -> 1431 | K5: 225.009 | L5: PASS | M5: DP=1431;VDB=7.00132e-07;SGB=-0.693147;RPB=1.84477e-40;MQB=0;MQSB=0.0343039;BQB=0.000711189;MQ0F=0;AF1=0.5;AC1=1;DP4=391,152,387,217;MQ=37;FQ=225.007;PV4=0.00438858,1.1054e-05,0,7.69667e-08;ANN=A|synonymous_variant|LOW|NS2|GENE_NS2|transcript|TRANSCRIPT_NS2|protein_coding|1/1|c.1203G>A|p.Pro401Pro|1203/2394|1203/2394|401/797||WARNING_TRANSCRIPT_NO_START_CODON,A|upstream_gene_variant|MODIFIER|NS3|GENE_NS3|transcript|TRANSCRIPT_NS3|protein_coding||c.-1192G>A|||||1192|WARNING_TRANSCRIPT_NO_START_CODON,A|upstream_gene_variant|MODIFIER|NS4|GENE_NS4|transcript|TRANSCRIPT_NS4|protein_coding||c.-2782G>A|||||2782|WARNING_TRANSCRIPT_NO_START_CODON,A|upstream_gene_variant|MODIFIER|capsid|GENE_capsid|transcript|TRANSCRIPT_capsid|protein_coding||c.-4683G>A|||||4683|WARNING_TRANSCRIPT_NO_STOP_CODON,A|downstream_gene_variant|MODIFIER|NS1|GENE_NS1|transcript|TRANSCRIPT_NS1|protein_coding||c.*1203G>A|||||1203|WARNING_TRANSCRIPT_NO_STOP_CODON,A|non_coding_transcript_variant|MODIFIER|EDEN.1|null|transcript|EDEN.1|protein_coding||||||||WARNING_TRANSCRIPT_NO_START_CODON | N5: LOW | O5: Synonymous | P5: GT:PL | Q5: 0/1:255,0,255
A6: KP164568_BHI3734_H804698_2014_08_26_Human_Brazil | B6: 2900 | C6: . | D6: G | E6: 862 | F6: =E6*100/J6 -> 41.78380999 | G6: A | H6: 1201 | I6: =H6*100/J6 -> 58.21619001 | J6: =H6+E6 -> 2063 | K6: 225.009 | L6: PASS | M6: DP=2054;VDB=0.00229717;SGB=-0.693147;RPB=9.29391e-28;MQB=0;MQSB=3.25276e-06;BQB=0.00285354;MQ0F=0;AF1=0.5;AC1=1;DP4=446,184,670,262;MQ=36;FQ=225.007;PV4=0.648114,7.38784e-05,0,0.436409;ANN=A|synonymous_variant|LOW|NS2|GENE_NS2|transcript|TRANSCRIPT_NS2|protein_coding|1/1|c.1218G>A|p.Thr406Thr|1218/2394|1218/2394|406/797||WARNING_TRANSCRIPT_NO_START_CODON,A|upstream_gene_variant|MODIFIER|NS3|GENE_NS3|transcript|TRANSCRIPT_NS3|protein_coding||c.-1177G>A|||||1177|WARNING_TRANSCRIPT_NO_START_CODON,A|upstream_gene_variant|MODIFIER|NS4|GENE_NS4|transcript|TRANSCRIPT_NS4|protein_coding||c.-2767G>A|||||2767|WARNING_TRANSCRIPT_NO_START_CODON,A|upstream_gene_variant|MODIFIER|capsid|GENE_capsid|transcript|TRANSCRIPT_capsid|protein_coding||c.-4668G>A|||||4668|WARNING_TRANSCRIPT_NO_STOP_CODON,A|downstream_gene_variant|MODIFIER|NS1|GENE_NS1|transcript|TRANSCRIPT_NS1|protein_coding||c.*1218G>A|||||1218|WARNING_TRANSCRIPT_NO_STOP_CODON,A|non_coding_transcript_variant|MODIFIER|EDEN.1|null|transcript|EDEN.1|protein_coding||||||||WARNING_TRANSCRIPT_NO_START_CODON | N6: LOW | O6: Synonymous | P6: GT:PL | Q6: 0/1:255,0,255
A7: KP164568_BHI3734_H804698_2014_08_26_Human_Brazil | B7: 2927 | C7: . | D7: A | E7: 876 | F7: =E7*100/J7 -> 37.48395379 | G7: G | H7: 1461 | I7: =H7*100/J7 -> 62.51604621 | J7: =H7+E7 -> 2337 | K7: 225.009 | L7: PASS | M7: DP=2326;VDB=0.00172406;SGB=-0.693147;RPB=0.979767;MQB=0;MQSB=1.15267e-24;BQB=0.997508;MQ0F=0;AF1=0.5;AC1=1;DP4=442,200,803,283;MQ=35;FQ=225.007;PV4=0.0230899,0.31345,0,1;ANN=G|synonymous_variant|LOW|NS2|GENE_NS2|transcript|TRANSCRIPT_NS2|protein_coding|1/1|c.1245A>G|p.Thr415Thr|1245/2394|1245/2394|415/797||WARNING_TRANSCRIPT_NO_START_CODON,G|upstream_gene_variant|MODIFIER|NS3|GENE_NS3|transcript|TRANSCRIPT_NS3|protein_coding||c.-1150A>G|||||1150|WARNING_TRANSCRIPT_NO_START_CODON,G|upstream_gene_variant|MODIFIER|NS4|GENE_NS4|transcript|TRANSCRIPT_NS4|protein_coding||c.-2740A>G|||||2740|WARNING_TRANSCRIPT_NO_START_CODON,G|upstream_gene_variant|MODIFIER|capsid|GENE_capsid|transcript|TRANSCRIPT_capsid|protein_coding||c.-4641A>G|||||4641|WARNING_TRANSCRIPT_NO_STOP_CODON,G|downstream_gene_variant|MODIFIER|NS1|GENE_NS1|transcript|TRANSCRIPT_NS1|protein_coding||c.*1245A>G|||||1245|WARNING_TRANSCRIPT_NO_STOP_CODON,G|non_coding_transcript_variant|MODIFIER|EDEN.1|null|transcript|EDEN.1|protein_coding||||||||WARNING_TRANSCRIPT_NO_START_CODON | N7: LOW | O7: Synonymous | P7: GT:PL | Q7: 0/1:255,0,255
A8: KP164568_BHI3734_H804698_2014_08_26_Human_Brazil | B8: 2960 | C8: . | D8: T | E8: 826 | F8: =E8*100/J8 -> 34.67674223 | G8: C | H8: 1556 | I8: =H8*100/J8 -> 65.32325777 | J8: =H8+E8 -> 2382 | K8: 225.009 | L8: PASS | M8: DP=2361;VDB=0.999999;SGB=-0.693147;RPB=0.897425;MQB=0;MQSB=3.94529e-21;BQB=0.625739;MQ0F=0;AF1=0.5;AC1=1;DP4=408,200,764,395;MQ=34;FQ=225.007;PV4=0.633703,1,0,1;ANN=C|synonymous_variant|LOW|NS2|GENE_NS2|transcript|TRANSCRIPT_NS2|protein_coding|1/1|c.1278T>C|p.Leu426Leu|1278/2394|1278/2394|426/797||WARNING_TRANSCRIPT_NO_START_CODON,C|upstream_gene_variant|MODIFIER|NS3|GENE_NS3|transcript|TRANSCRIPT_NS3|protein_coding||c.-1117T>C|||||1117|WARNING_TRANSCRIPT_NO_START_CODON,C|upstream_gene_variant|MODIFIER|NS4|GENE_NS4|transcript|TRANSCRIPT_NS4|protein_coding||c.-2707T>C|||||2707|WARNING_TRANSCRIPT_NO_START_CODON,C|upstream_gene_variant|MODIFIER|capsid|GENE_capsid|transcript|TRANSCRIPT_capsid|protein_coding||c.-4608T>C|||||4608|WARNING_TRANSCRIPT_NO_STOP_CODON,C|downstream_gene_variant|MODIFIER|NS1|GENE_NS1|transcript|TRANSCRIPT_NS1|protein_coding||c.*1278T>C|||||1278|WARNING_TRANSCRIPT_NO_STOP_CODON,C|non_coding_transcript_variant|MODIFIER|EDEN.1|null|transcript|EDEN.1|protein_coding||||||||WARNING_TRANSCRIPT_NO_START_CODON | N8: LOW | O8: Synonymous | P8: GT:PL | Q8: 0/1:255,0,255
A9: KP164568_BHI3734_H804698_2014_08_26_Human_Brazil | B9: 2963 | C9: . | D9: C | E9: 811 | F9: =E9*100/J9 -> 34.30626058 | G9: T | H9: 1553 | I9: =H9*100/J9 -> 65.69373942 | J9: =H9+E9 -> 2364 | K9: 225.009 | L9: PASS | M9: DP=2343;VDB=1;SGB=-0.693147;RPB=0.966906;MQB=0;MQSB=1.42483e-24;BQB=0.290736;MQ0F=0;AF1=0.5;AC1=1;DP4=378,229,748,407;MQ=35;FQ=225.007;PV4=0.321388,1,0,1;ANN=T|synonymous_variant|LOW|NS2|GENE_NS2|transcript|TRANSCRIPT_NS2|protein_coding|1/1|c.1281C>T|p.Ser427Ser|1281/2394|1281/2394|427/797||WARNING_TRANSCRIPT_NO_START_CODON,T|upstream_gene_variant|MODIFIER|NS3|GENE_NS3|transcript|TRANSCRIPT_NS3|protein_coding||c.-1114C>T|||||1114|WARNING_TRANSCRIPT_NO_START_CODON,T|upstream_gene_variant|MODIFIER|NS4|GENE_NS4|transcript|TRANSCRIPT_NS4|protein_coding||c.-2704C>T|||||2704|WARNING_TRANSCRIPT_NO_START_CODON,T|upstream_gene_variant|MODIFIER|capsid|GENE_capsid|transcript|TRANSCRIPT_capsid|protein_coding||c.-4605C>T|||||4605|WARNING_TRANSCRIPT_NO_STOP_CODON,T|downstream_gene_variant|MODIFIER|NS1|GENE_NS1|transcript|TRANSCRIPT_NS1|protein_coding||c.*1281C>T|||||1281|WARNING_TRANSCRIPT_NO_STOP_CODON,T|non_coding_transcript_variant|MODIFIER|EDEN.1|null|transcript|EDEN.1|protein_coding||||||||WARNING_TRANSCRIPT_NO_START_CODON | N9: LOW | O9: Synonymous | P9: GT:PL | Q9: 0/1:255,0,255
A10: KP164568_BHI3734_H804698_2014_08_26_Human_Brazil | B10: 3014 | C10: . | D10: A | E10: 353 | F10: =E10*100/J10 -> 34.43902439 | G10: G | H10: 672 | I10: =H10*100/J10 -> 65.56097561 | J10: =H10+E10 -> 1025 | K10: 225.009 | L10: PASS | M10: DP=1011;VDB=0;SGB=-0.693147;RPB=0.00612225;MQB=0;MQSB=7.67408e-12;BQB=0.291435;MQ0F=0;AF1=0.5;AC1=1;DP4=159,130,322,244;MQ=34;FQ=225.007;PV4=0.610623,1,0,0.00239026;ANN=G|synonymous_variant|LOW|NS2|GENE_NS2|transcript|TRANSCRIPT_NS2|protein_coding|1/1|c.1332A>G|p.Lys444Lys|1332/2394|1332/2394|444/797||WARNING_TRANSCRIPT_NO_START_CODON,G|upstream_gene_variant|MODIFIER|NS3|GENE_NS3|transcript|TRANSCRIPT_NS3|protein_coding||c.-1063A>G|||||1063|WARNING_TRANSCRIPT_NO_START_CODON,G|upstream_gene_variant|MODIFIER|NS4|GENE_NS4|transcript|TRANSCRIPT_NS4|protein_coding||c.-2653A>G|||||2653|WARNING_TRANSCRIPT_NO_START_CODON,G|upstream_gene_variant|MODIFIER|capsid|GENE_capsid|transcript|TRANSCRIPT_capsid|protein_coding||c.-4554A>G|||||4554|WARNING_TRANSCRIPT_NO_STOP_CODON,G|downstream_gene_variant|MODIFIER|NS1|GENE_NS1|transcript|TRANSCRIPT_NS1|protein_coding||c.*1332A>G|||||1332|WARNING_TRANSCRIPT_NO_STOP_CODON,G|non_coding_transcript_variant|MODIFIER|EDEN.1|null|transcript|EDEN.1|protein_coding||||||||WARNING_TRANSCRIPT_NO_START_CODON | N10: LOW | O10: Synonymous | P10: GT:PL | Q10: 0/1:255,0,255
A11: KP164568_BHI3734_H804698_2014_08_26_Human_Brazil | B11: 3023 | C11: . | D11: C | E11: 288 | F11: =E11*100/J11 -> 41.08416548 | G11: T | H11: 413 | I11: =H11*100/J11 -> 58.91583452 | J11: =H11+E11 -> 701 | K11: 225.009 | L11: PASS | M11: DP=689;VDB=0;SGB=-0.693147;RPB=3.5103e-06;MQB=3.78351e-44;MQSB=0.000390711;BQB=0.392477;MQ0F=0;AF1=0.5;AC1=1;DP4=124,109,165,191;MQ=34;FQ=225.007;PV4=0.109738,0.0536862,1.4013e-45,2.44668e-07;ANN=T|synonymous_variant|LOW|NS2|GENE_NS2|transcript|TRANSCRIPT_NS2|protein_coding|1/1|c.1341C>T|p.Ile447Ile|1341/2394|1341/2394|447/797||WARNING_TRANSCRIPT_NO_START_CODON,T|upstream_gene_variant|MODIFIER|NS3|GENE_NS3|transcript|TRANSCRIPT_NS3|protein_coding||c.-1054C>T|||||1054|WARNING_TRANSCRIPT_NO_START_CODON,T|upstream_gene_variant|MODIFIER|NS4|GENE_NS4|transcript|TRANSCRIPT_NS4|protein_coding||c.-2644C>T|||||2644|WARNING_TRANSCRIPT_NO_START_CODON,T|upstream_gene_variant|MODIFIER|capsid|GENE_capsid|transcript|TRANSCRIPT_capsid|protein_coding||c.-4545C>T|||||4545|WARNING_TRANSCRIPT_NO_STOP_CODON,T|downstream_gene_variant|MODIFIER|NS1|GENE_NS1|transcript|TRANSCRIPT_NS1|protein_coding||c.*1341C>T|||||1341|WARNING_TRANSCRIPT_NO_STOP_CODON,T|non_coding_transcript_variant|MODIFIER|EDEN.1|null|transcript|EDEN.1|protein_coding||||||||WARNING_TRANSCRIPT_NO_START_CODON | N11: LOW | O11: Synonymous | P11: GT:PL | Q11: 0/1:255,0,255
A12: KP164568_BHI3734_H804698_2014_08_26_Human_Brazil | B12: 3044 | C12: . | D12: T | E12: 436 | F12: =E12*100/J12 -> 47.85949506 | G12: C | H12: 475 | I12: =H12*100/J12 -> 52.14050494 | J12: =H12+E12 -> 911 | K12: 225.009 | L12: PASS | M12: DP=906;VDB=0;SGB=-0.693147;RPB=0.551028;MQB=0;MQSB=0.22689;BQB=0.974816;MQ0F=0.00110375;AF1=0.5;AC1=1;DP4=123,255,106,316;MQ=35;FQ=225.007;PV4=0.0230614,0.285009,0,0.0616974;ANN=C|synonymous_variant|LOW|NS2|GENE_NS2|transcript|TRANSCRIPT_NS2|protein_coding|1/1|c.1362T>C|p.His454His|1362/2394|1362/2394|454/797||WARNING_TRANSCRIPT_NO_START_CODON,C|upstream_gene_variant|MODIFIER|NS3|GENE_NS3|transcript|TRANSCRIPT_NS3|protein_coding||c.-1033T>C|||||1033|WARNING_TRANSCRIPT_NO_START_CODON,C|upstream_gene_variant|MODIFIER|NS4|GENE_NS4|transcript|TRANSCRIPT_NS4|protein_coding||c.-2623T>C|||||2623|WARNING_TRANSCRIPT_NO_START_CODON,C|upstream_gene_variant|MODIFIER|capsid|GENE_capsid|transcript|TRANSCRIPT_capsid|protein_coding||c.-4524T>C|||||4524|WARNING_TRANSCRIPT_NO_STOP_CODON,C|downstream_gene_variant|MODIFIER|NS1|GENE_NS1|transcript|TRANSCRIPT_NS1|protein_coding||c.*1362T>C|||||1362|WARNING_TRANSCRIPT_NO_STOP_CODON,C|non_coding_transcript_variant|MODIFIER|EDEN.1|null|transcript|EDEN.1|protein_coding||||||||WARNING_TRANSCRIPT_NO_START_CODON | N12: LOW | O12: Synonymous | P12: GT:PL | Q12: 0/1:255,0,255
A13: KP164568_BHI3734_H804698_2014_08_26_Human_Brazil | B13: 3050 | C13: . | D13: A | E13: 586 | F13: =E13*100/J13 -> 50.77989601 | G13: G | H13: 568 | I13: =H13*100/J13 -> 49.22010399 | J13: =H13+E13 -> 1154 | K13: 225.009 | L13: PASS | M13: DP=1146;VDB=0;SGB=-0.693147;RPB=0.899394;MQB=0;MQSB=0.563853;BQB=0.918894;MQ0F=0.0008726;AF1=0.5;AC1=1;DP4=199,290,142,343;MQ=35;FQ=225.007;PV4=0.000216535,0.221261,0,0.277407;ANN=G|synonymous_variant|LOW|NS2|GENE_NS2|transcript|TRANSCRIPT_NS2|protein_coding|1/1|c.1368A>G|p.Ser456Ser|1368/2394|1368/2394|456/797||WARNING_TRANSCRIPT_NO_START_CODON,G|upstream_gene_variant|MODIFIER|NS3|GENE_NS3|transcript|TRANSCRIPT_NS3|protein_coding||c.-1027A>G|||||1027|WARNING_TRANSCRIPT_NO_START_CODON,G|upstream_gene_variant|MODIFIER|NS4|GENE_NS4|transcript|TRANSCRIPT_NS4|protein_coding||c.-2617A>G|||||2617|WARNING_TRANSCRIPT_NO_START_CODON,G|upstream_gene_variant|MODIFIER|capsid|GENE_capsid|transcript|TRANSCRIPT_capsid|protein_coding||c.-4518A>G|||||4518|WARNING_TRANSCRIPT_NO_STOP_CODON,G|downstream_gene_variant|MODIFIER|NS1|GENE_NS1|transcript|TRANSCRIPT_NS1|protein_coding||c.*1368A>G|||||1368|WARNING_TRANSCRIPT_NO_STOP_CODON,G|non_coding_transcript_variant|MODIFIER|EDEN.1|null|transcript|EDEN.1|protein_coding||||||||WARNING_TRANSCRIPT_NO_START_CODON | N13: LOW | O13: Synonymous | P13: GT:PL | Q13: 0/1:255,0,255
A14: KP164568_BHI3734_H804698_2014_08_26_Human_Brazil | B14: 3078 | C14: . | D14: A | E14: 883 | F14: =E14*100/J14 -> 48.30415755 | G14: G | H14: 945 | I14: =H14*100/J14 -> 51.69584245 | J14: =H14+E14 -> 1828 | K14: 225.009 | L14: PASS | M14: DP=1819;VDB=0.948109;SGB=-0.693147;RPB=0.172794;MQB=0;MQSB=0.000439537;BQB=0.0925926;MQ0F=0.00109951;AF1=0.5;AC1=1;DP4=292,374,164,618;MQ=33;FQ=225.007;PV4=1.07217e-20,3.42692e-06,0,2.88688e-06;ANN=G|missense_variant|MODERATE|NS2|GENE_NS2|transcript|TRANSCRIPT_NS2|protein_coding|1/1|c.1396A>G|p.Met466Val|1396/2394|1396/2394|466/797||WARNING_TRANSCRIPT_NO_START_CODON,G|upstream_gene_variant|MODIFIER|NS3|GENE_NS3|transcript|TRANSCRIPT_NS3|protein_coding||c.-999A>G|||||999|WARNING_TRANSCRIPT_NO_START_CODON,G|upstream_gene_variant|MODIFIER|NS4|GENE_NS4|transcript|TRANSCRIPT_NS4|protein_coding||c.-2589A>G|||||2589|WARNING_TRANSCRIPT_NO_START_CODON,G|upstream_gene_variant|MODIFIER|capsid|GENE_capsid|transcript|TRANSCRIPT_capsid|protein_coding||c.-4490A>G|||||4490|WARNING_TRANSCRIPT_NO_STOP_CODON,G|downstream_gene_variant|MODIFIER|NS1|GENE_NS1|transcript|TRANSCRIPT_NS1|protein_coding||c.*1396A>G|||||1396|WARNING_TRANSCRIPT_NO_STOP_CODON,G|non_coding_transcript_variant|MODIFIER|EDEN.1|null|transcript|EDEN.1|protein_coding||||||||WARNING_TRANSCRIPT_NO_START_CODON | N14: MODERATE | O14: Non-synonymous | P14: GT:PL | Q14: 0/1:255,0,255
A15: KP164568_BHI3734_H804698_2014_08_26_Human_Brazil | B15: 3089 | C15: . | D15: T | E15: 843 | F15: =E15*100/J15 -> 51.71779141 | G15: C | H15: 787 | I15: =H15*100/J15 -> 48.28220859 | J15: =H15+E15 -> 1630 | K15: 209.009 | L15: PASS | M15: DP=1623;VDB=0.0445604;SGB=-0.693147;RPB=0.0252263;MQB=0;MQSB=5.49992e-07;BQB=0.0293021;MQ0F=0.00123229;AF1=0.5;AC1=1;DP4=324,286,150,482;MQ=33;FQ=211.91;PV4=7.73902e-27,1.23405e-06,0,1;ANN=C|synonymous_variant|LOW|NS2|GENE_NS2|transcript|TRANSCRIPT_NS2|protein_coding|1/1|c.1407T>C|p.Asp469Asp|1407/2394|1407/2394|469/797||WARNING_TRANSCRIPT_NO_START_CODON,C|upstream_gene_variant|MODIFIER|NS3|GENE_NS3|transcript|TRANSCRIPT_NS3|protein_coding||c.-988T>C|||||988|WARNING_TRANSCRIPT_NO_START_CODON,C|upstream_gene_variant|MODIFIER|NS4|GENE_NS4|transcript|TRANSCRIPT_NS4|protein_coding||c.-2578T>C|||||2578|WARNING_TRANSCRIPT_NO_START_CODON,C|upstream_gene_variant|MODIFIER|capsid|GENE_capsid|transcript|TRANSCRIPT_capsid|protein_coding||c.-4479T>C|||||4479|WARNING_TRANSCRIPT_NO_STOP_CODON,C|downstream_gene_variant|MODIFIER|NS1|GENE_NS1|transcript|TRANSCRIPT_NS1|protein_coding||c.*1407T>C|||||1407|WARNING_TRANSCRIPT_NO_STOP_CODON,C|non_coding_transcript_variant|MODIFIER|EDEN.1|null|transcript|EDEN.1|protein_coding||||||||WARNING_TRANSCRIPT_NO_START_CODON | N15: LOW | O15: Synonymous | P15: GT:PL | Q15: 0/1:239,0,255
A16: KP164568_BHI3734_H804698_2014_08_26_Human_Brazil | B16: 3092 | C16: . | D16: A | E16: 794 | F16: =E16*100/J16 -> 52.58278146 | G16: G | H16: 716 | I16: =H16*100/J16 -> 47.41721854 | J16: =H16+E16 -> 1510 | K16: 176.009 | L16: PASS | M16: DP=1503;VDB=5.39659e-06;SGB=-0.693147;RPB=4.18239e-06;MQB=0;MQSB=2.32245e-06;BQB=0.211967;MQ0F=0;AF1=0.5;AC1=1;DP4=311,264,140,432;MQ=33;FQ=179.017;PV4=6.27164e-25,1.3117e-05,0,1;ANN=G|synonymous_variant|LOW|NS2|GENE_NS2|transcript|TRANSCRIPT_NS2|protein_coding|1/1|c.1410A>G|p.Thr470Thr|1410/2394|1410/2394|470/797||WARNING_TRANSCRIPT_NO_START_CODON,G|upstream_gene_variant|MODIFIER|NS3|GENE_NS3|transcript|TRANSCRIPT_NS3|protein_coding||c.-985A>G|||||985|WARNING_TRANSCRIPT_NO_START_CODON,G|upstream_gene_variant|MODIFIER|NS4|GENE_NS4|transcript|TRANSCRIPT_NS4|protein_coding||c.-2575A>G|||||2575|WARNING_TRANSCRIPT_NO_START_CODON,G|upstream_gene_variant|MODIFIER|capsid|GENE_capsid|transcript|TRANSCRIPT_capsid|protein_coding||c.-4476A>G|||||4476|WARNING_TRANSCRIPT_NO_STOP_CODON,G|downstream_gene_variant|MODIFIER|NS1|GENE_NS1|transcript|TRANSCRIPT_NS1|protein_coding||c.*1410A>G|||||1410|WARNING_TRANSCRIPT_NO_STOP_CODON,G|non_coding_transcript_variant|MODIFIER|EDEN.1|null|transcript|EDEN.1|protein_coding||||||||WARNING_TRANSCRIPT_NO_START_CODON | N16: LOW | O16: Synonymous | P16: GT:PL | Q16: 0/1:206,0,255
A17: KP164568_BHI3734_H804698_2014_08_26_Human_Brazil | B17: 3110 | C17: . | D17: T | E17: 711 | F17: =E17*100/J17 -> 54.44104135 | G17: C | H17: 595 | I17: =H17*100/J17 -> 45.55895865 | J17: =H17+E17 -> 1306 | K17: 225.009 | L17: PASS | M17: DP=1299;VDB=6.6313e-19;SGB=-0.693147;RPB=4.17194e-16;MQB=0;MQSB=7.41771e-10;BQB=0.210228;MQ0F=0.00153965;AF1=0.5;AC1=1;DP4=276,259,121,351;MQ=33;FQ=225.007;PV4=2.79399e-17,0.0993305,0,1;ANN=C|synonymous_variant|LOW|NS2|GENE_NS2|transcript|TRANSCRIPT_NS2|protein_coding|1/1|c.1428T>C|p.Asn476Asn|1428/2394|1428/2394|476/797||WARNING_TRANSCRIPT_NO_START_CODON,C|upstream_gene_variant|MODIFIER|NS3|GENE_NS3|transcript|TRANSCRIPT_NS3|protein_coding||c.-967T>C|||||967|WARNING_TRANSCRIPT_NO_START_CODON,C|upstream_gene_variant|MODIFIER|NS4|GENE_NS4|transcript|TRANSCRIPT_NS4|protein_coding||c.-2557T>C|||||2557|WARNING_TRANSCRIPT_NO_START_CODON,C|upstream_gene_variant|MODIFIER|capsid|GENE_capsid|transcript|TRANSCRIPT_capsid|protein_coding||c.-4458T>C|||||4458|WARNING_TRANSCRIPT_NO_STOP_CODON,C|downstream_gene_variant|MODIFIER|NS1|GENE_NS1|transcript|TRANSCRIPT_NS1|protein_coding||c.*1428T>C|||||1428|WARNING_TRANSCRIPT_NO_STOP_CODON,C|non_coding_transcript_variant|MODIFIER|EDEN.1|null|transcript|EDEN.1|protein_coding||||||||WARNING_TRANSCRIPT_NO_START_CODON | N17: LOW | O17: Synonymous | P17: GT:PL | Q17: 0/1:255,0,255
A18: KP164568_BHI3734_H804698_2014_08_26_Human_Brazil | B18: 3116 | C18: . | D18: T | E18: 500 | F18: =E18*100/J18 -> 46.46840149 | G18: C | H18: 576 | I18: =H18*100/J18 -> 53.53159851 | J18: =H18+E18 -> 1076 | K18: 225.009 | L18: PASS | M18: DP=1071;VDB=8.40611e-28;SGB=-0.693147;RPB=9.44514e-06;MQB=0;MQSB=2.20047e-08;BQB=0.00225038;MQ0F=0.00186741;AF1=0.5;AC1=1;DP4=195,198,117,341;MQ=32;FQ=225.007;PV4=4.15852e-13,1,0,1;ANN=C|synonymous_variant|LOW|NS2|GENE_NS2|transcript|TRANSCRIPT_NS2|protein_coding|1/1|c.1434T>C|p.Cys478Cys|1434/2394|1434/2394|478/797||WARNING_TRANSCRIPT_NO_START_CODON,C|upstream_gene_variant|MODIFIER|NS3|GENE_NS3|transcript|TRANSCRIPT_NS3|protein_coding||c.-961T>C|||||961|WARNING_TRANSCRIPT_NO_START_CODON,C|upstream_gene_variant|MODIFIER|NS4|GENE_NS4|transcript|TRANSCRIPT_NS4|protein_coding||c.-2551T>C|||||2551|WARNING_TRANSCRIPT_NO_START_CODON,C|upstream_gene_variant|MODIFIER|capsid|GENE_capsid|transcript|TRANSCRIPT_capsid|protein_coding||c.-4452T>C|||||4452|WARNING_TRANSCRIPT_NO_STOP_CODON,C|downstream_gene_variant|MODIFIER|NS1|GENE_NS1|transcript|TRANSCRIPT_NS1|protein_coding||c.*1434T>C|||||1434|WARNING_TRANSCRIPT_NO_STOP_CODON,C|non_coding_transcript_variant|MODIFIER|EDEN.1|null|transcript|EDEN.1|protein_coding||||||||WARNING_TRANSCRIPT_NO_START_CODON | N18: LOW | O18: Synonymous | P18: GT:PL | Q18: 0/1:255,0,255
A19: KP164568_BHI3734_H804698_2014_08_26_Human_Brazil | B19: 3819 | C19: . | D19: T | E19: 11 | F19: =E19*100/J19 -> 5.729166667 | G19: C,A | H19: 181 | I19: =H19*100/J19 -> 94.27083333 | J19: =H19+E19 -> 192 | K19: 204.999 | L19: PASS | M19: DP=220;VDB=0;SGB=-0.693147;RPB=0.00525894;MQB=0.0314107;BQB=0.384601;MQ0F=0.00909091;AF1=1;AC1=2;DP4=7,0,167,0;MQ=40;FQ=-281.989;PV4=1,0.0262835,1,0.138095;ANN=A|missense_variant|MODERATE|NS2|GENE_NS2|transcript|TRANSCRIPT_NS2|protein_coding|1/1|c.2137T>A|p.Leu713Met|2137/2394|2137/2394|713/797||WARNING_TRANSCRIPT_NO_START_CODON,C|synonymous_variant|LOW|NS2|GENE_NS2|transcript|TRANSCRIPT_NS2|protein_coding|1/1|c.2137T>C|p.Leu713Leu|2137/2394|2137/2394|713/797||WARNING_TRANSCRIPT_NO_START_CODON,C|upstream_gene_variant|MODIFIER|NS3|GENE_NS3|transcript|TRANSCRIPT_NS3|protein_coding||c.-258T>C|||||258|WARNING_TRANSCRIPT_NO_START_CODON,A|upstream_gene_variant|MODIFIER|NS3|GENE_NS3|transcript|TRANSCRIPT_NS3|protein_coding||c.-258T>A|||||258|WARNING_TRANSCRIPT_NO_START_CODON,C|upstream_gene_variant|MODIFIER|NS4|GENE_NS4|transcript|TRANSCRIPT_NS4|protein_coding||c.-1848T>C|||||1848|WARNING_TRANSCRIPT_NO_START_CODON,A|upstream_gene_variant|MODIFIER|NS4|GENE_NS4|transcript|TRANSCRIPT_NS4|protein_coding||c.-1848T>A|||||1848|WARNING_TRANSCRIPT_NO_START_CODON,C|upstream_gene_variant|MODIFIER|capsid|GENE_capsid|transcript|TRANSCRIPT_capsid|protein_coding||c.-3749T>C|||||3749|WARNING_TRANSCRIPT_NO_STOP_CODON,A|upstream_gene_variant|MODIFIER|capsid|GENE_capsid|transcript|TRANSCRIPT_capsid|protein_coding||c.-3749T>A|||||3749|WARNING_TRANSCRIPT_NO_STOP_CODON,C|upstream_gene_variant|MODIFIER|E3|GENE_E3|transcript|TRANSCRIPT_E3|protein_coding||c.-4541T>C|||||4541|WARNING_TRANSCRIPT_NO_START_CODON,A|upstream_gene_variant|MODIFIER|E3|GENE_E3|transcript|TRANSCRIPT_E3|protein_coding||c.-4541T>A|||||4541|WARNING_TRANSCRIPT_NO_START_CODON,C|upstream_gene_variant|MODIFIER|E2|GENE_E2|transcript|TRANSCRIPT_E2|protein_coding||c.-4724T>C|||||4724|WARNING_TRANSCRIPT_NO_START_CODON,A|upstream_gene_variant|MODIFIER|E2|GENE_E2|transcript|TRANSCRIPT_E2|protein_coding||c.-4724T>A|||||4724|WARNING_TRANSCRIPT_NO_START_CODON,C|downstream_gene_variant|MODIFIER|NS1|GENE_NS1|transcript|TRANSCRIPT_NS1|protein_coding||c.*2137T>C|||||2137|WARNING_TRANSCRIPT_NO_STOP_CODON,A|downstream_gene_variant|MODIFIER|NS1|GENE_NS1|transcript|TRANSCRIPT_NS1|protein_coding||c.*2137T>A|||||2137|WARNING_TRANSCRIPT_NO_STOP_CODON,C|non_coding_transcript_variant|MODIFIER|EDEN.1|null|transcript|EDEN.1|protein_coding||||||||WARNING_TRANSCRIPT_NO_START_CODON,A|non_coding_transcript_variant|MODIFIER|EDEN.1|null|transcript|EDEN.1|protein_coding||||||||WARNING_TRANSCRIPT_NO_START_CODON | N19: MODERATE | O19: Non-synonymous | P19: GT:PL | Q19: 1/1:238,255,0,149,126,176
A20: KP164568_BHI3734_H804698_2014_08_26_Human_Brazil | B20: 5204 | C20: . | D20: A | E20: 1679 | F20: =E20*100/J20 -> 50.66385033 | G20: C | H20: 1635 | I20: =H20*100/J20 -> 49.33614967 | J20: =H20+E20 -> 3314 | K20: 225.009 | L20: PASS | M20: DP=3296;VDB=0.996682;SGB=-0.693147;RPB=1.59702e-35;MQB=0.779079;MQSB=0.806565;BQB=9.79165e-05;MQ0F=0.000606796;AF1=0.5;AC1=1;DP4=672,629,876,414;MQ=42;FQ=225.007;PV4=3.35238e-17,0.000736041,0.00252994,0.0118567;ANN=C|synonymous_variant|LOW|NS3|GENE_NS3|transcript|TRANSCRIPT_NS3|protein_coding|1/1|c.1128A>C|p.Thr376Thr|1128/1572|1128/1572|376/523||WARNING_TRANSCRIPT_NO_START_CODON,C|upstream_gene_variant|MODIFIER|NS4|GENE_NS4|transcript|TRANSCRIPT_NS4|protein_coding||c.-463A>C|||||463|WARNING_TRANSCRIPT_NO_START_CODON,C|upstream_gene_variant|MODIFIER|capsid|GENE_capsid|transcript|TRANSCRIPT_capsid|protein_coding||c.-2364A>C|||||2364|WARNING_TRANSCRIPT_NO_STOP_CODON,C|upstream_gene_variant|MODIFIER|E3|GENE_E3|transcript|TRANSCRIPT_E3|protein_coding||c.-3156A>C|||||3156|WARNING_TRANSCRIPT_NO_START_CODON,C|upstream_gene_variant|MODIFIER|E2|GENE_E2|transcript|TRANSCRIPT_E2|protein_coding||c.-3339A>C|||||3339|WARNING_TRANSCRIPT_NO_START_CODON,C|upstream_gene_variant|MODIFIER|6K|GENE_6K|transcript|TRANSCRIPT_6K|protein_coding||c.-4608A>C|||||4608|WARNING_TRANSCRIPT_NO_START_CODON,C|upstream_gene_variant|MODIFIER|E1|GENE_E1|transcript|TRANSCRIPT_E1|protein_coding||c.-4791A>C|||||4791|WARNING_TRANSCRIPT_NO_START_CODON,C|downstream_gene_variant|MODIFIER|NS1|GENE_NS1|transcript|TRANSCRIPT_NS1|protein_coding||c.*3522A>C|||||3522|WARNING_TRANSCRIPT_NO_STOP_CODON,C|downstream_gene_variant|MODIFIER|NS2|GENE_NS2|transcript|TRANSCRIPT_NS2|protein_coding||c.*1128A>C|||||1128|WARNING_TRANSCRIPT_NO_START_CODON,C|non_coding_transcript_variant|MODIFIER|EDEN.1|null|transcript|EDEN.1|protein_coding||||||||WARNING_TRANSCRIPT_NO_START_CODON | N20: LOW | O20: Synonymous | P20: GT:PL | Q20: 0/1:255,0,255
A21: KP164568_BHI3734_H804698_2014_08_26_Human_Brazil | B21: 5321 | C21: . | D21: C | E21: 951 | F21: =E21*100/J21 -> 34.72070099 | G21: T | H21: 1788 | I21: =H21*100/J21 -> 65.27929901 | J21: =H21+E21 -> 2739 | K21: 225.009 | L21: PASS | M21: DP=2722;VDB=0.991274;SGB=-0.693147;RPB=9.18411e-08;MQB=0.890937;MQSB=0.758999;BQB=0.0468365;MQ0F=0;AF1=0.5;AC1=1;DP4=246,473,376,1043;MQ=42;FQ=204.996;PV4=0.000233313,0.00724187,0.211455,0.0453798;ANN=T|synonymous_variant|LOW|NS3|GENE_NS3|transcript|TRANSCRIPT_NS3|protein_coding|1/1|c.1245C>T|p.Asp415Asp|1245/1572|1245/1572|415/523||WARNING_TRANSCRIPT_NO_START_CODON,T|upstream_gene_variant|MODIFIER|NS4|GENE_NS4|transcript|TRANSCRIPT_NS4|protein_coding||c.-346C>T|||||346|WARNING_TRANSCRIPT_NO_START_CODON,T|upstream_gene_variant|MODIFIER|capsid|GENE_capsid|transcript|TRANSCRIPT_capsid|protein_coding||c.-2247C>T|||||2247|WARNING_TRANSCRIPT_NO_STOP_CODON,T|upstream_gene_variant|MODIFIER|E3|GENE_E3|transcript|TRANSCRIPT_E3|protein_coding||c.-3039C>T|||||3039|WARNING_TRANSCRIPT_NO_START_CODON,T|upstream_gene_variant|MODIFIER|E2|GENE_E2|transcript|TRANSCRIPT_E2|protein_coding||c.-3222C>T|||||3222|WARNING_TRANSCRIPT_NO_START_CODON,T|upstream_gene_variant|MODIFIER|6K|GENE_6K|transcript|TRANSCRIPT_6K|protein_coding||c.-4491C>T|||||4491|WARNING_TRANSCRIPT_NO_START_CODON,T|upstream_gene_variant|MODIFIER|E1|GENE_E1|transcript|TRANSCRIPT_E1|protein_coding||c.-4674C>T|||||4674|WARNING_TRANSCRIPT_NO_START_CODON,T|downstream_gene_variant|MODIFIER|NS1|GENE_NS1|transcript|TRANSCRIPT_NS1|protein_coding||c.*3639C>T|||||3639|WARNING_TRANSCRIPT_NO_STOP_CODON,T|downstream_gene_variant|MODIFIER|NS2|GENE_NS2|transcript|TRANSCRIPT_NS2|protein_coding||c.*1245C>T|||||1245|WARNING_TRANSCRIPT_NO_START_CODON,T|non_coding_transcript_variant|MODIFIER|EDEN.1|null|transcript|EDEN.1|protein_coding||||||||WARNING_TRANSCRIPT_NO_START_CODON | N21: LOW | O21: Synonymous | P21: GT:PL | Q21: 0/1:255,0,232
A22: KP164568_BHI3734_H804698_2014_08_26_Human_Brazil | B22: 5861 | D22: G | E22: 617 | F22: =E22*100/J22 -> 76.74129353 | G22: A | H22: 187 | I22: =H22*100/J22 -> 23.25870647 | J22: =H22+E22 -> 804 | N22: LOW | O22: Synonymous
A23: KP164568_BHI3734_H804698_2014_08_26_Human_Brazil | B23: 5864 | D23: G | E23: 585 | F23: =E23*100/J23 -> 75.87548638 | G23: A | H23: 186 | I23: =H23*100/J23 -> 24.12451362 | J23: =H23+E23 -> 771 | N23: LOW | O23: Synonymous
A24: KP164568_BHI3734_H804698_2014_08_26_Human_Brazil | B24: 5873 | D24: A | E24: 521 | F24: =E24*100/J24 -> 72.56267409 | G24: G | H24: 197 | I24: =H24*100/J24 -> 27.43732591 | J24: =H24+E24 -> 718 | N24: LOW | O24: Synonymous
A25: KP164568_BHI3734_H804698_2014_08_26_Human_Brazil | B25: 5879 | D25: C | E25: 472 | F25: =E25*100/J25 -> 71.40695915 | G25: T | H25: 189 | I25: =H25*100/J25 -> 28.59304085 | J25: =H25+E25 -> 661 | N25: LOW | O25: Synonymous
A26: KP164568_BHI3734_H804698_2014_08_26_Human_Brazil | B26: 5954 | D26: T | E26: 2 | F26: =E26*100/J26 -> 0.7299270073 | G26: G | H26: 272 | I26: =H26*100/J26 -> 99.27007299 | J26: =H26+E26 -> 274 | N26: LOW | O26: Synonymous
A27: KP164568_BHI3734_H804698_2014_08_26_Human_Brazil | B27: 5960 | C27: . | D27: C | E27: 2 | F27: =E27*100/J27 -> 0.5154639175 | G27: T | H27: 386 | I27: =H27*100/J27 -> 99.48453608 | J27: =H27+E27 -> 388 | K27: 28.0035 | L27: PASS | M27: DP=385;VDB=1.70985e-26;SGB=-0.693147;RPB=0;MQB=0;MQSB=0.831821;BQB=0.760383;MQ0F=0.594805;AF1=1;AC1=2;DP4=2,0,275,38;MQ=7;FQ=-281.989;PV4=1,1,1.57095e-24,0.161872;ANN=T|synonymous_variant|LOW|NS4|GENE_NS4|transcript|TRANSCRIPT_NS4|protein_coding|1/1|c.294C>T|p.Tyr98Tyr|294/1833|294/1833|98/610||WARNING_TRANSCRIPT_NO_START_CODON,T|upstream_gene_variant|MODIFIER|capsid|GENE_capsid|transcript|TRANSCRIPT_capsid|protein_coding||c.-1608C>T|||||1608|WARNING_TRANSCRIPT_NO_STOP_CODON,T|upstream_gene_variant|MODIFIER|E3|GENE_E3|transcript|TRANSCRIPT_E3|protein_coding||c.-2400C>T|||||2400|WARNING_TRANSCRIPT_NO_START_CODON,T|upstream_gene_variant|MODIFIER|E2|GENE_E2|transcript|TRANSCRIPT_E2|protein_coding||c.-2583C>T|||||2583|WARNING_TRANSCRIPT_NO_START_CODON,T|upstream_gene_variant|MODIFIER|6K|GENE_6K|transcript|TRANSCRIPT_6K|protein_coding||c.-3852C>T|||||3852|WARNING_TRANSCRIPT_NO_START_CODON,T|upstream_gene_variant|MODIFIER|E1|GENE_E1|transcript|TRANSCRIPT_E1|protein_coding||c.-4035C>T|||||4035|WARNING_TRANSCRIPT_NO_START_CODON,T|downstream_gene_variant|MODIFIER|NS1|GENE_NS1|transcript|TRANSCRIPT_NS1|protein_coding||c.*4278C>T|||||4278|WARNING_TRANSCRIPT_NO_STOP_CODON,T|downstream_gene_variant|MODIFIER|NS2|GENE_NS2|transcript|TRANSCRIPT_NS2|protein_coding||c.*1884C>T|||||1884|WARNING_TRANSCRIPT_NO_START_CODON,T|downstream_gene_variant|MODIFIER|NS3|GENE_NS3|transcript|TRANSCRIPT_NS3|protein_coding||c.*312C>T|||||312|WARNING_TRANSCRIPT_NO_START_CODON,T|non_coding_transcript_variant|MODIFIER|EDEN.1|null|transcript|EDEN.1|protein_coding||||||||WARNING_TRANSCRIPT_NO_START_CODON | N27: LOW | O27: Synonymous | P27: GT:PL | Q27: 1/1:61,255,0
A28: KP164568_BHI3734_H804698_2014_08_26_Human_Brazil | B28: 5967 | C28: . | D28: A | E28: 2 | F28: =E28*100/J28 -> 0.3424657534 | G28: G | H28: 582 | I28: =H28*100/J28 -> 99.65753425 | J28: =H28+E28 -> 584 | K28: 68.9971 | L28: PASS | M28: DP=581;VDB=1.9103e-14;SGB=-0.693147;RPB=0.00218341;MQB=0.00218341;MQSB=0.0652526;BQB=0.962882;MQ0F=0.457831;AF1=1;AC1=2;DP4=2,0,413,45;MQ=9;FQ=-281.989;PV4=1,1,4.71162e-13,0.332792;ANN=G|missense_variant|MODERATE|NS4|GENE_NS4|transcript|TRANSCRIPT_NS4|protein_coding|1/1|c.301A>G|p.Thr101Ala|301/1833|301/1833|101/610||WARNING_TRANSCRIPT_NO_START_CODON,G|upstream_gene_variant|MODIFIER|capsid|GENE_capsid|transcript|TRANSCRIPT_capsid|protein_coding||c.-1601A>G|||||1601|WARNING_TRANSCRIPT_NO_STOP_CODON,G|upstream_gene_variant|MODIFIER|E3|GENE_E3|transcript|TRANSCRIPT_E3|protein_coding||c.-2393A>G|||||2393|WARNING_TRANSCRIPT_NO_START_CODON,G|upstream_gene_variant|MODIFIER|E2|GENE_E2|transcript|TRANSCRIPT_E2|protein_coding||c.-2576A>G|||||2576|WARNING_TRANSCRIPT_NO_START_CODON,G|upstream_gene_variant|MODIFIER|6K|GENE_6K|transcript|TRANSCRIPT_6K|protein_coding||c.-3845A>G|||||3845|WARNING_TRANSCRIPT_NO_START_CODON,G|upstream_gene_variant|MODIFIER|E1|GENE_E1|transcript|TRANSCRIPT_E1|protein_coding||c.-4028A>G|||||4028|WARNING_TRANSCRIPT_NO_START_CODON,G|downstream_gene_variant|MODIFIER|NS1|GENE_NS1|transcript|TRANSCRIPT_NS1|protein_coding||c.*4285A>G|||||4285|WARNING_TRANSCRIPT_NO_STOP_CODON,G|downstream_gene_variant|MODIFIER|NS2|GENE_NS2|transcript|TRANSCRIPT_NS2|protein_coding||c.*1891A>G|||||1891|WARNING_TRANSCRIPT_NO_START_CODON,G|downstream_gene_variant|MODIFIER|NS3|GENE_NS3|transcript|TRANSCRIPT_NS3|protein_coding||c.*319A>G|||||319|WARNING_TRANSCRIPT_NO_START_CODON,G|non_coding_transcript_variant|MODIFIER|EDEN.1|null|transcript|EDEN.1|protein_coding||||||||WARNING_TRANSCRIPT_NO_START_CODON | N28: MODERATE | O28: Non-synonymous | P28: GT:PL | Q28: 1/1:102,255,0
A29: KP164568_BHI3734_H804698_2014_08_26_Human_Brazil | B29: 5968 | C29: . | D29: C | E29: 2 | F29: =E29*100/J29 -> 0.3395585739 | G29: T | H29: 587 | I29: =H29*100/J29 -> 99.66044143 | J29: =H29+E29 -> 589 | K29: 64.997 | L29: PASS | M29: DP=587;VDB=2.12764e-14;SGB=-0.693147;RPB=0.00217865;MQB=0.00217865;MQSB=0.0601331;BQB=0.995643;MQ0F=0.454855;AF1=1;AC1=2;DP4=2,0,414,45;MQ=9;FQ=-281.989;PV4=1,1,4.5382e-13,0.415852;ANN=T|missense_variant|MODERATE|NS4|GENE_NS4|transcript|TRANSCRIPT_NS4|protein_coding|1/1|c.302C>T|p.Thr101Ile|302/1833|302/1833|101/610||WARNING_TRANSCRIPT_NO_START_CODON,T|upstream_gene_variant|MODIFIER|capsid|GENE_capsid|transcript|TRANSCRIPT_capsid|protein_coding||c.-1600C>T|||||1600|WARNING_TRANSCRIPT_NO_STOP_CODON,T|upstream_gene_variant|MODIFIER|E3|GENE_E3|transcript|TRANSCRIPT_E3|protein_coding||c.-2392C>T|||||2392|WARNING_TRANSCRIPT_NO_START_CODON,T|upstream_gene_variant|MODIFIER|E2|GENE_E2|transcript|TRANSCRIPT_E2|protein_coding||c.-2575C>T|||||2575|WARNING_TRANSCRIPT_NO_START_CODON,T|upstream_gene_variant|MODIFIER|6K|GENE_6K|transcript|TRANSCRIPT_6K|protein_coding||c.-3844C>T|||||3844|WARNING_TRANSCRIPT_NO_START_CODON,T|upstream_gene_variant|MODIFIER|E1|GENE_E1|transcript|TRANSCRIPT_E1|protein_coding||c.-4027C>T|||||4027|WARNING_TRANSCRIPT_NO_START_CODON,T|downstream_gene_variant|MODIFIER|NS1|GENE_NS1|transcript|TRANSCRIPT_NS1|protein_coding||c.*4286C>T|||||4286|WARNING_TRANSCRIPT_NO_STOP_CODON,T|downstream_gene_variant|MODIFIER|NS2|GENE_NS2|transcript|TRANSCRIPT_NS2|protein_coding||c.*1892C>T|||||1892|WARNING_TRANSCRIPT_NO_START_CODON,T|downstream_gene_variant|MODIFIER|NS3|GENE_NS3|transcript|TRANSCRIPT_NS3|protein_coding||c.*320C>T|||||320|WARNING_TRANSCRIPT_NO_START_CODON,T|non_coding_transcript_variant|MODIFIER|EDEN.1|null|transcript|EDEN.1|protein_coding||||||||WARNING_TRANSCRIPT_NO_START_CODON | N29: MODERATE | O29: Non-synonymous | P29: GT:PL | Q29: 1/1:98,255,0
A30: KP164568_BHI3734_H804698_2014_08_26_Human_Brazil | B30: 5972 | C30: . | D30: T | E30: 2 | F30: =E30*100/J30 -> 0.2869440459 | G30: C | H30: 695 | I30: =H30*100/J30 -> 99.71305595 | J30: =H30+E30 -> 697 | K30: 108.998 | L30: PASS | M30: DP=694;VDB=3.81871e-11;SGB=-0.693147;RPB=0.00192678;MQB=0.00192678;MQSB=0.600389;BQB=0.493256;MQ0F=0.389049;AF1=1;AC1=2;DP4=2,0,458,61;MQ=11;FQ=-281.989;PV4=1,1,1.49698e-08,1;ANN=C|synonymous_variant|LOW|NS4|GENE_NS4|transcript|TRANSCRIPT_NS4|protein_coding|1/1|c.306T>C|p.Tyr102Tyr|306/1833|306/1833|102/610||WARNING_TRANSCRIPT_NO_START_CODON,C|upstream_gene_variant|MODIFIER|capsid|GENE_capsid|transcript|TRANSCRIPT_capsid|protein_coding||c.-1596T>C|||||1596|WARNING_TRANSCRIPT_NO_STOP_CODON,C|upstream_gene_variant|MODIFIER|E3|GENE_E3|transcript|TRANSCRIPT_E3|protein_coding||c.-2388T>C|||||2388|WARNING_TRANSCRIPT_NO_START_CODON,C|upstream_gene_variant|MODIFIER|E2|GENE_E2|transcript|TRANSCRIPT_E2|protein_coding||c.-2571T>C|||||2571|WARNING_TRANSCRIPT_NO_START_CODON,C|upstream_gene_variant|MODIFIER|6K|GENE_6K|transcript|TRANSCRIPT_6K|protein_coding||c.-3840T>C|||||3840|WARNING_TRANSCRIPT_NO_START_CODON,C|upstream_gene_variant|MODIFIER|E1|GENE_E1|transcript|TRANSCRIPT_E1|protein_coding||c.-4023T>C|||||4023|WARNING_TRANSCRIPT_NO_START_CODON,C|downstream_gene_variant|MODIFIER|NS1|GENE_NS1|transcript|TRANSCRIPT_NS1|protein_coding||c.*4290T>C|||||4290|WARNING_TRANSCRIPT_NO_STOP_CODON,C|downstream_gene_variant|MODIFIER|NS2|GENE_NS2|transcript|TRANSCRIPT_NS2|protein_coding||c.*1896T>C|||||1896|WARNING_TRANSCRIPT_NO_START_CODON,C|downstream_gene_variant|MODIFIER|NS3|GENE_NS3|transcript|TRANSCRIPT_NS3|protein_coding||c.*324T>C|||||324|WARNING_TRANSCRIPT_NO_START_CODON,C|non_coding_transcript_variant|MODIFIER|EDEN.1|null|transcript|EDEN.1|protein_coding||||||||WARNING_TRANSCRIPT_NO_START_CODON | N30: LOW | O30: Synonymous | P30: GT:PL | Q30: 1/1:142,255,0
A31: KP164568_BHI3734_H804698_2014_08_26_Human_Brazil | B31: 6009 | C31: . | D31: C | E31: 2 | F31: =E31*100/J31 -> 0.2004008016 | G31: T | H31: 996 | I31: =H31*100/J31 -> 99.7995992 | J31: =H31+E31 -> 998 | K31: 221.999 | L31: PASS | M31: DP=994;VDB=3.22843e-07;SGB=-0.693147;RPB=0.521407;MQB=0.106269;MQSB=3.54137e-10;BQB=0.37844;MQ0F=0.206237;AF1=1;AC1=2;DP4=2,0,519,135;MQ=16;FQ=-281.989;PV4=1,1,0.00412435,0.2463;ANN=T|synonymous_variant|LOW|NS4|GENE_NS4|transcript|TRANSCRIPT_NS4|protein_coding|1/1|c.343C>T|p.Leu115Leu|343/1833|343/1833|115/610||WARNING_TRANSCRIPT_NO_START_CODON,T|upstream_gene_variant|MODIFIER|capsid|GENE_capsid|transcript|TRANSCRIPT_capsid|protein_coding||c.-1559C>T|||||1559|WARNING_TRANSCRIPT_NO_STOP_CODON,T|upstream_gene_variant|MODIFIER|E3|GENE_E3|transcript|TRANSCRIPT_E3|protein_coding||c.-2351C>T|||||2351|WARNING_TRANSCRIPT_NO_START_CODON,T|upstream_gene_variant|MODIFIER|E2|GENE_E2|transcript|TRANSCRIPT_E2|protein_coding||c.-2534C>T|||||2534|WARNING_TRANSCRIPT_NO_START_CODON,T|upstream_gene_variant|MODIFIER|6K|GENE_6K|transcript|TRANSCRIPT_6K|protein_coding||c.-3803C>T|||||3803|WARNING_TRANSCRIPT_NO_START_CODON,T|upstream_gene_variant|MODIFIER|E1|GENE_E1|transcript|TRANSCRIPT_E1|protein_coding||c.-3986C>T|||||3986|WARNING_TRANSCRIPT_NO_START_CODON,T|downstream_gene_variant|MODIFIER|NS1|GENE_NS1|transcript|TRANSCRIPT_NS1|protein_coding||c.*4327C>T|||||4327|WARNING_TRANSCRIPT_NO_STOP_CODON,T|downstream_gene_variant|MODIFIER|NS2|GENE_NS2|transcript|TRANSCRIPT_NS2|protein_coding||c.*1933C>T|||||1933|WARNING_TRANSCRIPT_NO_START_CODON,T|downstream_gene_variant|MODIFIER|NS3|GENE_NS3|transcript|TRANSCRIPT_NS3|protein_coding||c.*361C>T|||||361|WARNING_TRANSCRIPT_NO_START_CODON,T|non_coding_transcript_variant|MODIFIER|EDEN.1|null|transcript|EDEN.1|protein_coding||||||||WARNING_TRANSCRIPT_NO_START_CODON | N31: LOW | O31: Synonymous | P31: GT:PL | Q31: 1/1:255,255,0
A32: KP164568_BHI3734_H804698_2014_08_26_Human_Brazil | B32: 6017 | C32: . | D32: C | E32: 3 | F32: =E32*100/J32 -> 0.3154574132 | G32: T | H32: 948 | I32: =H32*100/J32 -> 99.68454259 | J32: =H32+E32 -> 951 | K32: 221.999 | L32: PASS | M32: DP=953;VDB=2.5274e-07;SGB=-0.693147;RPB=0.927432;MQB=0.257576;MQSB=1.33911e-18;BQB=0.148325;MQ0F=0.160546;AF1=1;AC1=2;DP4=2,0,471,156;MQ=17;FQ=-281.989;PV4=1,1,0.00542372,0.130853;ANN=T|synonymous_variant|LOW|NS4|GENE_NS4|transcript|TRANSCRIPT_NS4|protein_coding|1/1|c.351C>T|p.Asn117Asn|351/1833|351/1833|117/610||WARNING_TRANSCRIPT_NO_START_CODON,T|upstream_gene_variant|MODIFIER|capsid|GENE_capsid|transcript|TRANSCRIPT_capsid|protein_coding||c.-1551C>T|||||1551|WARNING_TRANSCRIPT_NO_STOP_CODON,T|upstream_gene_variant|MODIFIER|E3|GENE_E3|transcript|TRANSCRIPT_E3|protein_coding||c.-2343C>T|||||2343|WARNING_TRANSCRIPT_NO_START_CODON,T|upstream_gene_variant|MODIFIER|E2|GENE_E2|transcript|TRANSCRIPT_E2|protein_coding||c.-2526C>T|||||2526|WARNING_TRANSCRIPT_NO_START_CODON,T|upstream_gene_variant|MODIFIER|6K|GENE_6K|transcript|TRANSCRIPT_6K|protein_coding||c.-3795C>T|||||3795|WARNING_TRANSCRIPT_NO_START_CODON,T|upstream_gene_variant|MODIFIER|E1|GENE_E1|transcript|TRANSCRIPT_E1|protein_coding||c.-3978C>T|||||3978|WARNING_TRANSCRIPT_NO_START_CODON,T|downstream_gene_variant|MODIFIER|NS1|GENE_NS1|transcript|TRANSCRIPT_NS1|protein_coding||c.*4335C>T|||||4335|WARNING_TRANSCRIPT_NO_STOP_CODON,T|downstream_gene_variant|MODIFIER|NS2|GENE_NS2|transcript|TRANSCRIPT_NS2|protein_coding||c.*1941C>T|||||1941|WARNING_TRANSCRIPT_NO_START_CODON,T|downstream_gene_variant|MODIFIER|NS3|GENE_NS3|transcript|TRANSCRIPT_NS3|protein_coding||c.*369C>T|||||369|WARNING_TRANSCRIPT_NO_START_CODON,T|non_coding_transcript_variant|MODIFIER|EDEN.1|null|transcript|EDEN.1|protein_coding||||||||WARNING_TRANSCRIPT_NO_START_CODON | N32: LOW | O32: Synonymous | P32: GT:PL | Q32: 1/1:255,255,0
A33: KP164568_BHI3734_H804698_2014_08_26_Human_Brazil | B33: 6041 | C33: . | D33: C | E33: 48 | F33: =E33*100/J33 -> 6.340819022 | G33: T | H33: 709 | I33: =H33*100/J33 -> 93.65918098 | J33: =H33+E33 -> 757 | K33: 221.999 | L33: PASS | M33: DP=744;VDB=0.620855;SGB=-0.693147;RPB=8.312e-14;MQB=0.991383;MQSB=7.46052e-14;BQB=0.0336269;MQ0F=0.0927419;AF1=1;AC1=2;DP4=29,3,279,247;MQ=19;FQ=-281.989;PV4=1.28143e-05,1,0.121328,1;ANN=T|synonymous_variant|LOW|NS4|GENE_NS4|transcript|TRANSCRIPT_NS4|protein_coding|1/1|c.375C>T|p.Cys125Cys|375/1833|375/1833|125/610||WARNING_TRANSCRIPT_NO_START_CODON,T|upstream_gene_variant|MODIFIER|capsid|GENE_capsid|transcript|TRANSCRIPT_capsid|protein_coding||c.-1527C>T|||||1527|WARNING_TRANSCRIPT_NO_STOP_CODON,T|upstream_gene_variant|MODIFIER|E3|GENE_E3|transcript|TRANSCRIPT_E3|protein_coding||c.-2319C>T|||||2319|WARNING_TRANSCRIPT_NO_START_CODON,T|upstream_gene_variant|MODIFIER|E2|GENE_E2|transcript|TRANSCRIPT_E2|protein_coding||c.-2502C>T|||||2502|WARNING_TRANSCRIPT_NO_START_CODON,T|upstream_gene_variant|MODIFIER|6K|GENE_6K|transcript|TRANSCRIPT_6K|protein_coding||c.-3771C>T|||||3771|WARNING_TRANSCRIPT_NO_START_CODON,T|upstream_gene_variant|MODIFIER|E1|GENE_E1|transcript|TRANSCRIPT_E1|protein_coding||c.-3954C>T|||||3954|WARNING_TRANSCRIPT_NO_START_CODON,T|downstream_gene_variant|MODIFIER|NS1|GENE_NS1|transcript|TRANSCRIPT_NS1|protein_coding||c.*4359C>T|||||4359|WARNING_TRANSCRIPT_NO_STOP_CODON,T|downstream_gene_variant|MODIFIER|NS2|GENE_NS2|transcript|TRANSCRIPT_NS2|protein_coding||c.*1965C>T|||||1965|WARNING_TRANSCRIPT_NO_START_CODON,T|downstream_gene_variant|MODIFIER|NS3|GENE_NS3|transcript|TRANSCRIPT_NS3|protein_coding||c.*393C>T|||||393|WARNING_TRANSCRIPT_NO_START_CODON,T|non_coding_transcript_variant|MODIFIER|EDEN.1|null|transcript|EDEN.1|protein_coding||||||||WARNING_TRANSCRIPT_NO_START_CODON | N33: LOW | O33: Synonymous | P33: GT:PL | Q33: 1/1:255,255,0
A34: KP164568_BHI3734_H804698_2014_08_26_Human_Brazil | B34: 6051 | C34: . | D34: C | E34: 278 | F34: =E34*100/J34 -> 39.48863636 | G34: T | H34: 426 | I34: =H34*100/J34 -> 60.51136364 | J34: =H34+E34 -> 704 | K34: 100.008 | L34: PASS | M34: DP=690;VDB=3.10005e-06;SGB=-0.693147;RPB=1.12177e-39;MQB=5.91607e-30;MQSB=5.8042e-17;BQB=4.42889e-09;MQ0F=0.104348;AF1=0.5;AC1=1;DP4=147,22,150,202;MQ=23;FQ=103.016;PV4=1.7333e-23,1.27626e-17,0,1;ANN=T|synonymous_variant|LOW|NS4|GENE_NS4|transcript|TRANSCRIPT_NS4|protein_coding|1/1|c.385C>T|p.Leu129Leu|385/1833|385/1833|129/610||WARNING_TRANSCRIPT_NO_START_CODON,T|upstream_gene_variant|MODIFIER|capsid|GENE_capsid|transcript|TRANSCRIPT_capsid|protein_coding||c.-1517C>T|||||1517|WARNING_TRANSCRIPT_NO_STOP_CODON,T|upstream_gene_variant|MODIFIER|E3|GENE_E3|transcript|TRANSCRIPT_E3|protein_coding||c.-2309C>T|||||2309|WARNING_TRANSCRIPT_NO_START_CODON,T|upstream_gene_variant|MODIFIER|E2|GENE_E2|transcript|TRANSCRIPT_E2|protein_coding||c.-2492C>T|||||2492|WARNING_TRANSCRIPT_NO_START_CODON,T|upstream_gene_variant|MODIFIER|6K|GENE_6K|transcript|TRANSCRIPT_6K|protein_coding||c.-3761C>T|||||3761|WARNING_TRANSCRIPT_NO_START_CODON,T|upstream_gene_variant|MODIFIER|E1|GENE_E1|transcript|TRANSCRIPT_E1|protein_coding||c.-3944C>T|||||3944|WARNING_TRANSCRIPT_NO_START_CODON,T|downstream_gene_variant|MODIFIER|NS1|GENE_NS1|transcript|TRANSCRIPT_NS1|protein_coding||c.*4369C>T|||||4369|WARNING_TRANSCRIPT_NO_STOP_CODON,T|downstream_gene_variant|MODIFIER|NS2|GENE_NS2|transcript|TRANSCRIPT_NS2|protein_coding||c.*1975C>T|||||1975|WARNING_TRANSCRIPT_NO_START_CODON,T|downstream_gene_variant|MODIFIER|NS3|GENE_NS3|transcript|TRANSCRIPT_NS3|protein_coding||c.*403C>T|||||403|WARNING_TRANSCRIPT_NO_START_CODON,T|non_coding_transcript_variant|MODIFIER|EDEN.1|null|transcript|EDEN.1|protein_coding||||||||WARNING_TRANSCRIPT_NO_START_CODON | N34: LOW | O34: Synonymous | P34: GT:PL | Q34: 0/1:130,0,201
A35: KP164568_BHI3734_H804698_2014_08_26_Human_Brazil | B35: 6065 | C35: . | D35: T | E35: 414 | F35: =E35*100/J35 -> 57.9020979 | G35: C | H35: 301 | I35: =H35*100/J35 -> 42.0979021 | J35: =H35+E35 -> 715 | K35: 162.009 | L35: PASS | M35: DP=700;VDB=2.47087e-11;SGB=-0.693147;RPB=3.45779e-40;MQB=1.42333e-40;MQSB=1.54064e-22;BQB=1.35237e-18;MQ0F=0.0914286;AF1=0.5;AC1=1;DP4=202,41,96,164;MQ=28;FQ=165.017;PV4=5.40598e-27,1.09378e-32,0,2.92356e-06;ANN=C|synonymous_variant|LOW|NS4|GENE_NS4|transcript|TRANSCRIPT_NS4|protein_coding|1/1|c.399T>C|p.Tyr133Tyr|399/1833|399/1833|133/610||WARNING_TRANSCRIPT_NO_START_CODON,C|upstream_gene_variant|MODIFIER|capsid|GENE_capsid|transcript|TRANSCRIPT_capsid|protein_coding||c.-1503T>C|||||1503|WARNING_TRANSCRIPT_NO_STOP_CODON,C|upstream_gene_variant|MODIFIER|E3|GENE_E3|transcript|TRANSCRIPT_E3|protein_coding||c.-2295T>C|||||2295|WARNING_TRANSCRIPT_NO_START_CODON,C|upstream_gene_variant|MODIFIER|E2|GENE_E2|transcript|TRANSCRIPT_E2|protein_coding||c.-2478T>C|||||2478|WARNING_TRANSCRIPT_NO_START_CODON,C|upstream_gene_variant|MODIFIER|6K|GENE_6K|transcript|TRANSCRIPT_6K|protein_coding||c.-3747T>C|||||3747|WARNING_TRANSCRIPT_NO_START_CODON,C|upstream_gene_variant|MODIFIER|E1|GENE_E1|transcript|TRANSCRIPT_E1|protein_coding||c.-3930T>C|||||3930|WARNING_TRANSCRIPT_NO_START_CODON,C|downstream_gene_variant|MODIFIER|NS1|GENE_NS1|transcript|TRANSCRIPT_NS1|protein_coding||c.*4383T>C|||||4383|WARNING_TRANSCRIPT_NO_STOP_CODON,C|downstream_gene_variant|MODIFIER|NS2|GENE_NS2|transcript|TRANSCRIPT_NS2|protein_coding||c.*1989T>C|||||1989|WARNING_TRANSCRIPT_NO_START_CODON,C|downstream_gene_variant|MODIFIER|NS3|GENE_NS3|transcript|TRANSCRIPT_NS3|protein_coding||c.*417T>C|||||417|WARNING_TRANSCRIPT_NO_START_CODON,C|non_coding_transcript_variant|MODIFIER|EDEN.1|null|transcript|EDEN.1|protein_coding||||||||WARNING_TRANSCRIPT_NO_START_CODON | N35: LOW | O35: Synonymous | P35: GT:PL | Q35: 0/1:192,0,255
A36: KP164568_BHI3734_H804698_2014_08_26_Human_Brazil | B36: 6074 | C36: . | D36: C | E36: 518 | F36: =E36*100/J36 -> 66.15581098 | G36: T | H36: 265 | I36: =H36*100/J36 -> 33.84418902 | J36: =H36+E36 -> 783 | K36: 171.009 | L36: PASS | M36: DP=767;VDB=1.19034e-11;SGB=-0.693147;RPB=6.40393e-43;MQB=2.8026e-45;MQSB=1.3762e-26;BQB=2.75389e-25;MQ0F=0.0782269;AF1=0.5;AC1=1;DP4=251,40,85,138;MQ=30;FQ=174.017;PV4=1.17346e-30,2.31116e-41,0,6.60005e-30;ANN=T|synonymous_variant|LOW|NS4|GENE_NS4|transcript|TRANSCRIPT_NS4|protein_coding|1/1|c.408C>T|p.Val136Val|408/1833|408/1833|136/610||WARNING_TRANSCRIPT_NO_START_CODON,T|upstream_gene_variant|MODIFIER|capsid|GENE_capsid|transcript|TRANSCRIPT_capsid|protein_coding||c.-1494C>T|||||1494|WARNING_TRANSCRIPT_NO_STOP_CODON,T|upstream_gene_variant|MODIFIER|E3|GENE_E3|transcript|TRANSCRIPT_E3|protein_coding||c.-2286C>T|||||2286|WARNING_TRANSCRIPT_NO_START_CODON,T|upstream_gene_variant|MODIFIER|E2|GENE_E2|transcript|TRANSCRIPT_E2|protein_coding||c.-2469C>T|||||2469|WARNING_TRANSCRIPT_NO_START_CODON,T|upstream_gene_variant|MODIFIER|6K|GENE_6K|transcript|TRANSCRIPT_6K|protein_coding||c.-3738C>T|||||3738|WARNING_TRANSCRIPT_NO_START_CODON,T|upstream_gene_variant|MODIFIER|E1|GENE_E1|transcript|TRANSCRIPT_E1|protein_coding||c.-3921C>T|||||3921|WARNING_TRANSCRIPT_NO_START_CODON,T|downstream_gene_variant|MODIFIER|NS1|GENE_NS1|transcript|TRANSCRIPT_NS1|protein_coding||c.*4392C>T|||||4392|WARNING_TRANSCRIPT_NO_STOP_CODON,T|downstream_gene_variant|MODIFIER|NS2|GENE_NS2|transcript|TRANSCRIPT_NS2|protein_coding||c.*1998C>T|||||1998|WARNING_TRANSCRIPT_NO_START_CODON,T|downstream_gene_variant|MODIFIER|NS3|GENE_NS3|transcript|TRANSCRIPT_NS3|protein_coding||c.*426C>T|||||426|WARNING_TRANSCRIPT_NO_START_CODON,T|non_coding_transcript_variant|MODIFIER|EDEN.1|null|transcript|EDEN.1|protein_coding||||||||WARNING_TRANSCRIPT_NO_START_CODON | N36: LOW | O36: Synonymous | P36: GT:PL | Q36: 0/1:201,0,255
A37: KP164568_BHI3734_H804698_2014_08_26_Human_Brazil | B37: 6111 | C37: . | D37: T | E37: 597 | F37: =E37*100/J37 -> 59.93975904 | G37: C | H37: 399 | I37: =H37*100/J37 -> 40.06024096 | J37: =H37+E37 -> 996 | K37: 220.009 | L37: PASS | M37: DP=987;VDB=9.5867e-41;SGB=-0.693147;RPB=0;MQB=0;MQSB=0;BQB=3.6015e-18;MQ0F=0.0526849;AF1=0.5;AC1=1;DP4=260,68,103,193;MQ=32;FQ=221.824;PV4=6.7026e-30,7.8219e-30,0,3.30457e-23;ANN=C|synonymous_variant|LOW|NS4|GENE_NS4|transcript|TRANSCRIPT_NS4|protein_coding|1/1|c.445T>C|p.Leu149Leu|445/1833|445/1833|149/610||WARNING_TRANSCRIPT_NO_START_CODON,C|upstream_gene_variant|MODIFIER|capsid|GENE_capsid|transcript|TRANSCRIPT_capsid|protein_coding||c.-1457T>C|||||1457|WARNING_TRANSCRIPT_NO_STOP_CODON,C|upstream_gene_variant|MODIFIER|E3|GENE_E3|transcript|TRANSCRIPT_E3|protein_coding||c.-2249T>C|||||2249|WARNING_TRANSCRIPT_NO_START_CODON,C|upstream_gene_variant|MODIFIER|E2|GENE_E2|transcript|TRANSCRIPT_E2|protein_coding||c.-2432T>C|||||2432|WARNING_TRANSCRIPT_NO_START_CODON,C|upstream_gene_variant|MODIFIER|6K|GENE_6K|transcript|TRANSCRIPT_6K|protein_coding||c.-3701T>C|||||3701|WARNING_TRANSCRIPT_NO_START_CODON,C|upstream_gene_variant|MODIFIER|E1|GENE_E1|transcript|TRANSCRIPT_E1|protein_coding||c.-3884T>C|||||3884|WARNING_TRANSCRIPT_NO_START_CODON,C|downstream_gene_variant|MODIFIER|NS1|GENE_NS1|transcript|TRANSCRIPT_NS1|protein_coding||c.*4429T>C|||||4429|WARNING_TRANSCRIPT_NO_STOP_CODON,C|downstream_gene_variant|MODIFIER|NS2|GENE_NS2|transcript|TRANSCRIPT_NS2|protein_coding||c.*2035T>C|||||2035|WARNING_TRANSCRIPT_NO_START_CODON,C|downstream_gene_variant|MODIFIER|NS3|GENE_NS3|transcript|TRANSCRIPT_NS3|protein_coding||c.*463T>C|||||463|WARNING_TRANSCRIPT_NO_START_CODON,C|non_coding_transcript_variant|MODIFIER|EDEN.1|null|transcript|EDEN.1|protein_coding||||||||WARNING_TRANSCRIPT_NO_START_CODON | N37: LOW | O37: Synonymous | P37: GT:PL | Q37: 0/1:250,0,255
A38: KP164568_BHI3734_H804698_2014_08_26_Human_Brazil | B38: 6141 | C38: . | D38: C | E38: 243 | F38: =E38*100/J38 -> 41.0472973 | G38: T | H38: 349 | I38: =H38*100/J38 -> 58.9527027 | J38: =H38+E38 -> 592 | K38: 185.009 | L38: PASS | M38: DP=591;VDB=1.198e-37;SGB=-0.693147;RPB=2.87618e-06;MQB=0;MQSB=4.87817e-20;BQB=1.74824e-05;MQ0F=0.0829103;AF1=0.5;AC1=1;DP4=91,62,81,186;MQ=28;FQ=188.017;PV4=6.32037e-09,1.24671e-08,0,1;ANN=T|synonymous_variant|LOW|NS4|GENE_NS4|transcript|TRANSCRIPT_NS4|protein_coding|1/1|c.475C>T|p.Leu159Leu|475/1833|475/1833|159/610||WARNING_TRANSCRIPT_NO_START_CODON,T|upstream_gene_variant|MODIFIER|capsid|GENE_capsid|transcript|TRANSCRIPT_capsid|protein_coding||c.-1427C>T|||||1427|WARNING_TRANSCRIPT_NO_STOP_CODON,T|upstream_gene_variant|MODIFIER|E3|GENE_E3|transcript|TRANSCRIPT_E3|protein_coding||c.-2219C>T|||||2219|WARNING_TRANSCRIPT_NO_START_CODON,T|upstream_gene_variant|MODIFIER|E2|GENE_E2|transcript|TRANSCRIPT_E2|protein_coding||c.-2402C>T|||||2402|WARNING_TRANSCRIPT_NO_START_CODON,T|upstream_gene_variant|MODIFIER|6K|GENE_6K|transcript|TRANSCRIPT_6K|protein_coding||c.-3671C>T|||||3671|WARNING_TRANSCRIPT_NO_START_CODON,T|upstream_gene_variant|MODIFIER|E1|GENE_E1|transcript|TRANSCRIPT_E1|protein_coding||c.-3854C>T|||||3854|WARNING_TRANSCRIPT_NO_START_CODON,T|downstream_gene_variant|MODIFIER|NS1|GENE_NS1|transcript|TRANSCRIPT_NS1|protein_coding||c.*4459C>T|||||4459|WARNING_TRANSCRIPT_NO_STOP_CODON,T|downstream_gene_variant|MODIFIER|NS2|GENE_NS2|transcript|TRANSCRIPT_NS2|protein_coding||c.*2065C>T|||||2065|WARNING_TRANSCRIPT_NO_START_CODON,T|downstream_gene_variant|MODIFIER|NS3|GENE_NS3|transcript|TRANSCRIPT_NS3|protein_coding||c.*493C>T|||||493|WARNING_TRANSCRIPT_NO_START_CODON,T|non_coding_transcript_variant|MODIFIER|EDEN.1|null|transcript|EDEN.1|protein_coding||||||||WARNING_TRANSCRIPT_NO_START_CODON | N38: LOW | O38: Synonymous | P38: GT:PL | Q38: 0/1:215,0,255
A39: KP164568_BHI3734_H804698_2014_08_26_Human_Brazil | B39: 6146 | C39: . | D39: T | E39: 213 | F39: =E39*100/J39 -> 42.09486166 | G39: C | H39: 293 | I39: =H39*100/J39 -> 57.90513834 | J39: =H39+E39 -> 506 | K39: 137.008 | L39: PASS | M39: DP=505;VDB=5.90017e-41;SGB=-0.693147;RPB=1.31758e-05;MQB=0;MQSB=1.53431e-13;BQB=6.01908e-05;MQ0F=0.0851485;AF1=0.5;AC1=1;DP4=78,58,63,165;MQ=28;FQ=140.016;PV4=2.26745e-08,8.04801e-07,0,1;ANN=C|synonymous_variant|LOW|NS4|GENE_NS4|transcript|TRANSCRIPT_NS4|protein_coding|1/1|c.480T>C|p.Asp160Asp|480/1833|480/1833|160/610||WARNING_TRANSCRIPT_NO_START_CODON,C|upstream_gene_variant|MODIFIER|capsid|GENE_capsid|transcript|TRANSCRIPT_capsid|protein_coding||c.-1422T>C|||||1422|WARNING_TRANSCRIPT_NO_STOP_CODON,C|upstream_gene_variant|MODIFIER|E3|GENE_E3|transcript|TRANSCRIPT_E3|protein_coding||c.-2214T>C|||||2214|WARNING_TRANSCRIPT_NO_START_CODON,C|upstream_gene_variant|MODIFIER|E2|GENE_E2|transcript|TRANSCRIPT_E2|protein_coding||c.-2397T>C|||||2397|WARNING_TRANSCRIPT_NO_START_CODON,C|upstream_gene_variant|MODIFIER|6K|GENE_6K|transcript|TRANSCRIPT_6K|protein_coding||c.-3666T>C|||||3666|WARNING_TRANSCRIPT_NO_START_CODON,C|upstream_gene_variant|MODIFIER|E1|GENE_E1|transcript|TRANSCRIPT_E1|protein_coding||c.-3849T>C|||||3849|WARNING_TRANSCRIPT_NO_START_CODON,C|downstream_gene_variant|MODIFIER|NS1|GENE_NS1|transcript|TRANSCRIPT_NS1|protein_coding||c.*4464T>C|||||4464|WARNING_TRANSCRIPT_NO_STOP_CODON,C|downstream_gene_variant|MODIFIER|NS2|GENE_NS2|transcript|TRANSCRIPT_NS2|protein_coding||c.*2070T>C|||||2070|WARNING_TRANSCRIPT_NO_START_CODON,C|downstream_gene_variant|MODIFIER|NS3|GENE_NS3|transcript|TRANSCRIPT_NS3|protein_coding||c.*498T>C|||||498|WARNING_TRANSCRIPT_NO_START_CODON,C|non_coding_transcript_variant|MODIFIER|EDEN.1|null|transcript|EDEN.1|protein_coding||||||||WARNING_TRANSCRIPT_NO_START_CODON | N39: LOW | O39: Synonymous | P39: GT:PL | Q39: 0/1:167,0,255
A40: KP164568_BHI3734_H804698_2014_08_26_Human_Brazil | B40: 6370 | D40: A | E40: 709 | F40: =E40*100/J40 -> 81.12128146 | G40: G | H40: 165 | I40: =H40*100/J40 -> 18.87871854 | J40: =H40+E40 -> 874 | M40: Gln -> Arg | N40: MODERATE | O40: Non-synonymous
A41: KP164568_BHI3734_H804698_2014_08_26_Human_Brazil | B41: 6404 | D41: T | E41: 877 | F41: =E41*100/J41 -> 87.5249501 | G41: C | H41: 125 | I41: =H41*100/J41 -> 12.4750499 | J41: =H41+E41 -> 1002 | N41: LOW | O41: Synonymous
A42: KP164568_BHI3734_H804698_2014_08_26_Human_Brazil | B42: 6413 | D42: A | E42: 784 | F42: =E42*100/J42 -> 88.38782413 | G42: G | H42: 103 | I42: =H42*100/J42 -> 11.61217587 | J42: =H42+E42 -> 887 | N42: LOW | O42: Synonymous
A43: KP164568_BHI3734_H804698_2014_08_26_Human_Brazil | B43: 6423 | D43: T | E43: 782 | F43: =E43*100/J43 -> 82.83898305 | G43: C | H43: 162 | I43: =H43*100/J43 -> 17.16101695 | J43: =H43+E43 -> 944 | N43: LOW | O43: Synonymous
A44: KP164568_BHI3734_H804698_2014_08_26_Human_Brazil | B44: 6437 | D44: T | E44: 936 | F44: =E44*100/J44 -> 79.65957447 | G44: C | H44: 239 | I44: =H44*100/J44 -> 20.34042553 | J44: =H44+E44 -> 1175 | N44: LOW | O44: Synonymous
A45: KP164568_BHI3734_H804698_2014_08_26_Human_Brazil | B45: 6444 | D45: C | E45: 893 | F45: =E45*100/J45 -> 79.02654867 | G45: T | H45: 237 | I45: =H45*100/J45 -> 20.97345133 | J45: =H45+E45 -> 1130 | N45: LOW | O45: Synonymous
A46: KP164568_BHI3734_H804698_2014_08_26_Human_Brazil | B46: 6449 | D46: A | E46: 898 | F46: =E46*100/J46 -> 80.53811659 | G46: G | H46: 217 | I46: =H46*100/J46 -> 19.46188341 | J46: =H46+E46 -> 1115 | N46: LOW | O46: Synonymous
A47: KP164568_BHI3734_H804698_2014_08_26_Human_Brazil | B47: 6468 | D47: C | E47: 1072 | F47: =E47*100/J47 -> 76.02836879 | G47: T | H47: 338 | I47: =H47*100/J47 -> 23.97163121 | J47: =H47+E47 -> 1410 | N47: LOW | O47: Synonymous
A48: KP164568_BHI3734_H804698_2014_08_26_Human_Brazil | B48: 6470 | D48: A | E48: 1085 | F48: =E48*100/J48 -> 76.14035088 | G48: G | H48: 340 | I48: =H48*100/J48 -> 23.85964912 | J48: =H48+E48 -> 1425 | N48: LOW | O48: Synonymous
A49: KP164568_BHI3734_H804698_2014_08_26_Human_Brazil | B49: 6471 | D49: T | E49: 1084 | F49: =E49*100/J49 -> 75.96355992 | G49: C | H49: 343 | I49: =H49*100/J49 -> 24.03644008 | J49: =H49+E49 -> 1427 | M49: Phe -> Leu | N49: MODERATE | O49: Non-synonymous
A50: KP164568_BHI3734_H804698_2014_08_26_Human_Brazil | B50: 6478 | D50: A | E50: 934 | F50: =E50*100/J50 -> 78.09364548 | G50: G | H50: 262 | I50: =H50*100/J50 -> 21.90635452 | J50: =H50+E50 -> 1196 | M50: Lys -> Arg | N50: MODERATE | O50: Non-synonymous
A51: KP164568_BHI3734_H804698_2014_08_26_Human_Brazil | B51: 6485 | D51: C | E51: 1012 | F51: =E51*100/J51 -> 79.62234461 | G51: T | H51: 259 | I51: =H51*100/J51 -> 20.37765539 | J51: =H51+E51 -> 1271 | N51: LOW | O51: Synonymous
A52: KP164568_BHI3734_H804698_2014_08_26_Human_Brazil | B52: 6497 | D52: A | E52: 985 | F52: =E52*100/J52 -> 78.54864434 | G52: G | H52: 269 | I52: =H52*100/J52 -> 21.45135566 | J52: =H52+E52 -> 1254 | N52: LOW | O52: Synonymous
A53: KP164568_BHI3734_H804698_2014_08_26_Human_Brazil | B53: 6506 | C53: . | D53: A | E53: 1039 | F53: =E53*100/J53 -> 72.35376045 | G53: T | H53: 397 | I53: =H53*100/J53 -> 27.64623955 | J53: =H53+E53 -> 1436 | K53: 143.008 | L53: PASS | M53: DP=1432;VDB=0.998816;SGB=-0.693147;RPB=0.000908175;MQB=0;MQSB=3.09523e-06;BQB=0.0921273;MQ0F=0.0467877;AF1=0.5;AC1=1;DP4=425,359,197,77;MQ=38;FQ=146.016;PV4=2.54138e-07,1,0,0.192391;ANN=T|missense_variant|MODERATE|NS4|GENE_NS4|transcript|TRANSCRIPT_NS4|protein_coding|1/1|c.840A>T|p.Glu280Asp|840/1833|840/1833|280/610||WARNING_TRANSCRIPT_NO_START_CODON,T|upstream_gene_variant|MODIFIER|capsid|GENE_capsid|transcript|TRANSCRIPT_capsid|protein_coding||c.-1062A>T|||||1062|WARNING_TRANSCRIPT_NO_STOP_CODON,T|upstream_gene_variant|MODIFIER|E3|GENE_E3|transcript|TRANSCRIPT_E3|protein_coding||c.-1854A>T|||||1854|WARNING_TRANSCRIPT_NO_START_CODON,T|upstream_gene_variant|MODIFIER|E2|GENE_E2|transcript|TRANSCRIPT_E2|protein_coding||c.-2037A>T|||||2037|WARNING_TRANSCRIPT_NO_START_CODON,T|upstream_gene_variant|MODIFIER|6K|GENE_6K|transcript|TRANSCRIPT_6K|protein_coding||c.-3306A>T|||||3306|WARNING_TRANSCRIPT_NO_START_CODON,T|upstream_gene_variant|MODIFIER|E1|GENE_E1|transcript|TRANSCRIPT_E1|protein_coding||c.-3489A>T|||||3489|WARNING_TRANSCRIPT_NO_START_CODON,T|downstream_gene_variant|MODIFIER|NS1|GENE_NS1|transcript|TRANSCRIPT_NS1|protein_coding||c.*4824A>T|||||4824|WARNING_TRANSCRIPT_NO_STOP_CODON,T|downstream_gene_variant|MODIFIER|NS2|GENE_NS2|transcript|TRANSCRIPT_NS2|protein_coding||c.*2430A>T|||||2430|WARNING_TRANSCRIPT_NO_START_CODON,T|downstream_gene_variant|MODIFIER|NS3|GENE_NS3|transcript|TRANSCRIPT_NS3|protein_coding||c.*858A>T|||||858|WARNING_TRANSCRIPT_NO_START_CODON,T|non_coding_transcript_variant|MODIFIER|EDEN.1|null|transcript|EDEN.1|protein_coding||||||||WARNING_TRANSCRIPT_NO_START_CODON | N53: MODERATE | O53: Non-synonymous | P53: GT:PL | Q53: 0/1:173,0,255
A54: KP164568_BHI3734_H804698_2014_08_26_Human_Brazil | B54: 6554 | C54: . | D54: G | E54: 852 | F54: =E54*100/J54 -> 75.33156499 | G54: A | H54: 279 | I54: =H54*100/J54 -> 24.66843501 | J54: =H54+E54 -> 1131 | K54: 24.0241 | L54: PASS | M54: DP=1127;VDB=6.38147e-16;SGB=-0.693147;RPB=0.76327;MQB=0;MQSB=0.9794;BQB=0.148839;MQ0F=0.00177462;AF1=0.499999;AC1=1;DP4=375,264,133,67;MQ=39;FQ=27.0236;PV4=0.0564285,1,0,0.183896;ANN=A|synonymous_variant|LOW|NS4|GENE_NS4|transcript|TRANSCRIPT_NS4|protein_coding|1/1|c.888G>A|p.Val296Val|888/1833|888/1833|296/610||WARNING_TRANSCRIPT_NO_START_CODON,A|upstream_gene_variant|MODIFIER|capsid|GENE_capsid|transcript|TRANSCRIPT_capsid|protein_coding||c.-1014G>A|||||1014|WARNING_TRANSCRIPT_NO_STOP_CODON,A|upstream_gene_variant|MODIFIER|E3|GENE_E3|transcript|TRANSCRIPT_E3|protein_coding||c.-1806G>A|||||1806|WARNING_TRANSCRIPT_NO_START_CODON,A|upstream_gene_variant|MODIFIER|E2|GENE_E2|transcript|TRANSCRIPT_E2|protein_coding||c.-1989G>A|||||1989|WARNING_TRANSCRIPT_NO_START_CODON,A|upstream_gene_variant|MODIFIER|6K|GENE_6K|transcript|TRANSCRIPT_6K|protein_coding||c.-3258G>A|||||3258|WARNING_TRANSCRIPT_NO_START_CODON,A|upstream_gene_variant|MODIFIER|E1|GENE_E1|transcript|TRANSCRIPT_E1|protein_coding||c.-3441G>A|||||3441|WARNING_TRANSCRIPT_NO_START_CODON,A|downstream_gene_variant|MODIFIER|NS1|GENE_NS1|transcript|TRANSCRIPT_NS1|protein_coding||c.*4872G>A|||||4872|WARNING_TRANSCRIPT_NO_STOP_CODON,A|downstream_gene_variant|MODIFIER|NS2|GENE_NS2|transcript|TRANSCRIPT_NS2|protein_coding||c.*2478G>A|||||2478|WARNING_TRANSCRIPT_NO_START_CODON,A|downstream_gene_variant|MODIFIER|NS3|GENE_NS3|transcript|TRANSCRIPT_NS3|protein_coding||c.*906G>A|||||906|WARNING_TRANSCRIPT_NO_START_CODON,A|non_coding_transcript_variant|MODIFIER|EDEN.1|null|transcript|EDEN.1|protein_coding||||||||WARNING_TRANSCRIPT_NO_START_CODON | N54: LOW | O54: Synonymous | P54: GT:PL | Q54: 0/1:54,0,255
A55: KP164568_BHI3734_H804698_2014_08_26_Human_Brazil | B55: 6563 | C55: . | D55: T | E55: 679 | F55: =E55*100/J55 -> 72.85407725 | G55: C | H55: 253 | I55: =H55*100/J55 -> 27.14592275 | J55: =H55+E55 -> 932 | K55: 86.0076 | L55: PASS | M55: DP=930;VDB=4.48576e-21;SGB=-0.693147;RPB=0.57934;MQB=0;MQSB=0.999377;BQB=0.0154106;MQ0F=0.00107527;AF1=0.5;AC1=1;DP4=312,213,115,70;MQ=39;FQ=89.0158;PV4=0.541695,1,0,0.167623;ANN=C|synonymous_variant|LOW|NS4|GENE_NS4|transcript|TRANSCRIPT_NS4|protein_coding|1/1|c.897T>C|p.Gly299Gly|897/1833|897/1833|299/610||WARNING_TRANSCRIPT_NO_START_CODON,C|upstream_gene_variant|MODIFIER|capsid|GENE_capsid|transcript|TRANSCRIPT_capsid|protein_coding||c.-1005T>C|||||1005|WARNING_TRANSCRIPT_NO_STOP_CODON,C|upstream_gene_variant|MODIFIER|E3|GENE_E3|transcript|TRANSCRIPT_E3|protein_coding||c.-1797T>C|||||1797|WARNING_TRANSCRIPT_NO_START_CODON,C|upstream_gene_variant|MODIFIER|E2|GENE_E2|transcript|TRANSCRIPT_E2|protein_coding||c.-1980T>C|||||1980|WARNING_TRANSCRIPT_NO_START_CODON,C|upstream_gene_variant|MODIFIER|6K|GENE_6K|transcript|TRANSCRIPT_6K|protein_coding||c.-3249T>C|||||3249|WARNING_TRANSCRIPT_NO_START_CODON,C|upstream_gene_variant|MODIFIER|E1|GENE_E1|transcript|TRANSCRIPT_E1|protein_coding||c.-3432T>C|||||3432|WARNING_TRANSCRIPT_NO_START_CODON,C|downstream_gene_variant|MODIFIER|NS1|GENE_NS1|transcript|TRANSCRIPT_NS1|protein_coding||c.*4881T>C|||||4881|WARNING_TRANSCRIPT_NO_STOP_CODON,C|downstream_gene_variant|MODIFIER|NS2|GENE_NS2|transcript|TRANSCRIPT_NS2|protein_coding||c.*2487T>C|||||2487|WARNING_TRANSCRIPT_NO_START_CODON,C|downstream_gene_variant|MODIFIER|NS3|GENE_NS3|transcript|TRANSCRIPT_NS3|protein_coding||c.*915T>C|||||915|WARNING_TRANSCRIPT_NO_START_CODON,C|non_coding_transcript_variant|MODIFIER|EDEN.1|null|transcript|EDEN.1|protein_coding||||||||WARNING_TRANSCRIPT_NO_START_CODON | N55: LOW | O55: Synonymous | P55: GT:PL | Q55: 0/1:116,0,255
A56: KP164568_BHI3734_H804698_2014_08_26_Human_Brazil | B56: 6572 | C56: . | D56: C | E56: 544 | F56: =E56*100/J56 -> 71.01827676 | G56: T | H56: 222 | I56: =H56*100/J56 -> 28.98172324 | J56: =H56+E56 -> 766 | K56: 139.008 | L56: PASS | M56: DP=763;VDB=1.49449e-27;SGB=-0.693147;RPB=5.87815e-05;MQB=1.02899e-38;MQSB=0.905275;BQB=0.201767;MQ0F=0.00131062;AF1=0.5;AC1=1;DP4=271,147,91,79;MQ=38;FQ=142.016;PV4=0.0116756,0.408951,0,1.8391e-06;ANN=T|synonymous_variant|LOW|NS4|GENE_NS4|transcript|TRANSCRIPT_NS4|protein_coding|1/1|c.906C>T|p.His302His|906/1833|906/1833|302/610||WARNING_TRANSCRIPT_NO_START_CODON,T|upstream_gene_variant|MODIFIER|capsid|GENE_capsid|transcript|TRANSCRIPT_capsid|protein_coding||c.-996C>T|||||996|WARNING_TRANSCRIPT_NO_STOP_CODON,T|upstream_gene_variant|MODIFIER|E3|GENE_E3|transcript|TRANSCRIPT_E3|protein_coding||c.-1788C>T|||||1788|WARNING_TRANSCRIPT_NO_START_CODON,T|upstream_gene_variant|MODIFIER|E2|GENE_E2|transcript|TRANSCRIPT_E2|protein_coding||c.-1971C>T|||||1971|WARNING_TRANSCRIPT_NO_START_CODON,T|upstream_gene_variant|MODIFIER|6K|GENE_6K|transcript|TRANSCRIPT_6K|protein_coding||c.-3240C>T|||||3240|WARNING_TRANSCRIPT_NO_START_CODON,T|upstream_gene_variant|MODIFIER|E1|GENE_E1|transcript|TRANSCRIPT_E1|protein_coding||c.-3423C>T|||||3423|WARNING_TRANSCRIPT_NO_START_CODON,T|downstream_gene_variant|MODIFIER|NS1|GENE_NS1|transcript|TRANSCRIPT_NS1|protein_coding||c.*4890C>T|||||4890|WARNING_TRANSCRIPT_NO_STOP_CODON,T|downstream_gene_variant|MODIFIER|NS2|GENE_NS2|transcript|TRANSCRIPT_NS2|protein_coding||c.*2496C>T|||||2496|WARNING_TRANSCRIPT_NO_START_CODON,T|downstream_gene_variant|MODIFIER|NS3|GENE_NS3|transcript|TRANSCRIPT_NS3|protein_coding||c.*924C>T|||||924|WARNING_TRANSCRIPT_NO_START_CODON,T|non_coding_transcript_variant|MODIFIER|EDEN.1|null|transcript|EDEN.1|protein_coding||||||||WARNING_TRANSCRIPT_NO_START_CODON | N56: LOW | O56: Synonymous | P56: GT:PL | Q56: 0/1:169,0,255
A57: KP164568_BHI3734_H804698_2014_08_26_Human_Brazil | B57: 7501 | C57: . | D57: A | E57: 2689 | F57: =E57*100/J57 -> 62.4767658 | G57: G | H57: 1615 | I57: =H57*100/J57 -> 37.5232342 | J57: =H57+E57 -> 4304 | K57: 225.009 | L57: PASS | M57: DP=4289;VDB=0.999997;SGB=-0.693147;RPB=0.630831;MQB=9.67784e-11;MQSB=0.00266769;BQB=0.606879;MQ0F=0;AF1=0.5;AC1=1;DP4=1267,683,789,351;MQ=42;FQ=225.007;PV4=0.0160094,1,1.27501e-20,8.17535e-05;ANN=G|upstream_gene_variant|MODIFIER|capsid|GENE_capsid|transcript|TRANSCRIPT_capsid|protein_coding||c.-67A>G|||||67|WARNING_TRANSCRIPT_NO_STOP_CODON,G|upstream_gene_variant|MODIFIER|E3|GENE_E3|transcript|TRANSCRIPT_E3|protein_coding||c.-859A>G|||||859|WARNING_TRANSCRIPT_NO_START_CODON,G|upstream_gene_variant|MODIFIER|E2|GENE_E2|transcript|TRANSCRIPT_E2|protein_coding||c.-1042A>G|||||1042|WARNING_TRANSCRIPT_NO_START_CODON,G|upstream_gene_variant|MODIFIER|6K|GENE_6K|transcript|TRANSCRIPT_6K|protein_coding||c.-2311A>G|||||2311|WARNING_TRANSCRIPT_NO_START_CODON,G|upstream_gene_variant|MODIFIER|E1|GENE_E1|transcript|TRANSCRIPT_E1|protein_coding||c.-2494A>G|||||2494|WARNING_TRANSCRIPT_NO_START_CODON,G|downstream_gene_variant|MODIFIER|NS2|GENE_NS2|transcript|TRANSCRIPT_NS2|protein_coding||c.*3425A>G|||||3425|WARNING_TRANSCRIPT_NO_START_CODON,G|downstream_gene_variant|MODIFIER|NS3|GENE_NS3|transcript|TRANSCRIPT_NS3|protein_coding||c.*1853A>G|||||1853|WARNING_TRANSCRIPT_NO_START_CODON,G|downstream_gene_variant|MODIFIER|NS4|GENE_NS4|transcript|TRANSCRIPT_NS4|protein_coding||c.*2A>G|||||2|WARNING_TRANSCRIPT_NO_START_CODON,G|non_coding_transcript_variant|MODIFIER|EDEN.1|null|transcript|EDEN.1|protein_coding||||||||WARNING_TRANSCRIPT_NO_START_CODON | N57: LOW | O57: Synonymous | P57: GT:PL | Q57: 0/1:255,0,255
A58: KP164568_BHI3734_H804698_2014_08_26_Human_Brazil | B58: 7553 | C58: . | D58: T | E58: 365 | F58: =E58*100/J58 -> 8.508158508 | G58: C | H58: 3925 | I58: =H58*100/J58 -> 91.49184149 | J58: =H58+E58 -> 4290 | K58: 221.999 | L58: PASS | M58: DP=4275;VDB=0.000623772;SGB=-0.693147;RPB=0.997541;MQB=0.0539912;MQSB=1.97968e-18;BQB=0.997141;MQ0F=0.000233918;AF1=1;AC1=2;DP4=133,119,1404,1333;MQ=42;FQ=-252.989;PV4=0.69283,0.354513,0.0135419,1;ANN=C|upstream_gene_variant|MODIFIER|capsid|GENE_capsid|transcript|TRANSCRIPT_capsid|protein_coding||c.-15T>C|||||15|WARNING_TRANSCRIPT_NO_STOP_CODON,C|upstream_gene_variant|MODIFIER|E3|GENE_E3|transcript|TRANSCRIPT_E3|protein_coding||c.-807T>C|||||807|WARNING_TRANSCRIPT_NO_START_CODON,C|upstream_gene_variant|MODIFIER|E2|GENE_E2|transcript|TRANSCRIPT_E2|protein_coding||c.-990T>C|||||990|WARNING_TRANSCRIPT_NO_START_CODON,C|upstream_gene_variant|MODIFIER|6K|GENE_6K|transcript|TRANSCRIPT_6K|protein_coding||c.-2259T>C|||||2259|WARNING_TRANSCRIPT_NO_START_CODON,C|upstream_gene_variant|MODIFIER|E1|GENE_E1|transcript|TRANSCRIPT_E1|protein_coding||c.-2442T>C|||||2442|WARNING_TRANSCRIPT_NO_START_CODON,C|downstream_gene_variant|MODIFIER|NS2|GENE_NS2|transcript|TRANSCRIPT_NS2|protein_coding||c.*3477T>C|||||3477|WARNING_TRANSCRIPT_NO_START_CODON,C|downstream_gene_variant|MODIFIER|NS3|GENE_NS3|transcript|TRANSCRIPT_NS3|protein_coding||c.*1905T>C|||||1905|WARNING_TRANSCRIPT_NO_START_CODON,C|downstream_gene_variant|MODIFIER|NS4|GENE_NS4|transcript|TRANSCRIPT_NS4|protein_coding||c.*54T>C|||||54|WARNING_TRANSCRIPT_NO_START_CODON,C|non_coding_transcript_variant|MODIFIER|EDEN.1|null|transcript|EDEN.1|protein_coding||||||||WARNING_TRANSCRIPT_NO_START_CODON | N58: LOW | O58: Synonymous | P58: GT:PL | Q58: 1/1:255,226,0
A59: KP164568_BHI3734_H804698_2014_08_26_Human_Brazil | B59: 7648 | C59: . | D59: A | E59: 1336 | F59: =E59*100/J59 -> 71.44385027 | G59: C | H59: 534 | I59: =H59*100/J59 -> 28.55614973 | J59: =H59+E59 -> 1870 | K59: 193.009 | L59: PASS | M59: DP=1869;VDB=0.000198867;SGB=-0.693147;RPB=0;MQB=2.04309e-41;MQSB=2.46298e-20;BQB=2.01173e-17;MQ0F=0.00321027;AF1=0.5;AC1=1;DP4=976,17,134,312;MQ=41;FQ=196.014;PV4=0,3.88116e-12,2.77193e-39,0;ANN=C|synonymous_variant|LOW|capsid|GENE_capsid|transcript|TRANSCRIPT_capsid|protein_coding|1/1|c.81A>C|p.Val27Val|81/792|81/792|27/263||WARNING_TRANSCRIPT_NO_STOP_CODON,C|upstream_gene_variant|MODIFIER|E3|GENE_E3|transcript|TRANSCRIPT_E3|protein_coding||c.-712A>C|||||712|WARNING_TRANSCRIPT_NO_START_CODON,C|upstream_gene_variant|MODIFIER|E2|GENE_E2|transcript|TRANSCRIPT_E2|protein_coding||c.-895A>C|||||895|WARNING_TRANSCRIPT_NO_START_CODON,C|upstream_gene_variant|MODIFIER|6K|GENE_6K|transcript|TRANSCRIPT_6K|protein_coding||c.-2164A>C|||||2164|WARNING_TRANSCRIPT_NO_START_CODON,C|upstream_gene_variant|MODIFIER|E1|GENE_E1|transcript|TRANSCRIPT_E1|protein_coding||c.-2347A>C|||||2347|WARNING_TRANSCRIPT_NO_START_CODON,C|downstream_gene_variant|MODIFIER|NS2|GENE_NS2|transcript|TRANSCRIPT_NS2|protein_coding||c.*3572A>C|||||3572|WARNING_TRANSCRIPT_NO_START_CODON,C|downstream_gene_variant|MODIFIER|NS3|GENE_NS3|transcript|TRANSCRIPT_NS3|protein_coding||c.*2000A>C|||||2000|WARNING_TRANSCRIPT_NO_START_CODON,C|downstream_gene_variant|MODIFIER|NS4|GENE_NS4|transcript|TRANSCRIPT_NS4|protein_coding||c.*149A>C|||||149|WARNING_TRANSCRIPT_NO_START_CODON,C|non_coding_transcript_variant|MODIFIER|EDEN.1|null|transcript|EDEN.1|protein_coding||||||||WARNING_TRANSCRIPT_NO_START_CODON | N59: LOW | O59: Synonymous | P59: GT:PL | Q59: 0/1:223,0,255
A60: KP164568_BHI3734_H804698_2014_08_26_Human_Brazil | B60: 7654 | C60: . | D60: G | E60: 1438 | F60: =E60*100/J60 -> 75.24856096 | G60: A | H60: 473 | I60: =H60*100/J60 -> 24.75143904 | J60: =H60+E60 -> 1911 | K60: 172.009 | L60: PASS | M60: DP=1911;VDB=1;SGB=-0.693147;RPB=3.03256e-06;MQB=4.71449e-34;MQSB=1.89322e-30;BQB=4.48527e-25;MQ0F=0.00313972;AF1=0.5;AC1=1;DP4=1038,19,228,158;MQ=41;FQ=175.017;PV4=0,1.31638e-09,2.18603e-43,0;ANN=A|synonymous_variant|LOW|capsid|GENE_capsid|transcript|TRANSCRIPT_capsid|protein_coding|1/1|c.87G>A|p.Arg29Arg|87/792|87/792|29/263||WARNING_TRANSCRIPT_NO_STOP_CODON,A|upstream_gene_variant|MODIFIER|E3|GENE_E3|transcript|TRANSCRIPT_E3|protein_coding||c.-706G>A|||||706|WARNING_TRANSCRIPT_NO_START_CODON,A|upstream_gene_variant|MODIFIER|E2|GENE_E2|transcript|TRANSCRIPT_E2|protein_coding||c.-889G>A|||||889|WARNING_TRANSCRIPT_NO_START_CODON,A|upstream_gene_variant|MODIFIER|6K|GENE_6K|transcript|TRANSCRIPT_6K|protein_coding||c.-2158G>A|||||2158|WARNING_TRANSCRIPT_NO_START_CODON,A|upstream_gene_variant|MODIFIER|E1|GENE_E1|transcript|TRANSCRIPT_E1|protein_coding||c.-2341G>A|||||2341|WARNING_TRANSCRIPT_NO_START_CODON,A|downstream_gene_variant|MODIFIER|NS2|GENE_NS2|transcript|TRANSCRIPT_NS2|protein_coding||c.*3578G>A|||||3578|WARNING_TRANSCRIPT_NO_START_CODON,A|downstream_gene_variant|MODIFIER|NS3|GENE_NS3|transcript|TRANSCRIPT_NS3|protein_coding||c.*2006G>A|||||2006|WARNING_TRANSCRIPT_NO_START_CODON,A|downstream_gene_variant|MODIFIER|NS4|GENE_NS4|transcript|TRANSCRIPT_NS4|protein_coding||c.*155G>A|||||155|WARNING_TRANSCRIPT_NO_START_CODON,A|non_coding_transcript_variant|MODIFIER|EDEN.1|null|transcript|EDEN.1|protein_coding||||||||WARNING_TRANSCRIPT_NO_START_CODON | N60: LOW | O60: Synonymous | P60: GT:PL | Q60: 0/1:202,0,255
A61: KP164568_BHI3734_H804698_2014_08_26_Human_Brazil | B61: 8484 | C61: . | D61: C | E61: 3 | F61: =E61*100/J61 -> 0.2827521206 | G61: A | H61: 1058 | I61: =H61*100/J61 -> 99.71724788 | J61: =H61+E61 -> 1061 | K61: 221.999 | L61: PASS | M61: DP=1054;VDB=0.988196;SGB=-0.693147;RPB=0.963439;MQB=0.96102;MQSB=0.0030792;BQB=0.999948;MQ0F=0;AF1=1;AC1=2;DP4=0,3,538,343;MQ=42;FQ=-281.989;PV4=0.0596447,1,0.37062,0.103139;ANN=A|missense_variant|MODERATE|E3|GENE_E3|transcript|TRANSCRIPT_E3|protein_coding|1/1|c.125C>A|p.Pro42His|125/183|125/183|42/60||WARNING_TRANSCRIPT_NO_START_CODON,A|upstream_gene_variant|MODIFIER|E2|GENE_E2|transcript|TRANSCRIPT_E2|protein_coding||c.-59C>A|||||59|WARNING_TRANSCRIPT_NO_START_CODON,A|upstream_gene_variant|MODIFIER|6K|GENE_6K|transcript|TRANSCRIPT_6K|protein_coding||c.-1328C>A|||||1328|WARNING_TRANSCRIPT_NO_START_CODON,A|upstream_gene_variant|MODIFIER|E1|GENE_E1|transcript|TRANSCRIPT_E1|protein_coding||c.-1511C>A|||||1511|WARNING_TRANSCRIPT_NO_START_CODON,A|downstream_gene_variant|MODIFIER|NS2|GENE_NS2|transcript|TRANSCRIPT_NS2|protein_coding||c.*4408C>A|||||4408|WARNING_TRANSCRIPT_NO_START_CODON,A|downstream_gene_variant|MODIFIER|NS3|GENE_NS3|transcript|TRANSCRIPT_NS3|protein_coding||c.*2836C>A|||||2836|WARNING_TRANSCRIPT_NO_START_CODON,A|downstream_gene_variant|MODIFIER|NS4|GENE_NS4|transcript|TRANSCRIPT_NS4|protein_coding||c.*985C>A|||||985|WARNING_TRANSCRIPT_NO_START_CODON,A|downstream_gene_variant|MODIFIER|capsid|GENE_capsid|transcript|TRANSCRIPT_capsid|protein_coding||c.*125C>A|||||125|WARNING_TRANSCRIPT_NO_STOP_CODON,A|non_coding_transcript_variant|MODIFIER|EDEN.1|null|transcript|EDEN.1|protein_coding||||||||WARNING_TRANSCRIPT_NO_START_CODON | N61: MODERATE | O61: Non-synonymous | P61: GT:PL | Q61: 1/1:255,255,0
A62: KP164568_BHI3734_H804698_2014_08_26_Human_Brazil | B62: 8521 | C62: . | D62: T | E62: 4 | F62: =E62*100/J62 -> 0.293040293 | G62: C | H62: 1361 | I62: =H62*100/J62 -> 99.70695971 | J62: =H62+E62 -> 1365 | K62: 221.999 | L62: PASS | M62: DP=1348;VDB=0.861765;SGB=-0.693147;RPB=0.801236;MQB=0.70223;MQSB=0.00208609;BQB=0.993065;MQ0F=0;AF1=1;AC1=2;DP4=1,2,550,516;MQ=42;FQ=-281.989;PV4=0.613409,0.431268,1,1;ANN=C|synonymous_variant|LOW|E3|GENE_E3|transcript|TRANSCRIPT_E3|protein_coding|1/1|c.162T>C|p.Cys54Cys|162/183|162/183|54/60||WARNING_TRANSCRIPT_NO_START_CODON,C|upstream_gene_variant|MODIFIER|E2|GENE_E2|transcript|TRANSCRIPT_E2|protein_coding||c.-22T>C|||||22|WARNING_TRANSCRIPT_NO_START_CODON,C|upstream_gene_variant|MODIFIER|6K|GENE_6K|transcript|TRANSCRIPT_6K|protein_coding||c.-1291T>C|||||1291|WARNING_TRANSCRIPT_NO_START_CODON,C|upstream_gene_variant|MODIFIER|E1|GENE_E1|transcript|TRANSCRIPT_E1|protein_coding||c.-1474T>C|||||1474|WARNING_TRANSCRIPT_NO_START_CODON,C|downstream_gene_variant|MODIFIER|NS2|GENE_NS2|transcript|TRANSCRIPT_NS2|protein_coding||c.*4445T>C|||||4445|WARNING_TRANSCRIPT_NO_START_CODON,C|downstream_gene_variant|MODIFIER|NS3|GENE_NS3|transcript|TRANSCRIPT_NS3|protein_coding||c.*2873T>C|||||2873|WARNING_TRANSCRIPT_NO_START_CODON,C|downstream_gene_variant|MODIFIER|NS4|GENE_NS4|transcript|TRANSCRIPT_NS4|protein_coding||c.*1022T>C|||||1022|WARNING_TRANSCRIPT_NO_START_CODON,C|downstream_gene_variant|MODIFIER|capsid|GENE_capsid|transcript|TRANSCRIPT_capsid|protein_coding||c.*162T>C|||||162|WARNING_TRANSCRIPT_NO_STOP_CODON,C|non_coding_transcript_variant|MODIFIER|EDEN.1|null|transcript|EDEN.1|protein_coding||||||||WARNING_TRANSCRIPT_NO_START_CODON | N62: LOW | O62: Synonymous | P62: GT:PL | Q62: 1/1:255,255,0
A63: KP164568_BHI3734_H804698_2014_08_26_Human_Brazil | B63: 8588 | C63: . | D63: T | E63: 962 | F63: =E63*100/J63 -> 71.10125647 | G63: C | H63: 391 | I63: =H63*100/J63 -> 28.89874353 | J63: =H63+E63 -> 1353 | K63: 225.009 | L63: PASS | M63: DP=1335;VDB=0.872411;SGB=-0.693147;RPB=0;MQB=0.235795;MQSB=0.975841;BQB=3.78818e-12;MQ0F=0;AF1=0.5;AC1=1;DP4=378,395,273,53;MQ=42;FQ=225.007;PV4=7.27066e-29,0.00621196,0.00963727,0;ANN=C|synonymous_variant|LOW|E2|GENE_E2|transcript|TRANSCRIPT_E2|protein_coding|1/1|c.46T>C|p.Leu16Leu|46/1269|46/1269|16/422||WARNING_TRANSCRIPT_NO_START_CODON,C|upstream_gene_variant|MODIFIER|6K|GENE_6K|transcript|TRANSCRIPT_6K|protein_coding||c.-1224T>C|||||1224|WARNING_TRANSCRIPT_NO_START_CODON,C|upstream_gene_variant|MODIFIER|E1|GENE_E1|transcript|TRANSCRIPT_E1|protein_coding||c.-1407T>C|||||1407|WARNING_TRANSCRIPT_NO_START_CODON,C|downstream_gene_variant|MODIFIER|NS2|GENE_NS2|transcript|TRANSCRIPT_NS2|protein_coding||c.*4512T>C|||||4512|WARNING_TRANSCRIPT_NO_START_CODON,C|downstream_gene_variant|MODIFIER|NS3|GENE_NS3|transcript|TRANSCRIPT_NS3|protein_coding||c.*2940T>C|||||2940|WARNING_TRANSCRIPT_NO_START_CODON,C|downstream_gene_variant|MODIFIER|NS4|GENE_NS4|transcript|TRANSCRIPT_NS4|protein_coding||c.*1089T>C|||||1089|WARNING_TRANSCRIPT_NO_START_CODON,C|downstream_gene_variant|MODIFIER|capsid|GENE_capsid|transcript|TRANSCRIPT_capsid|protein_coding||c.*229T>C|||||229|WARNING_TRANSCRIPT_NO_STOP_CODON,C|downstream_gene_variant|MODIFIER|E3|GENE_E3|transcript|TRANSCRIPT_E3|protein_coding||c.*46T>C|||||46|WARNING_TRANSCRIPT_NO_START_CODON,C|non_coding_transcript_variant|MODIFIER|EDEN.1|null|transcript|EDEN.1|protein_coding||||||||WARNING_TRANSCRIPT_NO_START_CODON | N63: LOW | O63: Synonymous | P63: GT:PL | Q63: 0/1:255,0,255
A64: KP164568_BHI3734_H804698_2014_08_26_Human_Brazil | B64: 8659 | C64: . | D64: T | E64: 3 | F64: =E64*100/J64 -> 1.408450704 | G64: C | H64: 210 | I64: =H64*100/J64 -> 98.5915493 | J64: =H64+E64 -> 213 | K64: 221.999 | L64: PASS | M64: DP=213;VDB=1;SGB=-0.693147;RPB=0.526894;MQB=0.992606;MQSB=0.910993;BQB=0.493848;MQ0F=0;AF1=1;AC1=2;DP4=3,0,135,60;MQ=42;FQ=-281.989;PV4=0.554872,1,0.409517,0.00376217;ANN=C|synonymous_variant|LOW|E2|GENE_E2|transcript|TRANSCRIPT_E2|protein_coding|1/1|c.117T>C|p.Asn39Asn|117/1269|117/1269|39/422||WARNING_TRANSCRIPT_NO_START_CODON,C|upstream_gene_variant|MODIFIER|6K|GENE_6K|transcript|TRANSCRIPT_6K|protein_coding||c.-1153T>C|||||1153|WARNING_TRANSCRIPT_NO_START_CODON,C|upstream_gene_variant|MODIFIER|E1|GENE_E1|transcript|TRANSCRIPT_E1|protein_coding||c.-1336T>C|||||1336|WARNING_TRANSCRIPT_NO_START_CODON,C|downstream_gene_variant|MODIFIER|NS2|GENE_NS2|transcript|TRANSCRIPT_NS2|protein_coding||c.*4583T>C|||||4583|WARNING_TRANSCRIPT_NO_START_CODON,C|downstream_gene_variant|MODIFIER|NS3|GENE_NS3|transcript|TRANSCRIPT_NS3|protein_coding||c.*3011T>C|||||3011|WARNING_TRANSCRIPT_NO_START_CODON,C|downstream_gene_variant|MODIFIER|NS4|GENE_NS4|transcript|TRANSCRIPT_NS4|protein_coding||c.*1160T>C|||||1160|WARNING_TRANSCRIPT_NO_START_CODON,C|downstream_gene_variant|MODIFIER|capsid|GENE_capsid|transcript|TRANSCRIPT_capsid|protein_coding||c.*300T>C|||||300|WARNING_TRANSCRIPT_NO_STOP_CODON,C|downstream_gene_variant|MODIFIER|E3|GENE_E3|transcript|TRANSCRIPT_E3|protein_coding||c.*117T>C|||||117|WARNING_TRANSCRIPT_NO_START_CODON,C|non_coding_transcript_variant|MODIFIER|EDEN.1|null|transcript|EDEN.1|protein_coding||||||||WARNING_TRANSCRIPT_NO_START_CODON | N64: LOW | O64: Synonymous | P64: GT:PL | Q64: 1/1:255,255,0
A65: KP164568_BHI3734_H804698_2014_08_26_Human_Brazil | B65: 9334 | D65: A | E65: 0 | F65: =E65*100/J65 -> 0 | G65: G | H65: 540 | I65: =H65*100/J65 -> 100 | J65: =H65+E65 -> 540 | N65: LOW | O65: Synonymous
A66: KP164568_BHI3734_H804698_2014_08_26_Human_Brazil | B66: 9847 | C66: . | D66: T | E66: 34 | F66: =E66*100/J66 -> 13.28125 | G66: C | H66: 222 | I66: =H66*100/J66 -> 86.71875 | J66: =H66+E66 -> 256 | K66: 166.998 | L66: PASS | M66: DP=256;VDB=0;SGB=-0.693147;RPB=1.92054e-15;MQB=0.999314;MQSB=0.990429;BQB=0.982983;MQ0F=0;AF1=1;AC1=2;DP4=9,19,193,5;MQ=42;FQ=-96.9866;PV4=1.17559e-16,0.106173,0.260539,1.13319e-07;ANN=C|synonymous_variant|LOW|6K|GENE_6K|transcript|TRANSCRIPT_6K|protein_coding|1/1|c.36T>C|p.Asn12Asn|36/183|36/183|12/60||WARNING_TRANSCRIPT_NO_START_CODON,C|upstream_gene_variant|MODIFIER|E1|GENE_E1|transcript|TRANSCRIPT_E1|protein_coding||c.-148T>C|||||148|WARNING_TRANSCRIPT_NO_START_CODON,C|downstream_gene_variant|MODIFIER|NS3|GENE_NS3|transcript|TRANSCRIPT_NS3|protein_coding||c.*4199T>C|||||4199|WARNING_TRANSCRIPT_NO_START_CODON,C|downstream_gene_variant|MODIFIER|NS4|GENE_NS4|transcript|TRANSCRIPT_NS4|protein_coding||c.*2348T>C|||||2348|WARNING_TRANSCRIPT_NO_START_CODON,C|downstream_gene_variant|MODIFIER|capsid|GENE_capsid|transcript|TRANSCRIPT_capsid|protein_coding||c.*1488T>C|||||1488|WARNING_TRANSCRIPT_NO_STOP_CODON,C|downstream_gene_variant|MODIFIER|E3|GENE_E3|transcript|TRANSCRIPT_E3|protein_coding||c.*1305T>C|||||1305|WARNING_TRANSCRIPT_NO_START_CODON,C|downstream_gene_variant|MODIFIER|E2|GENE_E2|transcript|TRANSCRIPT_E2|protein_coding||c.*36T>C|||||36|WARNING_TRANSCRIPT_NO_START_CODON,C|non_coding_transcript_variant|MODIFIER|EDEN.1|null|transcript|EDEN.1|protein_coding||||||||WARNING_TRANSCRIPT_NO_START_CODON | N66: LOW | O66: Synonymous | P66: GT:PL | Q66: 1/1:200,70,0
A67: KP164568_BHI3734_H804698_2014_08_26_Human_Brazil | B67: 10846 | C67: . | D67: T | E67: 151 | F67: =E67*100/J67 -> 39.01808786 | G67: C | H67: 236 | I67: =H67*100/J67 -> 60.98191214 | J67: =H67+E67 -> 387 | K67: 204.009 | L67: PASS | M67: DP=384;VDB=0;SGB=-0.693147;RPB=1.46936e-08;MQB=0.907424;MQSB=0.97764;BQB=0.0226365;MQ0F=0;AF1=0.5;AC1=1;DP4=85,15,191,0;MQ=42;FQ=206.983;PV4=5.26235e-08,6.16497e-05,1,2.79149e-09;ANN=C|synonymous_variant|LOW|E1|GENE_E1|transcript|TRANSCRIPT_E1|protein_coding|1/1|c.852T>C|p.Asp284Asp|852/1317|852/1317|284/438||WARNING_TRANSCRIPT_NO_START_CODON,C|downstream_gene_variant|MODIFIER|NS4|GENE_NS4|transcript|TRANSCRIPT_NS4|protein_coding||c.*3347T>C|||||3347|WARNING_TRANSCRIPT_NO_START_CODON,C|downstream_gene_variant|MODIFIER|capsid|GENE_capsid|transcript|TRANSCRIPT_capsid|protein_coding||c.*2487T>C|||||2487|WARNING_TRANSCRIPT_NO_STOP_CODON,C|downstream_gene_variant|MODIFIER|E3|GENE_E3|transcript|TRANSCRIPT_E3|protein_coding||c.*2304T>C|||||2304|WARNING_TRANSCRIPT_NO_START_CODON,C|downstream_gene_variant|MODIFIER|E2|GENE_E2|transcript|TRANSCRIPT_E2|protein_coding||c.*1035T>C|||||1035|WARNING_TRANSCRIPT_NO_START_CODON,C|downstream_gene_variant|MODIFIER|6K|GENE_6K|transcript|TRANSCRIPT_6K|protein_coding||c.*852T>C|||||852|WARNING_TRANSCRIPT_NO_START_CODON,C|non_coding_transcript_variant|MODIFIER|EDEN.1|null|transcript|EDEN.1|protein_coding||||||||WARNING_TRANSCRIPT_NO_START_CODON | N67: LOW | O67: Synonymous | P67: GT:PL | Q67: 0/1:234,0,255
A68: KP164568_BHI3734_H804698_2014_08_26_Human_Brazil | B68: 11057 | C68: . | D68: T | E68: 486 | F68: =E68*100/J68 -> 44.62809917 | G68: C | H68: 603 | I68: =H68*100/J68 -> 55.37190083 | J68: =H68+E68 -> 1089 | K68: 225.009 | L68: PASS | M68: DP=1086;VDB=0.443251;SGB=-0.693147;RPB=0.157029;MQB=0.978159;MQSB=0.93091;BQB=0.00171695;MQ0F=0;AF1=0.5;AC1=1;DP4=110,276,171,283;MQ=42;FQ=225.007;PV4=0.0053178,1,0.419547,1;ANN=C|missense_variant|MODERATE|E1|GENE_E1|transcript|TRANSCRIPT_E1|protein_coding|1/1|c.1063T>C|p.Ser355Pro|1063/1317|1063/1317|355/438||WARNING_TRANSCRIPT_NO_START_CODON,C|downstream_gene_variant|MODIFIER|NS4|GENE_NS4|transcript|TRANSCRIPT_NS4|protein_coding||c.*3558T>C|||||3558|WARNING_TRANSCRIPT_NO_START_CODON,C|downstream_gene_variant|MODIFIER|capsid|GENE_capsid|transcript|TRANSCRIPT_capsid|protein_coding||c.*2698T>C|||||2698|WARNING_TRANSCRIPT_NO_STOP_CODON,C|downstream_gene_variant|MODIFIER|E3|GENE_E3|transcript|TRANSCRIPT_E3|protein_coding||c.*2515T>C|||||2515|WARNING_TRANSCRIPT_NO_START_CODON,C|downstream_gene_variant|MODIFIER|E2|GENE_E2|transcript|TRANSCRIPT_E2|protein_coding||c.*1246T>C|||||1246|WARNING_TRANSCRIPT_NO_START_CODON,C|downstream_gene_variant|MODIFIER|6K|GENE_6K|transcript|TRANSCRIPT_6K|protein_coding||c.*1063T>C|||||1063|WARNING_TRANSCRIPT_NO_START_CODON,C|non_coding_transcript_variant|MODIFIER|EDEN.1|null|transcript|EDEN.1|protein_coding||||||||WARNING_TRANSCRIPT_NO_START_CODON | N68: MODERATE | O68: Non-synonymous | P68: GT:PL | Q68: 0/1:255,0,255

Sheet 290P274
A1: #CHROM | B1: POS | C1: ID | D1: REF | E1: Nº reads | F1: BHI3734 reads support | G1: ALT | H1: Nº reads | I1: PER160 reas support | J1: Total reads | K1: QUAL | L1: FILTER | M1: INFO | N1: Impact | O1: Nucleotide change | P1: FORMAT | Q1: BHI3734_290P274.sorted.dupli.removed.bam
A2: KP164568_BHI3734_H804698_2014_08_26_Human_Brazil | B2: 300 | C2: . | D2: G | E2: 457 | F2: =E2*100/J2 -> 54.79616307 | G2: C | H2: 377 | I2: =H2*100/J2 -> 45.20383693 | J2: =E2+H2 -> 834 | K2: 148.008 | L2: PASS | M2: DP=828;VDB=0;SGB=-0.693147;RPB=0.00427517;MQB=2.07392e-43;MQSB=0.00270191;BQB=1.526e-06;MQ0F=0.0507246;AF1=0.5;AC1=1;DP4=371,26,319,1;MQ=38;FQ=151.017;PV4=3.31593e-06,1,1.96564e-26,1;ANN=C|missense_variant|MODERATE|NS1|GENE_NS1|transcript|TRANSCRIPT_NS1|protein_coding|1/1|c.223G>C|p.Asp75His|223/1605|223/1605|75/534||WARNING_TRANSCRIPT_NO_STOP_CODON,C|upstream_gene_variant|MODIFIER|NS2|GENE_NS2|transcript|TRANSCRIPT_NS2|protein_coding||c.-1383G>C|||||1383|WARNING_TRANSCRIPT_NO_START_CODON,C|upstream_gene_variant|MODIFIER|NS3|GENE_NS3|transcript|TRANSCRIPT_NS3|protein_coding||c.-3777G>C|||||3777|WARNING_TRANSCRIPT_NO_START_CODON,C|non_coding_transcript_variant|MODIFIER|EDEN.1|null|transcript|EDEN.1|protein_coding||||||||WARNING_TRANSCRIPT_NO_START_CODON | N2: MODERATE | O2: Non-synonymous | P2: GT:PL | Q2: 0/1:178,0,255
A3: KP164568_BHI3734_H804698_2014_08_26_Human_Brazil | B3: 476 | C3: . | D3: C | E3: 1524 | F3: =E3*100/J3 -> 61.97641318 | G3: T | H3: 935 | I3: =H3*100/J3 -> 38.02358682 | J3: =E3+H3 -> 2459 | K3: 225.009 | L3: PASS | M3: DP=2449;VDB=0.00134339;SGB=-0.693147;RPB=0.916474;MQB=0;MQSB=4.72305e-11;BQB=0.154126;MQ0F=0.00285831;AF1=0.5;AC1=1;DP4=587,633,423,283;MQ=39;FQ=225.007;PV4=6.45315e-07,1,0,0.0274472;ANN=T|synonymous_variant|LOW|NS1|GENE_NS1|transcript|TRANSCRIPT_NS1|protein_coding|1/1|c.399C>T|p.Phe133Phe|399/1605|399/1605|133/534||WARNING_TRANSCRIPT_NO_STOP_CODON,T|upstream_gene_variant|MODIFIER|NS2|GENE_NS2|transcript|TRANSCRIPT_NS2|protein_coding||c.-1207C>T|||||1207|WARNING_TRANSCRIPT_NO_START_CODON,T|upstream_gene_variant|MODIFIER|NS3|GENE_NS3|transcript|TRANSCRIPT_NS3|protein_coding||c.-3601C>T|||||3601|WARNING_TRANSCRIPT_NO_START_CODON,T|non_coding_transcript_variant|MODIFIER|EDEN.1|null|transcript|EDEN.1|protein_coding||||||||WARNING_TRANSCRIPT_NO_START_CODON | N3: LOW | O3: Synonymous | P3: GT:PL | Q3: 0/1:255,0,255
A4: KP164568_BHI3734_H804698_2014_08_26_Human_Brazil | B4: 482 | C4: . | D4: G | E4: 1311 | F4: =E4*100/J4 -> 63.24167873 | G4: A | H4: 762 | I4: =H4*100/J4 -> 36.75832127 | J4: =E4+H4 -> 2073 | K4: 225.009 | L4: PASS | M4: DP=2065;VDB=3.75518e-08;SGB=-0.693147;RPB=0.080346;MQB=0;MQSB=5.90113e-12;BQB=0.180358;MQ0F=0.00338983;AF1=0.5;AC1=1;DP4=519,537,363,219;MQ=39;FQ=225.007;PV4=2.85279e-07,1,0,1;ANN=A|synonymous_variant|LOW|NS1|GENE_NS1|transcript|TRANSCRIPT_NS1|protein_coding|1/1|c.405G>A|p.Leu135Leu|405/1605|405/1605|135/534||WARNING_TRANSCRIPT_NO_STOP_CODON,A|upstream_gene_variant|MODIFIER|NS2|GENE_NS2|transcript|TRANSCRIPT_NS2|protein_coding||c.-1201G>A|||||1201|WARNING_TRANSCRIPT_NO_START_CODON,A|upstream_gene_variant|MODIFIER|NS3|GENE_NS3|transcript|TRANSCRIPT_NS3|protein_coding||c.-3595G>A|||||3595|WARNING_TRANSCRIPT_NO_START_CODON,A|non_coding_transcript_variant|MODIFIER|EDEN.1|null|transcript|EDEN.1|protein_coding||||||||WARNING_TRANSCRIPT_NO_START_CODON | N4: LOW | O4: Synonymous | P4: GT:PL | Q4: 0/1:255,0,255
A5: KP164568_BHI3734_H804698_2014_08_26_Human_Brazil | B5: 548 | C5: . | D5: C | E5: 1305 | F5: =E5*100/J5 -> 70.6551164 | G5: T | H5: 542 | I5: =H5*100/J5 -> 29.3448836 | J5: =E5+H5 -> 1847 | K5: 179.009 | L5: PASS | M5: DP=1843;VDB=8.15629e-35;SGB=-0.693147;RPB=0.000102923;MQB=1.48538e-43;MQSB=0.0363161;BQB=0.0847426;MQ0F=0;AF1=0.5;AC1=1;DP4=361,695,76,387;MQ=40;FQ=182.017;PV4=4.11011e-13,0.000779361,1.4013e-45,0.177815;ANN=T|synonymous_variant|LOW|NS1|GENE_NS1|transcript|TRANSCRIPT_NS1|protein_coding|1/1|c.471C>T|p.His157His|471/1605|471/1605|157/534||WARNING_TRANSCRIPT_NO_STOP_CODON,T|upstream_gene_variant|MODIFIER|NS2|GENE_NS2|transcript|TRANSCRIPT_NS2|protein_coding||c.-1135C>T|||||1135|WARNING_TRANSCRIPT_NO_START_CODON,T|upstream_gene_variant|MODIFIER|NS3|GENE_NS3|transcript|TRANSCRIPT_NS3|protein_coding||c.-3529C>T|||||3529|WARNING_TRANSCRIPT_NO_START_CODON,T|non_coding_transcript_variant|MODIFIER|EDEN.1|null|transcript|EDEN.1|protein_coding||||||||WARNING_TRANSCRIPT_NO_START_CODON | N5: LOW | O5: Synonymous | P5: GT:PL | Q5: 0/1:209,0,255
A6: KP164568_BHI3734_H804698_2014_08_26_Human_Brazil | B6: 566 | C6: . | D6: C | E6: 1467 | F6: =E6*100/J6 -> 74.39148073 | G6: T | H6: 505 | I6: =H6*100/J6 -> 25.60851927 | J6: =E6+H6 -> 1972 | K6: 115.008 | L6: PASS | M6: DP=1967;VDB=2.29417e-16;SGB=-0.693147;RPB=7.07252e-09;MQB=4.87091e-42;MQSB=0.00272029;BQB=1.77415e-08;MQ0F=0;AF1=0.5;AC1=1;DP4=456,696,70,364;MQ=40;FQ=118.016;PV4=3.86373e-20,4.24014e-07,1.26117e-44,1.85427e-05;ANN=T|synonymous_variant|LOW|NS1|GENE_NS1|transcript|TRANSCRIPT_NS1|protein_coding|1/1|c.489C>T|p.Tyr163Tyr|489/1605|489/1605|163/534||WARNING_TRANSCRIPT_NO_STOP_CODON,T|upstream_gene_variant|MODIFIER|NS2|GENE_NS2|transcript|TRANSCRIPT_NS2|protein_coding||c.-1117C>T|||||1117|WARNING_TRANSCRIPT_NO_START_CODON,T|upstream_gene_variant|MODIFIER|NS3|GENE_NS3|transcript|TRANSCRIPT_NS3|protein_coding||c.-3511C>T|||||3511|WARNING_TRANSCRIPT_NO_START_CODON,T|non_coding_transcript_variant|MODIFIER|EDEN.1|null|transcript|EDEN.1|protein_coding||||||||WARNING_TRANSCRIPT_NO_START_CODON | N6: LOW | O6: Synonymous | P6: GT:PL | Q6: 0/1:145,0,255
A7: KP164568_BHI3734_H804698_2014_08_26_Human_Brazil | B7: 850 | C7: . | D7: G | E7: 804 | F7: =E7*100/J7 -> 72.30215827 | G7: T | H7: 308 | I7: =H7*100/J7 -> 27.69784173 | J7: =E7+H7 -> 1112 | K7: 63.0073 | L7: PASS | M7: DP=1111;VDB=0.0159834;SGB=-0.693147;RPB=1.90556e-08;MQB=0.438549;BQB=0.0126963;MQ0F=0;AF1=0.5;AC1=1;DP4=591,0,237,0;MQ=42;FQ=66.0155;PV4=1,0.020426,0.035421,1.40278e-11;ANN=T|missense_variant|MODERATE|NS1|GENE_NS1|transcript|TRANSCRIPT_NS1|protein_coding|1/1|c.773G>T|p.Trp258Leu|773/1605|773/1605|258/534||WARNING_TRANSCRIPT_NO_STOP_CODON,T|upstream_gene_variant|MODIFIER|NS2|GENE_NS2|transcript|TRANSCRIPT_NS2|protein_coding||c.-833G>T|||||833|WARNING_TRANSCRIPT_NO_START_CODON,T|upstream_gene_variant|MODIFIER|NS3|GENE_NS3|transcript|TRANSCRIPT_NS3|protein_coding||c.-3227G>T|||||3227|WARNING_TRANSCRIPT_NO_START_CODON,T|upstream_gene_variant|MODIFIER|NS4|GENE_NS4|transcript|TRANSCRIPT_NS4|protein_coding||c.-4817G>T|||||4817|WARNING_TRANSCRIPT_NO_START_CODON,T|non_coding_transcript_variant|MODIFIER|EDEN.1|null|transcript|EDEN.1|protein_coding||||||||WARNING_TRANSCRIPT_NO_START_CODON | N7: MODERATE | O7: Non-synonymous | P7: GT:PL | Q7: 0/1:93,0,216
A8: KP164568_BHI3734_H804698_2014_08_26_Human_Brazil | B8: 924 | C8: . | D8: G | E8: 381 | F8: =E8*100/J8 -> 25.93601089 | G8: T | H8: 1088 | I8: =H8*100/J8 -> 74.06398911 | J8: =E8+H8 -> 1469 | K8: 225.009 | L8: PASS | M8: DP=1461;VDB=0.995982;SGB=-0.693147;RPB=0.00811432;MQB=0.66357;MQSB=0.980143;BQB=0.0392676;MQ0F=0;AF1=0.5;AC1=1;DP4=165,112,509,254;MQ=42;FQ=215.752;PV4=0.0396051,1,0.0343265,1;ANN=T|stop_gained|HIGH|NS1|GENE_NS1|transcript|TRANSCRIPT_NS1|protein_coding|1/1|c.847G>T|p.Glu283*|847/1605|847/1605|283/534||WARNING_TRANSCRIPT_NO_STOP_CODON,T|upstream_gene_variant|MODIFIER|NS2|GENE_NS2|transcript|TRANSCRIPT_NS2|protein_coding||c.-759G>T|||||759|WARNING_TRANSCRIPT_NO_START_CODON,T|upstream_gene_variant|MODIFIER|NS3|GENE_NS3|transcript|TRANSCRIPT_NS3|protein_coding||c.-3153G>T|||||3153|WARNING_TRANSCRIPT_NO_START_CODON,T|upstream_gene_variant|MODIFIER|NS4|GENE_NS4|transcript|TRANSCRIPT_NS4|protein_coding||c.-4743G>T|||||4743|WARNING_TRANSCRIPT_NO_START_CODON,T|non_coding_transcript_variant|MODIFIER|EDEN.1|null|transcript|EDEN.1|protein_coding||||||||WARNING_TRANSCRIPT_NO_START_CODON | N8: HIGH | O8: Stop codon | P8: GT:PL | Q8: 0/1:255,0,243
A9: KP164568_BHI3734_H804698_2014_08_26_Human_Brazil | B9: 3323 | C9: . | D9: C | E9: 333 | F9: =E9*100/J9 -> 43.58638743 | G9: T | H9: 431 | I9: =H9*100/J9 -> 56.41361257 | J9: =E9+H9 -> 764 | K9: 225.009 | L9: PASS | M9: DP=758;VDB=0.00595587;SGB=-0.693147;RPB=0;MQB=0.618656;MQSB=0.650123;BQB=2.49167e-28;MQ0F=0;AF1=0.5;AC1=1;DP4=277,0,146,142;MQ=42;FQ=203.004;PV4=0,1,0.375621,1;ANN=T|synonymous_variant|LOW|NS2|GENE_NS2|transcript|TRANSCRIPT_NS2|protein_coding|1/1|c.1641C>T|p.Asn547Asn|1641/2394|1641/2394|547/797||WARNING_TRANSCRIPT_NO_START_CODON,T|upstream_gene_variant|MODIFIER|NS3|GENE_NS3|transcript|TRANSCRIPT_NS3|protein_coding||c.-754C>T|||||754|WARNING_TRANSCRIPT_NO_START_CODON,T|upstream_gene_variant|MODIFIER|NS4|GENE_NS4|transcript|TRANSCRIPT_NS4|protein_coding||c.-2344C>T|||||2344|WARNING_TRANSCRIPT_NO_START_CODON,T|upstream_gene_variant|MODIFIER|capsid|GENE_capsid|transcript|TRANSCRIPT_capsid|protein_coding||c.-4245C>T|||||4245|WARNING_TRANSCRIPT_NO_STOP_CODON,T|downstream_gene_variant|MODIFIER|NS1|GENE_NS1|transcript|TRANSCRIPT_NS1|protein_coding||c.*1641C>T|||||1641|WARNING_TRANSCRIPT_NO_STOP_CODON,T|non_coding_transcript_variant|MODIFIER|EDEN.1|null|transcript|EDEN.1|protein_coding||||||||WARNING_TRANSCRIPT_NO_START_CODON | N9: LOW | O9: Synonymous | P9: GT:PL | Q9: 0/1:255,0,230
A10: KP164568_BHI3734_H804698_2014_08_26_Human_Brazil | B10: 3491 | C10: . | D10: G | E10: 57 | F10: =E10*100/J10 -> 2.018413598 | G10: A | H10: 2767 | I10: =H10*100/J10 -> 97.9815864 | J10: =E10+H10 -> 2824 | K10: 221.999 | L10: PASS | M10: DP=2816;VDB=0.056663;SGB=-0.693147;RPB=4.88684e-27;MQB=6.75255e-30;MQSB=0.00418299;BQB=1.58719e-13;MQ0F=0.00639205;AF1=1;AC1=2;DP4=9,37,937,974;MQ=41;FQ=-281.989;PV4=6.85472e-05,1,1,1;ANN=A|synonymous_variant|LOW|NS2|GENE_NS2|transcript|TRANSCRIPT_NS2|protein_coding|1/1|c.1809G>A|p.Pro603Pro|1809/2394|1809/2394|603/797||WARNING_TRANSCRIPT_NO_START_CODON,A|upstream_gene_variant|MODIFIER|NS3|GENE_NS3|transcript|TRANSCRIPT_NS3|protein_coding||c.-586G>A|||||586|WARNING_TRANSCRIPT_NO_START_CODON,A|upstream_gene_variant|MODIFIER|NS4|GENE_NS4|transcript|TRANSCRIPT_NS4|protein_coding||c.-2176G>A|||||2176|WARNING_TRANSCRIPT_NO_START_CODON,A|upstream_gene_variant|MODIFIER|capsid|GENE_capsid|transcript|TRANSCRIPT_capsid|protein_coding||c.-4077G>A|||||4077|WARNING_TRANSCRIPT_NO_STOP_CODON,A|upstream_gene_variant|MODIFIER|E3|GENE_E3|transcript|TRANSCRIPT_E3|protein_coding||c.-4869G>A|||||4869|WARNING_TRANSCRIPT_NO_START_CODON,A|downstream_gene_variant|MODIFIER|NS1|GENE_NS1|transcript|TRANSCRIPT_NS1|protein_coding||c.*1809G>A|||||1809|WARNING_TRANSCRIPT_NO_STOP_CODON,A|non_coding_transcript_variant|MODIFIER|EDEN.1|null|transcript|EDEN.1|protein_coding||||||||WARNING_TRANSCRIPT_NO_START_CODON | N10: LOW | O10: Synonymous | P10: GT:PL | Q10: 1/1:255,255,0
A11: KP164568_BHI3734_H804698_2014_08_26_Human_Brazil | B11: 3599 | C11: . | D11: C | E11: 760 | F11: =E11*100/J11 -> 76.45875252 | G11: T | H11: 234 | I11: =H11*100/J11 -> 23.54124748 | J11: =E11+H11 -> 994 | K11: 145.008 | L11: PASS | M11: DP=998;VDB=0;SGB=-0.693147;RPB=0;MQB=8.4897e-18;MQSB=4.04656e-07;BQB=8.97885e-23;MQ0F=0;AF1=0.5;AC1=1;DP4=587,7,41,155;MQ=41;FQ=148.017;PV4=0,3.64939e-05,4.32163e-25,0;ANN=T|synonymous_variant|LOW|NS2|GENE_NS2|transcript|TRANSCRIPT_NS2|protein_coding|1/1|c.1917C>T|p.Val639Val|1917/2394|1917/2394|639/797||WARNING_TRANSCRIPT_NO_START_CODON,T|upstream_gene_variant|MODIFIER|NS3|GENE_NS3|transcript|TRANSCRIPT_NS3|protein_coding||c.-478C>T|||||478|WARNING_TRANSCRIPT_NO_START_CODON,T|upstream_gene_variant|MODIFIER|NS4|GENE_NS4|transcript|TRANSCRIPT_NS4|protein_coding||c.-2068C>T|||||2068|WARNING_TRANSCRIPT_NO_START_CODON,T|upstream_gene_variant|MODIFIER|capsid|GENE_capsid|transcript|TRANSCRIPT_capsid|protein_coding||c.-3969C>T|||||3969|WARNING_TRANSCRIPT_NO_STOP_CODON,T|upstream_gene_variant|MODIFIER|E3|GENE_E3|transcript|TRANSCRIPT_E3|protein_coding||c.-4761C>T|||||4761|WARNING_TRANSCRIPT_NO_START_CODON,T|upstream_gene_variant|MODIFIER|E2|GENE_E2|transcript|TRANSCRIPT_E2|protein_coding||c.-4944C>T|||||4944|WARNING_TRANSCRIPT_NO_START_CODON,T|downstream_gene_variant|MODIFIER|NS1|GENE_NS1|transcript|TRANSCRIPT_NS1|protein_coding||c.*1917C>T|||||1917|WARNING_TRANSCRIPT_NO_STOP_CODON,T|non_coding_transcript_variant|MODIFIER|EDEN.1|null|transcript|EDEN.1|protein_coding||||||||WARNING_TRANSCRIPT_NO_START_CODON | N11: LOW | O11: Synonymous | P11: GT:PL | Q11: 0/1:175,0,255
A12: KP164568_BHI3734_H804698_2014_08_26_Human_Brazil | B12: 3812 | C12: . | D12: T | E12: 1 | F12: =E12*100/J12 -> 0.07794232268 | G12: C | H12: 1282 | I12: =H12*100/J12 -> 99.92205768 | J12: =E12+H12 -> 1283 | K12: 221.999 | L12: PASS | M12: DP=1280;VDB=0.0254129;SGB=-0.693147;RPB=1;MQB=1;MQSB=0.752564;BQB=1;MQ0F=0;AF1=1;AC1=2;DP4=0,1,352,571;MQ=42;FQ=-281.989;PV4=1,1,0.472613,1;ANN=C|synonymous_variant|LOW|NS2|GENE_NS2|transcript|TRANSCRIPT_NS2|protein_coding|1/1|c.2130T>C|p.Gly710Gly|2130/2394|2130/2394|710/797||WARNING_TRANSCRIPT_NO_START_CODON,C|upstream_gene_variant|MODIFIER|NS3|GENE_NS3|transcript|TRANSCRIPT_NS3|protein_coding||c.-265T>C|||||265|WARNING_TRANSCRIPT_NO_START_CODON,C|upstream_gene_variant|MODIFIER|NS4|GENE_NS4|transcript|TRANSCRIPT_NS4|protein_coding||c.-1855T>C|||||1855|WARNING_TRANSCRIPT_NO_START_CODON,C|upstream_gene_variant|MODIFIER|capsid|GENE_capsid|transcript|TRANSCRIPT_capsid|protein_coding||c.-3756T>C|||||3756|WARNING_TRANSCRIPT_NO_STOP_CODON,C|upstream_gene_variant|MODIFIER|E3|GENE_E3|transcript|TRANSCRIPT_E3|protein_coding||c.-4548T>C|||||4548|WARNING_TRANSCRIPT_NO_START_CODON,C|upstream_gene_variant|MODIFIER|E2|GENE_E2|transcript|TRANSCRIPT_E2|protein_coding||c.-4731T>C|||||4731|WARNING_TRANSCRIPT_NO_START_CODON,C|downstream_gene_variant|MODIFIER|NS1|GENE_NS1|transcript|TRANSCRIPT_NS1|protein_coding||c.*2130T>C|||||2130|WARNING_TRANSCRIPT_NO_STOP_CODON,C|non_coding_transcript_variant|MODIFIER|EDEN.1|null|transcript|EDEN.1|protein_coding||||||||WARNING_TRANSCRIPT_NO_START_CODON | N12: LOW | O12: Synonymous | P12: GT:PL | Q12: 1/1:255,255,0
A13: KP164568_BHI3734_H804698_2014_08_26_Human_Brazil | B13: 5094 | D13: C | E13: 636 | F13: =E13*100/J13 -> 78.32512315 | G13: G | H13: 176 | I13: =H13*100/J13 -> 21.67487685 | J13: =E13+H13 -> 812 | M13: Leu -> Val | N13: MODERATE | O13: Non-synonymous
A14: KP164568_BHI3734_H804698_2014_08_26_Human_Brazil | B14: 7648 | C14: . | D14: A | E14: 2959 | F14: =E14*100/J14 -> 83.729485 | G14: C | H14: 575 | I14: =H14*100/J14 -> 16.270515 | J14: =E14+H14 -> 3534 | K14: 46.0072 | L14: PASS | M14: DP=3483;VDB=1;SGB=-0.693147;RPB=0.974631;MQB=1.18093e-07;MQSB=0.989681;BQB=2.63822e-32;MQ0F=0.000574218;AF1=0.5;AC1=1;DP4=1737,668,265,224;MQ=42;FQ=49.0153;PV4=2.1645e-14,9.66952e-07,7.55531e-24,0;ANN=C|synonymous_variant|LOW|capsid|GENE_capsid|transcript|TRANSCRIPT_capsid|protein_coding|1/1|c.81A>C|p.Val27Val|81/792|81/792|27/263||WARNING_TRANSCRIPT_NO_STOP_CODON,C|upstream_gene_variant|MODIFIER|E3|GENE_E3|transcript|TRANSCRIPT_E3|protein_coding||c.-712A>C|||||712|WARNING_TRANSCRIPT_NO_START_CODON,C|upstream_gene_variant|MODIFIER|E2|GENE_E2|transcript|TRANSCRIPT_E2|protein_coding||c.-895A>C|||||895|WARNING_TRANSCRIPT_NO_START_CODON,C|upstream_gene_variant|MODIFIER|6K|GENE_6K|transcript|TRANSCRIPT_6K|protein_coding||c.-2164A>C|||||2164|WARNING_TRANSCRIPT_NO_START_CODON,C|upstream_gene_variant|MODIFIER|E1|GENE_E1|transcript|TRANSCRIPT_E1|protein_coding||c.-2347A>C|||||2347|WARNING_TRANSCRIPT_NO_START_CODON,C|downstream_gene_variant|MODIFIER|NS2|GENE_NS2|transcript|TRANSCRIPT_NS2|protein_coding||c.*3572A>C|||||3572|WARNING_TRANSCRIPT_NO_START_CODON,C|downstream_gene_variant|MODIFIER|NS3|GENE_NS3|transcript|TRANSCRIPT_NS3|protein_coding||c.*2000A>C|||||2000|WARNING_TRANSCRIPT_NO_START_CODON,C|downstream_gene_variant|MODIFIER|NS4|GENE_NS4|transcript|TRANSCRIPT_NS4|protein_coding||c.*149A>C|||||149|WARNING_TRANSCRIPT_NO_START_CODON,C|non_coding_transcript_variant|MODIFIER|EDEN.1|null|transcript|EDEN.1|protein_coding||||||||WARNING_TRANSCRIPT_NO_START_CODON | N14: LOW | O14: Synonymous | P14: GT:PL | Q14: 0/1:76,0,255
A15: KP164568_BHI3734_H804698_2014_08_26_Human_Brazil | B15: 7654 | C15: . | D15: G | E15: 3073 | F15: =E15*100/J15 -> 78.47293156 | G15: A | H15: 843 | I15: =H15*100/J15 -> 21.52706844 | J15: =E15+H15 -> 3916 | K15: 138.008 | L15: PASS | M15: DP=3860;VDB=0.999633;SGB=-0.693147;RPB=0;MQB=2.09809e-05;MQSB=0.998033;BQB=1.02367e-34;MQ0F=0.000518135;AF1=0.5;AC1=1;DP4=1883,563,557,167;MQ=42;FQ=141.016;PV4=1,3.24979e-11,3.71751e-20,0;ANN=A|synonymous_variant|LOW|capsid|GENE_capsid|transcript|TRANSCRIPT_capsid|protein_coding|1/1|c.87G>A|p.Arg29Arg|87/792|87/792|29/263||WARNING_TRANSCRIPT_NO_STOP_CODON,A|upstream_gene_variant|MODIFIER|E3|GENE_E3|transcript|TRANSCRIPT_E3|protein_coding||c.-706G>A|||||706|WARNING_TRANSCRIPT_NO_START_CODON,A|upstream_gene_variant|MODIFIER|E2|GENE_E2|transcript|TRANSCRIPT_E2|protein_coding||c.-889G>A|||||889|WARNING_TRANSCRIPT_NO_START_CODON,A|upstream_gene_variant|MODIFIER|6K|GENE_6K|transcript|TRANSCRIPT_6K|protein_coding||c.-2158G>A|||||2158|WARNING_TRANSCRIPT_NO_START_CODON,A|upstream_gene_variant|MODIFIER|E1|GENE_E1|transcript|TRANSCRIPT_E1|protein_coding||c.-2341G>A|||||2341|WARNING_TRANSCRIPT_NO_START_CODON,A|downstream_gene_variant|MODIFIER|NS2|GENE_NS2|transcript|TRANSCRIPT_NS2|protein_coding||c.*3578G>A|||||3578|WARNING_TRANSCRIPT_NO_START_CODON,A|downstream_gene_variant|MODIFIER|NS3|GENE_NS3|transcript|TRANSCRIPT_NS3|protein_coding||c.*2006G>A|||||2006|WARNING_TRANSCRIPT_NO_START_CODON,A|downstream_gene_variant|MODIFIER|NS4|GENE_NS4|transcript|TRANSCRIPT_NS4|protein_coding||c.*155G>A|||||155|WARNING_TRANSCRIPT_NO_START_CODON,A|non_coding_transcript_variant|MODIFIER|EDEN.1|null|transcript|EDEN.1|protein_coding||||||||WARNING_TRANSCRIPT_NO_START_CODON | N15: LOW | O15: Synonymous | P15: GT:PL | Q15: 0/1:168,0,255
A16: KP164568_BHI3734_H804698_2014_08_26_Human_Brazil | B16: 8484 | C16: . | D16: C | E16: 23 | F16: =E16*100/J16 -> 1.310541311 | G16: A | H16: 1732 | I16: =H16*100/J16 -> 98.68945869 | J16: =E16+H16 -> 1755 | K16: 221.999 | L16: PASS | M16: DP=1747;VDB=0.907507;SGB=-0.693147;RPB=0.201997;MQB=0.851317;MQSB=3.01486e-09;BQB=0.998953;MQ0F=0;AF1=1;AC1=2;DP4=12,5,837,540;MQ=41;FQ=-281.989;PV4=0.464604,1,0.222373,1;ANN=A|missense_variant|MODERATE|E3|GENE_E3|transcript|TRANSCRIPT_E3|protein_coding|1/1|c.125C>A|p.Pro42His|125/183|125/183|42/60||WARNING_TRANSCRIPT_NO_START_CODON,A|upstream_gene_variant|MODIFIER|E2|GENE_E2|transcript|TRANSCRIPT_E2|protein_coding||c.-59C>A|||||59|WARNING_TRANSCRIPT_NO_START_CODON,A|upstream_gene_variant|MODIFIER|6K|GENE_6K|transcript|TRANSCRIPT_6K|protein_coding||c.-1328C>A|||||1328|WARNING_TRANSCRIPT_NO_START_CODON,A|upstream_gene_variant|MODIFIER|E1|GENE_E1|transcript|TRANSCRIPT_E1|protein_coding||c.-1511C>A|||||1511|WARNING_TRANSCRIPT_NO_START_CODON,A|downstream_gene_variant|MODIFIER|NS2|GENE_NS2|transcript|TRANSCRIPT_NS2|protein_coding||c.*4408C>A|||||4408|WARNING_TRANSCRIPT_NO_START_CODON,A|downstream_gene_variant|MODIFIER|NS3|GENE_NS3|transcript|TRANSCRIPT_NS3|protein_coding||c.*2836C>A|||||2836|WARNING_TRANSCRIPT_NO_START_CODON,A|downstream_gene_variant|MODIFIER|NS4|GENE_NS4|transcript|TRANSCRIPT_NS4|protein_coding||c.*985C>A|||||985|WARNING_TRANSCRIPT_NO_START_CODON,A|downstream_gene_variant|MODIFIER|capsid|GENE_capsid|transcript|TRANSCRIPT_capsid|protein_coding||c.*125C>A|||||125|WARNING_TRANSCRIPT_NO_STOP_CODON,A|non_coding_transcript_variant|MODIFIER|EDEN.1|null|transcript|EDEN.1|protein_coding||||||||WARNING_TRANSCRIPT_NO_START_CODON | N16: MODERATE | O16: Non-synonymous | P16: GT:PL | Q16: 1/1:255,255,0
A17: KP164568_BHI3734_H804698_2014_08_26_Human_Brazil | B17: 8521 | C17: . | D17: T | E17: 11 | F17: =E17*100/J17 -> 0.5866666667 | G17: C | H17: 1864 | I17: =H17*100/J17 -> 99.41333333 | J17: =E17+H17 -> 1875 | K17: 221.999 | L17: PASS | M17: DP=1860;VDB=0.703604;SGB=-0.693147;RPB=0.994895;MQB=0.80711;MQSB=0.00135848;BQB=0.995298;MQ0F=0;AF1=1;AC1=2;DP4=5,5,766,701;MQ=41;FQ=-281.989;PV4=1,1,0.265512,0.115549;ANN=C|synonymous_variant|LOW|E3|GENE_E3|transcript|TRANSCRIPT_E3|protein_coding|1/1|c.162T>C|p.Cys54Cys|162/183|162/183|54/60||WARNING_TRANSCRIPT_NO_START_CODON,C|upstream_gene_variant|MODIFIER|E2|GENE_E2|transcript|TRANSCRIPT_E2|protein_coding||c.-22T>C|||||22|WARNING_TRANSCRIPT_NO_START_CODON,C|upstream_gene_variant|MODIFIER|6K|GENE_6K|transcript|TRANSCRIPT_6K|protein_coding||c.-1291T>C|||||1291|WARNING_TRANSCRIPT_NO_START_CODON,C|upstream_gene_variant|MODIFIER|E1|GENE_E1|transcript|TRANSCRIPT_E1|protein_coding||c.-1474T>C|||||1474|WARNING_TRANSCRIPT_NO_START_CODON,C|downstream_gene_variant|MODIFIER|NS2|GENE_NS2|transcript|TRANSCRIPT_NS2|protein_coding||c.*4445T>C|||||4445|WARNING_TRANSCRIPT_NO_START_CODON,C|downstream_gene_variant|MODIFIER|NS3|GENE_NS3|transcript|TRANSCRIPT_NS3|protein_coding||c.*2873T>C|||||2873|WARNING_TRANSCRIPT_NO_START_CODON,C|downstream_gene_variant|MODIFIER|NS4|GENE_NS4|transcript|TRANSCRIPT_NS4|protein_coding||c.*1022T>C|||||1022|WARNING_TRANSCRIPT_NO_START_CODON,C|downstream_gene_variant|MODIFIER|capsid|GENE_capsid|transcript|TRANSCRIPT_capsid|protein_coding||c.*162T>C|||||162|WARNING_TRANSCRIPT_NO_STOP_CODON,C|non_coding_transcript_variant|MODIFIER|EDEN.1|null|transcript|EDEN.1|protein_coding||||||||WARNING_TRANSCRIPT_NO_START_CODON | N17: LOW | O17: Synonymous | P17: GT:PL | Q17: 1/1:255,255,0
A18: KP164568_BHI3734_H804698_2014_08_26_Human_Brazil | B18: 8588 | C18: . | D18: T | E18: 670 | F18: =E18*100/J18 -> 56.11390285 | G18: C | H18: 524 | I18: =H18*100/J18 -> 43.88609715 | J18: =E18+H18 -> 1194 | K18: 225.009 | L18: PASS | M18: DP=1198;VDB=1;SGB=-0.693147;RPB=2.32687e-31;MQB=0.289358;MQSB=0.207542;BQB=1.74074e-08;MQ0F=0.00417362;AF1=0.5;AC1=1;DP4=290,250,333,116;MQ=42;FQ=225.007;PV4=3.03939e-11,0.0268224,1,0;ANN=C|synonymous_variant|LOW|E2|GENE_E2|transcript|TRANSCRIPT_E2|protein_coding|1/1|c.46T>C|p.Leu16Leu|46/1269|46/1269|16/422||WARNING_TRANSCRIPT_NO_START_CODON,C|upstream_gene_variant|MODIFIER|6K|GENE_6K|transcript|TRANSCRIPT_6K|protein_coding||c.-1224T>C|||||1224|WARNING_TRANSCRIPT_NO_START_CODON,C|upstream_gene_variant|MODIFIER|E1|GENE_E1|transcript|TRANSCRIPT_E1|protein_coding||c.-1407T>C|||||1407|WARNING_TRANSCRIPT_NO_START_CODON,C|downstream_gene_variant|MODIFIER|NS2|GENE_NS2|transcript|TRANSCRIPT_NS2|protein_coding||c.*4512T>C|||||4512|WARNING_TRANSCRIPT_NO_START_CODON,C|downstream_gene_variant|MODIFIER|NS3|GENE_NS3|transcript|TRANSCRIPT_NS3|protein_coding||c.*2940T>C|||||2940|WARNING_TRANSCRIPT_NO_START_CODON,C|downstream_gene_variant|MODIFIER|NS4|GENE_NS4|transcript|TRANSCRIPT_NS4|protein_coding||c.*1089T>C|||||1089|WARNING_TRANSCRIPT_NO_START_CODON,C|downstream_gene_variant|MODIFIER|capsid|GENE_capsid|transcript|TRANSCRIPT_capsid|protein_coding||c.*229T>C|||||229|WARNING_TRANSCRIPT_NO_STOP_CODON,C|downstream_gene_variant|MODIFIER|E3|GENE_E3|transcript|TRANSCRIPT_E3|protein_coding||c.*46T>C|||||46|WARNING_TRANSCRIPT_NO_START_CODON,C|non_coding_transcript_variant|MODIFIER|EDEN.1|null|transcript|EDEN.1|protein_coding||||||||WARNING_TRANSCRIPT_NO_START_CODON | N18: LOW | O18: Synonymous | P18: GT:PL | Q18: 0/1:255,0,255
A19: KP164568_BHI3734_H804698_2014_08_26_Human_Brazil | B19: 9400 | C19: . | D19: A | E19: 76 | F19: =E19*100/J19 -> 34.08071749 | G19: G | H19: 147 | I19: =H19*100/J19 -> 65.91928251 | J19: =E19+H19 -> 223 | K19: 225.009 | L19: PASS | M19: DP=220;VDB=8.49477e-17;SGB=-0.693147;RPB=3.59699e-05;MQB=0.828174;MQSB=0.0155724;BQB=0.780535;MQ0F=0.0181818;AF1=0.5;AC1=1;DP4=28,31,39,82;MQ=41;FQ=225.007;PV4=0.0509095,0.221413,0.13841,1.02458e-06;ANN=G|synonymous_variant|LOW|E2|GENE_E2|transcript|TRANSCRIPT_E2|protein_coding|1/1|c.858A>G|p.Leu286Leu|858/1269|858/1269|286/422||WARNING_TRANSCRIPT_NO_START_CODON,G|upstream_gene_variant|MODIFIER|6K|GENE_6K|transcript|TRANSCRIPT_6K|protein_coding||c.-412A>G|||||412|WARNING_TRANSCRIPT_NO_START_CODON,G|upstream_gene_variant|MODIFIER|E1|GENE_E1|transcript|TRANSCRIPT_E1|protein_coding||c.-595A>G|||||595|WARNING_TRANSCRIPT_NO_START_CODON,G|downstream_gene_variant|MODIFIER|NS3|GENE_NS3|transcript|TRANSCRIPT_NS3|protein_coding||c.*3752A>G|||||3752|WARNING_TRANSCRIPT_NO_START_CODON,G|downstream_gene_variant|MODIFIER|NS4|GENE_NS4|transcript|TRANSCRIPT_NS4|protein_coding||c.*1901A>G|||||1901|WARNING_TRANSCRIPT_NO_START_CODON,G|downstream_gene_variant|MODIFIER|capsid|GENE_capsid|transcript|TRANSCRIPT_capsid|protein_coding||c.*1041A>G|||||1041|WARNING_TRANSCRIPT_NO_STOP_CODON,G|downstream_gene_variant|MODIFIER|E3|GENE_E3|transcript|TRANSCRIPT_E3|protein_coding||c.*858A>G|||||858|WARNING_TRANSCRIPT_NO_START_CODON,G|non_coding_transcript_variant|MODIFIER|EDEN.1|null|transcript|EDEN.1|protein_coding||||||||WARNING_TRANSCRIPT_NO_START_CODON | N19: LOW | O19: Synonymous | P19: GT:PL | Q19: 0/1:255,0,255
A20: KP164568_BHI3734_H804698_2014_08_26_Human_Brazil | B20: 10600 | C20: . | D20: T | E20: 199 | F20: =E20*100/J20 -> 39.09626719 | G20: C | H20: 310 | I20: =H20*100/J20 -> 60.90373281 | J20: =E20+H20 -> 509 | K20: 225.009 | L20: PASS | M20: DP=496;VDB=0;SGB=-0.693147;RPB=2.84494e-10;MQB=0.999841;MQSB=0.426507;BQB=0.0568883;MQ0F=0.0282258;AF1=0.5;AC1=1;DP4=71,71,228,18;MQ=41;FQ=225.007;PV4=1.35561e-21,0.0246264,1,1.19627e-17;ANN=C|synonymous_variant|LOW|E1|GENE_E1|transcript|TRANSCRIPT_E1|protein_coding|1/1|c.606T>C|p.Asp202Asp|606/1317|606/1317|202/438||WARNING_TRANSCRIPT_NO_START_CODON,C|downstream_gene_variant|MODIFIER|NS3|GENE_NS3|transcript|TRANSCRIPT_NS3|protein_coding||c.*4952T>C|||||4952|WARNING_TRANSCRIPT_NO_START_CODON,C|downstream_gene_variant|MODIFIER|NS4|GENE_NS4|transcript|TRANSCRIPT_NS4|protein_coding||c.*3101T>C|||||3101|WARNING_TRANSCRIPT_NO_START_CODON,C|downstream_gene_variant|MODIFIER|capsid|GENE_capsid|transcript|TRANSCRIPT_capsid|protein_coding||c.*2241T>C|||||2241|WARNING_TRANSCRIPT_NO_STOP_CODON,C|downstream_gene_variant|MODIFIER|E3|GENE_E3|transcript|TRANSCRIPT_E3|protein_coding||c.*2058T>C|||||2058|WARNING_TRANSCRIPT_NO_START_CODON,C|downstream_gene_variant|MODIFIER|E2|GENE_E2|transcript|TRANSCRIPT_E2|protein_coding||c.*789T>C|||||789|WARNING_TRANSCRIPT_NO_START_CODON,C|downstream_gene_variant|MODIFIER|6K|GENE_6K|transcript|TRANSCRIPT_6K|protein_coding||c.*606T>C|||||606|WARNING_TRANSCRIPT_NO_START_CODON,C|non_coding_transcript_variant|MODIFIER|EDEN.1|null|transcript|EDEN.1|protein_coding||||||||WARNING_TRANSCRIPT_NO_START_CODON | N20: LOW | O20: Synonymous | P20: GT:PL | Q20: 0/1:255,0,255
A21: KP164568_BHI3734_H804698_2014_08_26_Human_Brazil | B21: 11124 | C21: . | D21: T | E21: 179 | F21: =E21*100/J21 -> 52.33918129 | G21: C | H21: 163 | I21: =H21*100/J21 -> 47.66081871 | J21: =E21+H21 -> 342 | K21: 225.009 | L21: PASS | M21: DP=338;VDB=0;SGB=-0.693147;RPB=0.80309;MQB=0.126153;MQSB=0.48094;BQB=8.66411e-26;MQ0F=0;AF1=0.5;AC1=1;DP4=87,6,139,3;MQ=41;FQ=225.007;PV4=0.160571,0,0.0358234,0.011691;ANN=C|missense_variant|MODERATE|E1|GENE_E1|transcript|TRANSCRIPT_E1|protein_coding|1/1|c.1130T>C|p.Val377Ala|1130/1317|1130/1317|377/438||WARNING_TRANSCRIPT_NO_START_CODON,C|downstream_gene_variant|MODIFIER|NS4|GENE_NS4|transcript|TRANSCRIPT_NS4|protein_coding||c.*3625T>C|||||3625|WARNING_TRANSCRIPT_NO_START_CODON,C|downstream_gene_variant|MODIFIER|capsid|GENE_capsid|transcript|TRANSCRIPT_capsid|protein_coding||c.*2765T>C|||||2765|WARNING_TRANSCRIPT_NO_STOP_CODON,C|downstream_gene_variant|MODIFIER|E3|GENE_E3|transcript|TRANSCRIPT_E3|protein_coding||c.*2582T>C|||||2582|WARNING_TRANSCRIPT_NO_START_CODON,C|downstream_gene_variant|MODIFIER|E2|GENE_E2|transcript|TRANSCRIPT_E2|protein_coding||c.*1313T>C|||||1313|WARNING_TRANSCRIPT_NO_START_CODON,C|downstream_gene_variant|MODIFIER|6K|GENE_6K|transcript|TRANSCRIPT_6K|protein_coding||c.*1130T>C|||||1130|WARNING_TRANSCRIPT_NO_START_CODON,C|non_coding_transcript_variant|MODIFIER|EDEN.1|null|transcript|EDEN.1|protein_coding||||||||WARNING_TRANSCRIPT_NO_START_CODON | N21: MODERATE | O21: Non-synonymous | P21: GT:PL | Q21: 0/1:255,0,255

Sheet 53P41
A1: #CHROM | B1: POS | C1: ID | D1: REF | E1: Nº reads | F1: BHI3734 reads support | G1: ALT | H1: Nº reads | I1: PER160 reas support | J1: Total reads | K1: QUAL | L1: FILTER | M1: INFO | N1: Impact | O1: Nucleotide change | P1: FORMAT | Q1: BHI3734_53P51.sorted.dupli.removed.bam
A2: KP164568_BHI3734_H804698_2014_08_26_Human_Brazil | B2: 359 | C2: . | D2: C | E2: 8 | F2: =E2*100/J2 -> 1.401050788 | G2: T | H2: 563 | I2: =H2*100/J2 -> 98.59894921 | J2: =H2+E2 -> 571 | K2: 221.999 | L2: PASS | M2: DP=569;VDB=3.82733e-19;SGB=-0.693147;RPB=0.652345;MQB=0.00255669;MQSB=0.0024635;BQB=0.299701;MQ0F=0;AF1=1;AC1=2;DP4=6,0,479,14;MQ=24;FQ=-281.989;PV4=1,1,1.37787e-07,0.377443;ANN=T|synonymous_variant|LOW|NS1|GENE_NS1|transcript|TRANSCRIPT_NS1|protein_coding|1/1|c.282C>T|p.Ala94Ala|282/1605|282/1605|94/534||WARNING_TRANSCRIPT_NO_STOP_CODON,T|upstream_gene_variant|MODIFIER|NS2|GENE_NS2|transcript|TRANSCRIPT_NS2|protein_coding||c.-1324C>T|||||1324|WARNING_TRANSCRIPT_NO_START_CODON,T|upstream_gene_variant|MODIFIER|NS3|GENE_NS3|transcript|TRANSCRIPT_NS3|protein_coding||c.-3718C>T|||||3718|WARNING_TRANSCRIPT_NO_START_CODON,T|non_coding_transcript_variant|MODIFIER|EDEN.1|null|transcript|EDEN.1|protein_coding||||||||WARNING_TRANSCRIPT_NO_START_CODON | N2: LOW | O2: Synonymous | P2: GT:PL | Q2: 1/1:255,255,0
A3: KP164568_BHI3734_H804698_2014_08_26_Human_Brazil | B3: 377 | C3: . | D3: A | E3: 7 | F3: =E3*100/J3 -> 0.9589041096 | G3: C | H3: 723 | I3: =H3*100/J3 -> 99.04109589 | J3: =H3+E3 -> 730 | K3: 221.999 | L3: PASS | M3: DP=729;VDB=8.74528e-06;SGB=-0.693147;RPB=0.500166;MQB=0.000500907;MQSB=0.000773059;BQB=0.998401;MQ0F=0.00137174;AF1=1;AC1=2;DP4=6,0,567,17;MQ=23;FQ=-281.989;PV4=1,1,4.09898e-11,1;ANN=C|synonymous_variant|LOW|NS1|GENE_NS1|transcript|TRANSCRIPT_NS1|protein_coding|1/1|c.300A>C|p.Leu100Leu|300/1605|300/1605|100/534||WARNING_TRANSCRIPT_NO_STOP_CODON,C|upstream_gene_variant|MODIFIER|NS2|GENE_NS2|transcript|TRANSCRIPT_NS2|protein_coding||c.-1306A>C|||||1306|WARNING_TRANSCRIPT_NO_START_CODON,C|upstream_gene_variant|MODIFIER|NS3|GENE_NS3|transcript|TRANSCRIPT_NS3|protein_coding||c.-3700A>C|||||3700|WARNING_TRANSCRIPT_NO_START_CODON,C|non_coding_transcript_variant|MODIFIER|EDEN.1|null|transcript|EDEN.1|protein_coding||||||||WARNING_TRANSCRIPT_NO_START_CODON | N3: LOW | O3: Synonymous | P3: GT:PL | Q3: 1/1:255,255,0
A4: KP164568_BHI3734_H804698_2014_08_26_Human_Brazil | B4: 386 | C4: . | D4: T | E4: 6 | F4: =E4*100/J4 -> 0.7772020725 | G4: C | H4: 766 | I4: =H4*100/J4 -> 99.22279793 | J4: =H4+E4 -> 772 | K4: 221.999 | L4: PASS | M4: DP=770;VDB=0.0078075;SGB=-0.693147;RPB=0.918905;MQB=0.000624522;MQSB=0.00269056;BQB=0.940767;MQ0F=0.0012987;AF1=1;AC1=2;DP4=4,1,588,23;MQ=23;FQ=-281.989;PV4=0.180748,1,9.25301e-12,1;ANN=C|synonymous_variant|LOW|NS1|GENE_NS1|transcript|TRANSCRIPT_NS1|protein_coding|1/1|c.309T>C|p.Ala103Ala|309/1605|309/1605|103/534||WARNING_TRANSCRIPT_NO_STOP_CODON,C|upstream_gene_variant|MODIFIER|NS2|GENE_NS2|transcript|TRANSCRIPT_NS2|protein_coding||c.-1297T>C|||||1297|WARNING_TRANSCRIPT_NO_START_CODON,C|upstream_gene_variant|MODIFIER|NS3|GENE_NS3|transcript|TRANSCRIPT_NS3|protein_coding||c.-3691T>C|||||3691|WARNING_TRANSCRIPT_NO_START_CODON,C|non_coding_transcript_variant|MODIFIER|EDEN.1|null|transcript|EDEN.1|protein_coding||||||||WARNING_TRANSCRIPT_NO_START_CODON | N4: LOW | O4: Synonymous | P4: GT:PL | Q4: 1/1:255,255,0
A5: KP164568_BHI3734_H804698_2014_08_26_Human_Brazil | B5: 413 | C5: . | D5: C | E5: 8 | F5: =E5*100/J5 -> 0.9685230024 | G5: T | H5: 818 | I5: =H5*100/J5 -> 99.031477 | J5: =H5+E5 -> 826 | K5: 221.999 | L5: PASS | M5: DP=826;VDB=0.998232;SGB=-0.693147;RPB=0.756783;MQB=0.000647355;MQSB=1.43915e-07;BQB=0.99868;MQ0F=0.0108959;AF1=1;AC1=2;DP4=3,2,533,127;MQ=21;FQ=-281.989;PV4=0.250104,0.208325,7.38739e-10,1;ANN=T|synonymous_variant|LOW|NS1|GENE_NS1|transcript|TRANSCRIPT_NS1|protein_coding|1/1|c.336C>T|p.Ile112Ile|336/1605|336/1605|112/534||WARNING_TRANSCRIPT_NO_STOP_CODON,T|upstream_gene_variant|MODIFIER|NS2|GENE_NS2|transcript|TRANSCRIPT_NS2|protein_coding||c.-1270C>T|||||1270|WARNING_TRANSCRIPT_NO_START_CODON,T|upstream_gene_variant|MODIFIER|NS3|GENE_NS3|transcript|TRANSCRIPT_NS3|protein_coding||c.-3664C>T|||||3664|WARNING_TRANSCRIPT_NO_START_CODON,T|non_coding_transcript_variant|MODIFIER|EDEN.1|null|transcript|EDEN.1|protein_coding||||||||WARNING_TRANSCRIPT_NO_START_CODON | N5: LOW | O5: Synonymous | P5: GT:PL | Q5: 1/1:255,255,0
A6: KP164568_BHI3734_H804698_2014_08_26_Human_Brazil | B6: 439 | C6: . | D6: C | E6: 6 | F6: =E6*100/J6 -> 0.5400540054 | G6: A | H6: 1105 | I6: =H6*100/J6 -> 99.45994599 | J6: =H6+E6 -> 1111 | K6: 203.999 | L6: PASS | M6: DP=1159;VDB=0.94457;SGB=-0.693147;RPB=0.385382;MQB=0.011349;MQSB=4.59076e-14;BQB=0.998369;MQ0F=0.0267472;AF1=1;AC1=2;DP4=2,1,558,280;MQ=19;FQ=-281.989;PV4=1,1,2.16068e-07,1;ANN=A|missense_variant|MODERATE|NS1|GENE_NS1|transcript|TRANSCRIPT_NS1|protein_coding|1/1|c.362C>A|p.Ala121Glu|362/1605|362/1605|121/534||WARNING_TRANSCRIPT_NO_STOP_CODON,A|upstream_gene_variant|MODIFIER|NS2|GENE_NS2|transcript|TRANSCRIPT_NS2|protein_coding||c.-1244C>A|||||1244|WARNING_TRANSCRIPT_NO_START_CODON,A|upstream_gene_variant|MODIFIER|NS3|GENE_NS3|transcript|TRANSCRIPT_NS3|protein_coding||c.-3638C>A|||||3638|WARNING_TRANSCRIPT_NO_START_CODON,A|non_coding_transcript_variant|MODIFIER|EDEN.1|null|transcript|EDEN.1|protein_coding||||||||WARNING_TRANSCRIPT_NO_START_CODON | N6: MODERATE | O6: Non-synonymous | P6: GT:PL | Q6: 1/1:237,255,0
A7: KP164568_BHI3734_H804698_2014_08_26_Human_Brazil | B7: 440 | C7: . | D7: A | E7: 3 | F7: =E7*100/J7 -> 0.2527379949 | G7: G | H7: 1184 | I7: =H7*100/J7 -> 99.74726201 | J7: =H7+E7 -> 1187 | K7: 209.999 | L7: PASS | M7: DP=1188;VDB=0.868559;SGB=-0.693147;RPB=0.707807;MQB=0;MQSB=3.42272e-13;BQB=0.926521;MQ0F=0.0260943;AF1=1;AC1=2;DP4=1,1,575,296;MQ=19;FQ=-281.989;PV4=1,0.347859,1.62847e-05,1;ANN=G|synonymous_variant|LOW|NS1|GENE_NS1|transcript|TRANSCRIPT_NS1|protein_coding|1/1|c.363A>G|p.Ala121Ala|363/1605|363/1605|121/534||WARNING_TRANSCRIPT_NO_STOP_CODON,G|upstream_gene_variant|MODIFIER|NS2|GENE_NS2|transcript|TRANSCRIPT_NS2|protein_coding||c.-1243A>G|||||1243|WARNING_TRANSCRIPT_NO_START_CODON,G|upstream_gene_variant|MODIFIER|NS3|GENE_NS3|transcript|TRANSCRIPT_NS3|protein_coding||c.-3637A>G|||||3637|WARNING_TRANSCRIPT_NO_START_CODON,G|non_coding_transcript_variant|MODIFIER|EDEN.1|null|transcript|EDEN.1|protein_coding||||||||WARNING_TRANSCRIPT_NO_START_CODON | N7: LOW | O7: Synonymous | P7: GT:PL | Q7: 1/1:243,255,0
A8: KP164568_BHI3734_H804698_2014_08_26_Human_Brazil | B8: 443 | C8: . | D8: A | E8: 3 | F8: =E8*100/J8 -> 0.2401921537 | G8: G | H8: 1246 | I8: =H8*100/J8 -> 99.75980785 | J8: =H8+E8 -> 1249 | K8: 217.999 | L8: PASS | M8: DP=1249;VDB=0.621685;SGB=-0.693147;RPB=0.607744;MQB=0;MQSB=1.12042e-13;BQB=0.810326;MQ0F=0.0248199;AF1=1;AC1=2;DP4=1,1,585,306;MQ=19;FQ=-281.989;PV4=1,1,2.01573e-05,1;ANN=G|synonymous_variant|LOW|NS1|GENE_NS1|transcript|TRANSCRIPT_NS1|protein_coding|1/1|c.366A>G|p.Val122Val|366/1605|366/1605|122/534||WARNING_TRANSCRIPT_NO_STOP_CODON,G|upstream_gene_variant|MODIFIER|NS2|GENE_NS2|transcript|TRANSCRIPT_NS2|protein_coding||c.-1240A>G|||||1240|WARNING_TRANSCRIPT_NO_START_CODON,G|upstream_gene_variant|MODIFIER|NS3|GENE_NS3|transcript|TRANSCRIPT_NS3|protein_coding||c.-3634A>G|||||3634|WARNING_TRANSCRIPT_NO_START_CODON,G|non_coding_transcript_variant|MODIFIER|EDEN.1|null|transcript|EDEN.1|protein_coding||||||||WARNING_TRANSCRIPT_NO_START_CODON | N8: LOW | O8: Synonymous | P8: GT:PL | Q8: 1/1:251,255,0
A9: KP164568_BHI3734_H804698_2014_08_26_Human_Brazil | B9: 476 | C9: . | D9: C | E9: 4 | F9: =E9*100/J9 -> 0.3499562555 | G9: T | H9: 1139 | I9: =H9*100/J9 -> 99.65004374 | J9: =H9+E9 -> 1143 | K9: 221.999 | L9: PASS | M9: DP=1143;VDB=2.20682e-16;SGB=-0.693147;RPB=0.609387;MQB=0.013417;MQSB=0.160259;BQB=0.577261;MQ0F=0.0227472;AF1=1;AC1=2;DP4=2,1,512,335;MQ=21;FQ=-281.989;PV4=1,1,2.48593e-05,1;ANN=T|synonymous_variant|LOW|NS1|GENE_NS1|transcript|TRANSCRIPT_NS1|protein_coding|1/1|c.399C>T|p.Phe133Phe|399/1605|399/1605|133/534||WARNING_TRANSCRIPT_NO_STOP_CODON,T|upstream_gene_variant|MODIFIER|NS2|GENE_NS2|transcript|TRANSCRIPT_NS2|protein_coding||c.-1207C>T|||||1207|WARNING_TRANSCRIPT_NO_START_CODON,T|upstream_gene_variant|MODIFIER|NS3|GENE_NS3|transcript|TRANSCRIPT_NS3|protein_coding||c.-3601C>T|||||3601|WARNING_TRANSCRIPT_NO_START_CODON,T|non_coding_transcript_variant|MODIFIER|EDEN.1|null|transcript|EDEN.1|protein_coding||||||||WARNING_TRANSCRIPT_NO_START_CODON | N9: LOW | O9: Synonymous | P9: GT:PL | Q9: 1/1:255,255,0
A10: KP164568_BHI3734_H804698_2014_08_26_Human_Brazil | B10: 482 | C10: . | D10: G | E10: 3 | F10: =E10*100/J10 -> 0.2824858757 | G10: A | H10: 1059 | I10: =H10*100/J10 -> 99.71751412 | J10: =H10+E10 -> 1062 | K10: 221.999 | L10: PASS | M10: DP=1062;VDB=2.88274e-23;SGB=-0.693147;RPB=1;MQB=1;MQSB=0.927504;BQB=1;MQ0F=0.0207156;AF1=1;AC1=2;DP4=1,0,457,351;MQ=21;FQ=-281.989;PV4=1,0.300236,0.00950017,1;ANN=A|synonymous_variant|LOW|NS1|GENE_NS1|transcript|TRANSCRIPT_NS1|protein_coding|1/1|c.405G>A|p.Leu135Leu|405/1605|405/1605|135/534||WARNING_TRANSCRIPT_NO_STOP_CODON,A|upstream_gene_variant|MODIFIER|NS2|GENE_NS2|transcript|TRANSCRIPT_NS2|protein_coding||c.-1201G>A|||||1201|WARNING_TRANSCRIPT_NO_START_CODON,A|upstream_gene_variant|MODIFIER|NS3|GENE_NS3|transcript|TRANSCRIPT_NS3|protein_coding||c.-3595G>A|||||3595|WARNING_TRANSCRIPT_NO_START_CODON,A|non_coding_transcript_variant|MODIFIER|EDEN.1|null|transcript|EDEN.1|protein_coding||||||||WARNING_TRANSCRIPT_NO_START_CODON | N10: LOW | O10: Synonymous | P10: GT:PL | Q10: 1/1:255,255,0
A11: KP164568_BHI3734_H804698_2014_08_26_Human_Brazil | B11: 548 | C11: . | D11: C | E11: 143 | F11: =E11*100/J11 -> 17.98742138 | G11: T | H11: 652 | I11: =H11*100/J11 -> 82.01257862 | J11: =H11+E11 -> 795 | K11: 182.999 | L11: PASS | M11: DP=790;VDB=3.78491e-42;SGB=-0.693147;RPB=1.10236e-08;MQB=0;MQSB=0;BQB=0.0708957;MQ0F=0.00253165;AF1=1;AC1=2;DP4=113,2,135,386;MQ=29;FQ=-142.987;PV4=0,1,0,1;ANN=T|synonymous_variant|LOW|NS1|GENE_NS1|transcript|TRANSCRIPT_NS1|protein_coding|1/1|c.471C>T|p.His157His|471/1605|471/1605|157/534||WARNING_TRANSCRIPT_NO_STOP_CODON,T|upstream_gene_variant|MODIFIER|NS2|GENE_NS2|transcript|TRANSCRIPT_NS2|protein_coding||c.-1135C>T|||||1135|WARNING_TRANSCRIPT_NO_START_CODON,T|upstream_gene_variant|MODIFIER|NS3|GENE_NS3|transcript|TRANSCRIPT_NS3|protein_coding||c.-3529C>T|||||3529|WARNING_TRANSCRIPT_NO_START_CODON,T|non_coding_transcript_variant|MODIFIER|EDEN.1|null|transcript|EDEN.1|protein_coding||||||||WARNING_TRANSCRIPT_NO_START_CODON | N11: LOW | O11: Synonymous | P11: GT:PL | Q11: 1/1:216,116,0
A12: KP164568_BHI3734_H804698_2014_08_26_Human_Brazil | B12: 566 | C12: . | D12: C | E12: 169 | F12: =E12*100/J12 -> 20.04744958 | G12: T | H12: 674 | I12: =H12*100/J12 -> 79.95255042 | J12: =H12+E12 -> 843 | K12: 148.094 | L12: PASS | M12: DP=838;VDB=5.75807e-19;SGB=-0.693147;RPB=3.65249e-10;MQB=0;MQSB=0;BQB=0.879055;MQ0F=0;AF1=0.510155;AC1=1;DP4=138,2,145,386;MQ=29;FQ=-13.1986;PV4=0,1,0,0.0258232;ANN=T|synonymous_variant|LOW|NS1|GENE_NS1|transcript|TRANSCRIPT_NS1|protein_coding|1/1|c.489C>T|p.Tyr163Tyr|489/1605|489/1605|163/534||WARNING_TRANSCRIPT_NO_STOP_CODON,T|upstream_gene_variant|MODIFIER|NS2|GENE_NS2|transcript|TRANSCRIPT_NS2|protein_coding||c.-1117C>T|||||1117|WARNING_TRANSCRIPT_NO_START_CODON,T|upstream_gene_variant|MODIFIER|NS3|GENE_NS3|transcript|TRANSCRIPT_NS3|protein_coding||c.-3511C>T|||||3511|WARNING_TRANSCRIPT_NO_START_CODON,T|non_coding_transcript_variant|MODIFIER|EDEN.1|null|transcript|EDEN.1|protein_coding||||||||WARNING_TRANSCRIPT_NO_START_CODON | N12: LOW | O12: Synonymous | P12: GT:PL | Q12: 0/1:178,0,14
A13: KP164568_BHI3734_H804698_2014_08_26_Human_Brazil | B13: 584 | C13: . | D13: G | E13: 153 | F13: =E13*100/J13 -> 23.07692308 | G13: A | H13: 510 | I13: =H13*100/J13 -> 76.92307692 | J13: =H13+E13 -> 663 | K13: 181.009 | L13: PASS | M13: DP=660;VDB=1.4013e-45;SGB=-0.693147;RPB=0.841516;MQB=0;MQSB=4.2081e-42;BQB=0.00036763;MQ0F=0;AF1=0.5;AC1=1;DP4=128,4,124,264;MQ=31;FQ=105.016;PV4=2.24208e-44,1,0,1;ANN=A|synonymous_variant|LOW|NS1|GENE_NS1|transcript|TRANSCRIPT_NS1|protein_coding|1/1|c.507G>A|p.Gly169Gly|507/1605|507/1605|169/534||WARNING_TRANSCRIPT_NO_STOP_CODON,A|upstream_gene_variant|MODIFIER|NS2|GENE_NS2|transcript|TRANSCRIPT_NS2|protein_coding||c.-1099G>A|||||1099|WARNING_TRANSCRIPT_NO_START_CODON,A|upstream_gene_variant|MODIFIER|NS3|GENE_NS3|transcript|TRANSCRIPT_NS3|protein_coding||c.-3493G>A|||||3493|WARNING_TRANSCRIPT_NO_START_CODON,A|non_coding_transcript_variant|MODIFIER|EDEN.1|null|transcript|EDEN.1|protein_coding||||||||WARNING_TRANSCRIPT_NO_START_CODON | N13: LOW | O13: Synonymous | P13: GT:PL | Q13: 0/1:211,0,132
A14: KP164568_BHI3734_H804698_2014_08_26_Human_Brazil | B14: 818 | D14: C | E14: 249 | F14: =E14*100/J14 -> 78.5488959 | G14: T | H14: 68 | I14: =H14*100/J14 -> 21.4511041 | J14: =H14+E14 -> 317 | N14: LOW | O14: Synonymous
A15: KP164568_BHI3734_H804698_2014_08_26_Human_Brazil | B15: 855 | C15: . | D15: T | E15: 522 | F15: =E15*100/J15 -> 63.27272727 | G15: C | H15: 303 | I15: =H15*100/J15 -> 36.72727273 | J15: =H15+E15 -> 825 | K15: 103.008 | L15: PASS | M15: DP=818;VDB=5.24942e-23;SGB=-0.693147;RPB=1.41146e-34;MQB=1.30082e-16;BQB=0.016075;MQ0F=0;AF1=0.5;AC1=1;DP4=356,0,216,0;MQ=38;FQ=106.016;PV4=1,0.016819,3.88129e-25,2.8026e-45;ANN=C|synonymous_variant|LOW|NS1|GENE_NS1|transcript|TRANSCRIPT_NS1|protein_coding|1/1|c.778T>C|p.Leu260Leu|778/1605|778/1605|260/534||WARNING_TRANSCRIPT_NO_STOP_CODON,C|upstream_gene_variant|MODIFIER|NS2|GENE_NS2|transcript|TRANSCRIPT_NS2|protein_coding||c.-828T>C|||||828|WARNING_TRANSCRIPT_NO_START_CODON,C|upstream_gene_variant|MODIFIER|NS3|GENE_NS3|transcript|TRANSCRIPT_NS3|protein_coding||c.-3222T>C|||||3222|WARNING_TRANSCRIPT_NO_START_CODON,C|upstream_gene_variant|MODIFIER|NS4|GENE_NS4|transcript|TRANSCRIPT_NS4|protein_coding||c.-4812T>C|||||4812|WARNING_TRANSCRIPT_NO_START_CODON,C|non_coding_transcript_variant|MODIFIER|EDEN.1|null|transcript|EDEN.1|protein_coding||||||||WARNING_TRANSCRIPT_NO_START_CODON | N15: LOW | O15: Synonymous | P15: GT:PL | Q15: 0/1:133,0,238
A16: KP164568_BHI3734_H804698_2014_08_26_Human_Brazil | B16: 884 | C16: . | D16: A | E16: 652 | F16: =E16*100/J16 -> 54.06301824 | G16: G | H16: 554 | I16: =H16*100/J16 -> 45.93698176 | J16: =H16+E16 -> 1206 | K16: 204.009 | L16: PASS | M16: DP=1200;VDB=0.449089;SGB=-0.693147;RPB=5.54298e-05;MQB=0;MQSB=0.000447857;BQB=0.00536294;MQ0F=0;AF1=0.5;AC1=1;DP4=452,15,370,11;MQ=37;FQ=206.983;PV4=0.843396,1,0,1;ANN=G|synonymous_variant|LOW|NS1|GENE_NS1|transcript|TRANSCRIPT_NS1|protein_coding|1/1|c.807A>G|p.Lys269Lys|807/1605|807/1605|269/534||WARNING_TRANSCRIPT_NO_STOP_CODON,G|upstream_gene_variant|MODIFIER|NS2|GENE_NS2|transcript|TRANSCRIPT_NS2|protein_coding||c.-799A>G|||||799|WARNING_TRANSCRIPT_NO_START_CODON,G|upstream_gene_variant|MODIFIER|NS3|GENE_NS3|transcript|TRANSCRIPT_NS3|protein_coding||c.-3193A>G|||||3193|WARNING_TRANSCRIPT_NO_START_CODON,G|upstream_gene_variant|MODIFIER|NS4|GENE_NS4|transcript|TRANSCRIPT_NS4|protein_coding||c.-4783A>G|||||4783|WARNING_TRANSCRIPT_NO_START_CODON,G|non_coding_transcript_variant|MODIFIER|EDEN.1|null|transcript|EDEN.1|protein_coding||||||||WARNING_TRANSCRIPT_NO_START_CODON | N16: LOW | O16: Synonymous | P16: GT:PL | Q16: 0/1:234,0,255
A17: KP164568_BHI3734_H804698_2014_08_26_Human_Brazil | B17: 887 | C17: . | D17: C | E17: 653 | F17: =E17*100/J17 -> 54.41666667 | G17: T | H17: 547 | I17: =H17*100/J17 -> 45.58333333 | J17: =H17+E17 -> 1200 | K17: 225.009 | L17: PASS | M17: DP=1194;VDB=0.38502;SGB=-0.693147;RPB=1.88284e-05;MQB=0;MQSB=5.58612e-05;BQB=0.0281573;MQ0F=0;AF1=0.5;AC1=1;DP4=454,19,364,15;MQ=37;FQ=225.007;PV4=1,1,0,1;ANN=T|synonymous_variant|LOW|NS1|GENE_NS1|transcript|TRANSCRIPT_NS1|protein_coding|1/1|c.810C>T|p.Leu270Leu|810/1605|810/1605|270/534||WARNING_TRANSCRIPT_NO_STOP_CODON,T|upstream_gene_variant|MODIFIER|NS2|GENE_NS2|transcript|TRANSCRIPT_NS2|protein_coding||c.-796C>T|||||796|WARNING_TRANSCRIPT_NO_START_CODON,T|upstream_gene_variant|MODIFIER|NS3|GENE_NS3|transcript|TRANSCRIPT_NS3|protein_coding||c.-3190C>T|||||3190|WARNING_TRANSCRIPT_NO_START_CODON,T|upstream_gene_variant|MODIFIER|NS4|GENE_NS4|transcript|TRANSCRIPT_NS4|protein_coding||c.-4780C>T|||||4780|WARNING_TRANSCRIPT_NO_START_CODON,T|non_coding_transcript_variant|MODIFIER|EDEN.1|null|transcript|EDEN.1|protein_coding||||||||WARNING_TRANSCRIPT_NO_START_CODON | N17: LOW | O17: Synonymous | P17: GT:PL | Q17: 0/1:255,0,255
A18: KP164568_BHI3734_H804698_2014_08_26_Human_Brazil | B18: 908 | C18: . | D18: T | E18: 503 | F18: =E18*100/J18 -> 43.85353095 | G18: C | H18: 644 | I18: =H18*100/J18 -> 56.14646905 | J18: =H18+E18 -> 1147 | K18: 225.009 | L18: PASS | M18: DP=1143;VDB=0.881902;SGB=-0.693147;RPB=5.93969e-07;MQB=0;MQSB=2.59002e-05;BQB=0.99993;MQ0F=0;AF1=0.5;AC1=1;DP4=303,65,423,45;MQ=37;FQ=225.007;PV4=0.000908662,1,0,0.377465;ANN=C|synonymous_variant|LOW|NS1|GENE_NS1|transcript|TRANSCRIPT_NS1|protein_coding|1/1|c.831T>C|p.Asp277Asp|831/1605|831/1605|277/534||WARNING_TRANSCRIPT_NO_STOP_CODON,C|upstream_gene_variant|MODIFIER|NS2|GENE_NS2|transcript|TRANSCRIPT_NS2|protein_coding||c.-775T>C|||||775|WARNING_TRANSCRIPT_NO_START_CODON,C|upstream_gene_variant|MODIFIER|NS3|GENE_NS3|transcript|TRANSCRIPT_NS3|protein_coding||c.-3169T>C|||||3169|WARNING_TRANSCRIPT_NO_START_CODON,C|upstream_gene_variant|MODIFIER|NS4|GENE_NS4|transcript|TRANSCRIPT_NS4|protein_coding||c.-4759T>C|||||4759|WARNING_TRANSCRIPT_NO_START_CODON,C|non_coding_transcript_variant|MODIFIER|EDEN.1|null|transcript|EDEN.1|protein_coding||||||||WARNING_TRANSCRIPT_NO_START_CODON | N18: LOW | O18: Synonymous | P18: GT:PL | Q18: 0/1:255,0,255
A19: KP164568_BHI3734_H804698_2014_08_26_Human_Brazil | B19: 923 | C19: . | D19: C | E19: 530 | F19: =E19*100/J19 -> 43.01948052 | G19: T | H19: 702 | I19: =H19*100/J19 -> 56.98051948 | J19: =H19+E19 -> 1232 | K19: 225.009 | L19: PASS | M19: DP=1229;VDB=0.548617;SGB=-0.693147;RPB=0.800411;MQB=0;MQSB=0.487819;BQB=0.299572;MQ0F=0;AF1=0.5;AC1=1;DP4=296,79,393,83;MQ=38;FQ=225.007;PV4=0.187963,1,0,1;ANN=T|synonymous_variant|LOW|NS1|GENE_NS1|transcript|TRANSCRIPT_NS1|protein_coding|1/1|c.846C>T|p.Cys282Cys|846/1605|846/1605|282/534||WARNING_TRANSCRIPT_NO_STOP_CODON,T|upstream_gene_variant|MODIFIER|NS2|GENE_NS2|transcript|TRANSCRIPT_NS2|protein_coding||c.-760C>T|||||760|WARNING_TRANSCRIPT_NO_START_CODON,T|upstream_gene_variant|MODIFIER|NS3|GENE_NS3|transcript|TRANSCRIPT_NS3|protein_coding||c.-3154C>T|||||3154|WARNING_TRANSCRIPT_NO_START_CODON,T|upstream_gene_variant|MODIFIER|NS4|GENE_NS4|transcript|TRANSCRIPT_NS4|protein_coding||c.-4744C>T|||||4744|WARNING_TRANSCRIPT_NO_START_CODON,T|non_coding_transcript_variant|MODIFIER|EDEN.1|null|transcript|EDEN.1|protein_coding||||||||WARNING_TRANSCRIPT_NO_START_CODON | N19: LOW | O19: Synonymous | P19: GT:PL | Q19: 0/1:255,0,255
A20: KP164568_BHI3734_H804698_2014_08_26_Human_Brazil | B20: 980 | C20: . | D20: A | E20: 282 | F20: =E20*100/J20 -> 31.90045249 | G20: G | H20: 602 | I20: =H20*100/J20 -> 68.09954751 | J20: =H20+E20 -> 884 | K20: 225.009 | L20: PASS | M20: DP=884;VDB=1.26976e-05;SGB=-0.693147;RPB=0.00020595;MQB=1.15795e-14;MQSB=0.284475;BQB=0.0998172;MQ0F=0;AF1=0.5;AC1=1;DP4=114,120,234,222;MQ=40;FQ=225.007;PV4=0.521296,1,1.53432e-08,1;ANN=G|synonymous_variant|LOW|NS1|GENE_NS1|transcript|TRANSCRIPT_NS1|protein_coding|1/1|c.903A>G|p.Thr301Thr|903/1605|903/1605|301/534||WARNING_TRANSCRIPT_NO_STOP_CODON,G|upstream_gene_variant|MODIFIER|NS2|GENE_NS2|transcript|TRANSCRIPT_NS2|protein_coding||c.-703A>G|||||703|WARNING_TRANSCRIPT_NO_START_CODON,G|upstream_gene_variant|MODIFIER|NS3|GENE_NS3|transcript|TRANSCRIPT_NS3|protein_coding||c.-3097A>G|||||3097|WARNING_TRANSCRIPT_NO_START_CODON,G|upstream_gene_variant|MODIFIER|NS4|GENE_NS4|transcript|TRANSCRIPT_NS4|protein_coding||c.-4687A>G|||||4687|WARNING_TRANSCRIPT_NO_START_CODON,G|non_coding_transcript_variant|MODIFIER|EDEN.1|null|transcript|EDEN.1|protein_coding||||||||WARNING_TRANSCRIPT_NO_START_CODON | N20: LOW | O20: Synonymous | P20: GT:PL | Q20: 0/1:255,0,255
A21: KP164568_BHI3734_H804698_2014_08_26_Human_Brazil | B21: 1040 | C21: . | D21: T | E21: 203 | F21: =E21*100/J21 -> 43.09978769 | G21: A | H21: 268 | I21: =H21*100/J21 -> 56.90021231 | J21: =H21+E21 -> 471 | K21: 225.009 | L21: PASS | M21: DP=472;VDB=1.14695e-26;SGB=-0.693147;RPB=0.383787;MQB=0;MQSB=0.277088;BQB=0.737569;MQ0F=0;AF1=0.5;AC1=1;DP4=59,123,26,216;MQ=37;FQ=225.007;PV4=4.35516e-08,1,2.14821e-25,0.0249903;ANN=A|synonymous_variant|LOW|NS1|GENE_NS1|transcript|TRANSCRIPT_NS1|protein_coding|1/1|c.963T>A|p.Val321Val|963/1605|963/1605|321/534||WARNING_TRANSCRIPT_NO_STOP_CODON,A|upstream_gene_variant|MODIFIER|NS2|GENE_NS2|transcript|TRANSCRIPT_NS2|protein_coding||c.-643T>A|||||643|WARNING_TRANSCRIPT_NO_START_CODON,A|upstream_gene_variant|MODIFIER|NS3|GENE_NS3|transcript|TRANSCRIPT_NS3|protein_coding||c.-3037T>A|||||3037|WARNING_TRANSCRIPT_NO_START_CODON,A|upstream_gene_variant|MODIFIER|NS4|GENE_NS4|transcript|TRANSCRIPT_NS4|protein_coding||c.-4627T>A|||||4627|WARNING_TRANSCRIPT_NO_START_CODON,A|non_coding_transcript_variant|MODIFIER|EDEN.1|null|transcript|EDEN.1|protein_coding||||||||WARNING_TRANSCRIPT_NO_START_CODON | N21: LOW | O21: Synonymous | P21: GT:PL | Q21: 0/1:255,0,255
A22: KP164568_BHI3734_H804698_2014_08_26_Human_Brazil | B22: 1046 | C22: . | D22: C | E22: 225 | F22: =E22*100/J22 -> 45.5465587 | G22: T | H22: 269 | I22: =H22*100/J22 -> 54.4534413 | J22: =H22+E22 -> 494 | K22: 225.009 | L22: PASS | M22: DP=493;VDB=0;SGB=-0.693147;RPB=0.936703;MQB=0;MQSB=0.125838;BQB=0.558621;MQ0F=0;AF1=0.5;AC1=1;DP4=72,125,31,207;MQ=37;FQ=225.007;PV4=9.80898e-09,1,3.23297e-27,0.0914358;ANN=T|synonymous_variant|LOW|NS1|GENE_NS1|transcript|TRANSCRIPT_NS1|protein_coding|1/1|c.969C>T|p.Gly323Gly|969/1605|969/1605|323/534||WARNING_TRANSCRIPT_NO_STOP_CODON,T|upstream_gene_variant|MODIFIER|NS2|GENE_NS2|transcript|TRANSCRIPT_NS2|protein_coding||c.-637C>T|||||637|WARNING_TRANSCRIPT_NO_START_CODON,T|upstream_gene_variant|MODIFIER|NS3|GENE_NS3|transcript|TRANSCRIPT_NS3|protein_coding||c.-3031C>T|||||3031|WARNING_TRANSCRIPT_NO_START_CODON,T|upstream_gene_variant|MODIFIER|NS4|GENE_NS4|transcript|TRANSCRIPT_NS4|protein_coding||c.-4621C>T|||||4621|WARNING_TRANSCRIPT_NO_START_CODON,T|non_coding_transcript_variant|MODIFIER|EDEN.1|null|transcript|EDEN.1|protein_coding||||||||WARNING_TRANSCRIPT_NO_START_CODON | N22: LOW | O22: Synonymous | P22: GT:PL | Q22: 0/1:255,0,255
A23: KP164568_BHI3734_H804698_2014_08_26_Human_Brazil | B23: 1073 | C23: . | D23: A | E23: 218 | F23: =E23*100/J23 -> 42.41245136 | G23: G | H23: 296 | I23: =H23*100/J23 -> 57.58754864 | J23: =H23+E23 -> 514 | K23: 225.009 | L23: PASS | M23: DP=514;VDB=5.354e-24;SGB=-0.693147;RPB=9.49692e-06;MQB=9.48532e-24;MQSB=0.028225;BQB=0.220961;MQ0F=0;AF1=0.5;AC1=1;DP4=80,110,40,216;MQ=37;FQ=225.007;PV4=8.14076e-10,1,3.76691e-11,3.50794e-05;ANN=G|synonymous_variant|LOW|NS1|GENE_NS1|transcript|TRANSCRIPT_NS1|protein_coding|1/1|c.996A>G|p.Thr332Thr|996/1605|996/1605|332/534||WARNING_TRANSCRIPT_NO_STOP_CODON,G|upstream_gene_variant|MODIFIER|NS2|GENE_NS2|transcript|TRANSCRIPT_NS2|protein_coding||c.-610A>G|||||610|WARNING_TRANSCRIPT_NO_START_CODON,G|upstream_gene_variant|MODIFIER|NS3|GENE_NS3|transcript|TRANSCRIPT_NS3|protein_coding||c.-3004A>G|||||3004|WARNING_TRANSCRIPT_NO_START_CODON,G|upstream_gene_variant|MODIFIER|NS4|GENE_NS4|transcript|TRANSCRIPT_NS4|protein_coding||c.-4594A>G|||||4594|WARNING_TRANSCRIPT_NO_START_CODON,G|non_coding_transcript_variant|MODIFIER|EDEN.1|null|transcript|EDEN.1|protein_coding||||||||WARNING_TRANSCRIPT_NO_START_CODON | N23: LOW | O23: Synonymous | P23: GT:PL | Q23: 0/1:255,0,255
A24: KP164568_BHI3734_H804698_2014_08_26_Human_Brazil | B24: 2802 | C24: . | D24: T | E24: 19 | F24: =E24*100/J24 -> 2.151755379 | G24: C | H24: 864 | I24: =H24*100/J24 -> 97.84824462 | J24: =H24+E24 -> 883 | K24: 221.999 | L24: PASS | M24: DP=883;VDB=7.65269e-29;SGB=-0.693147;RPB=0.000293394;MQB=1.75907e-09;MQSB=5.28414e-08;BQB=0.937951;MQ0F=0;AF1=1;AC1=2;DP4=3,15,699,1;MQ=32;FQ=-281.989;PV4=2.8356e-27,1,1.02186e-08,0.0233511;ANN=C|missense_variant|MODERATE|NS2|GENE_NS2|transcript|TRANSCRIPT_NS2|protein_coding|1/1|c.1120T>C|p.Tyr374His|1120/2394|1120/2394|374/797||WARNING_TRANSCRIPT_NO_START_CODON,C|upstream_gene_variant|MODIFIER|NS3|GENE_NS3|transcript|TRANSCRIPT_NS3|protein_coding||c.-1275T>C|||||1275|WARNING_TRANSCRIPT_NO_START_CODON,C|upstream_gene_variant|MODIFIER|NS4|GENE_NS4|transcript|TRANSCRIPT_NS4|protein_coding||c.-2865T>C|||||2865|WARNING_TRANSCRIPT_NO_START_CODON,C|upstream_gene_variant|MODIFIER|capsid|GENE_capsid|transcript|TRANSCRIPT_capsid|protein_coding||c.-4766T>C|||||4766|WARNING_TRANSCRIPT_NO_STOP_CODON,C|downstream_gene_variant|MODIFIER|NS1|GENE_NS1|transcript|TRANSCRIPT_NS1|protein_coding||c.*1120T>C|||||1120|WARNING_TRANSCRIPT_NO_STOP_CODON,C|non_coding_transcript_variant|MODIFIER|EDEN.1|null|transcript|EDEN.1|protein_coding||||||||WARNING_TRANSCRIPT_NO_START_CODON | N24: MODERATE | O24: Non-synonymous | P24: GT:PL | Q24: 1/1:255,255,0
A25: KP164568_BHI3734_H804698_2014_08_26_Human_Brazil | B25: 2855 | C25: . | D25: T | E25: 10 | F25: =E25*100/J25 -> 0.8928571429 | G25: C | H25: 1110 | I25: =H25*100/J25 -> 99.10714286 | J25: =H25+E25 -> 1120 | K25: 221.999 | L25: PASS | M25: DP=1119;VDB=1;SGB=-0.693147;RPB=0.959371;MQB=4.04352e-05;MQSB=4.195e-29;BQB=0.854796;MQ0F=0.00446828;AF1=1;AC1=2;DP4=6,1,781,81;MQ=24;FQ=-281.989;PV4=0.501592,1,5.38186e-10,1;ANN=C|synonymous_variant|LOW|NS2|GENE_NS2|transcript|TRANSCRIPT_NS2|protein_coding|1/1|c.1173T>C|p.Tyr391Tyr|1173/2394|1173/2394|391/797||WARNING_TRANSCRIPT_NO_START_CODON,C|upstream_gene_variant|MODIFIER|NS3|GENE_NS3|transcript|TRANSCRIPT_NS3|protein_coding||c.-1222T>C|||||1222|WARNING_TRANSCRIPT_NO_START_CODON,C|upstream_gene_variant|MODIFIER|NS4|GENE_NS4|transcript|TRANSCRIPT_NS4|protein_coding||c.-2812T>C|||||2812|WARNING_TRANSCRIPT_NO_START_CODON,C|upstream_gene_variant|MODIFIER|capsid|GENE_capsid|transcript|TRANSCRIPT_capsid|protein_coding||c.-4713T>C|||||4713|WARNING_TRANSCRIPT_NO_STOP_CODON,C|downstream_gene_variant|MODIFIER|NS1|GENE_NS1|transcript|TRANSCRIPT_NS1|protein_coding||c.*1173T>C|||||1173|WARNING_TRANSCRIPT_NO_STOP_CODON,C|non_coding_transcript_variant|MODIFIER|EDEN.1|null|transcript|EDEN.1|protein_coding||||||||WARNING_TRANSCRIPT_NO_START_CODON | N25: LOW | O25: Synonymous | P25: GT:PL | Q25: 1/1:255,255,0
A26: KP164568_BHI3734_H804698_2014_08_26_Human_Brazil | B26: 2856 | C26: . | D26: G | E26: 115 | F26: =E26*100/J26 -> 10.36036036 | G26: T | H26: 995 | I26: =H26*100/J26 -> 89.63963964 | J26: =H26+E26 -> 1110 | K26: 85.9973 | L26: PASS | M26: DP=1109;VDB=0.99923;SGB=-0.693147;RPB=0.76181;MQB=3.35955e-09;MQSB=5.12437e-28;BQB=0.0300539;MQ0F=0.00450857;AF1=1;AC1=2;DP4=72,18,714,63;MQ=23;FQ=-248.989;PV4=0.000853517,1,1.24151e-16,1;ANN=T|missense_variant|MODERATE|NS2|GENE_NS2|transcript|TRANSCRIPT_NS2|protein_coding|1/1|c.1174G>T|p.Ala392Ser|1174/2394|1174/2394|392/797||WARNING_TRANSCRIPT_NO_START_CODON,T|upstream_gene_variant|MODIFIER|NS3|GENE_NS3|transcript|TRANSCRIPT_NS3|protein_coding||c.-1221G>T|||||1221|WARNING_TRANSCRIPT_NO_START_CODON,T|upstream_gene_variant|MODIFIER|NS4|GENE_NS4|transcript|TRANSCRIPT_NS4|protein_coding||c.-2811G>T|||||2811|WARNING_TRANSCRIPT_NO_START_CODON,T|upstream_gene_variant|MODIFIER|capsid|GENE_capsid|transcript|TRANSCRIPT_capsid|protein_coding||c.-4712G>T|||||4712|WARNING_TRANSCRIPT_NO_STOP_CODON,T|downstream_gene_variant|MODIFIER|NS1|GENE_NS1|transcript|TRANSCRIPT_NS1|protein_coding||c.*1174G>T|||||1174|WARNING_TRANSCRIPT_NO_STOP_CODON,T|non_coding_transcript_variant|MODIFIER|EDEN.1|null|transcript|EDEN.1|protein_coding||||||||WARNING_TRANSCRIPT_NO_START_CODON | N26: MODERATE | O26: Non-synonymous | P26: GT:PL | Q26: 1/1:119,222,0
A27: KP164568_BHI3734_H804698_2014_08_26_Human_Brazil | B27: 2876 | C27: . | D27: T | E27: 9 | F27: =E27*100/J27 -> 0.8166969147 | G27: C | H27: 1093 | I27: =H27*100/J27 -> 99.18330309 | J27: =H27+E27 -> 1102 | K27: 221.999 | L27: PASS | M27: DP=1102;VDB=0.934917;SGB=-0.693147;RPB=0.730844;MQB=0.000132108;MQSB=0;BQB=0.84059;MQ0F=0.00453721;AF1=1;AC1=2;DP4=5,1,677,241;MQ=23;FQ=-281.989;PV4=1,0.0458118,1.13733e-09,1;ANN=C|synonymous_variant|LOW|NS2|GENE_NS2|transcript|TRANSCRIPT_NS2|protein_coding|1/1|c.1194T>C|p.Asn398Asn|1194/2394|1194/2394|398/797||WARNING_TRANSCRIPT_NO_START_CODON,C|upstream_gene_variant|MODIFIER|NS3|GENE_NS3|transcript|TRANSCRIPT_NS3|protein_coding||c.-1201T>C|||||1201|WARNING_TRANSCRIPT_NO_START_CODON,C|upstream_gene_variant|MODIFIER|NS4|GENE_NS4|transcript|TRANSCRIPT_NS4|protein_coding||c.-2791T>C|||||2791|WARNING_TRANSCRIPT_NO_START_CODON,C|upstream_gene_variant|MODIFIER|capsid|GENE_capsid|transcript|TRANSCRIPT_capsid|protein_coding||c.-4692T>C|||||4692|WARNING_TRANSCRIPT_NO_STOP_CODON,C|downstream_gene_variant|MODIFIER|NS1|GENE_NS1|transcript|TRANSCRIPT_NS1|protein_coding||c.*1194T>C|||||1194|WARNING_TRANSCRIPT_NO_STOP_CODON,C|non_coding_transcript_variant|MODIFIER|EDEN.1|null|transcript|EDEN.1|protein_coding||||||||WARNING_TRANSCRIPT_NO_START_CODON | N27: LOW | O27: Synonymous | P27: GT:PL | Q27: 1/1:255,255,0
A28: KP164568_BHI3734_H804698_2014_08_26_Human_Brazil | B28: 2885 | C28: . | D28: G | E28: 13 | F28: =E28*100/J28 -> 1.028481013 | G28: A | H28: 1251 | I28: =H28*100/J28 -> 98.97151899 | J28: =H28+E28 -> 1264 | K28: 221.999 | L28: PASS | M28: DP=1263;VDB=0.352109;SGB=-0.693147;RPB=0.700496;MQB=6.97733e-06;MQSB=0;BQB=0.953816;MQ0F=0.00395883;AF1=1;AC1=2;DP4=6,2,718,311;MQ=24;FQ=-281.989;PV4=1,0.0957363,4.06459e-12,1;ANN=A|synonymous_variant|LOW|NS2|GENE_NS2|transcript|TRANSCRIPT_NS2|protein_coding|1/1|c.1203G>A|p.Pro401Pro|1203/2394|1203/2394|401/797||WARNING_TRANSCRIPT_NO_START_CODON,A|upstream_gene_variant|MODIFIER|NS3|GENE_NS3|transcript|TRANSCRIPT_NS3|protein_coding||c.-1192G>A|||||1192|WARNING_TRANSCRIPT_NO_START_CODON,A|upstream_gene_variant|MODIFIER|NS4|GENE_NS4|transcript|TRANSCRIPT_NS4|protein_coding||c.-2782G>A|||||2782|WARNING_TRANSCRIPT_NO_START_CODON,A|upstream_gene_variant|MODIFIER|capsid|GENE_capsid|transcript|TRANSCRIPT_capsid|protein_coding||c.-4683G>A|||||4683|WARNING_TRANSCRIPT_NO_STOP_CODON,A|downstream_gene_variant|MODIFIER|NS1|GENE_NS1|transcript|TRANSCRIPT_NS1|protein_coding||c.*1203G>A|||||1203|WARNING_TRANSCRIPT_NO_STOP_CODON,A|non_coding_transcript_variant|MODIFIER|EDEN.1|null|transcript|EDEN.1|protein_coding||||||||WARNING_TRANSCRIPT_NO_START_CODON | N28: LOW | O28: Synonymous | P28: GT:PL | Q28: 1/1:255,255,0
A29: KP164568_BHI3734_H804698_2014_08_26_Human_Brazil | B29: 2900 | C29: . | D29: G | E29: 10 | F29: =E29*100/J29 -> 0.5931198102 | G29: A | H29: 1676 | I29: =H29*100/J29 -> 99.40688019 | J29: =H29+E29 -> 1686 | K29: 221.999 | L29: PASS | M29: DP=1684;VDB=0.96343;SGB=-0.693147;RPB=0.976533;MQB=6.90989e-06;MQSB=2.55982e-39;BQB=0.800944;MQ0F=0.00296912;AF1=1;AC1=2;DP4=4,4,969,350;MQ=24;FQ=-281.989;PV4=0.220557,1,8.20883e-11,1;ANN=A|synonymous_variant|LOW|NS2|GENE_NS2|transcript|TRANSCRIPT_NS2|protein_coding|1/1|c.1218G>A|p.Thr406Thr|1218/2394|1218/2394|406/797||WARNING_TRANSCRIPT_NO_START_CODON,A|upstream_gene_variant|MODIFIER|NS3|GENE_NS3|transcript|TRANSCRIPT_NS3|protein_coding||c.-1177G>A|||||1177|WARNING_TRANSCRIPT_NO_START_CODON,A|upstream_gene_variant|MODIFIER|NS4|GENE_NS4|transcript|TRANSCRIPT_NS4|protein_coding||c.-2767G>A|||||2767|WARNING_TRANSCRIPT_NO_START_CODON,A|upstream_gene_variant|MODIFIER|capsid|GENE_capsid|transcript|TRANSCRIPT_capsid|protein_coding||c.-4668G>A|||||4668|WARNING_TRANSCRIPT_NO_STOP_CODON,A|downstream_gene_variant|MODIFIER|NS1|GENE_NS1|transcript|TRANSCRIPT_NS1|protein_coding||c.*1218G>A|||||1218|WARNING_TRANSCRIPT_NO_STOP_CODON,A|non_coding_transcript_variant|MODIFIER|EDEN.1|null|transcript|EDEN.1|protein_coding||||||||WARNING_TRANSCRIPT_NO_START_CODON | N29: LOW | O29: Synonymous | P29: GT:PL | Q29: 1/1:255,255,0
A30: KP164568_BHI3734_H804698_2014_08_26_Human_Brazil | B30: 2927 | C30: . | D30: A | E30: 9 | F30: =E30*100/J30 -> 0.4209541628 | G30: G | H30: 2129 | I30: =H30*100/J30 -> 99.57904584 | J30: =H30+E30 -> 2138 | K30: 221.999 | L30: PASS | M30: DP=2134;VDB=0.129549;SGB=-0.693147;RPB=0.811827;MQB=8.94566e-06;MQSB=6.70509e-17;BQB=0.234777;MQ0F=0.00234302;AF1=1;AC1=2;DP4=4,4,1173,375;MQ=25;FQ=-281.989;PV4=0.104557,1,9.31944e-11,0.0921534;ANN=G|synonymous_variant|LOW|NS2|GENE_NS2|transcript|TRANSCRIPT_NS2|protein_coding|1/1|c.1245A>G|p.Thr415Thr|1245/2394|1245/2394|415/797||WARNING_TRANSCRIPT_NO_START_CODON,G|upstream_gene_variant|MODIFIER|NS3|GENE_NS3|transcript|TRANSCRIPT_NS3|protein_coding||c.-1150A>G|||||1150|WARNING_TRANSCRIPT_NO_START_CODON,G|upstream_gene_variant|MODIFIER|NS4|GENE_NS4|transcript|TRANSCRIPT_NS4|protein_coding||c.-2740A>G|||||2740|WARNING_TRANSCRIPT_NO_START_CODON,G|upstream_gene_variant|MODIFIER|capsid|GENE_capsid|transcript|TRANSCRIPT_capsid|protein_coding||c.-4641A>G|||||4641|WARNING_TRANSCRIPT_NO_STOP_CODON,G|downstream_gene_variant|MODIFIER|NS1|GENE_NS1|transcript|TRANSCRIPT_NS1|protein_coding||c.*1245A>G|||||1245|WARNING_TRANSCRIPT_NO_STOP_CODON,G|non_coding_transcript_variant|MODIFIER|EDEN.1|null|transcript|EDEN.1|protein_coding||||||||WARNING_TRANSCRIPT_NO_START_CODON | N30: LOW | O30: Synonymous | P30: GT:PL | Q30: 1/1:255,255,0
A31: KP164568_BHI3734_H804698_2014_08_26_Human_Brazil | B31: 2960 | C31: . | D31: T | E31: 5 | F31: =E31*100/J31 -> 0.2403846154 | G31: C | H31: 2075 | I31: =H31*100/J31 -> 99.75961538 | J31: =H31+E31 -> 2080 | K31: 221.999 | L31: PASS | M31: DP=2077;VDB=0.998531;SGB=-0.693147;RPB=0.200304;MQB=0.000597888;MQSB=6.97732e-16;BQB=0.104221;MQ0F=0;AF1=1;AC1=2;DP4=3,2,980,553;MQ=25;FQ=-281.989;PV4=1,1,9.32143e-10,1;ANN=C|synonymous_variant|LOW|NS2|GENE_NS2|transcript|TRANSCRIPT_NS2|protein_coding|1/1|c.1278T>C|p.Leu426Leu|1278/2394|1278/2394|426/797||WARNING_TRANSCRIPT_NO_START_CODON,C|upstream_gene_variant|MODIFIER|NS3|GENE_NS3|transcript|TRANSCRIPT_NS3|protein_coding||c.-1117T>C|||||1117|WARNING_TRANSCRIPT_NO_START_CODON,C|upstream_gene_variant|MODIFIER|NS4|GENE_NS4|transcript|TRANSCRIPT_NS4|protein_coding||c.-2707T>C|||||2707|WARNING_TRANSCRIPT_NO_START_CODON,C|upstream_gene_variant|MODIFIER|capsid|GENE_capsid|transcript|TRANSCRIPT_capsid|protein_coding||c.-4608T>C|||||4608|WARNING_TRANSCRIPT_NO_STOP_CODON,C|downstream_gene_variant|MODIFIER|NS1|GENE_NS1|transcript|TRANSCRIPT_NS1|protein_coding||c.*1278T>C|||||1278|WARNING_TRANSCRIPT_NO_STOP_CODON,C|non_coding_transcript_variant|MODIFIER|EDEN.1|null|transcript|EDEN.1|protein_coding||||||||WARNING_TRANSCRIPT_NO_START_CODON | N31: LOW | O31: Synonymous | P31: GT:PL | Q31: 1/1:255,255,0
A32: KP164568_BHI3734_H804698_2014_08_26_Human_Brazil | B32: 2963 | C32: . | D32: C | E32: 5 | F32: =E32*100/J32 -> 0.243902439 | G32: T | H32: 2045 | I32: =H32*100/J32 -> 99.75609756 | J32: =H32+E32 -> 2050 | K32: 221.999 | L32: PASS | M32: DP=2047;VDB=0.999666;SGB=-0.693147;RPB=0.657698;MQB=0.00314855;MQSB=4.74443e-19;BQB=0.0945893;MQ0F=0;AF1=1;AC1=2;DP4=3,2,952,563;MQ=25;FQ=-281.989;PV4=1,1,1.01212e-06,1;ANN=T|synonymous_variant|LOW|NS2|GENE_NS2|transcript|TRANSCRIPT_NS2|protein_coding|1/1|c.1281C>T|p.Ser427Ser|1281/2394|1281/2394|427/797||WARNING_TRANSCRIPT_NO_START_CODON,T|upstream_gene_variant|MODIFIER|NS3|GENE_NS3|transcript|TRANSCRIPT_NS3|protein_coding||c.-1114C>T|||||1114|WARNING_TRANSCRIPT_NO_START_CODON,T|upstream_gene_variant|MODIFIER|NS4|GENE_NS4|transcript|TRANSCRIPT_NS4|protein_coding||c.-2704C>T|||||2704|WARNING_TRANSCRIPT_NO_START_CODON,T|upstream_gene_variant|MODIFIER|capsid|GENE_capsid|transcript|TRANSCRIPT_capsid|protein_coding||c.-4605C>T|||||4605|WARNING_TRANSCRIPT_NO_STOP_CODON,T|downstream_gene_variant|MODIFIER|NS1|GENE_NS1|transcript|TRANSCRIPT_NS1|protein_coding||c.*1281C>T|||||1281|WARNING_TRANSCRIPT_NO_STOP_CODON,T|non_coding_transcript_variant|MODIFIER|EDEN.1|null|transcript|EDEN.1|protein_coding||||||||WARNING_TRANSCRIPT_NO_START_CODON | N32: LOW | O32: Synonymous | P32: GT:PL | Q32: 1/1:255,255,0
A33: KP164568_BHI3734_H804698_2014_08_26_Human_Brazil | B33: 3014 | C33: . | D33: A | E33: 0 | F33: =E33*100/J33 -> 0 | G33: G | H33: 911 | I33: =H33*100/J33 -> 100 | J33: =H33+E33 -> 911 | K33: 221.999 | L33: PASS | M33: DP=911;VDB=0;SGB=-0.693147;MQSB=1.93448e-16;MQ0F=0;AF1=1;AC1=2;DP4=0,0,422,344;MQ=25;FQ=-281.989;ANN=G|synonymous_variant|LOW|NS2|GENE_NS2|transcript|TRANSCRIPT_NS2|protein_coding|1/1|c.1332A>G|p.Lys444Lys|1332/2394|1332/2394|444/797||WARNING_TRANSCRIPT_NO_START_CODON,G|upstream_gene_variant|MODIFIER|NS3|GENE_NS3|transcript|TRANSCRIPT_NS3|protein_coding||c.-1063A>G|||||1063|WARNING_TRANSCRIPT_NO_START_CODON,G|upstream_gene_variant|MODIFIER|NS4|GENE_NS4|transcript|TRANSCRIPT_NS4|protein_coding||c.-2653A>G|||||2653|WARNING_TRANSCRIPT_NO_START_CODON,G|upstream_gene_variant|MODIFIER|capsid|GENE_capsid|transcript|TRANSCRIPT_capsid|protein_coding||c.-4554A>G|||||4554|WARNING_TRANSCRIPT_NO_STOP_CODON,G|downstream_gene_variant|MODIFIER|NS1|GENE_NS1|transcript|TRANSCRIPT_NS1|protein_coding||c.*1332A>G|||||1332|WARNING_TRANSCRIPT_NO_STOP_CODON,G|non_coding_transcript_variant|MODIFIER|EDEN.1|null|transcript|EDEN.1|protein_coding||||||||WARNING_TRANSCRIPT_NO_START_CODON | N33: LOW | O33: Synonymous | P33: GT:PL | Q33: 1/1:255,255,0
A34: KP164568_BHI3734_H804698_2014_08_26_Human_Brazil | B34: 3023 | C34: . | D34: C | E34: 0 | F34: =E34*100/J34 -> 0 | G34: T | H34: 570 | I34: =H34*100/J34 -> 100 | J34: =H34+E34 -> 570 | K34: 221.999 | L34: PASS | M34: DP=569;VDB=0;SGB=-0.693147;MQSB=1.63137e-11;MQ0F=0;AF1=1;AC1=2;DP4=0,0,171,315;MQ=24;FQ=-281.989;ANN=T|synonymous_variant|LOW|NS2|GENE_NS2|transcript|TRANSCRIPT_NS2|protein_coding|1/1|c.1341C>T|p.Ile447Ile|1341/2394|1341/2394|447/797||WARNING_TRANSCRIPT_NO_START_CODON,T|upstream_gene_variant|MODIFIER|NS3|GENE_NS3|transcript|TRANSCRIPT_NS3|protein_coding||c.-1054C>T|||||1054|WARNING_TRANSCRIPT_NO_START_CODON,T|upstream_gene_variant|MODIFIER|NS4|GENE_NS4|transcript|TRANSCRIPT_NS4|protein_coding||c.-2644C>T|||||2644|WARNING_TRANSCRIPT_NO_START_CODON,T|upstream_gene_variant|MODIFIER|capsid|GENE_capsid|transcript|TRANSCRIPT_capsid|protein_coding||c.-4545C>T|||||4545|WARNING_TRANSCRIPT_NO_STOP_CODON,T|downstream_gene_variant|MODIFIER|NS1|GENE_NS1|transcript|TRANSCRIPT_NS1|protein_coding||c.*1341C>T|||||1341|WARNING_TRANSCRIPT_NO_STOP_CODON,T|non_coding_transcript_variant|MODIFIER|EDEN.1|null|transcript|EDEN.1|protein_coding||||||||WARNING_TRANSCRIPT_NO_START_CODON | N34: LOW | O34: Synonymous | P34: GT:PL | Q34: 1/1:255,255,0
A35: KP164568_BHI3734_H804698_2014_08_26_Human_Brazil | B35: 3044 | C35: . | D35: T | E35: 1 | F35: =E35*100/J35 -> 0.1828153565 | G35: C | H35: 546 | I35: =H35*100/J35 -> 99.81718464 | J35: =H35+E35 -> 547 | K35: 221.999 | L35: PASS | M35: DP=547;VDB=5.74687e-41;SGB=-0.693147;RPB=1;MQB=1;MQSB=3.92541e-18;BQB=1;MQ0F=0.0219378;AF1=1;AC1=2;DP4=0,1,122,383;MQ=19;FQ=-281.989;PV4=1,1,0.00159541,1;ANN=C|synonymous_variant|LOW|NS2|GENE_NS2|transcript|TRANSCRIPT_NS2|protein_coding|1/1|c.1362T>C|p.His454His|1362/2394|1362/2394|454/797||WARNING_TRANSCRIPT_NO_START_CODON,C|upstream_gene_variant|MODIFIER|NS3|GENE_NS3|transcript|TRANSCRIPT_NS3|protein_coding||c.-1033T>C|||||1033|WARNING_TRANSCRIPT_NO_START_CODON,C|upstream_gene_variant|MODIFIER|NS4|GENE_NS4|transcript|TRANSCRIPT_NS4|protein_coding||c.-2623T>C|||||2623|WARNING_TRANSCRIPT_NO_START_CODON,C|upstream_gene_variant|MODIFIER|capsid|GENE_capsid|transcript|TRANSCRIPT_capsid|protein_coding||c.-4524T>C|||||4524|WARNING_TRANSCRIPT_NO_STOP_CODON,C|downstream_gene_variant|MODIFIER|NS1|GENE_NS1|transcript|TRANSCRIPT_NS1|protein_coding||c.*1362T>C|||||1362|WARNING_TRANSCRIPT_NO_STOP_CODON,C|non_coding_transcript_variant|MODIFIER|EDEN.1|null|transcript|EDEN.1|protein_coding||||||||WARNING_TRANSCRIPT_NO_START_CODON | N35: LOW | O35: Synonymous | P35: GT:PL | Q35: 1/1:255,255,0
A36: KP164568_BHI3734_H804698_2014_08_26_Human_Brazil | B36: 3050 | C36: . | D36: A | E36: 1 | F36: =E36*100/J36 -> 0.1666666667 | G36: G | H36: 599 | I36: =H36*100/J36 -> 99.83333333 | J36: =H36+E36 -> 600 | K36: 221.999 | L36: PASS | M36: DP=599;VDB=0;SGB=-0.693147;RPB=1;MQB=1;MQSB=1.96545e-22;BQB=1;MQ0F=0.0233723;AF1=1;AC1=2;DP4=0,1,154,398;MQ=18;FQ=-281.989;PV4=1,1,0.00144293,1;ANN=G|synonymous_variant|LOW|NS2|GENE_NS2|transcript|TRANSCRIPT_NS2|protein_coding|1/1|c.1368A>G|p.Ser456Ser|1368/2394|1368/2394|456/797||WARNING_TRANSCRIPT_NO_START_CODON,G|upstream_gene_variant|MODIFIER|NS3|GENE_NS3|transcript|TRANSCRIPT_NS3|protein_coding||c.-1027A>G|||||1027|WARNING_TRANSCRIPT_NO_START_CODON,G|upstream_gene_variant|MODIFIER|NS4|GENE_NS4|transcript|TRANSCRIPT_NS4|protein_coding||c.-2617A>G|||||2617|WARNING_TRANSCRIPT_NO_START_CODON,G|upstream_gene_variant|MODIFIER|capsid|GENE_capsid|transcript|TRANSCRIPT_capsid|protein_coding||c.-4518A>G|||||4518|WARNING_TRANSCRIPT_NO_STOP_CODON,G|downstream_gene_variant|MODIFIER|NS1|GENE_NS1|transcript|TRANSCRIPT_NS1|protein_coding||c.*1368A>G|||||1368|WARNING_TRANSCRIPT_NO_STOP_CODON,G|non_coding_transcript_variant|MODIFIER|EDEN.1|null|transcript|EDEN.1|protein_coding||||||||WARNING_TRANSCRIPT_NO_START_CODON | N36: LOW | O36: Synonymous | P36: GT:PL | Q36: 1/1:255,255,0
A37: KP164568_BHI3734_H804698_2014_08_26_Human_Brazil | B37: 3078 | C37: . | D37: A | E37: 6 | F37: =E37*100/J37 -> 0.4743083004 | G37: G | H37: 1259 | I37: =H37*100/J37 -> 99.5256917 | J37: =H37+E37 -> 1265 | K37: 221.999 | L37: PASS | M37: DP=1261;VDB=0.575671;SGB=-0.693147;RPB=0.221438;MQB=0.000582746;MQSB=9.66896e-44;BQB=0.115564;MQ0F=0.0142744;AF1=1;AC1=2;DP4=2,3,222,863;MQ=20;FQ=-281.989;PV4=0.273861,1,1.48395e-11,1;ANN=G|missense_variant|MODERATE|NS2|GENE_NS2|transcript|TRANSCRIPT_NS2|protein_coding|1/1|c.1396A>G|p.Met466Val|1396/2394|1396/2394|466/797||WARNING_TRANSCRIPT_NO_START_CODON,G|upstream_gene_variant|MODIFIER|NS3|GENE_NS3|transcript|TRANSCRIPT_NS3|protein_coding||c.-999A>G|||||999|WARNING_TRANSCRIPT_NO_START_CODON,G|upstream_gene_variant|MODIFIER|NS4|GENE_NS4|transcript|TRANSCRIPT_NS4|protein_coding||c.-2589A>G|||||2589|WARNING_TRANSCRIPT_NO_START_CODON,G|upstream_gene_variant|MODIFIER|capsid|GENE_capsid|transcript|TRANSCRIPT_capsid|protein_coding||c.-4490A>G|||||4490|WARNING_TRANSCRIPT_NO_STOP_CODON,G|downstream_gene_variant|MODIFIER|NS1|GENE_NS1|transcript|TRANSCRIPT_NS1|protein_coding||c.*1396A>G|||||1396|WARNING_TRANSCRIPT_NO_STOP_CODON,G|non_coding_transcript_variant|MODIFIER|EDEN.1|null|transcript|EDEN.1|protein_coding||||||||WARNING_TRANSCRIPT_NO_START_CODON | N37: MODERATE | O37: Non-synonymous | P37: GT:PL | Q37: 1/1:255,255,0
A38: KP164568_BHI3734_H804698_2014_08_26_Human_Brazil | B38: 3089 | C38: . | D38: T | E38: 6 | F38: =E38*100/J38 -> 0.5004170142 | G38: C | H38: 1193 | I38: =H38*100/J38 -> 99.49958299 | J38: =H38+E38 -> 1199 | K38: 221.999 | L38: PASS | M38: DP=1195;VDB=0.0310427;SGB=-0.693147;RPB=0.071566;MQB=0.00255311;MQSB=9.80909e-44;BQB=0.936354;MQ0F=0.0142259;AF1=1;AC1=2;DP4=2,2,231,779;MQ=20;FQ=-281.989;PV4=0.227853,0.376949,7.93645e-10,1;ANN=C|synonymous_variant|LOW|NS2|GENE_NS2|transcript|TRANSCRIPT_NS2|protein_coding|1/1|c.1407T>C|p.Asp469Asp|1407/2394|1407/2394|469/797||WARNING_TRANSCRIPT_NO_START_CODON,C|upstream_gene_variant|MODIFIER|NS3|GENE_NS3|transcript|TRANSCRIPT_NS3|protein_coding||c.-988T>C|||||988|WARNING_TRANSCRIPT_NO_START_CODON,C|upstream_gene_variant|MODIFIER|NS4|GENE_NS4|transcript|TRANSCRIPT_NS4|protein_coding||c.-2578T>C|||||2578|WARNING_TRANSCRIPT_NO_START_CODON,C|upstream_gene_variant|MODIFIER|capsid|GENE_capsid|transcript|TRANSCRIPT_capsid|protein_coding||c.-4479T>C|||||4479|WARNING_TRANSCRIPT_NO_STOP_CODON,C|downstream_gene_variant|MODIFIER|NS1|GENE_NS1|transcript|TRANSCRIPT_NS1|protein_coding||c.*1407T>C|||||1407|WARNING_TRANSCRIPT_NO_STOP_CODON,C|non_coding_transcript_variant|MODIFIER|EDEN.1|null|transcript|EDEN.1|protein_coding||||||||WARNING_TRANSCRIPT_NO_START_CODON | N38: LOW | O38: Synonymous | P38: GT:PL | Q38: 1/1:255,255,0
A39: KP164568_BHI3734_H804698_2014_08_26_Human_Brazil | B39: 3092 | C39: . | D39: A | E39: 5 | F39: =E39*100/J39 -> 0.4500450045 | G39: G | H39: 1106 | I39: =H39*100/J39 -> 99.549955 | J39: =H39+E39 -> 1111 | K39: 221.999 | L39: PASS | M39: DP=1107;VDB=5.5498e-06;SGB=-0.693147;RPB=0.0920351;MQB=0.0025594;MQSB=4.38466e-42;BQB=0.753421;MQ0F=0.0135501;AF1=1;AC1=2;DP4=2,2,228,704;MQ=20;FQ=-281.989;PV4=0.254292,0.461087,8.13312e-10,0.416636;ANN=G|synonymous_variant|LOW|NS2|GENE_NS2|transcript|TRANSCRIPT_NS2|protein_coding|1/1|c.1410A>G|p.Thr470Thr|1410/2394|1410/2394|470/797||WARNING_TRANSCRIPT_NO_START_CODON,G|upstream_gene_variant|MODIFIER|NS3|GENE_NS3|transcript|TRANSCRIPT_NS3|protein_coding||c.-985A>G|||||985|WARNING_TRANSCRIPT_NO_START_CODON,G|upstream_gene_variant|MODIFIER|NS4|GENE_NS4|transcript|TRANSCRIPT_NS4|protein_coding||c.-2575A>G|||||2575|WARNING_TRANSCRIPT_NO_START_CODON,G|upstream_gene_variant|MODIFIER|capsid|GENE_capsid|transcript|TRANSCRIPT_capsid|protein_coding||c.-4476A>G|||||4476|WARNING_TRANSCRIPT_NO_STOP_CODON,G|downstream_gene_variant|MODIFIER|NS1|GENE_NS1|transcript|TRANSCRIPT_NS1|protein_coding||c.*1410A>G|||||1410|WARNING_TRANSCRIPT_NO_STOP_CODON,G|non_coding_transcript_variant|MODIFIER|EDEN.1|null|transcript|EDEN.1|protein_coding||||||||WARNING_TRANSCRIPT_NO_START_CODON | N39: LOW | O39: Synonymous | P39: GT:PL | Q39: 1/1:255,255,0
A40: KP164568_BHI3734_H804698_2014_08_26_Human_Brazil | B40: 3110 | C40: . | D40: T | E40: 5 | F40: =E40*100/J40 -> 0.5319148936 | G40: C | H40: 935 | I40: =H40*100/J40 -> 99.46808511 | J40: =H40+E40 -> 940 | K40: 221.999 | L40: PASS | M40: DP=935;VDB=9.61741e-22;SGB=-0.693147;RPB=0.779474;MQB=0.0113615;MQSB=1.52151e-09;BQB=0.867505;MQ0F=0.00748663;AF1=1;AC1=2;DP4=1,2,181,616;MQ=20;FQ=-281.989;PV4=0.539516,0.328556,1.02612e-07,0.422431;ANN=C|synonymous_variant|LOW|NS2|GENE_NS2|transcript|TRANSCRIPT_NS2|protein_coding|1/1|c.1428T>C|p.Asn476Asn|1428/2394|1428/2394|476/797||WARNING_TRANSCRIPT_NO_START_CODON,C|upstream_gene_variant|MODIFIER|NS3|GENE_NS3|transcript|TRANSCRIPT_NS3|protein_coding||c.-967T>C|||||967|WARNING_TRANSCRIPT_NO_START_CODON,C|upstream_gene_variant|MODIFIER|NS4|GENE_NS4|transcript|TRANSCRIPT_NS4|protein_coding||c.-2557T>C|||||2557|WARNING_TRANSCRIPT_NO_START_CODON,C|upstream_gene_variant|MODIFIER|capsid|GENE_capsid|transcript|TRANSCRIPT_capsid|protein_coding||c.-4458T>C|||||4458|WARNING_TRANSCRIPT_NO_STOP_CODON,C|downstream_gene_variant|MODIFIER|NS1|GENE_NS1|transcript|TRANSCRIPT_NS1|protein_coding||c.*1428T>C|||||1428|WARNING_TRANSCRIPT_NO_STOP_CODON,C|non_coding_transcript_variant|MODIFIER|EDEN.1|null|transcript|EDEN.1|protein_coding||||||||WARNING_TRANSCRIPT_NO_START_CODON | N40: LOW | O40: Synonymous | P40: GT:PL | Q40: 1/1:255,255,0
A41: KP164568_BHI3734_H804698_2014_08_26_Human_Brazil | B41: 3116 | C41: . | D41: T | E41: 5 | F41: =E41*100/J41 -> 0.5787037037 | G41: C | H41: 859 | I41: =H41*100/J41 -> 99.4212963 | J41: =H41+E41 -> 864 | K41: 221.999 | L41: PASS | M41: DP=860;VDB=3.31067e-33;SGB=-0.693147;RPB=0.915992;MQB=0.0113818;MQSB=2.75295e-07;BQB=0.993425;MQ0F=0.00813953;AF1=1;AC1=2;DP4=1,2,161,577;MQ=20;FQ=-281.989;PV4=0.523473,0.224448,9.12508e-08,1;ANN=C|synonymous_variant|LOW|NS2|GENE_NS2|transcript|TRANSCRIPT_NS2|protein_coding|1/1|c.1434T>C|p.Cys478Cys|1434/2394|1434/2394|478/797||WARNING_TRANSCRIPT_NO_START_CODON,C|upstream_gene_variant|MODIFIER|NS3|GENE_NS3|transcript|TRANSCRIPT_NS3|protein_coding||c.-961T>C|||||961|WARNING_TRANSCRIPT_NO_START_CODON,C|upstream_gene_variant|MODIFIER|NS4|GENE_NS4|transcript|TRANSCRIPT_NS4|protein_coding||c.-2551T>C|||||2551|WARNING_TRANSCRIPT_NO_START_CODON,C|upstream_gene_variant|MODIFIER|capsid|GENE_capsid|transcript|TRANSCRIPT_capsid|protein_coding||c.-4452T>C|||||4452|WARNING_TRANSCRIPT_NO_STOP_CODON,C|downstream_gene_variant|MODIFIER|NS1|GENE_NS1|transcript|TRANSCRIPT_NS1|protein_coding||c.*1434T>C|||||1434|WARNING_TRANSCRIPT_NO_STOP_CODON,C|non_coding_transcript_variant|MODIFIER|EDEN.1|null|transcript|EDEN.1|protein_coding||||||||WARNING_TRANSCRIPT_NO_START_CODON | N41: LOW | O41: Synonymous | P41: GT:PL | Q41: 1/1:255,255,0
A42: KP164568_BHI3734_H804698_2014_08_26_Human_Brazil | B42: 3224 | C42: . | D42: T | E42: 0 | F42: =E42*100/J42 -> 0 | G42: C | H42: 210 | I42: =H42*100/J42 -> 100 | J42: =H42+E42 -> 210 | K42: 221.999 | L42: PASS | M42: DP=210;VDB=0.207018;SGB=-0.693147;MQSB=0.000685072;MQ0F=0;AF1=1;AC1=2;DP4=0,0,104,43;MQ=23;FQ=-281.989;ANN=C|synonymous_variant|LOW|NS2|GENE_NS2|transcript|TRANSCRIPT_NS2|protein_coding|1/1|c.1542T>C|p.Pro514Pro|1542/2394|1542/2394|514/797||WARNING_TRANSCRIPT_NO_START_CODON,C|upstream_gene_variant|MODIFIER|NS3|GENE_NS3|transcript|TRANSCRIPT_NS3|protein_coding||c.-853T>C|||||853|WARNING_TRANSCRIPT_NO_START_CODON,C|upstream_gene_variant|MODIFIER|NS4|GENE_NS4|transcript|TRANSCRIPT_NS4|protein_coding||c.-2443T>C|||||2443|WARNING_TRANSCRIPT_NO_START_CODON,C|upstream_gene_variant|MODIFIER|capsid|GENE_capsid|transcript|TRANSCRIPT_capsid|protein_coding||c.-4344T>C|||||4344|WARNING_TRANSCRIPT_NO_STOP_CODON,C|downstream_gene_variant|MODIFIER|NS1|GENE_NS1|transcript|TRANSCRIPT_NS1|protein_coding||c.*1542T>C|||||1542|WARNING_TRANSCRIPT_NO_STOP_CODON,C|non_coding_transcript_variant|MODIFIER|EDEN.1|null|transcript|EDEN.1|protein_coding||||||||WARNING_TRANSCRIPT_NO_START_CODON | N42: LOW | O42: Synonymous | P42: GT:PL | Q42: 1/1:255,255,0
A43: KP164568_BHI3734_H804698_2014_08_26_Human_Brazil | B43: 3446 | C43: . | D43: C | E43: 5 | F43: =E43*100/J43 -> 1.712328767 | G43: T | H43: 287 | I43: =H43*100/J43 -> 98.28767123 | J43: =H43+E43 -> 292 | K43: 221.999 | L43: PASS | M43: DP=290;VDB=0.00667672;SGB=-0.693147;RPB=0.0621762;MQB=0.0103627;MQSB=0.998164;BQB=0.927461;MQ0F=0.00344828;AF1=1;AC1=2;DP4=1,1,165,28;MQ=22;FQ=-281.989;PV4=0.275971,1,0.000198579,1;ANN=T|synonymous_variant|LOW|NS2|GENE_NS2|transcript|TRANSCRIPT_NS2|protein_coding|1/1|c.1764C>T|p.Thr588Thr|1764/2394|1764/2394|588/797||WARNING_TRANSCRIPT_NO_START_CODON,T|upstream_gene_variant|MODIFIER|NS3|GENE_NS3|transcript|TRANSCRIPT_NS3|protein_coding||c.-631C>T|||||631|WARNING_TRANSCRIPT_NO_START_CODON,T|upstream_gene_variant|MODIFIER|NS4|GENE_NS4|transcript|TRANSCRIPT_NS4|protein_coding||c.-2221C>T|||||2221|WARNING_TRANSCRIPT_NO_START_CODON,T|upstream_gene_variant|MODIFIER|capsid|GENE_capsid|transcript|TRANSCRIPT_capsid|protein_coding||c.-4122C>T|||||4122|WARNING_TRANSCRIPT_NO_STOP_CODON,T|upstream_gene_variant|MODIFIER|E3|GENE_E3|transcript|TRANSCRIPT_E3|protein_coding||c.-4914C>T|||||4914|WARNING_TRANSCRIPT_NO_START_CODON,T|downstream_gene_variant|MODIFIER|NS1|GENE_NS1|transcript|TRANSCRIPT_NS1|protein_coding||c.*1764C>T|||||1764|WARNING_TRANSCRIPT_NO_STOP_CODON,T|non_coding_transcript_variant|MODIFIER|EDEN.1|null|transcript|EDEN.1|protein_coding||||||||WARNING_TRANSCRIPT_NO_START_CODON | N43: LOW | O43: Synonymous | P43: GT:PL | Q43: 1/1:255,255,0
A44: KP164568_BHI3734_H804698_2014_08_26_Human_Brazil | B44: 3467 | C44: . | D44: T | E44: 10 | F44: =E44*100/J44 -> 3.717472119 | G44: C | H44: 259 | I44: =H44*100/J44 -> 96.28252788 | J44: =H44+E44 -> 269 | K44: 157.998 | L44: PASS | M44: DP=267;VDB=0.990789;SGB=-0.693147;RPB=0.447567;MQB=0.0144987;MQSB=3.25224e-06;BQB=0.722941;MQ0F=0;AF1=1;AC1=2;DP4=4,2,115,65;MQ=23;FQ=-281.989;PV4=1,1,1.35668e-07,1;ANN=C|synonymous_variant|LOW|NS2|GENE_NS2|transcript|TRANSCRIPT_NS2|protein_coding|1/1|c.1785T>C|p.Phe595Phe|1785/2394|1785/2394|595/797||WARNING_TRANSCRIPT_NO_START_CODON,C|upstream_gene_variant|MODIFIER|NS3|GENE_NS3|transcript|TRANSCRIPT_NS3|protein_coding||c.-610T>C|||||610|WARNING_TRANSCRIPT_NO_START_CODON,C|upstream_gene_variant|MODIFIER|NS4|GENE_NS4|transcript|TRANSCRIPT_NS4|protein_coding||c.-2200T>C|||||2200|WARNING_TRANSCRIPT_NO_START_CODON,C|upstream_gene_variant|MODIFIER|capsid|GENE_capsid|transcript|TRANSCRIPT_capsid|protein_coding||c.-4101T>C|||||4101|WARNING_TRANSCRIPT_NO_STOP_CODON,C|upstream_gene_variant|MODIFIER|E3|GENE_E3|transcript|TRANSCRIPT_E3|protein_coding||c.-4893T>C|||||4893|WARNING_TRANSCRIPT_NO_START_CODON,C|downstream_gene_variant|MODIFIER|NS1|GENE_NS1|transcript|TRANSCRIPT_NS1|protein_coding||c.*1785T>C|||||1785|WARNING_TRANSCRIPT_NO_STOP_CODON,C|non_coding_transcript_variant|MODIFIER|EDEN.1|null|transcript|EDEN.1|protein_coding||||||||WARNING_TRANSCRIPT_NO_START_CODON | N44: LOW | O44: Synonymous | P44: GT:PL | Q44: 1/1:191,255,0
A45: KP164568_BHI3734_H804698_2014_08_26_Human_Brazil | B45: 3482 | C45: . | D45: T | E45: 11 | F45: =E45*100/J45 -> 3.333333333 | G45: C | H45: 319 | I45: =H45*100/J45 -> 96.66666667 | J45: =H45+E45 -> 330 | K45: 192.999 | L45: PASS | M45: DP=328;VDB=1;SGB=-0.693147;RPB=0.988394;MQB=0.000725489;MQSB=7.00393e-08;BQB=0.790427;MQ0F=0;AF1=1;AC1=2;DP4=3,2,127,88;MQ=24;FQ=-281.989;PV4=1,0.439532,2.38217e-12,0.118133;ANN=C|synonymous_variant|LOW|NS2|GENE_NS2|transcript|TRANSCRIPT_NS2|protein_coding|1/1|c.1800T>C|p.Asn600Asn|1800/2394|1800/2394|600/797||WARNING_TRANSCRIPT_NO_START_CODON,C|upstream_gene_variant|MODIFIER|NS3|GENE_NS3|transcript|TRANSCRIPT_NS3|protein_coding||c.-595T>C|||||595|WARNING_TRANSCRIPT_NO_START_CODON,C|upstream_gene_variant|MODIFIER|NS4|GENE_NS4|transcript|TRANSCRIPT_NS4|protein_coding||c.-2185T>C|||||2185|WARNING_TRANSCRIPT_NO_START_CODON,C|upstream_gene_variant|MODIFIER|capsid|GENE_capsid|transcript|TRANSCRIPT_capsid|protein_coding||c.-4086T>C|||||4086|WARNING_TRANSCRIPT_NO_STOP_CODON,C|upstream_gene_variant|MODIFIER|E3|GENE_E3|transcript|TRANSCRIPT_E3|protein_coding||c.-4878T>C|||||4878|WARNING_TRANSCRIPT_NO_START_CODON,C|downstream_gene_variant|MODIFIER|NS1|GENE_NS1|transcript|TRANSCRIPT_NS1|protein_coding||c.*1800T>C|||||1800|WARNING_TRANSCRIPT_NO_STOP_CODON,C|non_coding_transcript_variant|MODIFIER|EDEN.1|null|transcript|EDEN.1|protein_coding||||||||WARNING_TRANSCRIPT_NO_START_CODON | N45: LOW | O45: Synonymous | P45: GT:PL | Q45: 1/1:226,255,0
A46: KP164568_BHI3734_H804698_2014_08_26_Human_Brazil | B46: 3497 | C46: . | D46: T | E46: 6 | F46: =E46*100/J46 -> 2.02020202 | G46: C | H46: 291 | I46: =H46*100/J46 -> 97.97979798 | J46: =H46+E46 -> 297 | K46: 221.999 | L46: PASS | M46: DP=297;VDB=0.000291475;SGB=-0.693147;RPB=0.530406;MQB=0.0030774;MQSB=0.000187106;BQB=0.944094;MQ0F=0;AF1=1;AC1=2;DP4=2,2,112,77;MQ=25;FQ=-281.989;PV4=1,1,5.71804e-07,0.429135;ANN=C|synonymous_variant|LOW|NS2|GENE_NS2|transcript|TRANSCRIPT_NS2|protein_coding|1/1|c.1815T>C|p.Asn605Asn|1815/2394|1815/2394|605/797||WARNING_TRANSCRIPT_NO_START_CODON,C|upstream_gene_variant|MODIFIER|NS3|GENE_NS3|transcript|TRANSCRIPT_NS3|protein_coding||c.-580T>C|||||580|WARNING_TRANSCRIPT_NO_START_CODON,C|upstream_gene_variant|MODIFIER|NS4|GENE_NS4|transcript|TRANSCRIPT_NS4|protein_coding||c.-2170T>C|||||2170|WARNING_TRANSCRIPT_NO_START_CODON,C|upstream_gene_variant|MODIFIER|capsid|GENE_capsid|transcript|TRANSCRIPT_capsid|protein_coding||c.-4071T>C|||||4071|WARNING_TRANSCRIPT_NO_STOP_CODON,C|upstream_gene_variant|MODIFIER|E3|GENE_E3|transcript|TRANSCRIPT_E3|protein_coding||c.-4863T>C|||||4863|WARNING_TRANSCRIPT_NO_START_CODON,C|downstream_gene_variant|MODIFIER|NS1|GENE_NS1|transcript|TRANSCRIPT_NS1|protein_coding||c.*1815T>C|||||1815|WARNING_TRANSCRIPT_NO_STOP_CODON,C|non_coding_transcript_variant|MODIFIER|EDEN.1|null|transcript|EDEN.1|protein_coding||||||||WARNING_TRANSCRIPT_NO_START_CODON | N46: LOW | O46: Synonymous | P46: GT:PL | Q46: 1/1:255,255,0
A47: KP164568_BHI3734_H804698_2014_08_26_Human_Brazil | B47: 3503 | C47: . | D47: A | E47: 5 | F47: =E47*100/J47 -> 1.718213058 | G47: G | H47: 286 | I47: =H47*100/J47 -> 98.28178694 | J47: =H47+E47 -> 291 | K47: 221.999 | L47: PASS | M47: DP=290;VDB=9.89304e-08;SGB=-0.693147;RPB=0.752591;MQB=0.0153497;MQSB=1.67367e-05;BQB=0.818168;MQ0F=0;AF1=1;AC1=2;DP4=2,1,107,82;MQ=26;FQ=-281.989;PV4=1,0.254031,4.59379e-05,0.139798;ANN=G|synonymous_variant|LOW|NS2|GENE_NS2|transcript|TRANSCRIPT_NS2|protein_coding|1/1|c.1821A>G|p.Arg607Arg|1821/2394|1821/2394|607/797||WARNING_TRANSCRIPT_NO_START_CODON,G|upstream_gene_variant|MODIFIER|NS3|GENE_NS3|transcript|TRANSCRIPT_NS3|protein_coding||c.-574A>G|||||574|WARNING_TRANSCRIPT_NO_START_CODON,G|upstream_gene_variant|MODIFIER|NS4|GENE_NS4|transcript|TRANSCRIPT_NS4|protein_coding||c.-2164A>G|||||2164|WARNING_TRANSCRIPT_NO_START_CODON,G|upstream_gene_variant|MODIFIER|capsid|GENE_capsid|transcript|TRANSCRIPT_capsid|protein_coding||c.-4065A>G|||||4065|WARNING_TRANSCRIPT_NO_STOP_CODON,G|upstream_gene_variant|MODIFIER|E3|GENE_E3|transcript|TRANSCRIPT_E3|protein_coding||c.-4857A>G|||||4857|WARNING_TRANSCRIPT_NO_START_CODON,G|downstream_gene_variant|MODIFIER|NS1|GENE_NS1|transcript|TRANSCRIPT_NS1|protein_coding||c.*1821A>G|||||1821|WARNING_TRANSCRIPT_NO_STOP_CODON,G|non_coding_transcript_variant|MODIFIER|EDEN.1|null|transcript|EDEN.1|protein_coding||||||||WARNING_TRANSCRIPT_NO_START_CODON | N47: LOW | O47: Synonymous | P47: GT:PL | Q47: 1/1:255,255,0
A48: KP164568_BHI3734_H804698_2014_08_26_Human_Brazil | B48: 3863 | C48: . | D48: T | E48: 6 | F48: =E48*100/J48 -> 2.830188679 | G48: C | H48: 206 | I48: =H48*100/J48 -> 97.16981132 | J48: =H48+E48 -> 212 | K48: 135.998 | L48: PASS | M48: DP=210;VDB=1.2957e-40;SGB=-0.693147;RPB=0.0431958;MQB=0.00358904;MQSB=1;BQB=0.122837;MQ0F=0.161905;AF1=1;AC1=2;DP4=5,0,153,1;MQ=27;FQ=-281.989;PV4=1,1,0.00216729,1;ANN=C|synonymous_variant|LOW|NS2|GENE_NS2|transcript|TRANSCRIPT_NS2|protein_coding|1/1|c.2181T>C|p.Tyr727Tyr|2181/2394|2181/2394|727/797||WARNING_TRANSCRIPT_NO_START_CODON,C|upstream_gene_variant|MODIFIER|NS3|GENE_NS3|transcript|TRANSCRIPT_NS3|protein_coding||c.-214T>C|||||214|WARNING_TRANSCRIPT_NO_START_CODON,C|upstream_gene_variant|MODIFIER|NS4|GENE_NS4|transcript|TRANSCRIPT_NS4|protein_coding||c.-1804T>C|||||1804|WARNING_TRANSCRIPT_NO_START_CODON,C|upstream_gene_variant|MODIFIER|capsid|GENE_capsid|transcript|TRANSCRIPT_capsid|protein_coding||c.-3705T>C|||||3705|WARNING_TRANSCRIPT_NO_STOP_CODON,C|upstream_gene_variant|MODIFIER|E3|GENE_E3|transcript|TRANSCRIPT_E3|protein_coding||c.-4497T>C|||||4497|WARNING_TRANSCRIPT_NO_START_CODON,C|upstream_gene_variant|MODIFIER|E2|GENE_E2|transcript|TRANSCRIPT_E2|protein_coding||c.-4680T>C|||||4680|WARNING_TRANSCRIPT_NO_START_CODON,C|downstream_gene_variant|MODIFIER|NS1|GENE_NS1|transcript|TRANSCRIPT_NS1|protein_coding||c.*2181T>C|||||2181|WARNING_TRANSCRIPT_NO_STOP_CODON,C|non_coding_transcript_variant|MODIFIER|EDEN.1|null|transcript|EDEN.1|protein_coding||||||||WARNING_TRANSCRIPT_NO_START_CODON | N48: LOW | O48: Synonymous | P48: GT:PL | Q48: 1/1:169,255,0
A49: KP164568_BHI3734_H804698_2014_08_26_Human_Brazil | B49: 4082 | C49: . | D49: G | E49: 10 | F49: =E49*100/J49 -> 3.571428571 | G49: A | H49: 270 | I49: =H49*100/J49 -> 96.42857143 | J49: =H49+E49 -> 280 | K49: 221.999 | L49: PASS | M49: DP=276;VDB=0;SGB=-0.693147;RPB=0.962106;MQB=7.52061e-06;MQSB=1.48396e-19;BQB=0.935791;MQ0F=0.202899;AF1=1;AC1=2;DP4=7,2,74,135;MQ=25;FQ=-281.989;PV4=0.0142969,1,1.04293e-05,0.0704071;ANN=A|synonymous_variant|LOW|NS3|GENE_NS3|transcript|TRANSCRIPT_NS3|protein_coding|1/1|c.6G>A|p.Pro2Pro|6/1572|6/1572|2/523||WARNING_TRANSCRIPT_NO_START_CODON,A|upstream_gene_variant|MODIFIER|NS4|GENE_NS4|transcript|TRANSCRIPT_NS4|protein_coding||c.-1585G>A|||||1585|WARNING_TRANSCRIPT_NO_START_CODON,A|upstream_gene_variant|MODIFIER|capsid|GENE_capsid|transcript|TRANSCRIPT_capsid|protein_coding||c.-3486G>A|||||3486|WARNING_TRANSCRIPT_NO_STOP_CODON,A|upstream_gene_variant|MODIFIER|E3|GENE_E3|transcript|TRANSCRIPT_E3|protein_coding||c.-4278G>A|||||4278|WARNING_TRANSCRIPT_NO_START_CODON,A|upstream_gene_variant|MODIFIER|E2|GENE_E2|transcript|TRANSCRIPT_E2|protein_coding||c.-4461G>A|||||4461|WARNING_TRANSCRIPT_NO_START_CODON,A|downstream_gene_variant|MODIFIER|NS1|GENE_NS1|transcript|TRANSCRIPT_NS1|protein_coding||c.*2400G>A|||||2400|WARNING_TRANSCRIPT_NO_STOP_CODON,A|downstream_gene_variant|MODIFIER|NS2|GENE_NS2|transcript|TRANSCRIPT_NS2|protein_coding||c.*6G>A|||||6|WARNING_TRANSCRIPT_NO_START_CODON,A|non_coding_transcript_variant|MODIFIER|EDEN.1|null|transcript|EDEN.1|protein_coding||||||||WARNING_TRANSCRIPT_NO_START_CODON | N49: LOW | O49: Synonymous | P49: GT:PL | Q49: 1/1:255,255,0
A50: KP164568_BHI3734_H804698_2014_08_26_Human_Brazil | B50: 4670 | C50: . | D50: C | E50: 0 | F50: =E50*100/J50 -> 0 | G50: T | H50: 202 | I50: =H50*100/J50 -> 100 | J50: =H50+E50 -> 202 | K50: 221.999 | L50: PASS | M50: DP=202;VDB=0.198702;SGB=-0.693147;MQSB=0.0772932;MQ0F=0;AF1=1;AC1=2;DP4=0,0,110,39;MQ=19;FQ=-281.989;ANN=T|synonymous_variant|LOW|NS3|GENE_NS3|transcript|TRANSCRIPT_NS3|protein_coding|1/1|c.594C>T|p.Tyr198Tyr|594/1572|594/1572|198/523||WARNING_TRANSCRIPT_NO_START_CODON,T|upstream_gene_variant|MODIFIER|NS4|GENE_NS4|transcript|TRANSCRIPT_NS4|protein_coding||c.-997C>T|||||997|WARNING_TRANSCRIPT_NO_START_CODON,T|upstream_gene_variant|MODIFIER|capsid|GENE_capsid|transcript|TRANSCRIPT_capsid|protein_coding||c.-2898C>T|||||2898|WARNING_TRANSCRIPT_NO_STOP_CODON,T|upstream_gene_variant|MODIFIER|E3|GENE_E3|transcript|TRANSCRIPT_E3|protein_coding||c.-3690C>T|||||3690|WARNING_TRANSCRIPT_NO_START_CODON,T|upstream_gene_variant|MODIFIER|E2|GENE_E2|transcript|TRANSCRIPT_E2|protein_coding||c.-3873C>T|||||3873|WARNING_TRANSCRIPT_NO_START_CODON,T|downstream_gene_variant|MODIFIER|NS1|GENE_NS1|transcript|TRANSCRIPT_NS1|protein_coding||c.*2988C>T|||||2988|WARNING_TRANSCRIPT_NO_STOP_CODON,T|downstream_gene_variant|MODIFIER|NS2|GENE_NS2|transcript|TRANSCRIPT_NS2|protein_coding||c.*594C>T|||||594|WARNING_TRANSCRIPT_NO_START_CODON,T|non_coding_transcript_variant|MODIFIER|EDEN.1|null|transcript|EDEN.1|protein_coding||||||||WARNING_TRANSCRIPT_NO_START_CODON | N50: LOW | O50: Synonymous | P50: GT:PL | Q50: 1/1:255,255,0
A51: KP164568_BHI3734_H804698_2014_08_26_Human_Brazil | B51: 4688 | C51: . | D51: T | E51: 2 | F51: =E51*100/J51 -> 0.9009009009 | G51: A | H51: 220 | I51: =H51*100/J51 -> 99.0990991 | J51: =H51+E51 -> 222 | K51: 174.998 | L51: PASS | M51: DP=222;VDB=0.020176;SGB=-0.693147;RPB=1;MQB=1;MQSB=0.00121679;BQB=1;MQ0F=0;AF1=1;AC1=2;DP4=1,0,113,32;MQ=17;FQ=-281.989;PV4=1,0.150275,0.00194457,1;ANN=A|synonymous_variant|LOW|NS3|GENE_NS3|transcript|TRANSCRIPT_NS3|protein_coding|1/1|c.612T>A|p.Thr204Thr|612/1572|612/1572|204/523||WARNING_TRANSCRIPT_NO_START_CODON,A|upstream_gene_variant|MODIFIER|NS4|GENE_NS4|transcript|TRANSCRIPT_NS4|protein_coding||c.-979T>A|||||979|WARNING_TRANSCRIPT_NO_START_CODON,A|upstream_gene_variant|MODIFIER|capsid|GENE_capsid|transcript|TRANSCRIPT_capsid|protein_coding||c.-2880T>A|||||2880|WARNING_TRANSCRIPT_NO_STOP_CODON,A|upstream_gene_variant|MODIFIER|E3|GENE_E3|transcript|TRANSCRIPT_E3|protein_coding||c.-3672T>A|||||3672|WARNING_TRANSCRIPT_NO_START_CODON,A|upstream_gene_variant|MODIFIER|E2|GENE_E2|transcript|TRANSCRIPT_E2|protein_coding||c.-3855T>A|||||3855|WARNING_TRANSCRIPT_NO_START_CODON,A|downstream_gene_variant|MODIFIER|NS1|GENE_NS1|transcript|TRANSCRIPT_NS1|protein_coding||c.*3006T>A|||||3006|WARNING_TRANSCRIPT_NO_STOP_CODON,A|downstream_gene_variant|MODIFIER|NS2|GENE_NS2|transcript|TRANSCRIPT_NS2|protein_coding||c.*612T>A|||||612|WARNING_TRANSCRIPT_NO_START_CODON,A|non_coding_transcript_variant|MODIFIER|EDEN.1|null|transcript|EDEN.1|protein_coding||||||||WARNING_TRANSCRIPT_NO_START_CODON | N51: LOW | O51: Synonymous | P51: GT:PL | Q51: 1/1:208,255,0
A52: KP164568_BHI3734_H804698_2014_08_26_Human_Brazil | B52: 4712 | C52: . | D52: C | E52: 2 | F52: =E52*100/J52 -> 0.9478672986 | G52: T | H52: 209 | I52: =H52*100/J52 -> 99.0521327 | J52: =H52+E52 -> 211 | K52: 139.998 | L52: PASS | M52: DP=211;VDB=0.00565022;SGB=-0.693147;RPB=1;MQB=1;MQSB=0.495344;BQB=1;MQ0F=0.014218;AF1=1;AC1=2;DP4=1,0,87,60;MQ=16;FQ=-281.989;PV4=1,0.107662,0.000345816,0.447893;ANN=T|synonymous_variant|LOW|NS3|GENE_NS3|transcript|TRANSCRIPT_NS3|protein_coding|1/1|c.636C>T|p.Asp212Asp|636/1572|636/1572|212/523||WARNING_TRANSCRIPT_NO_START_CODON,T|upstream_gene_variant|MODIFIER|NS4|GENE_NS4|transcript|TRANSCRIPT_NS4|protein_coding||c.-955C>T|||||955|WARNING_TRANSCRIPT_NO_START_CODON,T|upstream_gene_variant|MODIFIER|capsid|GENE_capsid|transcript|TRANSCRIPT_capsid|protein_coding||c.-2856C>T|||||2856|WARNING_TRANSCRIPT_NO_STOP_CODON,T|upstream_gene_variant|MODIFIER|E3|GENE_E3|transcript|TRANSCRIPT_E3|protein_coding||c.-3648C>T|||||3648|WARNING_TRANSCRIPT_NO_START_CODON,T|upstream_gene_variant|MODIFIER|E2|GENE_E2|transcript|TRANSCRIPT_E2|protein_coding||c.-3831C>T|||||3831|WARNING_TRANSCRIPT_NO_START_CODON,T|downstream_gene_variant|MODIFIER|NS1|GENE_NS1|transcript|TRANSCRIPT_NS1|protein_coding||c.*3030C>T|||||3030|WARNING_TRANSCRIPT_NO_STOP_CODON,T|downstream_gene_variant|MODIFIER|NS2|GENE_NS2|transcript|TRANSCRIPT_NS2|protein_coding||c.*636C>T|||||636|WARNING_TRANSCRIPT_NO_START_CODON,T|non_coding_transcript_variant|MODIFIER|EDEN.1|null|transcript|EDEN.1|protein_coding||||||||WARNING_TRANSCRIPT_NO_START_CODON | N52: LOW | O52: Synonymous | P52: GT:PL | Q52: 1/1:173,255,0
A53: KP164568_BHI3734_H804698_2014_08_26_Human_Brazil | B53: 4713 | C53: . | D53: A | E53: 2 | F53: =E53*100/J53 -> 0.9708737864 | G53: G | H53: 204 | I53: =H53*100/J53 -> 99.02912621 | J53: =H53+E53 -> 206 | K53: 121.998 | L53: PASS | M53: DP=206;VDB=0.00178606;SGB=-0.693147;RPB=1;MQB=1;MQSB=0.179735;BQB=1;MQ0F=0.0145631;AF1=1;AC1=2;DP4=1,0,87,55;MQ=15;FQ=-281.989;PV4=1,0.115425,0.000201363,1;ANN=G|missense_variant|MODERATE|NS3|GENE_NS3|transcript|TRANSCRIPT_NS3|protein_coding|1/1|c.637A>G|p.Met213Val|637/1572|637/1572|213/523||WARNING_TRANSCRIPT_NO_START_CODON,G|upstream_gene_variant|MODIFIER|NS4|GENE_NS4|transcript|TRANSCRIPT_NS4|protein_coding||c.-954A>G|||||954|WARNING_TRANSCRIPT_NO_START_CODON,G|upstream_gene_variant|MODIFIER|capsid|GENE_capsid|transcript|TRANSCRIPT_capsid|protein_coding||c.-2855A>G|||||2855|WARNING_TRANSCRIPT_NO_STOP_CODON,G|upstream_gene_variant|MODIFIER|E3|GENE_E3|transcript|TRANSCRIPT_E3|protein_coding||c.-3647A>G|||||3647|WARNING_TRANSCRIPT_NO_START_CODON,G|upstream_gene_variant|MODIFIER|E2|GENE_E2|transcript|TRANSCRIPT_E2|protein_coding||c.-3830A>G|||||3830|WARNING_TRANSCRIPT_NO_START_CODON,G|downstream_gene_variant|MODIFIER|NS1|GENE_NS1|transcript|TRANSCRIPT_NS1|protein_coding||c.*3031A>G|||||3031|WARNING_TRANSCRIPT_NO_STOP_CODON,G|downstream_gene_variant|MODIFIER|NS2|GENE_NS2|transcript|TRANSCRIPT_NS2|protein_coding||c.*637A>G|||||637|WARNING_TRANSCRIPT_NO_START_CODON,G|non_coding_transcript_variant|MODIFIER|EDEN.1|null|transcript|EDEN.1|protein_coding||||||||WARNING_TRANSCRIPT_NO_START_CODON | N53: MODERATE | O53: Non-synonymous | P53: GT:PL | Q53: 1/1:155,255,0
A54: KP164568_BHI3734_H804698_2014_08_26_Human_Brazil | B54: 4725 | C54: . | D54: T | E54: 3 | F54: =E54*100/J54 -> 1.388888889 | G54: C | H54: 213 | I54: =H54*100/J54 -> 98.61111111 | J54: =H54+E54 -> 216 | K54: 132.998 | L54: PASS | M54: DP=216;VDB=0.999774;SGB=-0.693147;RPB=0.93038;MQB=0.0601266;MQSB=0.709892;BQB=0.712025;MQ0F=0.0138889;AF1=1;AC1=2;DP4=2,0,76,82;MQ=16;FQ=-281.989;PV4=0.236085,0.333898,0.000841945,1;ANN=C|missense_variant|MODERATE|NS3|GENE_NS3|transcript|TRANSCRIPT_NS3|protein_coding|1/1|c.649T>C|p.Tyr217His|649/1572|649/1572|217/523||WARNING_TRANSCRIPT_NO_START_CODON,C|upstream_gene_variant|MODIFIER|NS4|GENE_NS4|transcript|TRANSCRIPT_NS4|protein_coding||c.-942T>C|||||942|WARNING_TRANSCRIPT_NO_START_CODON,C|upstream_gene_variant|MODIFIER|capsid|GENE_capsid|transcript|TRANSCRIPT_capsid|protein_coding||c.-2843T>C|||||2843|WARNING_TRANSCRIPT_NO_STOP_CODON,C|upstream_gene_variant|MODIFIER|E3|GENE_E3|transcript|TRANSCRIPT_E3|protein_coding||c.-3635T>C|||||3635|WARNING_TRANSCRIPT_NO_START_CODON,C|upstream_gene_variant|MODIFIER|E2|GENE_E2|transcript|TRANSCRIPT_E2|protein_coding||c.-3818T>C|||||3818|WARNING_TRANSCRIPT_NO_START_CODON,C|downstream_gene_variant|MODIFIER|NS1|GENE_NS1|transcript|TRANSCRIPT_NS1|protein_coding||c.*3043T>C|||||3043|WARNING_TRANSCRIPT_NO_STOP_CODON,C|downstream_gene_variant|MODIFIER|NS2|GENE_NS2|transcript|TRANSCRIPT_NS2|protein_coding||c.*649T>C|||||649|WARNING_TRANSCRIPT_NO_START_CODON,C|non_coding_transcript_variant|MODIFIER|EDEN.1|null|transcript|EDEN.1|protein_coding||||||||WARNING_TRANSCRIPT_NO_START_CODON | N54: MODERATE | O54: Non-synonymous | P54: GT:PL | Q54: 1/1:166,255,0
A55: KP164568_BHI3734_H804698_2014_08_26_Human_Brazil | B55: 4744 | D55: A | E55: 178 | F55: =E55*100/J55 -> 79.46428571 | G55: C | H55: 46 | I55: =H55*100/J55 -> 20.53571429 | J55: =H55+E55 -> 224 | M55: Gln -> Pro | N55: MODERATE | O55: Non-synonymous
A56: KP164568_BHI3734_H804698_2014_08_26_Human_Brazil | B56: 4747 | C56: . | D56: C | E56: 1 | F56: =E56*100/J56 -> 0.4504504505 | G56: T | H56: 221 | I56: =H56*100/J56 -> 99.54954955 | J56: =H56+E56 -> 222 | K56: 194.999 | L56: PASS | M56: DP=222;VDB=0.999995;SGB=-0.693147;RPB=1;MQB=1;MQSB=0.132952;BQB=1;MQ0F=0.0135135;AF1=1;AC1=2;DP4=1,0,85,74;MQ=17;FQ=-281.989;PV4=1,1,0.159253,0.126039;ANN=T|missense_variant|MODERATE|NS3|GENE_NS3|transcript|TRANSCRIPT_NS3|protein_coding|1/1|c.671C>T|p.Thr224Ile|671/1572|671/1572|224/523||WARNING_TRANSCRIPT_NO_START_CODON,T|upstream_gene_variant|MODIFIER|NS4|GENE_NS4|transcript|TRANSCRIPT_NS4|protein_coding||c.-920C>T|||||920|WARNING_TRANSCRIPT_NO_START_CODON,T|upstream_gene_variant|MODIFIER|capsid|GENE_capsid|transcript|TRANSCRIPT_capsid|protein_coding||c.-2821C>T|||||2821|WARNING_TRANSCRIPT_NO_STOP_CODON,T|upstream_gene_variant|MODIFIER|E3|GENE_E3|transcript|TRANSCRIPT_E3|protein_coding||c.-3613C>T|||||3613|WARNING_TRANSCRIPT_NO_START_CODON,T|upstream_gene_variant|MODIFIER|E2|GENE_E2|transcript|TRANSCRIPT_E2|protein_coding||c.-3796C>T|||||3796|WARNING_TRANSCRIPT_NO_START_CODON,T|downstream_gene_variant|MODIFIER|NS1|GENE_NS1|transcript|TRANSCRIPT_NS1|protein_coding||c.*3065C>T|||||3065|WARNING_TRANSCRIPT_NO_STOP_CODON,T|downstream_gene_variant|MODIFIER|NS2|GENE_NS2|transcript|TRANSCRIPT_NS2|protein_coding||c.*671C>T|||||671|WARNING_TRANSCRIPT_NO_START_CODON,T|non_coding_transcript_variant|MODIFIER|EDEN.1|null|transcript|EDEN.1|protein_coding||||||||WARNING_TRANSCRIPT_NO_START_CODON | N56: MODERATE | O56: Non-synonymous | P56: GT:PL | Q56: 1/1:228,255,0
A57: KP164568_BHI3734_H804698_2014_08_26_Human_Brazil | B57: 5585 | C57: . | D57: A | E57: 281 | F57: =E57*100/J57 -> 64.59770115 | G57: T | H57: 154 | I57: =H57*100/J57 -> 35.40229885 | J57: =H57+E57 -> 435 | K57: 101.008 | L57: PASS | M57: DP=436;VDB=0;SGB=-0.693147;RPB=0.0431956;MQB=0.000162767;BQB=0.362084;MQ0F=0;AF1=0.5;AC1=1;DP4=250,0,137,0;MQ=39;FQ=104.016;PV4=1,0.4446,9.18129e-07,0.0137763;ANN=T|synonymous_variant|LOW|NS3|GENE_NS3|transcript|TRANSCRIPT_NS3|protein_coding|1/1|c.1509A>T|p.Gly503Gly|1509/1572|1509/1572|503/523||WARNING_TRANSCRIPT_NO_START_CODON,T|upstream_gene_variant|MODIFIER|NS4|GENE_NS4|transcript|TRANSCRIPT_NS4|protein_coding||c.-82A>T|||||82|WARNING_TRANSCRIPT_NO_START_CODON,T|upstream_gene_variant|MODIFIER|capsid|GENE_capsid|transcript|TRANSCRIPT_capsid|protein_coding||c.-1983A>T|||||1983|WARNING_TRANSCRIPT_NO_STOP_CODON,T|upstream_gene_variant|MODIFIER|E3|GENE_E3|transcript|TRANSCRIPT_E3|protein_coding||c.-2775A>T|||||2775|WARNING_TRANSCRIPT_NO_START_CODON,T|upstream_gene_variant|MODIFIER|E2|GENE_E2|transcript|TRANSCRIPT_E2|protein_coding||c.-2958A>T|||||2958|WARNING_TRANSCRIPT_NO_START_CODON,T|upstream_gene_variant|MODIFIER|6K|GENE_6K|transcript|TRANSCRIPT_6K|protein_coding||c.-4227A>T|||||4227|WARNING_TRANSCRIPT_NO_START_CODON,T|upstream_gene_variant|MODIFIER|E1|GENE_E1|transcript|TRANSCRIPT_E1|protein_coding||c.-4410A>T|||||4410|WARNING_TRANSCRIPT_NO_START_CODON,T|downstream_gene_variant|MODIFIER|NS1|GENE_NS1|transcript|TRANSCRIPT_NS1|protein_coding||c.*3903A>T|||||3903|WARNING_TRANSCRIPT_NO_STOP_CODON,T|downstream_gene_variant|MODIFIER|NS2|GENE_NS2|transcript|TRANSCRIPT_NS2|protein_coding||c.*1509A>T|||||1509|WARNING_TRANSCRIPT_NO_START_CODON,T|non_coding_transcript_variant|MODIFIER|EDEN.1|null|transcript|EDEN.1|protein_coding||||||||WARNING_TRANSCRIPT_NO_START_CODON | N57: LOW | O57: Synonymous | P57: GT:PL | Q57: 0/1:131,0,227
A58: KP164568_BHI3734_H804698_2014_08_26_Human_Brazil | B58: 5597 | D58: C | E58: 467 | F58: =E58*100/J58 -> 70.0149925 | G58: T | H58: 200 | I58: =H58*100/J58 -> 29.9850075 | J58: =H58+E58 -> 667 | N58: LOW | O58: Synonymous
A59: KP164568_BHI3734_H804698_2014_08_26_Human_Brazil | B59: 5687 | C59: . | D59: C | E59: 1074 | F59: =E59*100/J59 -> 71.22015915 | G59: T | H59: 434 | I59: =H59*100/J59 -> 28.77984085 | J59: =H59+E59 -> 1508 | K59: 143.008 | L59: PASS | M59: DP=1498;VDB=0.0301946;SGB=-0.693147;RPB=1.77181e-06;MQB=0;MQSB=0.816346;BQB=0.996426;MQ0F=0;AF1=0.5;AC1=1;DP4=719,128,246,103;MQ=40;FQ=146.016;PV4=3.16113e-08,0.218577,0,0.0326597;ANN=T|synonymous_variant|LOW|NS4|GENE_NS4|transcript|TRANSCRIPT_NS4|protein_coding|1/1|c.21C>T|p.Thr7Thr|21/1833|21/1833|7/610||WARNING_TRANSCRIPT_NO_START_CODON,T|upstream_gene_variant|MODIFIER|capsid|GENE_capsid|transcript|TRANSCRIPT_capsid|protein_coding||c.-1881C>T|||||1881|WARNING_TRANSCRIPT_NO_STOP_CODON,T|upstream_gene_variant|MODIFIER|E3|GENE_E3|transcript|TRANSCRIPT_E3|protein_coding||c.-2673C>T|||||2673|WARNING_TRANSCRIPT_NO_START_CODON,T|upstream_gene_variant|MODIFIER|E2|GENE_E2|transcript|TRANSCRIPT_E2|protein_coding||c.-2856C>T|||||2856|WARNING_TRANSCRIPT_NO_START_CODON,T|upstream_gene_variant|MODIFIER|6K|GENE_6K|transcript|TRANSCRIPT_6K|protein_coding||c.-4125C>T|||||4125|WARNING_TRANSCRIPT_NO_START_CODON,T|upstream_gene_variant|MODIFIER|E1|GENE_E1|transcript|TRANSCRIPT_E1|protein_coding||c.-4308C>T|||||4308|WARNING_TRANSCRIPT_NO_START_CODON,T|downstream_gene_variant|MODIFIER|NS1|GENE_NS1|transcript|TRANSCRIPT_NS1|protein_coding||c.*4005C>T|||||4005|WARNING_TRANSCRIPT_NO_STOP_CODON,T|downstream_gene_variant|MODIFIER|NS2|GENE_NS2|transcript|TRANSCRIPT_NS2|protein_coding||c.*1611C>T|||||1611|WARNING_TRANSCRIPT_NO_START_CODON,T|downstream_gene_variant|MODIFIER|NS3|GENE_NS3|transcript|TRANSCRIPT_NS3|protein_coding||c.*39C>T|||||39|WARNING_TRANSCRIPT_NO_START_CODON,T|non_coding_transcript_variant|MODIFIER|EDEN.1|null|transcript|EDEN.1|protein_coding||||||||WARNING_TRANSCRIPT_NO_START_CODON | N59: LOW | O59: Synonymous | P59: GT:PL | Q59: 0/1:173,0,255
A60: KP164568_BHI3734_H804698_2014_08_26_Human_Brazil | B60: 5696 | C60: . | D60: T | E60: 1240 | F60: =E60*100/J60 -> 75.19708914 | G60: C | H60: 409 | I60: =H60*100/J60 -> 24.80291086 | J60: =H60+E60 -> 1649 | K60: 80.0075 | L60: PASS | M60: DP=1643;VDB=0.0396885;SGB=-0.693147;RPB=0.110136;MQB=0;MQSB=0.404417;BQB=0.0369974;MQ0F=0;AF1=0.5;AC1=1;DP4=826,128,255,78;MQ=39;FQ=83.0157;PV4=3.99526e-05,0.00647026,0,0.189985;ANN=C|synonymous_variant|LOW|NS4|GENE_NS4|transcript|TRANSCRIPT_NS4|protein_coding|1/1|c.30T>C|p.Gly10Gly|30/1833|30/1833|10/610||WARNING_TRANSCRIPT_NO_START_CODON,C|upstream_gene_variant|MODIFIER|capsid|GENE_capsid|transcript|TRANSCRIPT_capsid|protein_coding||c.-1872T>C|||||1872|WARNING_TRANSCRIPT_NO_STOP_CODON,C|upstream_gene_variant|MODIFIER|E3|GENE_E3|transcript|TRANSCRIPT_E3|protein_coding||c.-2664T>C|||||2664|WARNING_TRANSCRIPT_NO_START_CODON,C|upstream_gene_variant|MODIFIER|E2|GENE_E2|transcript|TRANSCRIPT_E2|protein_coding||c.-2847T>C|||||2847|WARNING_TRANSCRIPT_NO_START_CODON,C|upstream_gene_variant|MODIFIER|6K|GENE_6K|transcript|TRANSCRIPT_6K|protein_coding||c.-4116T>C|||||4116|WARNING_TRANSCRIPT_NO_START_CODON,C|upstream_gene_variant|MODIFIER|E1|GENE_E1|transcript|TRANSCRIPT_E1|protein_coding||c.-4299T>C|||||4299|WARNING_TRANSCRIPT_NO_START_CODON,C|downstream_gene_variant|MODIFIER|NS1|GENE_NS1|transcript|TRANSCRIPT_NS1|protein_coding||c.*4014T>C|||||4014|WARNING_TRANSCRIPT_NO_STOP_CODON,C|downstream_gene_variant|MODIFIER|NS2|GENE_NS2|transcript|TRANSCRIPT_NS2|protein_coding||c.*1620T>C|||||1620|WARNING_TRANSCRIPT_NO_START_CODON,C|downstream_gene_variant|MODIFIER|NS3|GENE_NS3|transcript|TRANSCRIPT_NS3|protein_coding||c.*48T>C|||||48|WARNING_TRANSCRIPT_NO_START_CODON,C|non_coding_transcript_variant|MODIFIER|EDEN.1|null|transcript|EDEN.1|protein_coding||||||||WARNING_TRANSCRIPT_NO_START_CODON | N60: LOW | O60: Synonymous | P60: GT:PL | Q60: 0/1:110,0,255
A61: KP164568_BHI3734_H804698_2014_08_26_Human_Brazil | B61: 5714 | C61: . | D61: A | E61: 1425 | F61: =E61*100/J61 -> 72.22503801 | G61: G | H61: 548 | I61: =H61*100/J61 -> 27.77496199 | J61: =H61+E61 -> 1973 | K61: 142.008 | L61: PASS | M61: DP=1966;VDB=0.998961;SGB=-0.693147;RPB=0.137224;MQB=0;MQSB=0.0207821;BQB=0.994857;MQ0F=0;AF1=0.5;AC1=1;DP4=963,110,324,83;MQ=39;FQ=145.016;PV4=6.57259e-07,1,0,4.22459e-05;ANN=G|synonymous_variant|LOW|NS4|GENE_NS4|transcript|TRANSCRIPT_NS4|protein_coding|1/1|c.48A>G|p.Ser16Ser|48/1833|48/1833|16/610||WARNING_TRANSCRIPT_NO_START_CODON,G|upstream_gene_variant|MODIFIER|capsid|GENE_capsid|transcript|TRANSCRIPT_capsid|protein_coding||c.-1854A>G|||||1854|WARNING_TRANSCRIPT_NO_STOP_CODON,G|upstream_gene_variant|MODIFIER|E3|GENE_E3|transcript|TRANSCRIPT_E3|protein_coding||c.-2646A>G|||||2646|WARNING_TRANSCRIPT_NO_START_CODON,G|upstream_gene_variant|MODIFIER|E2|GENE_E2|transcript|TRANSCRIPT_E2|protein_coding||c.-2829A>G|||||2829|WARNING_TRANSCRIPT_NO_START_CODON,G|upstream_gene_variant|MODIFIER|6K|GENE_6K|transcript|TRANSCRIPT_6K|protein_coding||c.-4098A>G|||||4098|WARNING_TRANSCRIPT_NO_START_CODON,G|upstream_gene_variant|MODIFIER|E1|GENE_E1|transcript|TRANSCRIPT_E1|protein_coding||c.-4281A>G|||||4281|WARNING_TRANSCRIPT_NO_START_CODON,G|downstream_gene_variant|MODIFIER|NS1|GENE_NS1|transcript|TRANSCRIPT_NS1|protein_coding||c.*4032A>G|||||4032|WARNING_TRANSCRIPT_NO_STOP_CODON,G|downstream_gene_variant|MODIFIER|NS2|GENE_NS2|transcript|TRANSCRIPT_NS2|protein_coding||c.*1638A>G|||||1638|WARNING_TRANSCRIPT_NO_START_CODON,G|downstream_gene_variant|MODIFIER|NS3|GENE_NS3|transcript|TRANSCRIPT_NS3|protein_coding||c.*66A>G|||||66|WARNING_TRANSCRIPT_NO_START_CODON,G|non_coding_transcript_variant|MODIFIER|EDEN.1|null|transcript|EDEN.1|protein_coding||||||||WARNING_TRANSCRIPT_NO_START_CODON | N61: LOW | O61: Synonymous | P61: GT:PL | Q61: 0/1:172,0,255
A62: KP164568_BHI3734_H804698_2014_08_26_Human_Brazil | B62: 5738 | C62: . | D62: G | E62: 1448 | F62: =E62*100/J62 -> 68.26968411 | G62: A | H62: 673 | I62: =H62*100/J62 -> 31.73031589 | J62: =H62+E62 -> 2121 | K62: 225.009 | L62: PASS | M62: DP=2118;VDB=1;SGB=-0.693147;RPB=2.68485e-14;MQB=0;MQSB=0.0963239;BQB=0.828244;MQ0F=0;AF1=0.5;AC1=1;DP4=812,255,344,139;MQ=39;FQ=225.007;PV4=0.0439166,1,0,0.000239148;ANN=A|synonymous_variant|LOW|NS4|GENE_NS4|transcript|TRANSCRIPT_NS4|protein_coding|1/1|c.72G>A|p.Val24Val|72/1833|72/1833|24/610||WARNING_TRANSCRIPT_NO_START_CODON,A|upstream_gene_variant|MODIFIER|capsid|GENE_capsid|transcript|TRANSCRIPT_capsid|protein_coding||c.-1830G>A|||||1830|WARNING_TRANSCRIPT_NO_STOP_CODON,A|upstream_gene_variant|MODIFIER|E3|GENE_E3|transcript|TRANSCRIPT_E3|protein_coding||c.-2622G>A|||||2622|WARNING_TRANSCRIPT_NO_START_CODON,A|upstream_gene_variant|MODIFIER|E2|GENE_E2|transcript|TRANSCRIPT_E2|protein_coding||c.-2805G>A|||||2805|WARNING_TRANSCRIPT_NO_START_CODON,A|upstream_gene_variant|MODIFIER|6K|GENE_6K|transcript|TRANSCRIPT_6K|protein_coding||c.-4074G>A|||||4074|WARNING_TRANSCRIPT_NO_START_CODON,A|upstream_gene_variant|MODIFIER|E1|GENE_E1|transcript|TRANSCRIPT_E1|protein_coding||c.-4257G>A|||||4257|WARNING_TRANSCRIPT_NO_START_CODON,A|downstream_gene_variant|MODIFIER|NS1|GENE_NS1|transcript|TRANSCRIPT_NS1|protein_coding||c.*4056G>A|||||4056|WARNING_TRANSCRIPT_NO_STOP_CODON,A|downstream_gene_variant|MODIFIER|NS2|GENE_NS2|transcript|TRANSCRIPT_NS2|protein_coding||c.*1662G>A|||||1662|WARNING_TRANSCRIPT_NO_START_CODON,A|downstream_gene_variant|MODIFIER|NS3|GENE_NS3|transcript|TRANSCRIPT_NS3|protein_coding||c.*90G>A|||||90|WARNING_TRANSCRIPT_NO_START_CODON,A|non_coding_transcript_variant|MODIFIER|EDEN.1|null|transcript|EDEN.1|protein_coding||||||||WARNING_TRANSCRIPT_NO_START_CODON | N62: LOW | O62: Synonymous | P62: GT:PL | Q62: 0/1:255,0,255
A63: KP164568_BHI3734_H804698_2014_08_26_Human_Brazil | B63: 5756 | C63: . | D63: C | E63: 1417 | F63: =E63*100/J63 -> 69.73425197 | G63: T | H63: 615 | I63: =H63*100/J63 -> 30.26574803 | J63: =H63+E63 -> 2032 | K63: 225.009 | L63: PASS | M63: DP=2029;VDB=0.624556;SGB=-0.693147;RPB=0.0128028;MQB=0;MQSB=0.175508;BQB=0.21419;MQ0F=0;AF1=0.5;AC1=1;DP4=749,310,264,175;MQ=39;FQ=225.007;PV4=7.97533e-05,1,0,1;ANN=T|synonymous_variant|LOW|NS4|GENE_NS4|transcript|TRANSCRIPT_NS4|protein_coding|1/1|c.90C>T|p.Val30Val|90/1833|90/1833|30/610||WARNING_TRANSCRIPT_NO_START_CODON,T|upstream_gene_variant|MODIFIER|capsid|GENE_capsid|transcript|TRANSCRIPT_capsid|protein_coding||c.-1812C>T|||||1812|WARNING_TRANSCRIPT_NO_STOP_CODON,T|upstream_gene_variant|MODIFIER|E3|GENE_E3|transcript|TRANSCRIPT_E3|protein_coding||c.-2604C>T|||||2604|WARNING_TRANSCRIPT_NO_START_CODON,T|upstream_gene_variant|MODIFIER|E2|GENE_E2|transcript|TRANSCRIPT_E2|protein_coding||c.-2787C>T|||||2787|WARNING_TRANSCRIPT_NO_START_CODON,T|upstream_gene_variant|MODIFIER|6K|GENE_6K|transcript|TRANSCRIPT_6K|protein_coding||c.-4056C>T|||||4056|WARNING_TRANSCRIPT_NO_START_CODON,T|upstream_gene_variant|MODIFIER|E1|GENE_E1|transcript|TRANSCRIPT_E1|protein_coding||c.-4239C>T|||||4239|WARNING_TRANSCRIPT_NO_START_CODON,T|downstream_gene_variant|MODIFIER|NS1|GENE_NS1|transcript|TRANSCRIPT_NS1|protein_coding||c.*4074C>T|||||4074|WARNING_TRANSCRIPT_NO_STOP_CODON,T|downstream_gene_variant|MODIFIER|NS2|GENE_NS2|transcript|TRANSCRIPT_NS2|protein_coding||c.*1680C>T|||||1680|WARNING_TRANSCRIPT_NO_START_CODON,T|downstream_gene_variant|MODIFIER|NS3|GENE_NS3|transcript|TRANSCRIPT_NS3|protein_coding||c.*108C>T|||||108|WARNING_TRANSCRIPT_NO_START_CODON,T|non_coding_transcript_variant|MODIFIER|EDEN.1|null|transcript|EDEN.1|protein_coding||||||||WARNING_TRANSCRIPT_NO_START_CODON | N63: LOW | O63: Synonymous | P63: GT:PL | Q63: 0/1:255,0,255
A64: KP164568_BHI3734_H804698_2014_08_26_Human_Brazil | B64: 5784 | C64: . | D64: T | E64: 1654 | F64: =E64*100/J64 -> 74.03760072 | G64: C | H64: 580 | I64: =H64*100/J64 -> 25.96239928 | J64: =H64+E64 -> 2234 | K64: 177.009 | L64: PASS | M64: DP=2225;VDB=0.997076;SGB=-0.693147;RPB=7.67421e-05;MQB=0;MQSB=0.195695;BQB=0.103935;MQ0F=0.00179775;AF1=0.5;AC1=1;DP4=688,536,200,244;MQ=39;FQ=180.017;PV4=6.26001e-05,0.0392406,0,0.461385;ANN=C|synonymous_variant|LOW|NS4|GENE_NS4|transcript|TRANSCRIPT_NS4|protein_coding|1/1|c.118T>C|p.Leu40Leu|118/1833|118/1833|40/610||WARNING_TRANSCRIPT_NO_START_CODON,C|upstream_gene_variant|MODIFIER|capsid|GENE_capsid|transcript|TRANSCRIPT_capsid|protein_coding||c.-1784T>C|||||1784|WARNING_TRANSCRIPT_NO_STOP_CODON,C|upstream_gene_variant|MODIFIER|E3|GENE_E3|transcript|TRANSCRIPT_E3|protein_coding||c.-2576T>C|||||2576|WARNING_TRANSCRIPT_NO_START_CODON,C|upstream_gene_variant|MODIFIER|E2|GENE_E2|transcript|TRANSCRIPT_E2|protein_coding||c.-2759T>C|||||2759|WARNING_TRANSCRIPT_NO_START_CODON,C|upstream_gene_variant|MODIFIER|6K|GENE_6K|transcript|TRANSCRIPT_6K|protein_coding||c.-4028T>C|||||4028|WARNING_TRANSCRIPT_NO_START_CODON,C|upstream_gene_variant|MODIFIER|E1|GENE_E1|transcript|TRANSCRIPT_E1|protein_coding||c.-4211T>C|||||4211|WARNING_TRANSCRIPT_NO_START_CODON,C|downstream_gene_variant|MODIFIER|NS1|GENE_NS1|transcript|TRANSCRIPT_NS1|protein_coding||c.*4102T>C|||||4102|WARNING_TRANSCRIPT_NO_STOP_CODON,C|downstream_gene_variant|MODIFIER|NS2|GENE_NS2|transcript|TRANSCRIPT_NS2|protein_coding||c.*1708T>C|||||1708|WARNING_TRANSCRIPT_NO_START_CODON,C|downstream_gene_variant|MODIFIER|NS3|GENE_NS3|transcript|TRANSCRIPT_NS3|protein_coding||c.*136T>C|||||136|WARNING_TRANSCRIPT_NO_START_CODON,C|non_coding_transcript_variant|MODIFIER|EDEN.1|null|transcript|EDEN.1|protein_coding||||||||WARNING_TRANSCRIPT_NO_START_CODON | N64: LOW | O64: Synonymous | P64: GT:PL | Q64: 0/1:207,0,255
A65: KP164568_BHI3734_H804698_2014_08_26_Human_Brazil | B65: 5793 | C65: . | D65: G | E65: 1583 | F65: =E65*100/J65 -> 73.42300557 | G65: T | H65: 573 | I65: =H65*100/J65 -> 26.57699443 | J65: =H65+E65 -> 2156 | K65: 84.0076 | L65: PASS | M65: DP=2150;VDB=0.541442;SGB=-0.693147;RPB=0.000162522;MQB=0;MQSB=0.953278;BQB=0.277769;MQ0F=0.00232558;AF1=0.5;AC1=1;DP4=602,569,220,207;MQ=39;FQ=87.0157;PV4=1,0.233265,0,1;ANN=T|missense_variant|MODERATE|NS4|GENE_NS4|transcript|TRANSCRIPT_NS4|protein_coding|1/1|c.127G>T|p.Val43Leu|127/1833|127/1833|43/610||WARNING_TRANSCRIPT_NO_START_CODON,T|upstream_gene_variant|MODIFIER|capsid|GENE_capsid|transcript|TRANSCRIPT_capsid|protein_coding||c.-1775G>T|||||1775|WARNING_TRANSCRIPT_NO_STOP_CODON,T|upstream_gene_variant|MODIFIER|E3|GENE_E3|transcript|TRANSCRIPT_E3|protein_coding||c.-2567G>T|||||2567|WARNING_TRANSCRIPT_NO_START_CODON,T|upstream_gene_variant|MODIFIER|E2|GENE_E2|transcript|TRANSCRIPT_E2|protein_coding||c.-2750G>T|||||2750|WARNING_TRANSCRIPT_NO_START_CODON,T|upstream_gene_variant|MODIFIER|6K|GENE_6K|transcript|TRANSCRIPT_6K|protein_coding||c.-4019G>T|||||4019|WARNING_TRANSCRIPT_NO_START_CODON,T|upstream_gene_variant|MODIFIER|E1|GENE_E1|transcript|TRANSCRIPT_E1|protein_coding||c.-4202G>T|||||4202|WARNING_TRANSCRIPT_NO_START_CODON,T|downstream_gene_variant|MODIFIER|NS1|GENE_NS1|transcript|TRANSCRIPT_NS1|protein_coding||c.*4111G>T|||||4111|WARNING_TRANSCRIPT_NO_STOP_CODON,T|downstream_gene_variant|MODIFIER|NS2|GENE_NS2|transcript|TRANSCRIPT_NS2|protein_coding||c.*1717G>T|||||1717|WARNING_TRANSCRIPT_NO_START_CODON,T|downstream_gene_variant|MODIFIER|NS3|GENE_NS3|transcript|TRANSCRIPT_NS3|protein_coding||c.*145G>T|||||145|WARNING_TRANSCRIPT_NO_START_CODON,T|non_coding_transcript_variant|MODIFIER|EDEN.1|null|transcript|EDEN.1|protein_coding||||||||WARNING_TRANSCRIPT_NO_START_CODON | N65: MODERATE | O65: Non-synonymous | P65: GT:PL | Q65: 0/1:114,0,255
